Workbook

Sheet Contents
C3: Summary | F3: Colour Codes | K3: File Name: | M3: =File_name() -> https://d.docs.live.net/F82D64A42721F930/Consulting/Neoedge/Total Cost of Ownerhsip Model with Electricity Detail v4.xlsm
G4: Colour of Input Cells | I4: 1234567890
C5: Contents | K5: Last Save Date | M5: =IFERROR(lastsaved(),"") -> 7/8/2026 8:43:59 AM
G6: Section Titles | I6: TITLE ROW
C7: InputC | G7: Column Letter of Title | I7: B | K7: Last Save By | M7: =IFERROR(last_save_by(),"") -> Edward Bodmer
D8: Senario
D9: Timing of Investment | G9: Colour for Sum Column | I9: 1000000000
D10: Operational Data | G10: Column Letter for Sum | I10: A
D11: Capital Expenditures
D12: Operating Cost | G12: True or 1 Colour | I12: TRUE
D13: Financing Targets | G13: False or 0 Colour | I13: FALSE
D14: Constants
G15: Links from Other Sheets | I15: 999999999
C16: InputC-Electricity Drill Down | G16: Start Column for Link Colour | I16: E
C18: FM Monthly
D19: Timeline
D20: Operations
D21: Inflation and Economic Statistics
D22: Capital Expendiure
D23: Operating Cost
D24: Financing
C26: FM Annual
D27: Time Periods
D28: Cash Flows
D29: Depreciation
D30: Income Statement
D31: Cash Flow Statement
D32: Balance Sheet
D33: Classic Statistics and Valuation
C35: Scenarios
C37: Data Center Details -->
C39: Data Center Size
C41: Efficiency for Data Centers
C43: Capital Expenditures
C45: Non Electricity Operating Cost
C47: Token per kW
C49: Facility Life and Construction
C51: Price per Token
C53: General
C55: Commodity Prices -->
D56: Use of Index
D57: Use of Time Lines
D58: Use of NA Trick
C60: Commodity Price Chart
C62: Monthly Prices
C64: Misc Forms

Sheet Notes
C3: What does TCO Mean
C5: TCO and Rate of Return use the same data and models
C7: How is TCO calculated in simple terms
C9: Could you compute the overall value of Data Centers in other ways
C11: Why is TCO measured as Dollars per Million Token
C13: What Drives the TCO
C15: The idea of a financial model as a database of everything that drives costs and prices
C17: What does the InputC mean for Modelling and why is it important
C19: If you want to add a scenario, how can you do it
C21: What are some of the essential trade-offs in measuring TCO
C23: Where does the data come from
C25: How did you make the calculations

Sheet Summary
K1: IRR | N1: =IRR -> 0.0900000006
K2: TCO in Cost/MM Token | N2: =InputC!G79 -> 10906.80771
Q3: Source Data on Size
K4: Electricity Price (USD/MWH) | N4: =InputC!G59 -> 180 | Q4: Source Data on Efficiency
K5: MWit Size | N5: =InputC!G14 -> 40 | Q5: Source Data on Cap Exp
K6: PUE - Electric Efficiency | N6: =InputC!G27 -> 1.9 | Q6: Source Data on Op Exp
Q7: Source Data on Tokens
K8: Total Cost of Data Center/kW | N8: =InputC!G50 -> 16700 | Q8: Source Data on Life
K9: Electric Equipment Cost/kW | N9: =InputC!G47 -> 5000
K10: IT Equipment Cost/kW | N10: =InputC!G45 -> 3500
K12: Lifetime of Data Center (Years) | N12: =InputC!G9 -> 25
K13: Replacement Months of IT Equipment (Months) | N13: =InputC!G52 -> 60
K14: Percent of Electrical Equipment Replaced | N14: =InputC!G54 -> 0.12
K16: Annual Degradation in PUE p.a | N16: =InputC!G33 -> 0.015
K18: Token Capacity in MM Tokens/kW-month | N18: =InputC!G35 -> 0.05
K19: Effective Utilization Factor | N19: =InputC!G37 -> 0.66
K20: Token Sales in MM Tokens | N20: ='FM Monthly'!F31 -> 1320
B21: Area (m2) | C21: =InputC!G18 -> 44.44444444 | E21: Area/MW | G21: =InputC!G23 -> 1.111111111
B22: Racks | C22: =InputC!G19 -> 8000 | E22: Racks//m2 | G22: =InputC!G22 -> 180 | K22: AI model Tokens for Software | N22: 30000000
K23: AI model Tokens for FM High | N23: ='Price per Token'!O10 -> 6500
K25: Cost of Tokens - High | N25: =N22/1000000*N2 -> 327204.2313
K26: Cost of Tokens - Low | N26: =N23/1000000*N2 -> 70.89425012
D38: Comment | E38: TRUE

Sheet Scenarios
F1: FALSE
D3: ='InputC-Electricity Drill Down'!J2 -> Legacy Data Centers - High Cost | E3: ='InputC-Electricity Drill Down'!K2 -> Legacy Data Centers - Low Cost | F3: ='InputC-Electricity Drill Down'!L2 -> Legacy Data Centers - Computer Room Air Conditioning | G3: ='InputC-Electricity Drill Down'!M2 -> Legacy Data Centers - Hot/Cold Aisle Containment | H3: ='InputC-Electricity Drill Down'!N2 -> Legacy Data Centers - Chilled Water Central Loops
C4: =IF($F$1,C5,C6) -> Legacy Data Center IRR | D4: 2.980232239e-09 | E4: 0.0900000006 | F4: -0.008296195045 | G4: 0.1349207342 | H4: 0.1782176197
C5: Legacy TCO - USD/MM Token | D5: =InputC!J79:N79 -> 10906.80771 | E5: 7199.772577 | F5: 8704.811828 | G5: 6475.637643 | H5: 5501.432409
C6: Legacy Data Center IRR | D6: =InputC!J81 -> 2.980232239e-09 | E6: =InputC!K81 -> 0.0900000006 | F6: =InputC!L81 -> -0.008296195045 | G6: =InputC!M81 -> 0.1349207342 | H6: =InputC!N81 -> 0.1782176197
D15: ='InputC-Electricity Drill Down'!O2 -> Early AI Date Centers - High Cost | E15: ='InputC-Electricity Drill Down'!P2 -> Early AI Date Centers - Low Cost | F15: ='InputC-Electricity Drill Down'!Q2 -> Early AI Date Centers - Single Phase Direct to Liquid Cooling | G15: ='InputC-Electricity Drill Down'!R2 -> Early AI Date Centers - Coolant Distribution Units | H15: ='InputC-Electricity Drill Down'!S2 -> Early AI Date Centers - Hybrid Air-Liquid Infrastructure
C16: =IF($F$1,C17,C18) -> Early AI IRR | D16: 0.03091690838 | E16: 0.0900000006 | F16: 0.3308706462 | G16: 0.2913923085 | H16: 0.2771679938
C17: Early AI TOC - USD/MM Token | D17: =InputC!O79 -> 404.8903925 | E17: =InputC!P79 -> 349.2228416 | F17: =InputC!Q79 -> 205.1809751 | G17: =InputC!R79 -> 234.1145356 | H17: =InputC!S79 -> 212.520519
C18: Early AI IRR | D18: =InputC!O81 -> 0.03091690838 | E18: =InputC!P81 -> 0.0900000006 | F18: =InputC!Q81 -> 0.3308706462 | G18: =InputC!R81 -> 0.2913923085 | H18: =InputC!S81 -> 0.2771679938
D29: ='InputC-Electricity Drill Down'!T2 -> Modern AI Factories - High Cost | E29: ='InputC-Electricity Drill Down'!U2 -> Modern AI Factories - Low Cost | F29: ='InputC-Electricity Drill Down'!V2 -> Modern AI Factories - Single Phase Direct-to-Chip Liquid Cooling | G29: ='InputC-Electricity Drill Down'!W2 -> Modern AI Factories - Coolant Distribution Units (CDUs) | H29: ='InputC-Electricity Drill Down'!X2 -> Modern AI Factories - Hybrid Air-Liquid Infrastructure
C30: =IF($F$1,C31,C32) -> Modern AI IRR | D30: 0.04555314481 | E30: 0.0900000006 | F30: 0.2600366294 | G30: 0.2151834309 | H30: 0.162016207
C31: Modern AI TCO - USD/MM Tokens | D31: =InputC!T79 -> 166.0167889 | E31: =InputC!U79 -> 146.5139997 | F31: =InputC!V79 -> 98.73643744 | G31: =InputC!W79 -> 109.9514319 | H31: =InputC!X79 -> 122.9454737
C32: Modern AI IRR | D32: =InputC!T81:X81 -> 0.04555314481 | E32: 0.0900000006 | F32: 0.2600366294 | G32: 0.2151834309 | H32: 0.162016207
D40: ='InputC-Electricity Drill Down'!Y2 -> Next-Gen Superclusters - High Cost | E40: ='InputC-Electricity Drill Down'!Z2 -> Next-Gen Superclusters - Low Cost | F40: ='InputC-Electricity Drill Down'!AA2 -> Next-Gen Superclusters - Chiller-Less Dry Cooling | G40: ='InputC-Electricity Drill Down'!AB2 -> Next-Gen Superclusters - High -Impedance Dielectric Coolants | H40: ='InputC-Electricity Drill Down'!AC2 -> Next-Gen Superclusters - AI-Driven Grid Balance Cooling
C41: =IF($F$1,C42,C43) -> Next Gen IRR | D41: 0.05797324479 | E41: 0.0900000006 | F41: 0.2164498866 | G41: 0.2861025155 | H41: 0.1651715219
C42: Next-Gen TCO USD/MM Token | D42: =InputC!Y79 -> 126.1343955 | E42: =InputC!Z79 -> 114.4374373 | F42: =InputC!AA79 -> 82.41799459 | G42: =InputC!AB79 -> 67.01506596 | H42: =InputC!AC79 -> 92.57153728
C43: Next Gen IRR | D43: =InputC!Y81 -> 0.05797324479 | E43: =InputC!Z81 -> 0.0900000006 | F43: =InputC!AA81 -> 0.2164498866 | G43: =InputC!AB81 -> 0.2861025155 | H43: =InputC!AC81 -> 0.1651715219
D51: ='InputC-Electricity Drill Down'!AD2 -> Specialized Inference Farms - High Cost | E51: ='InputC-Electricity Drill Down'!AE2 -> Specialized Inference Farms - Low Cost | F51: ='InputC-Electricity Drill Down'!AF2 -> Specialized Inference Farms - Chassis-Level Immersion Cooling | G51: ='InputC-Electricity Drill Down'!AG2 -> Specialized Inference Farms - Open-Tank-Phase Immersion | H51: ='InputC-Electricity Drill Down'!AH2 -> Specialized Inference Farms - Liquid-to-Air (L2A) Sidecars
C52: =IF($F$1,C53,C54) -> Specialized Inference IRR | D52: 0.06071632206 | E52: 0.0900000006 | F52: 0.2830015123 | G52: 0.3353142679 | H52: 0.08520224988
C53: Specialized TCO - USD/MM Tons | D53: =InputC!AD79 -> 33.6741441 | E53: =InputC!AE79 -> 30.70271721 | F53: =InputC!AF79 -> 19.77951151 | G53: =InputC!AG79 -> 16.2757516 | H53: =InputC!AH79 -> 30.99446424
C54: Specialized Inference IRR | D54: =InputC!AD81 -> 0.06071632206 | E54: =InputC!AE81 -> 0.0900000006 | F54: =InputC!AF81 -> 0.2830015123 | G54: =InputC!AG81 -> 0.3353142679 | H54: =InputC!AH81 -> 0.08520224988
D64: ='InputC-Electricity Drill Down'!AI2 -> NVIDIA Hopper (H200) - High Cost | E64: ='InputC-Electricity Drill Down'!AJ2 -> NVIDIA Hopper (H200) - Low Cost | F64: ='InputC-Electricity Drill Down'!AK2 -> NVIDIA Hopper (H200) - Hyrid Air | G64: ='InputC-Electricity Drill Down'!AL2 -> NVIDIA Hopper (H200) - Fluid-Assisted | H64: ='InputC-Electricity Drill Down'!AM2 -> NVIDIA Hopper (H200) - Single Phase Direct-to-Chip Liquid Cooling
C65: =IF($F$1,C66,C67) -> NVIDIA Hopper IRR | D65: 0.01855907142 | E65: 0.0900000006 | F65: -0.1536638979 | G65: 0.006557324529 | H65: 0.143040961
C66: NVIDIA TCO in USD/MM Token | D66: =InputC!AI79 -> 132.6252885 | E66: =InputC!AJ79 -> 109.4315726 | F66: =InputC!AK79 -> 163.3244274 | G66: =InputC!AL79 -> 128.654842 | H66: =InputC!AM79 -> 100.5408585
C67: NVIDIA Hopper IRR | D67: =InputC!AI81 -> 0.01855907142 | E67: =InputC!AJ81 -> 0.0900000006 | F67: =InputC!AK81 -> -0.1536638979 | G67: =InputC!AL81 -> 0.006557324529 | H67: =InputC!AM81 -> 0.143040961
D75: ='InputC-Electricity Drill Down'!AO2 -> NVIDIA Blackwell (GB300 / B300) - High Cost | E75: ='InputC-Electricity Drill Down'!AP2 -> NVIDIA Blackwell (GB300 / B300) - Low Cost | F75: ='InputC-Electricity Drill Down'!AQ2 -> NVIDIA Blackwell (GB300 / B300) - 90% Direct-to-Chip Liquid | G75: ='InputC-Electricity Drill Down'!AR2 -> NVIDIA Blackwell (GB300 / B300) - Single Phase Direct-to-Chip Liquid Cooling | H75: ='InputC-Electricity Drill Down'!AS2 -> NVIDIA Blackwell (GB300 / B300) - Double Phase Direct-to-Chip Liquid Cooling
C76: =IF($F$1,C77,C78) -> NVIDIA Blackwell IRR | D76: 2.980232239e-09 | E76: 0.0900000006 | F76: 0.0369812578 | G76: 0.1057727277 | H76: 0.1300995886
C77: NVIDIA Blackwell TCO in USD/MM Tokens | D77: =InputC!AO79 -> 73.75748709 | E77: =InputC!AP79 -> 45.43718583 | F77: =InputC!AQ79 -> 49.58742033 | G77: =InputC!AR79 -> 44.14135872 | H77: =InputC!AS79 -> 42.19848506
C78: NVIDIA Blackwell IRR | D78: =InputC!AO81 -> 2.980232239e-09 | E78: =InputC!AP81 -> 0.0900000006 | F78: =InputC!AQ81 -> 0.0369812578 | G78: =InputC!AR81 -> 0.1057727277 | H78: =InputC!AS81 -> 0.1300995886
D86: ='InputC-Electricity Drill Down'!AT2 -> NVIDIA Vera Rubin NVL72 - High Cost | E86: ='InputC-Electricity Drill Down'!AU2 -> NVIDIA Vera Rubin NVL72 - Low Cost | F86: ='InputC-Electricity Drill Down'!AV2 -> NVIDIA Vera Rubin NVL72 - 45 C Warm-Water Closed-Loop Liquid | G86: ='InputC-Electricity Drill Down'!AW2 -> NVIDIA Vera Rubin NVL72 - Single Phase Direct-to-Chip Liquid Cooling | H86: ='InputC-Electricity Drill Down'!AX2 -> NVIDIA Vera Rubin NVL72 - Double Phase Direct-to-Chip Liquid Cooling
C87: =IF($F$1,C88,C89) -> NVIDIA Vera IRR | D87: -0.007558882982 | E87: 0.0900000006 | F87: 0.240914768 | G87: 0.1732286513 | H87: 0.05634226501
C88: NVIDIA TCO in USD/MM Token | D88: =InputC!AT79 -> 39.89962637 | E88: =InputC!AU79 -> 32.81847064 | F88: =InputC!AV79 -> 24.92690548 | G88: =InputC!AW79 -> 28.50190905 | H88: =InputC!AX79 -> 34.36213712
C89: NVIDIA Vera IRR | D89: =InputC!AT81 -> -0.007558882982 | E89: =InputC!AU81 -> 0.0900000006 | F89: =InputC!AV81 -> 0.240914768 | G89: =InputC!AW81 -> 0.1732286513 | H89: =InputC!AX81 -> 0.05634226501

Sheet InputC
J1: TCO | K1: ='FM Monthly'!F37 -> 10906.80771 | L1: IRR | M1: ='FM Monthly'!F117 -> 0.0900000006
B2: Senario | E2: 1 | J2: =_xlfn.SEQUENCE(,50) -> 1 | K2: 2 | L2: 3 | M2: 4 | N2: 5 | O2: 6 | P2: 7 | Q2: 8 | R2: 9 | S2: 10 | T2: 11 | U2: 12 | V2: 13 | W2: 14 | X2: 15 | Y2: 16 | Z2: 17 | AA2: 18 | AB2: 19 | AC2: 20 | AD2: 21 | AE2: 22 | AF2: 23 | AG2: 24 | AH2: 25 | AI2: 26 | AJ2: 27 | AK2: 28 | AL2: 29 | AM2: 30 | AN2: 31 | AO2: 32 | AP2: 33 | AQ2: 34 | AR2: 35 | AS2: 36 | AT2: 37 | AU2: 38 | AV2: 39 | AW2: 40 | AX2: 41 | AY2: 42 | AZ2: 43 | BA2: 44 | BB2: 45 | BC2: 46 | BD2: 47 | BE2: 48 | BF2: 49 | BG2: 50
F3: Units | G3: =INDEX(J3:SS3,$E$2) -> Legacy Data Centers - High Cost | J3: Legacy Data Centers - High Cost | K3: Legacy Data Centers - Low Cost | L3: Legacy Data Centers - Computer Room Air Conditioning | M3: Legacy Data Centers - Hot/Cold Aisle Containment | N3: Legacy Data Centers - Chilled Water Central Loops | O3: Early AI Date Centers - High Cost | P3: Early AI Date Centers - Low Cost | Q3: Early AI Date Centers - Single Phase Direct to Liquid Cooling | R3: Early AI Date Centers - Coolant Distribution Units | S3: Early AI Date Centers - Hybrid Air-Liquid Infrastructure | T3: Modern AI Factories - High Cost | U3: Modern AI Factories - Low Cost | V3: Modern AI Factories - Single Phase Direct-to-Chip Liquid Cooling | W3: Modern AI Factories - Coolant Distribution Units (CDUs) | X3: Modern AI Factories - Hybrid Air-Liquid Infrastructure | Y3: Next-Gen Superclusters - High Cost | Z3: Next-Gen Superclusters - Low Cost | AA3: Next-Gen Superclusters - Chiller-Less Dry Cooling | AB3: Next-Gen Superclusters - High -Impedance Dielectric Coolants | AC3: Next-Gen Superclusters - AI-Driven Grid Balance Cooling | AD3: Specialized Inference Farms - High Cost | AE3: Specialized Inference Farms - Low Cost | AF3: Specialized Inference Farms - Chassis-Level Immersion Cooling | AG3: Specialized Inference Farms - Open-Tank-Phase Immersion | AH3: Specialized Inference Farms - Liquid-to-Air (L2A) Sidecars | AI3: NVIDIA Hopper (H200) - High Cost | AJ3: NVIDIA Hopper (H200) - Low Cost | AK3: NVIDIA Hopper (H200) - Hyrid Air | AL3: NVIDIA Hopper (H200) - Fluid-Assisted | AM3: NVIDIA Hopper (H200) - Single Phase Direct-to-Chip Liquid Cooling | AN3: NVIDIA Hopper (H200) - Double Phase Direct-to-Chip Liquid Cooling | AO3: NVIDIA Blackwell (GB300 / B300) - High Cost | AP3: NVIDIA Blackwell (GB300 / B300) - Low Cost | AQ3: NVIDIA Blackwell (GB300 / B300) - 90% Direct-to-Chip Liquid | AR3: NVIDIA Blackwell (GB300 / B300) - Single Phase Direct-to-Chip Liquid Cooling | AS3: NVIDIA Blackwell (GB300 / B300) - Double Phase Direct-to-Chip Liquid Cooling | AT3: NVIDIA Vera Rubin NVL72 - High Cost | AU3: NVIDIA Vera Rubin NVL72 - Low Cost | AV3: NVIDIA Vera Rubin NVL72 - 45 C Warm-Water Closed-Loop Liquid | AW3: NVIDIA Vera Rubin NVL72 - Single Phase Direct-to-Chip Liquid Cooling | AX3: NVIDIA Vera Rubin NVL72 - Double Phase Direct-to-Chip Liquid Cooling | AY3: NVIDA Vera Alternative Scenario (Full Description Copied from ___) | AZ3: NVIDA Blackwell Alternative Scenario (Full Description Copied from ___) | BA3: NVIDA Blackwell Alternative Scenario (Full Description Copied from ___) | BB3: NVIDA Hopper Added Scenario (Full Description Copied from ___) | BC3: Added Scenario (Full Description Copied from ___) | BD3: Added Scenario (Full Description Copied from ___) | BE3: Added Scenario (Full Description Copied from ___) | BF3: Added Scenario (Full Description Copied from ___) | BG3: Added Scenario (Full Description Copied from ___) | BH3: Added Scenario (Full Description Copied from ___) | BI3: Added Scenario (Full Description Copied from ___)
B4: Timing of Investment
C6: Start of Investment | F6: Date | G6: =INDEX(J6:SS6,$E$2) -> 2027-01-01 | J6: 2027-01-01 | K6: 2027-01-01 | L6: 2027-01-01 | M6: 2027-01-01 | N6: 2027-01-01 | O6: 2027-01-01 | P6: 2027-01-01 | Q6: 2027-01-01 | R6: 2027-01-01 | S6: 2027-01-01 | T6: 2027-01-01 | U6: 2027-01-01 | V6: 2027-01-01 | W6: 2027-01-01 | X6: 2027-01-01 | Y6: 2027-01-01 | Z6: 2027-01-01 | AA6: 2027-01-01 | AB6: 2027-01-01 | AC6: 2027-01-01 | AD6: 2027-01-01 | AE6: 2027-01-01 | AF6: 2027-01-01 | AG6: 2027-01-01 | AH6: 2027-01-01 | AI6: 2027-01-01 | AJ6: 2027-01-01 | AK6: 2027-01-01 | AL6: 2027-01-01 | AM6: 2027-01-01 | AN6: 2027-01-01 | AO6: 2027-01-01 | AP6: 2027-01-01 | AQ6: 2027-01-01 | AR6: 2027-01-01 | AS6: 2027-01-01 | AT6: 2027-01-01 | AU6: 2027-01-01 | AV6: 2027-01-01 | AW6: 2027-01-01 | AX6: 2027-01-01
C7: Construction | F7: Months | G7: =INDEX(J7:SS7,$E$2) -> 24 | J7: =TRANSPOSE('Facility Life and Construction'!AR4:AR44) -> 24 | K7: 14 | L7: 15 | M7: 16 | N7: 22 | O7: 20 | P7: 12 | Q7: 16 | R7: 15 | S7: 18 | T7: 18 | U7: 14 | V7: 15 | W7: 14 | X7: 16 | Y7: 36 | Z7: 18 | AA7: 20 | AB7: 22 | AC7: 26 | AD7: 15 | AE7: 9 | AF7: 12 | AG7: 14 | AH7: 8 | AI7: 7 | AJ7: 3 | AK7: 3 | AL7: 4 | AM7: 5 | AN7: 6 | AO7: 8 | AP7: 4 | AQ7: 6 | AR7: 5 | AS7: 7 | AT7: 9 | AU7: 5 | AV7: 6 | AW7: 6 | AX7: 8
C8: Start of Operation | F8: Date | G8: =INDEX(J8:SS8,$E$2) -> 2029-01-01 | J8: =EDATE(J6,J7) -> 2029-01-01 | K8: 2028-03-01 | L8: 2028-04-01 | M8: 2028-05-01 | N8: 2028-11-01 | O8: 2028-09-01 | P8: 2028-01-01 | Q8: 2028-05-01 | R8: 2028-04-01 | S8: 2028-07-01 | T8: 2028-07-01 | U8: 2028-03-01 | V8: 2028-04-01 | W8: 2028-03-01 | X8: 2028-05-01 | Y8: 2030-01-01 | Z8: 2028-07-01 | AA8: 2028-09-01 | AB8: 2028-11-01 | AC8: 2029-03-01 | AD8: 2028-04-01 | AE8: 2027-10-01 | AF8: 2028-01-01 | AG8: 2028-03-01 | AH8: 2027-09-01 | AI8: 2027-08-01 | AJ8: 2027-04-01 | AK8: 2027-04-01 | AL8: 2027-05-01 | AM8: 2027-06-01 | AN8: 2027-07-01 | AO8: 2027-09-01 | AP8: 2027-05-01 | AQ8: 2027-07-01 | AR8: 2027-06-01 | AS8: 2027-08-01 | AT8: =EDATE(AT6,AT7) -> 2027-10-01 | AU8: 2027-06-01 | AV8: 2027-07-01 | AW8: 2027-07-01 | AX8: 2027-09-01
C9: Facility Operating Life | F9: Years | G9: =INDEX(J9:SS9,$E$2) -> 25 | J9: =TRANSPOSE('Facility Life and Construction'!AS4:AS44) -> 25 | K9: 15 | L9: 20 | M9: 18 | N9: 25 | O9: 15 | P9: 10 | Q9: 14 | R9: 12 | S9: 15 | T9: 20 | U9: 12 | V9: 15 | W9: 12 | X9: 15 | Y9: 30 | Z9: 14 | AA9: 20 | AB9: 16 | AC9: 25 | AD9: 20 | AE9: 12 | AF9: 14 | AG9: 16 | AH9: 9 | AI9: 7 | AJ9: 5 | AK9: 6 | AL9: 5 | AM9: 6 | AN9: 5 | AO9: 8 | AP9: 5 | AQ9: 7 | AR9: 6 | AS9: 6 | AT9: 6 | AU9: 8 | AV9: 7 | AW9: 6 | AX9: 6
C10: End-of-life | F10: Date | G10: =INDEX(J10:SS10,$E$2) -> 2054-01-31 | J10: =EOMONTH(J8,J9*Months) -> 2054-01-31 | K10: 2043-03-31 | L10: 2048-04-30 | M10: 2046-05-31 | N10: 2053-11-30 | O10: 2043-09-30 | P10: 2038-01-31 | Q10: 2042-05-31 | R10: 2040-04-30 | S10: =EOMONTH(S8,S9*Months) -> 2043-07-31 | T10: 2048-07-31 | U10: 2040-03-31 | V10: 2043-04-30 | W10: 2040-03-31 | X10: 2043-05-31 | Y10: 2060-01-31 | Z10: 2042-07-31 | AA10: 2048-09-30 | AB10: 2044-11-30 | AC10: 2054-03-31 | AD10: 2048-04-30 | AE10: 2039-10-31 | AF10: 2042-01-31 | AG10: 2044-03-31 | AH10: 2036-09-30 | AI10: 2034-08-31 | AJ10: 2032-04-30 | AK10: 2033-04-30 | AL10: 2032-05-31 | AM10: 2033-06-30 | AN10: 2032-07-31 | AO10: 2035-09-30 | AP10: 2032-05-31 | AQ10: 2034-07-31 | AR10: 2033-06-30 | AS10: 2033-08-31 | AT10: =EOMONTH(AT8,AT9*Months) -> 2033-10-31 | AU10: 2035-06-30 | AV10: 2034-07-31 | AW10: 2033-07-31 | AX10: 2033-09-30
B12: Operational Data
C14: Data Center Capacity MW | F14: MW of IT | G14: =INDEX(J14:SS14,$E$2) -> 40 | J14: =TRANSPOSE('Data Center Size'!AS4:AS44) -> 40 | K14: 10 | L14: 5 | M14: 20 | N14: 50 | O14: 80 | P14: 25 | Q14: 40 | R14: 50 | S14: 60 | T14: 300 | U14: 70 | V14: 150 | W14: 200 | X14: 120 | Y14: 1000 | Z14: 300 | AA14: 500 | AB14: 300 | AC14: 1000 | AD14: 50 | AE14: 15 | AF14: 30 | AG14: 40 | AH14: 8 | AI14: 50 | AJ14: 10 | AK14: 6 | AL14: 15 | AM14: 40 | AN14: 50 | AO14: 120 | AP14: 30 | AQ14: 100 | AR14: 80 | AS14: 120 | AT14: 300 | AU14: 45 | AV14: 120 | AW14: 90 | AX14: 150
C15: Data Center Capacity kW | F15: kW of IT | G15: =INDEX(J15:SS15,$E$2) -> 40000 | J15: =J14*1000 -> 40000 | K15: =K14*1000 -> 10000 | L15: 5000 | M15: 20000 | N15: 50000 | O15: 80000 | P15: 25000 | Q15: 40000 | R15: 50000 | S15: 60000 | T15: 300000 | U15: 70000 | V15: 150000 | W15: 200000 | X15: 120000 | Y15: 1000000 | Z15: 300000 | AA15: 500000 | AB15: 300000 | AC15: 1000000 | AD15: 50000 | AE15: 15000 | AF15: 30000 | AG15: 40000 | AH15: 8000 | AI15: 50000 | AJ15: 10000 | AK15: 6000 | AL15: 15000 | AM15: 40000 | AN15: 50000 | AO15: 120000 | AP15: 30000 | AQ15: 100000 | AR15: 80000 | AS15: 120000 | AT15: 300000 | AU15: 45000 | AV15: 120000 | AW15: 90000 | AX15: 150000
C17: Size in Sqare Feet | F17: Sq Feet 000's | G17: =INDEX(J17:SS17,$E$2) -> 400 | J17: =TRANSPOSE('Data Center Size'!AT4:AT44) -> 400 | K17: 100 | L17: 40 | M17: 20 | N17: 450 | O17: 200 | P17: 76 | Q17: 100 | R17: 120 | S17: 160 | T17: 600 | U17: 180 | V17: 250 | W17: 350 | X17: 220 | Y17: 2500 | Z17: 700 | AA17: 900 | AB17: 400 | AC17: 2000 | AD17: 90 | AE17: 35 | AF17: 45 | AG17: 60 | AH17: 25 | AI17: 80 | AJ17: 25 | AK17: 20 | AL17: 30 | AM17: 60 | AN17: 70 | AO17: 100 | AP17: 30 | AQ17: 80 | AR17: 65 | AS17: 95 | AT17: 140 | AU17: 35 | AV17: 50 | AW17: 60 | AX17: 85
C18: Size in Sqare Meters | F18: M2 | G18: =INDEX(J18:SS18,$E$2) -> 44.44444444 | J18: =J17/feet_meters -> 44.44444444 | K18: 11.11111111 | L18: 4.444444444 | M18: 2.222222222 | N18: 50 | O18: 22.22222222 | P18: 8.444444444 | Q18: 11.11111111 | R18: 13.33333333 | S18: 17.77777778 | T18: 66.66666667 | U18: 20 | V18: 27.77777778 | W18: 38.88888889 | X18: 24.44444444 | Y18: 277.7777778 | Z18: 77.77777778 | AA18: 100 | AB18: 44.44444444 | AC18: 222.2222222 | AD18: 10 | AE18: 3.888888889 | AF18: 5 | AG18: 6.666666667 | AH18: 2.777777778 | AI18: 8.888888889 | AJ18: 2.777777778 | AK18: 2.222222222 | AL18: 3.333333333 | AM18: 6.666666667 | AN18: 7.777777778 | AO18: 11.11111111 | AP18: 3.333333333 | AQ18: 8.888888889 | AR18: 7.222222222 | AS18: 10.55555556 | AT18: 15.55555556 | AU18: 3.888888889 | AV18: 5.555555556 | AW18: 6.666666667 | AX18: 9.444444444
C19: Racks | F19: Racks | G19: =INDEX(J19:SS19,$E$2) -> 8000 | J19: =TRANSPOSE('Data Center Size'!AU4:AU44) -> 8000 | K19: 2000 | L19: 1000 | M19: 3000 | N19: 9000 | O19: 3000 | P19: 1000 | Q19: 1200 | R19: 1500 | S19: 2000 | T19: 6000 | U19: 1800 | V19: 3500 | W19: 4500 | X19: 3000 | Y19: 10000 | Z19: 3000 | AA19: 5000 | AB19: 3000 | AC19: 10000 | AD19: 2500 | AE19: 750 | AF19: 900 | AG19: 1000 | AH19: 200 | AI19: 1200 | AJ19: 250 | AK19: 150 | AL19: 350 | AM19: 800 | AN19: 900 | AO19: 900 | AP19: 230 | AQ19: 750 | AR19: 600 | AS19: 900 | AT19: 1000 | AU19: 180 | AV19: 480 | AW19: 360 | AX19: 600
C21: Racks per kW | F21: Racks/MW | J21: =J14 -> 40 | K21: =K14 -> 10 | L21: 5 | M21: 20 | N21: 50 | O21: 80 | P21: 25 | Q21: 40 | R21: 50 | S21: 60 | T21: 300 | U21: 70 | V21: 150 | W21: 200 | X21: 120 | Y21: 1000 | Z21: 300 | AA21: 500 | AB21: 300 | AC21: 1000 | AD21: 50 | AE21: 15 | AF21: 30 | AG21: 40 | AH21: 8 | AI21: 50 | AJ21: 10 | AK21: 6 | AL21: 15 | AM21: 40 | AN21: 50 | AO21: 120 | AP21: 30 | AQ21: 100 | AR21: 80 | AS21: 120 | AT21: 300 | AU21: 45 | AV21: 120 | AW21: 90 | AX21: 150
C22: Rack per m2 | F22: Rack/m2 | G22: =INDEX(J22:SS22,$E$2) -> 180 | J22: =J19/J18 -> 180 | K22: =K19/K18 -> 180 | L22: 225 | M22: 1350 | N22: 180 | O22: 135 | P22: 118.4210526 | Q22: 108 | R22: 112.5 | S22: 112.5 | T22: 90 | U22: 90 | V22: 126 | W22: 115.7142857 | X22: 122.7272727 | Y22: 36 | Z22: 38.57142857 | AA22: 50 | AB22: 67.5 | AC22: 45 | AD22: 250 | AE22: 192.8571429 | AF22: 180 | AG22: 150 | AH22: 72 | AI22: 135 | AJ22: 90 | AK22: 67.5 | AL22: 105 | AM22: 120 | AN22: 115.7142857 | AO22: 81 | AP22: 69 | AQ22: 84.375 | AR22: 83.07692308 | AS22: 85.26315789 | AT22: 64.28571429 | AU22: 46.28571429 | AV22: 86.4 | AW22: 54 | AX22: 63.52941176
C23: Area in m2/kW | F23: m2/MW | G23: =INDEX(J23:SS23,$E$2) -> 1.111111111 | J23: =J18/J14 -> 1.111111111 | K23: =K18/K14 -> 1.111111111 | L23: 0.8888888889 | M23: 0.1111111111 | N23: 1 | O23: 0.2777777778 | P23: 0.3377777778 | Q23: 0.2777777778 | R23: 0.2666666667 | S23: 0.2962962963 | T23: 0.2222222222 | U23: 0.2857142857 | V23: 0.1851851852 | W23: 0.1944444444 | X23: 0.2037037037 | Y23: 0.2777777778 | Z23: 0.2592592593 | AA23: 0.2 | AB23: 0.1481481481 | AC23: 0.2222222222 | AD23: 0.2 | AE23: 0.2592592593 | AF23: 0.1666666667 | AG23: 0.1666666667 | AH23: 0.3472222222 | AI23: 0.1777777778 | AJ23: 0.2777777778 | AK23: 0.3703703704 | AL23: 0.2222222222 | AM23: 0.1666666667 | AN23: 0.1555555556 | AO23: 0.09259259259 | AP23: 0.1111111111 | AQ23: 0.08888888889 | AR23: 0.09027777778 | AS23: 0.08796296296 | AT23: 0.05185185185 | AU23: 0.08641975309 | AV23: 0.0462962963 | AW23: 0.07407407407 | AX23: 0.06296296296
C25: Load factor (percent of time Cooled) | F25: % | G25: =H25/100 -> 0.9 | H25: 90 | J25: =$G$25 -> 0.9 | K25: =$G$25 -> 0.9 | L25: 0.9 | M25: 0.9 | N25: 0.9 | O25: 0.9 | P25: 0.9 | Q25: 0.9 | R25: 0.9 | S25: 0.9 | T25: 0.9 | U25: 0.9 | V25: 0.9 | W25: 0.9 | X25: 0.9 | Y25: 0.9 | Z25: 0.9 | AA25: 0.9 | AB25: 0.9 | AC25: 0.9 | AD25: 0.9 | AE25: 0.9 | AF25: 0.9 | AG25: 0.9 | AH25: 0.9 | AI25: 0.9 | AJ25: 0.9 | AK25: 0.9 | AL25: 0.9 | AM25: 0.9 | AN25: 0.9 | AO25: 0.9 | AP25: 0.9 | AQ25: 0.9 | AR25: 0.9 | AS25: 0.9 | AT25: 0.9 | AU25: 0.9 | AV25: 0.9 | AW25: 0.9 | AX25: 0.9
C27: Cooling Efficiency Input from Drill Down (PUE) | F27: x | G27: =INDEX(J27:SS27,$E$2) -> 1.9 | J27: ='InputC-Electricity Drill Down'!J5 -> 1.9 | K27: ='InputC-Electricity Drill Down'!K5 -> 2.2 | L27: ='InputC-Electricity Drill Down'!L5 -> 2 | M27: ='InputC-Electricity Drill Down'!M5 -> 1.6 | N27: ='InputC-Electricity Drill Down'!N5 -> 1.5 | O27: ='InputC-Electricity Drill Down'!O5 -> 1.45 | P27: ='InputC-Electricity Drill Down'!P5 -> 1.65 | Q27: ='InputC-Electricity Drill Down'!Q5 -> 1.3 | R27: ='InputC-Electricity Drill Down'!R5 -> 1.32 | S27: ='InputC-Electricity Drill Down'!S5 -> 1.4 | T27: ='InputC-Electricity Drill Down'!T5 -> 1.18 | U27: ='InputC-Electricity Drill Down'!U5 -> 1.35 | V27: ='InputC-Electricity Drill Down'!V5 -> 1.15 | W27: ='InputC-Electricity Drill Down'!W5 -> 1.16 | X27: ='InputC-Electricity Drill Down'!X5 -> 1.25 | Y27: ='InputC-Electricity Drill Down'!Y5 -> 1.1 | Z27: ='InputC-Electricity Drill Down'!Z5 -> 1.25 | AA27: ='InputC-Electricity Drill Down'!AA5 -> 1.12 | AB27: ='InputC-Electricity Drill Down'!AB5 -> 1.07 | AC27: ='InputC-Electricity Drill Down'!AC5 -> 1.12 | AD27: ='InputC-Electricity Drill Down'!AD5 -> 1.35 | AE27: ='InputC-Electricity Drill Down'!AE5 -> 1.55 | AF27: ='InputC-Electricity Drill Down'!AF5 -> 1.18 | AG27: ='InputC-Electricity Drill Down'!AG5 -> 1.08 | AH27: ='InputC-Electricity Drill Down'!AH5 -> 1.35 | AI27: ='InputC-Electricity Drill Down'!AI5 -> 1.22 | AJ27: ='InputC-Electricity Drill Down'!AJ5 -> 1.45 | AK27: ='InputC-Electricity Drill Down'!AK5 -> 1.5 | AL27: ='InputC-Electricity Drill Down'!AL5 -> 1.35 | AM27: ='InputC-Electricity Drill Down'!AM5 -> 1.18 | AN27: ='InputC-Electricity Drill Down'!AN5 -> 1.14 | AO27: ='InputC-Electricity Drill Down'!AO5 -> 1.14 | AP27: ='InputC-Electricity Drill Down'!AP5 -> 1.3 | AQ27: ='InputC-Electricity Drill Down'!AQ5 -> 1.13 | AR27: ='InputC-Electricity Drill Down'!AR5 -> 1.15 | AS27: ='InputC-Electricity Drill Down'!AS5 -> 1.11 | AT27: ='InputC-Electricity Drill Down'!AT5 -> 1.12 | AU27: ='InputC-Electricity Drill Down'!AU5 -> 1.25 | AV27: ='InputC-Electricity Drill Down'!AV5 -> 1.07 | AW27: ='InputC-Electricity Drill Down'!AW5 -> 1.14 | AX27: ='InputC-Electricity Drill Down'!AX5 -> 1.1
C28: Cooling Efficiency from Losses Drill Down (PUE) | F28: x | G28: =INDEX(J28:SS28,$E$2) -> 2.398081535 | J28: ='InputC-Electricity Drill Down'!J29 -> 2.398081535 | K28: ='InputC-Electricity Drill Down'!K29 -> 3.636363636 | L28: ='InputC-Electricity Drill Down'!L29 -> 2.652519894 | M28: ='InputC-Electricity Drill Down'!M29 -> 1.814882033 | N28: ='InputC-Electricity Drill Down'!N29 -> 1.694915254 | O28: ='InputC-Electricity Drill Down'!O29 -> 1.572327044 | P28: ='InputC-Electricity Drill Down'!P29 -> 1.953125 | Q28: ='InputC-Electricity Drill Down'!Q29 -> 1.396648045 | R28: ='InputC-Electricity Drill Down'!R29 -> 1.436781609 | S28: ='InputC-Electricity Drill Down'!S29 -> 1.526717557 | T28: ='InputC-Electricity Drill Down'!T29 -> 1.23685838 | U28: ='InputC-Electricity Drill Down'!U29 -> 1.524390244 | V28: ='InputC-Electricity Drill Down'!V29 -> 1.221747098 | W28: ='InputC-Electricity Drill Down'!W29 -> 1.23685838 | X28: ='InputC-Electricity Drill Down'!X29 -> 1.337792642 | Y28: ='InputC-Electricity Drill Down'!Y29 -> 1.150086256 | Z28: ='InputC-Electricity Drill Down'!Z29 -> 1.318391562 | AA28: ='InputC-Electricity Drill Down'!AA29 -> 1.163602513 | AB28: ='InputC-Electricity Drill Down'!AB29 -> 1.099384345 | AC28: ='InputC-Electricity Drill Down'!AC29 -> 1.191185229 | AD28: ='InputC-Electricity Drill Down'!AD29 -> 1.287830006 | AE28: ='InputC-Electricity Drill Down'!AE29 -> 1.683501684 | AF28: ='InputC-Electricity Drill Down'!AF29 -> 1.207729469 | AG28: ='InputC-Electricity Drill Down'!AG29 -> 1.100715465 | AH28: ='InputC-Electricity Drill Down'!AH29 -> 1.437814522 | AI28: ='InputC-Electricity Drill Down'!AI29 -> 1.302083333 | AJ28: ='InputC-Electricity Drill Down'!AJ29 -> 1.577287066 | AK28: ='InputC-Electricity Drill Down'!AK29 -> 1.679261125 | AL28: ='InputC-Electricity Drill Down'!AL29 -> 1.455604076 | AM28: ='InputC-Electricity Drill Down'!AM29 -> 1.269035533 | AN28: ='InputC-Electricity Drill Down'!AN29 -> 1.207437817 | AO28: ='InputC-Electricity Drill Down'!AO29 -> 1.191611058 | AP28: ='InputC-Electricity Drill Down'!AP29 -> 1.413427562 | AQ28: ='InputC-Electricity Drill Down'!AQ29 -> 1.177440245 | AR28: ='InputC-Electricity Drill Down'!AR29 -> 1.21344497 | AS28: ='InputC-Electricity Drill Down'!AS29 -> 1.156871819 | AT28: ='InputC-Electricity Drill Down'!AT29 -> 1.149954002 | AU28: ='InputC-Electricity Drill Down'!AU29 -> 1.336005344 | AV28: ='InputC-Electricity Drill Down'!AV29 -> 1.117942985 | AW28: ='InputC-Electricity Drill Down'!AW29 -> 1.177301625 | AX28: ='InputC-Electricity Drill Down'!AX29 -> 1.1368804
C30: Average Ambient Temperature | F30: Degrees C | G30: 25 | J30: =$G$30 -> 25 | K30: =$G$30 -> 25 | L30: 25 | M30: 25 | N30: 25 | O30: 25 | P30: 25 | Q30: 25 | R30: 25 | S30: 25 | T30: 25 | U30: 25 | V30: 25 | W30: 25 | X30: 25 | Y30: 25 | Z30: 25 | AA30: 25 | AB30: 25 | AC30: 25 | AD30: 25 | AE30: 25 | AF30: 25 | AG30: 25 | AH30: 25 | AI30: 25 | AJ30: 25 | AK30: 25 | AL30: 25 | AM30: 25 | AN30: 25 | AO30: 25 | AP30: 25 | AQ30: 25 | AR30: 25 | AS30: 25 | AT30: 25 | AU30: 25 | AV30: 25 | AW30: 25 | AX30: 25
C31: PUE with Temperature Adjustment Drill Down | F31: x | G31: =INDEX(J31:SS31,$E$2) -> 1.7625 | J31: ='InputC-Electricity Drill Down'!J44 -> 1.7625 | K31: ='InputC-Electricity Drill Down'!K44 -> 2.05 | L31: ='InputC-Electricity Drill Down'!L44 -> 1.9375 | M31: ='InputC-Electricity Drill Down'!M44 -> 1.5675 | N31: ='InputC-Electricity Drill Down'!N44 -> 1.48 | O31: ='InputC-Electricity Drill Down'!O44 -> 1.39 | P31: ='InputC-Electricity Drill Down'!P44 -> 1.5925 | Q31: ='InputC-Electricity Drill Down'!Q44 -> 1.27 | R31: ='InputC-Electricity Drill Down'!R44 -> 1.3025 | S31: ='InputC-Electricity Drill Down'!S44 -> 1.37 | T31: ='InputC-Electricity Drill Down'!T44 -> 1.16 | U31: ='InputC-Electricity Drill Down'!U44 -> 1.305 | V31: ='InputC-Electricity Drill Down'!V44 -> 1.135 | W31: ='InputC-Electricity Drill Down'!W44 -> 1.145 | X31: ='InputC-Electricity Drill Down'!X44 -> 1.24 | Y31: ='InputC-Electricity Drill Down'!Y44 -> 1.08 | Z31: ='InputC-Electricity Drill Down'!Z44 -> 1.22 | AA31: ='InputC-Electricity Drill Down'!AA44 -> 1.1025 | AB31: ='InputC-Electricity Drill Down'!AB44 -> 1.055 | AC31: ='InputC-Electricity Drill Down'!AC44 -> 1.105 | AD31: ='InputC-Electricity Drill Down'!AD44 -> 1.305 | AE31: ='InputC-Electricity Drill Down'!AE44 -> 1.5 | AF31: ='InputC-Electricity Drill Down'!AF44 -> 1.17 | AG31: ='InputC-Electricity Drill Down'!AG44 -> 1.065 | AH31: ='InputC-Electricity Drill Down'!AH44 -> 1.3475 | AI31: ='InputC-Electricity Drill Down'!AI44 -> 1.205 | AJ31: ='InputC-Electricity Drill Down'!AJ44 -> 1.42 | AK31: ='InputC-Electricity Drill Down'!AK44 -> 1.485 | AL31: ='InputC-Electricity Drill Down'!AL44 -> 1.335 | AM31: ='InputC-Electricity Drill Down'!AM44 -> 1.17 | AN31: ='InputC-Electricity Drill Down'!AN44 -> 1.1225 | AO31: ='InputC-Electricity Drill Down'!AO44 -> 1.13 | AP31: ='InputC-Electricity Drill Down'!AP44 -> 1.2775 | AQ31: ='InputC-Electricity Drill Down'!AQ44 -> 1.12 | AR31: ='InputC-Electricity Drill Down'!AR44 -> 1.1425 | AS31: ='InputC-Electricity Drill Down'!AS44 -> 1.09 | AT31: ='InputC-Electricity Drill Down'!AT44 -> 1.11 | AU31: ='InputC-Electricity Drill Down'!AU44 -> 1.245 | AV31: ='InputC-Electricity Drill Down'!AV44 -> 1.0625 | AW31: ='InputC-Electricity Drill Down'!AW44 -> 1.12 | AX31: ='InputC-Electricity Drill Down'!AX44 -> 1.0775
C33: Degradation in PUE | F33: PUE p.a. | G33: =INDEX(J33:SS33,$E$2) -> 0.015 | J33: =TRANSPOSE('Efficiency for Data Centers'!EK5:EK45) -> 0.015 | K33: 0.025 | L33: 0.02 | M33: 0.012 | N33: 0.018 | O33: 0.022 | P33: 0.028 | Q33: 0.014 | R33: 0.015 | S33: 0.019 | T33: 0.01 | U33: 0.016 | V33: 0.011 | W33: 0.012 | X33: 0.015 | Y33: 0.008 | Z33: 0.013 | AA33: 0.009 | AB33: 0.007 | AC33: 0.011 | AD33: 0.012 | AE33: 0.018 | AF33: 0.006 | AG33: 0.009 | AH33: 0.014 | AI33: 0.013 | AJ33: 0.019 | AK33: 0.016 | AL33: 0.014 | AM33: 0.011 | AN33: 0.01 | AO33: 0.009 | AP33: 0.015 | AQ33: 0.011 | AR33: 0.01 | AS33: 0.008 | AT33: 0.007 | AU33: 0.012 | AV33: 0.008 | AW33: 0.009 | AX33: 0.007
C35: Capacity in MM Tokens per kW of IT | F35: Monthly MM Tokens/kW | G35: =INDEX(J35:SS35,$E$2) -> 0.05 | J35: ='InputC-Electricity Drill Down'!J94 -> 0.05 | K35: ='InputC-Electricity Drill Down'!K94 -> 0.08 | L35: ='InputC-Electricity Drill Down'!L94 -> 0.06 | M35: ='InputC-Electricity Drill Down'!M94 -> 0.07 | N35: ='InputC-Electricity Drill Down'!N94 -> 0.08 | O35: ='InputC-Electricity Drill Down'!O94 -> 2.5 | P35: ='InputC-Electricity Drill Down'!P94 -> 3.2 | Q35: ='InputC-Electricity Drill Down'!Q94 -> 3.8 | R35: ='InputC-Electricity Drill Down'!R94 -> 3.6 | S35: ='InputC-Electricity Drill Down'!S94 -> 3.4 | T35: ='InputC-Electricity Drill Down'!T94 -> 9.5 | U35: ='InputC-Electricity Drill Down'!U94 -> 11.5 | V35: ='InputC-Electricity Drill Down'!V94 -> 13 | W35: ='InputC-Electricity Drill Down'!W94 -> 12.5 | X35: ='InputC-Electricity Drill Down'!X94 -> 11 | Y35: ='InputC-Electricity Drill Down'!Y94 -> 18 | Z35: ='InputC-Electricity Drill Down'!Z94 -> 22.5 | AA35: ='InputC-Electricity Drill Down'!AA94 -> 21 | AB35: ='InputC-Electricity Drill Down'!AB94 -> 24.5 | AC35: ='InputC-Electricity Drill Down'!AC94 -> 21.5 | AD35: ='InputC-Electricity Drill Down'!AD94 -> 30 | AE35: ='InputC-Electricity Drill Down'!AE94 -> 38 | AF35: ='InputC-Electricity Drill Down'!AF94 -> 45 | AG35: ='InputC-Electricity Drill Down'!AG94 -> 50 | AH35: ='InputC-Electricity Drill Down'!AH94 -> 34 | AI35: ='InputC-Electricity Drill Down'!AI94 -> 8 | AJ35: ='InputC-Electricity Drill Down'!AJ94 -> 10.2 | AK35: ='InputC-Electricity Drill Down'!AK94 -> 8.5 | AL35: ='InputC-Electricity Drill Down'!AL94 -> 9.2 | AM35: ='InputC-Electricity Drill Down'!AM94 -> 10.5 | AN35: ='InputC-Electricity Drill Down'!AN94 -> 11.2 | AO35: ='InputC-Electricity Drill Down'!AO94 -> 38 | AP35: ='InputC-Electricity Drill Down'!AP94 -> 48 | AQ35: ='InputC-Electricity Drill Down'!AQ94 -> 45 | AR35: ='InputC-Electricity Drill Down'!AR94 -> 47 | AS35: ='InputC-Electricity Drill Down'!AS94 -> 51 | AT35: ='InputC-Electricity Drill Down'!AT94 -> 68 | AU35: ='InputC-Electricity Drill Down'!AU94 -> 85 | AV35: ='InputC-Electricity Drill Down'!AV94 -> 80 | AW35: ='InputC-Electricity Drill Down'!AW94 -> 83 | AX35: ='InputC-Electricity Drill Down'!AX94 -> 92
C37: Utilization Rate of Data Center | F37: % | G37: =H37/100 -> 0.66 | H37: 66 | J37: =$G$37 -> 0.66 | K37: =$G$37 -> 0.66 | L37: 0.66 | M37: 0.66 | N37: 0.66 | O37: 0.66 | P37: 0.66 | Q37: 0.66 | R37: 0.66 | S37: 0.66 | T37: 0.66 | U37: 0.66 | V37: 0.66 | W37: 0.66 | X37: 0.66 | Y37: 0.66 | Z37: 0.66 | AA37: 0.66 | AB37: 0.66 | AC37: 0.66 | AD37: 0.66 | AE37: 0.66 | AF37: 0.66 | AG37: 0.66 | AH37: 0.66 | AI37: 0.66 | AJ37: 0.66 | AK37: 0.66 | AL37: 0.66 | AM37: 0.66 | AN37: 0.66 | AO37: 0.66 | AP37: 0.66 | AQ37: 0.66 | AR37: 0.66 | AS37: 0.66 | AT37: 0.66 | AU37: 0.66 | AV37: 0.66 | AW37: 0.66 | AX37: 0.66
C38: Utilization Factor from Gemini | F38: % | G38: =INDEX(J38:SS38,$E$2) -> 0.6 | J38: =TRANSPOSE('Token per kW'!DH3:DH43) -> 0.6 | K38: 0.6666666667 | L38: 0.6666666667 | M38: 0.6666666667 | N38: 0.64 | O38: 0.6470588235 | P38: 0.641025641 | Q38: 0.6470588235 | R38: 0.6493506494 | S38: 0.6551724138 | T38: 0.648 | U38: 0.65 | V38: 0.6494117647 | W38: 0.6511111111 | X38: 0.6492753623 | Y38: 0.6505263158 | Z38: 0.6502702703 | AA38: 0.65 | AB38: 0.6497959184 | AC38: 0.65 | AD38: 0.7 | AE38: 0.7 | AF38: 0.6987951807 | AG38: 0.7 | AH38: 0.698630137 | AI38: 0.65 | AJ38: 0.65 | AK38: 0.65 | AL38: 0.65 | AM38: 0.6504347826 | AN38: 0.65 | AO38: 0.7 | AP38: 0.7 | AQ38: 0.7 | AR38: 0.7 | AS38: 0.7 | AT38: 0.7 | AU38: 0.7 | AV38: 0.7 | AW38: 0.7 | AX38: 0.7
C39: Utilization Code for Detail in InputS | F39: Code | G39: 1 | J39: =$G$39 -> 1 | K39: =$G$39 -> 1 | L39: 1 | M39: 1 | N39: 1 | O39: 1 | P39: 1 | Q39: 1 | R39: 1 | S39: 1 | T39: 1 | U39: 1 | V39: 1 | W39: 1 | X39: 1 | Y39: 1 | Z39: 1 | AA39: 1 | AB39: 1 | AC39: 1 | AD39: 1 | AE39: 1 | AF39: 1 | AG39: 1 | AH39: 1 | AI39: 1 | AJ39: 1 | AK39: 1 | AL39: 1 | AM39: 1 | AN39: 1 | AO39: 1 | AP39: 1 | AQ39: 1 | AR39: 1 | AS39: 1 | AT39: 1 | AU39: 1 | AV39: 1 | AW39: 1 | AX39: 1
C41: Water Usage | F41: liters/kWh | G41: =INDEX(J41:SS41,$E$2) -> 2.5 | J41: =TRANSPOSE('Efficiency for Data Centers'!$ED$5:$ED$45) -> 2.5 | K41: 3 | L41: 2.2 | M41: 1.8 | N41: 2.6 | O41: 1.6 | P41: 2.2 | Q41: 0.8 | R41: 0.9 | S41: 1.4 | T41: 0.5 | U41: 1.5 | V41: 0.4 | W41: 0.45 | X41: 0.8 | Y41: 0.15 | Z41: 1.2 | AA41: 0 | AB41: 0.05 | AC41: 0.3 | AD41: 0.7 | AE41: 1.4 | AF41: 0.1 | AG41: 0.04 | AH41: 0 | AI41: 0.8 | AJ41: 1.8 | AK41: 2 | AL41: 1.3 | AM41: 0.6 | AN41: 0.4 | AO41: 0.15 | AP41: 1.1 | AQ41: 0.1 | AR41: 0.3 | AS41: 0.1 | AT41: 0.1 | AU41: 0.8 | AV41: 0 | AW41: 0.2 | AX41: 0.08
B43: Capital Expenditures
C45: IT Equipment | F45: USD/KW IT | G45: =INDEX(J45:SS45,$E$2) -> 3500 | J45: ='InputC-Electricity Drill Down'!J53 -> 3500 | K45: ='InputC-Electricity Drill Down'!K53 -> 2500 | L45: ='InputC-Electricity Drill Down'!L53 -> 3000 | M45: ='InputC-Electricity Drill Down'!M53 -> 3000 | N45: ='InputC-Electricity Drill Down'!N53 -> 3000 | O45: ='InputC-Electricity Drill Down'!O53 -> 14000 | P45: ='InputC-Electricity Drill Down'!P53 -> 11000 | Q45: ='InputC-Electricity Drill Down'!Q53 -> 11500 | R45: ='InputC-Electricity Drill Down'!R53 -> 11000 | S45: ='InputC-Electricity Drill Down'!S53 -> 11500 | T45: ='InputC-Electricity Drill Down'!T53 -> 26000 | U45: ='InputC-Electricity Drill Down'!U53 -> 21000 | V45: ='InputC-Electricity Drill Down'!V53 -> 22000 | W45: ='InputC-Electricity Drill Down'!W53 -> 21500 | X45: ='InputC-Electricity Drill Down'!X53 -> 23000 | Y45: ='InputC-Electricity Drill Down'!Y53 -> 35000 | Z45: ='InputC-Electricity Drill Down'!Z53 -> 29000 | AA45: ='InputC-Electricity Drill Down'!AA53 -> 30000 | AB45: ='InputC-Electricity Drill Down'!AB53 -> 31000 | AC45: ='InputC-Electricity Drill Down'!AC53 -> 30500 | AD45: ='InputC-Electricity Drill Down'!AD53 -> 16500 | AE45: ='InputC-Electricity Drill Down'!AE53 -> 12500 | AF45: ='InputC-Electricity Drill Down'!AF53 -> 14500 | AG45: ='InputC-Electricity Drill Down'!AG53 -> 14000 | AH45: ='InputC-Electricity Drill Down'!AH53 -> 13500 | AI45: ='InputC-Electricity Drill Down'!AI53 -> 22000 | AJ45: ='InputC-Electricity Drill Down'!AJ53 -> 17500 | AK45: ='InputC-Electricity Drill Down'!AK53 -> 18000 | AL45: ='InputC-Electricity Drill Down'!AL53 -> 18500 | AM45: ='InputC-Electricity Drill Down'!AM53 -> 19000 | AN45: ='InputC-Electricity Drill Down'!AN53 -> 19500 | AO45: ='InputC-Electricity Drill Down'!AO53 -> 35000 | AP45: ='InputC-Electricity Drill Down'!AP53 -> 27500 | AQ45: ='InputC-Electricity Drill Down'!AQ53 -> 29000 | AR45: ='InputC-Electricity Drill Down'!AR53 -> 30000 | AS45: ='InputC-Electricity Drill Down'!AS53 -> 31000 | AT45: ='InputC-Electricity Drill Down'!AT53 -> 43000 | AU45: ='InputC-Electricity Drill Down'!AU53 -> 34500 | AV45: ='InputC-Electricity Drill Down'!AV53 -> 35500 | AW45: ='InputC-Electricity Drill Down'!AW53 -> 37000 | AX45: ='InputC-Electricity Drill Down'!AX53 -> 38500
C47: Cost of Electrical Equipment for Cooling | F47: USD/KW IT | G47: =INDEX(J47:SS47,$E$2) -> 5000 | J47: ='InputC-Electricity Drill Down'!J67 -> 5000 | K47: ='InputC-Electricity Drill Down'!K67 -> 3000 | L47: ='InputC-Electricity Drill Down'!L67 -> 3500 | M47: ='InputC-Electricity Drill Down'!M67 -> 3500 | N47: ='InputC-Electricity Drill Down'!N67 -> 4000 | O47: ='InputC-Electricity Drill Down'!O67 -> 6000 | P47: ='InputC-Electricity Drill Down'!P67 -> 4500 | Q47: ='InputC-Electricity Drill Down'!Q67 -> 4800 | R47: ='InputC-Electricity Drill Down'!R67 -> 4600 | S47: ='InputC-Electricity Drill Down'!S67 -> 5000 | T47: ='InputC-Electricity Drill Down'!T67 -> 8500 | U47: ='InputC-Electricity Drill Down'!U67 -> 6500 | V47: ='InputC-Electricity Drill Down'!V67 -> 7000 | W47: ='InputC-Electricity Drill Down'!W67 -> 6800 | X47: ='InputC-Electricity Drill Down'!X67 -> 7200 | Y47: ='InputC-Electricity Drill Down'!Y67 -> 11000 | Z47: ='InputC-Electricity Drill Down'!Z67 -> 8500 | AA47: ='InputC-Electricity Drill Down'!AA67 -> 9000 | AB47: ='InputC-Electricity Drill Down'!AB67 -> 9500 | AC47: ='InputC-Electricity Drill Down'!AC67 -> 10500 | AD47: ='InputC-Electricity Drill Down'!AD67 -> 6000 | AE47: ='InputC-Electricity Drill Down'!AE67 -> 4500 | AF47: ='InputC-Electricity Drill Down'!AF67 -> 5200 | AG47: ='InputC-Electricity Drill Down'!AG67 -> 5500 | AH47: ='InputC-Electricity Drill Down'!AH67 -> 4800 | AI47: ='InputC-Electricity Drill Down'!AI67 -> 6500 | AJ47: ='InputC-Electricity Drill Down'!AJ67 -> 5000 | AK47: ='InputC-Electricity Drill Down'!AK67 -> 5200 | AL47: ='InputC-Electricity Drill Down'!AL67 -> 5400 | AM47: ='InputC-Electricity Drill Down'!AM67 -> 5700 | AN47: ='InputC-Electricity Drill Down'!AN67 -> 6000 | AO47: ='InputC-Electricity Drill Down'!AO67 -> 9500 | AP47: ='InputC-Electricity Drill Down'!AP67 -> 8000 | AQ47: ='InputC-Electricity Drill Down'!AQ67 -> 8500 | AR47: ='InputC-Electricity Drill Down'!AR67 -> 8800 | AS47: ='InputC-Electricity Drill Down'!AS67 -> 9000 | AT47: ='InputC-Electricity Drill Down'!AT67 -> 10000 | AU47: ='InputC-Electricity Drill Down'!AU67 -> 8000 | AV47: ='InputC-Electricity Drill Down'!AV67 -> 8500 | AW47: ='InputC-Electricity Drill Down'!AW67 -> 8700 | AX47: ='InputC-Electricity Drill Down'!AX67 -> 9000
C48: Cost of Mechanical Equipment for Removing Heat | F48: USD/KW IT | G48: =INDEX(J48:SS48,$E$2) -> 6000 | J48: ='InputC-Electricity Drill Down'!J68 -> 6000 | K48: ='InputC-Electricity Drill Down'!K68 -> 2500 | L48: ='InputC-Electricity Drill Down'!L68 -> 3000 | M48: ='InputC-Electricity Drill Down'!M68 -> 3000 | N48: ='InputC-Electricity Drill Down'!N68 -> 4500 | O48: ='InputC-Electricity Drill Down'!O68 -> 6000 | P48: ='InputC-Electricity Drill Down'!P68 -> 3000 | Q48: ='InputC-Electricity Drill Down'!Q68 -> 4200 | R48: ='InputC-Electricity Drill Down'!R68 -> 4200 | S48: ='InputC-Electricity Drill Down'!S68 -> 4500 | T48: ='InputC-Electricity Drill Down'!T68 -> 7500 | U48: ='InputC-Electricity Drill Down'!U68 -> 5500 | V48: ='InputC-Electricity Drill Down'!V68 -> 6500 | W48: ='InputC-Electricity Drill Down'!W68 -> 6500 | X48: ='InputC-Electricity Drill Down'!X68 -> 6800 | Y48: ='InputC-Electricity Drill Down'!Y68 -> 9000 | Z48: ='InputC-Electricity Drill Down'!Z68 -> 6500 | AA48: ='InputC-Electricity Drill Down'!AA68 -> 7000 | AB48: ='InputC-Electricity Drill Down'!AB68 -> 9000 | AC48: ='InputC-Electricity Drill Down'!AC68 -> 7000 | AD48: ='InputC-Electricity Drill Down'!AD68 -> 6000 | AE48: ='InputC-Electricity Drill Down'!AE68 -> 4000 | AF48: ='InputC-Electricity Drill Down'!AF68 -> 5800 | AG48: ='InputC-Electricity Drill Down'!AG68 -> 7500 | AH48: ='InputC-Electricity Drill Down'!AH68 -> 5200 | AI48: ='InputC-Electricity Drill Down'!AI68 -> 6000 | AJ48: ='InputC-Electricity Drill Down'!AJ68 -> 4500 | AK48: ='InputC-Electricity Drill Down'!AK68 -> 5300 | AL48: ='InputC-Electricity Drill Down'!AL68 -> 5900 | AM48: ='InputC-Electricity Drill Down'!AM68 -> 6500 | AN48: ='InputC-Electricity Drill Down'!AN68 -> 8000 | AO48: ='InputC-Electricity Drill Down'!AO68 -> 8500 | AP48: ='InputC-Electricity Drill Down'!AP68 -> 6500 | AQ48: ='InputC-Electricity Drill Down'!AQ68 -> 8000 | AR48: ='InputC-Electricity Drill Down'!AR68 -> 8000 | AS48: ='InputC-Electricity Drill Down'!AS68 -> 9500 | AT48: ='InputC-Electricity Drill Down'!AT68 -> 8000 | AU48: ='InputC-Electricity Drill Down'!AU68 -> 6000 | AV48: ='InputC-Electricity Drill Down'!AV68 -> 7000 | AW48: ='InputC-Electricity Drill Down'!AW68 -> 7500 | AX48: ='InputC-Electricity Drill Down'!AX68 -> 8500
C49: Cost of Building and Other | F49: USD/KW IT | G49: =INDEX(J49:SS49,$E$2) -> 2200 | J49: ='InputC-Electricity Drill Down'!J48 -> 2200 | K49: ='InputC-Electricity Drill Down'!K48 -> 1000 | L49: ='InputC-Electricity Drill Down'!L48 -> 1400 | M49: ='InputC-Electricity Drill Down'!M48 -> 1450 | N49: ='InputC-Electricity Drill Down'!N48 -> 1600 | O49: ='InputC-Electricity Drill Down'!O48 -> 2400 | P49: ='InputC-Electricity Drill Down'!P48 -> 1300 | Q49: ='InputC-Electricity Drill Down'!Q48 -> 1500 | R49: ='InputC-Electricity Drill Down'!R48 -> 1450 | S49: ='InputC-Electricity Drill Down'!S48 -> 1600 | T49: ='InputC-Electricity Drill Down'!T48 -> 2700 | U49: ='InputC-Electricity Drill Down'!U48 -> 1700 | V49: ='InputC-Electricity Drill Down'!V48 -> 1800 | W49: ='InputC-Electricity Drill Down'!W48 -> 1800 | X49: ='InputC-Electricity Drill Down'!X48 -> 1900 | Y49: ='InputC-Electricity Drill Down'!Y48 -> 3200 | Z49: ='InputC-Electricity Drill Down'!Z48 -> 2100 | AA49: ='InputC-Electricity Drill Down'!AA48 -> 2200 | AB49: ='InputC-Electricity Drill Down'!AB48 -> 2400 | AC49: ='InputC-Electricity Drill Down'!AC48 -> 2200 | AD49: ='InputC-Electricity Drill Down'!AD48 -> 2500 | AE49: ='InputC-Electricity Drill Down'!AE48 -> 1400 | AF49: ='InputC-Electricity Drill Down'!AF48 -> 1500 | AG49: ='InputC-Electricity Drill Down'!AG48 -> 1600 | AH49: ='InputC-Electricity Drill Down'!AH48 -> 1400 | AI49: ='InputC-Electricity Drill Down'!AI48 -> 2300 | AJ49: ='InputC-Electricity Drill Down'!AJ48 -> 1500 | AK49: ='InputC-Electricity Drill Down'!AK48 -> 1600 | AL49: ='InputC-Electricity Drill Down'!AL48 -> 1600 | AM49: ='InputC-Electricity Drill Down'!AM48 -> 1600 | AN49: ='InputC-Electricity Drill Down'!AN48 -> 1700 | AO49: ='InputC-Electricity Drill Down'!AO48 -> 2600 | AP49: ='InputC-Electricity Drill Down'!AP48 -> 1700 | AQ49: ='InputC-Electricity Drill Down'!AQ48 -> 1800 | AR49: ='InputC-Electricity Drill Down'!AR48 -> 1800 | AS49: ='InputC-Electricity Drill Down'!AS48 -> 1900 | AT49: ='InputC-Electricity Drill Down'!AT48 -> 2800 | AU49: ='InputC-Electricity Drill Down'!AU48 -> 2000 | AV49: ='InputC-Electricity Drill Down'!AV48 -> 2000 | AW49: ='InputC-Electricity Drill Down'!AW48 -> 2000 | AX49: ='InputC-Electricity Drill Down'!AX48 -> 2100
C50: Total Cost | F50: USD/KW IT | G50: =INDEX(J50:SS50,$E$2) -> 16700 | J50: =SUM(J45:J49) -> 16700 | K50: =SUM(K45:K49) -> 9000 | L50: 10900 | M50: 10950 | N50: 13100 | O50: 28400 | P50: 19800 | Q50: 22000 | R50: 21250 | S50: 22600 | T50: 44700 | U50: 34700 | V50: 37300 | W50: 36600 | X50: 38900 | Y50: 58200 | Z50: 46100 | AA50: 48200 | AB50: 51900 | AC50: 50200 | AD50: 31000 | AE50: 22400 | AF50: 27000 | AG50: 28600 | AH50: 24900 | AI50: 36800 | AJ50: 28500 | AK50: 30100 | AL50: 31400 | AM50: 32800 | AN50: 35200 | AO50: 55600 | AP50: 43700 | AQ50: 47300 | AR50: 48600 | AS50: 51400 | AT50: 63800 | AU50: 50500 | AV50: 53000 | AW50: 55200 | AX50: 58100
C52: Months until Replace IT Equipement | F52: Months | G52: =INDEX(J52:SS52,$E$2) -> 60 | J52: =TRANSPOSE('Capital Expenditures'!IG4:IG44) -> 60 | K52: 36 | L52: 48 | M52: 48 | N52: 60 | O52: 36 | P52: 24 | Q52: 42 | R52: 36 | S52: 48 | T52: 30 | U52: 24 | V52: 36 | W52: 30 | X52: 36 | Y52: 24 | Z52: 18 | AA52: 30 | AB52: 36 | AC52: 24 | AD52: 36 | AE52: 24 | AF52: 42 | AG52: 48 | AH52: 30 | AI52: 48 | AJ52: 36 | AK52: 36 | AL52: 42 | AM52: 48 | AN52: 36 | AO52: 24 | AP52: 30 | AQ52: 26 | AR52: 26 | AS52: 28 | AT52: 30 | AU52: 20 | AV52: 36 | AW52: 30 | AX52: 24
C54: Percent of Electricity Cost Replaced at IT Replace | F54: % | G54: =INDEX(J54:SS54,$E$2) -> 0.12 | J54: =TRANSPOSE('Capital Expenditures'!IJ4:IJ44) -> 0.12 | K54: 0.05 | L54: 0.06 | M54: 0.08 | N54: 0.1 | O54: 0.24 | P54: 0.14 | Q54: 0.18 | R54: 0.16 | S54: 0.2 | T54: 0.42 | U54: 0.28 | V54: 0.32 | W54: 0.3 | X54: 0.35 | Y54: 0.55 | Z54: 0.38 | AA54: 0.4 | AB54: 0.44 | AC54: 0.48 | AD54: 0.48 | AE54: 0.32 | AF54: 0.36 | AG54: 0.42 | AH54: 0.34 | AI54: 0.3 | AJ54: 0.18 | AK54: 0.22 | AL54: 0.25 | AM54: 0.26 | AN54: 0.28 | AO54: 0.65 | AP54: 0.45 | AQ54: 0.5 | AR54: 0.52 | AS54: 0.56 | AT54: 0.82 | AU54: 0.6 | AV54: 0.64 | AW54: 0.68 | AX54: 0.72
C55: Months of Downtime after Replacement | F55: Months
B57: Operating Cost
C59: Cost of Electricity without Inflation | F59: USD/MWH | G59: =H59 -> 180 | H59: 180 | J59: =$G$59 -> 180 | K59: =$G$59 -> 180 | L59: 180 | M59: 180 | N59: 180 | O59: 180 | P59: 180 | Q59: 180 | R59: 180 | S59: 180 | T59: 180 | U59: 180 | V59: 180 | W59: 180 | X59: 180 | Y59: 180 | Z59: 180 | AA59: 180 | AB59: 180 | AC59: 180 | AD59: 180 | AE59: 180 | AF59: 180 | AG59: 180 | AH59: 180 | AI59: 180 | AJ59: 180 | AK59: 180 | AL59: 180 | AM59: 180 | AN59: 180 | AO59: 180 | AP59: 180 | AQ59: 180 | AR59: 180 | AS59: 180 | AT59: 180 | AU59: 180 | AV59: 180 | AW59: 180 | AX59: 180
C60: Electricity Price Code Time Series | F60: Code | G60: 1 | J60: =$G$60 -> 1 | K60: =$G$60 -> 1 | L60: 1 | M60: 1 | N60: 1 | O60: 1 | P60: 1 | Q60: 1 | R60: 1 | S60: 1 | T60: 1 | U60: 1 | V60: 1 | W60: 1 | X60: 1 | Y60: 1 | Z60: 1 | AA60: 1 | AB60: 1 | AC60: 1 | AD60: 1 | AE60: 1 | AF60: 1 | AG60: 1 | AH60: 1 | AI60: 1 | AJ60: 1 | AK60: 1 | AL60: 1 | AM60: 1 | AN60: 1 | AO60: 1 | AP60: 1 | AQ60: 1 | AR60: 1 | AS60: 1 | AT60: 1 | AU60: 1 | AV60: 1 | AW60: 1 | AX60: 1
C61: Other Operating Cost without Inflation | F61: USD/kw-year | G61: =INDEX(J61:SS61,$E$2)/10 -> 32 | J61: =TRANSPOSE('Non Electricity Operating Cost'!AJ3:AJ43) -> 320 | K61: 145 | L61: 160 | M61: 185 | N61: 240 | O61: 480 | P61: 220 | Q61: 295 | R61: 310 | S61: 340 | T61: 650 | U61: 310 | V61: 415 | W61: 390 | X61: 450 | Y61: 820 | Z61: 395 | AA61: 360 | AB61: 520 | AC61: 480 | AD61: 940 | AE61: 440 | AF61: 510 | AG61: 680 | AH61: 460 | AI61: 580 | AJ61: 280 | AK61: 310 | AL61: 365 | AM61: 420 | AN61: 540 | AO61: 1150 | AP61: 520 | AQ61: 640 | AR61: 690 | AS61: 840 | AT61: 1650 | AU61: 780 | AV61: 810 | AW61: 960 | AX61: 1220
C62: Water Cost per Litre | F62: USD/Litre | G62: 0.003 | J62: =$G$62 -> 0.003 | K62: =$G$62 -> 0.003 | L62: 0.003 | M62: 0.003 | N62: 0.003 | O62: 0.003 | P62: 0.003 | Q62: 0.003 | R62: 0.003 | S62: 0.003 | T62: 0.003 | U62: 0.003 | V62: 0.003 | W62: 0.003 | X62: 0.003 | Y62: 0.003 | Z62: 0.003 | AA62: 0.003 | AB62: 0.003 | AC62: 0.003 | AD62: 0.003 | AE62: 0.003 | AF62: 0.003 | AG62: 0.003 | AH62: 0.003 | AI62: 0.003 | AJ62: 0.003 | AK62: 0.003 | AL62: 0.003 | AM62: 0.003 | AN62: 0.003 | AO62: 0.003 | AP62: 0.003 | AQ62: 0.003 | AR62: 0.003 | AS62: 0.003 | AT62: 0.003 | AU62: 0.003 | AV62: 0.003 | AW62: 0.003 | AX62: 0.003
B64: Financing Targets
C66: General Inflation Rate | F66: % p.a. | G66: 0.02 | J66: =$G$66 -> 0.02 | K66: 0.02 | L66: 0.02 | M66: 0.02 | N66: 0.02 | O66: 0.02 | P66: 0.02 | Q66: 0.02 | R66: 0.02 | S66: 0.02 | T66: 0.02 | U66: 0.02 | V66: 0.02 | W66: 0.02 | X66: 0.02 | Y66: 0.02 | Z66: 0.02 | AA66: 0.02 | AB66: 0.02 | AC66: 0.02 | AD66: 0.02 | AE66: 0.02 | AF66: 0.02 | AG66: 0.02 | AH66: 0.02 | AI66: 0.02 | AJ66: 0.02 | AK66: 0.02 | AL66: 0.02 | AM66: 0.02 | AN66: 0.02 | AO66: 0.02 | AP66: 0.02 | AQ66: 0.02 | AR66: 0.02 | AS66: 0.02 | AT66: 0.02 | AU66: 0.02 | AV66: 0.02 | AW66: 0.02 | AX66: 0.02
C67: Inflation in Electricity Price | F67: % p.a. | G67: 0.02 | J67: =$G$67 -> 0.02 | K67: =$G$67 -> 0.02 | L67: 0.02 | M67: 0.02 | N67: 0.02 | O67: 0.02 | P67: 0.02 | Q67: 0.02 | R67: 0.02 | S67: 0.02 | T67: 0.02 | U67: 0.02 | V67: 0.02 | W67: 0.02 | X67: 0.02 | Y67: 0.02 | Z67: 0.02 | AA67: 0.02 | AB67: 0.02 | AC67: 0.02 | AD67: 0.02 | AE67: 0.02 | AF67: 0.02 | AG67: 0.02 | AH67: 0.02 | AI67: 0.02 | AJ67: 0.02 | AK67: 0.02 | AL67: 0.02 | AM67: 0.02 | AN67: 0.02 | AO67: 0.02 | AP67: 0.02 | AQ67: 0.02 | AR67: 0.02 | AS67: 0.02 | AT67: 0.02 | AU67: 0.02 | AV67: 0.02 | AW67: 0.02 | AX67: 0.02
C68: Change in Cost of IT Equipment | F68: % p.a. | G68: -0.01 | J68: =$G$68 -> -0.01 | K68: =$G$68 -> -0.01 | L68: -0.01 | M68: -0.01 | N68: -0.01 | O68: -0.01 | P68: -0.01 | Q68: -0.01 | R68: -0.01 | S68: -0.01 | T68: -0.01 | U68: -0.01 | V68: -0.01 | W68: -0.01 | X68: -0.01 | Y68: -0.01 | Z68: -0.01 | AA68: -0.01 | AB68: -0.01 | AC68: -0.01 | AD68: -0.01 | AE68: -0.01 | AF68: -0.01 | AG68: -0.01 | AH68: -0.01 | AI68: -0.01 | AJ68: -0.01 | AK68: -0.01 | AL68: -0.01 | AM68: -0.01 | AN68: -0.01 | AO68: -0.01 | AP68: -0.01 | AQ68: -0.01 | AR68: -0.01 | AS68: -0.01 | AT68: -0.01 | AU68: -0.01 | AV68: -0.01 | AW68: -0.01 | AX68: -0.01
C70: Target IRR | F70: % | G70: =H70/1000 -> 0.09 | H70: 90 | J70: =$G$70 -> 0.09 | K70: =$G$70 -> 0.09 | L70: 0.09 | M70: 0.09 | N70: 0.09 | O70: 0.09 | P70: 0.09 | Q70: 0.09 | R70: 0.09 | S70: 0.09 | T70: 0.09 | U70: 0.09 | V70: 0.09 | W70: 0.09 | X70: 0.09 | Y70: 0.09 | Z70: 0.09 | AA70: 0.09 | AB70: 0.09 | AC70: 0.09 | AD70: 0.09 | AE70: 0.09 | AF70: 0.09 | AG70: 0.09 | AH70: 0.09 | AI70: 0.09 | AJ70: 0.09 | AK70: 0.09 | AL70: 0.09 | AM70: 0.09 | AN70: 0.09 | AO70: 0.09 | AP70: 0.09 | AQ70: 0.09 | AR70: 0.09 | AS70: 0.09 | AT70: 0.09 | AU70: 0.09 | AV70: 0.09 | AW70: 0.09 | AX70: 0.09
C72: CO2 Emissions per MWH | F72: Tons/MWH | G72: =INDEX(J72:SS72,$E$2) -> 0
C73: Price Applied to Emissions | F73: USD/Ton | G73: 85 | J73: =$G$73 -> 85 | K73: =$G$73 -> 85 | L73: 85 | M73: 85 | N73: 85 | O73: 85 | P73: 85 | Q73: 85 | R73: 85 | S73: 85 | T73: 85 | U73: 85 | V73: 85 | W73: 85 | X73: 85 | Y73: 85 | Z73: 85 | AA73: 85 | AB73: 85 | AC73: 85 | AD73: 85 | AE73: 85 | AF73: 85 | AG73: 85 | AH73: 85 | AI73: 85 | AJ73: 85 | AK73: 85 | AL73: 85 | AM73: 85 | AN73: 85 | AO73: 85 | AP73: 85 | AQ73: 85 | AR73: 85 | AS73: 85 | AT73: 85 | AU73: 85 | AV73: 85 | AW73: 85 | AX73: 85
C75: Detailed Data Scenarios
C76: Apply High Range PUE | F76: Flag | G76: TRUE
C77: Apply Low Range PUE | F77: Flag | G77: =NOT(G76) -> FALSE
C79: Price from Goal Seek | F79: USD/MM Token | G79: =INDEX(J79:SS79,$E$2) -> 10906.80771 | J79: 10906.80771 | K79: 7199.772577 | L79: 8704.811828 | M79: 6475.637643 | N79: 5501.432409 | O79: 404.8903925 | P79: 349.2228416 | Q79: 205.1809751 | R79: 234.1145356 | S79: 212.520519 | T79: 166.0167889 | U79: 146.5139997 | V79: 98.73643744 | W79: 109.9514319 | X79: 122.9454737 | Y79: 126.1343955 | Z79: 114.4374373 | AA79: 82.41799459 | AB79: 67.01506596 | AC79: 92.57153728 | AD79: 33.6741441 | AE79: 30.70271721 | AF79: 19.77951151 | AG79: 16.2757516 | AH79: 30.99446424 | AI79: 132.6252885 | AJ79: 109.4315726 | AK79: 163.3244274 | AL79: 128.654842 | AM79: 100.5408585 | AN79: 112.6480525 | AO79: 73.75748709 | AP79: 45.43718583 | AQ79: 49.58742033 | AR79: 44.14135872 | AS79: 42.19848506 | AT79: 39.89962637 | AU79: 32.81847064 | AV79: 24.92690548 | AW79: 28.50190905 | AX79: 34.36213712
C80: Price Input from Technology | F80: USD/MM Token | G80: =INDEX(J80:SS80,$E$2) -> 7199.772577 | J80: =K79 -> 7199.772577 | K80: =J80 -> 7199.772577 | L80: =K80 -> 7199.772577 | M80: 7199.772577 | N80: 7199.772577 | O80: =P79 -> 349.2228416 | P80: =O80 -> 349.2228416 | Q80: =P80 -> 349.2228416 | R80: 349.2228416 | S80: 349.2228416 | T80: =U79 -> 146.5139997 | U80: =T80 -> 146.5139997 | V80: =U80 -> 146.5139997 | W80: 146.5139997 | X80: 146.5139997 | Y80: =Z79 -> 114.4374373 | Z80: =Y80 -> 114.4374373 | AA80: =Z80 -> 114.4374373 | AB80: 114.4374373 | AC80: 114.4374373 | AD80: =AE79 -> 30.70271721 | AE80: =AD80 -> 30.70271721 | AF80: =AE80 -> 30.70271721 | AG80: 30.70271721 | AH80: 30.70271721 | AI80: =AJ79 -> 109.4315726 | AJ80: =AI80 -> 109.4315726 | AK80: =AJ80 -> 109.4315726 | AL80: 109.4315726 | AM80: =AN79 -> 112.6480525 | AN80: =AM80 -> 112.6480525 | AP80: =AO80 -> 0 | AQ80: 0 | AR80: 0 | AS80: 0 | AT80: =AU79 -> 32.81847064 | AU80: =AT80 -> 32.81847064 | AV80: =AU80 -> 32.81847064 | AW80: 32.81847064 | AX80: 32.81847064
C81: IRR from Scenario | F81: % | J81: 2.980232239e-09 | K81: 0.0900000006 | L81: -0.008296195045 | M81: 0.1349207342 | N81: 0.1782176197 | O81: 0.03091690838 | P81: 0.0900000006 | Q81: 0.3308706462 | R81: 0.2913923085 | S81: 0.2771679938 | T81: 0.04555314481 | U81: 0.0900000006 | V81: 0.2600366294 | W81: 0.2151834309 | X81: 0.162016207 | Y81: 0.05797324479 | Z81: 0.0900000006 | AA81: 0.2164498866 | AB81: 0.2861025155 | AC81: 0.1651715219 | AD81: 0.06071632206 | AE81: 0.0900000006 | AF81: 0.2830015123 | AG81: 0.3353142679 | AH81: 0.08520224988 | AI81: 0.01855907142 | AJ81: 0.0900000006 | AK81: -0.1536638979 | AL81: 0.006557324529 | AM81: 0.143040961 | AN81: 0.0900000006 | AO81: 2.980232239e-09 | AP81: 0.0900000006 | AQ81: 0.0369812578 | AR81: 0.1057727277 | AS81: 0.1300995886 | AT81: -0.007558882982 | AU81: 0.0900000006 | AV81: 0.240914768 | AW81: 0.1732286513 | AX81: 0.05634226501
B83: Constants
D84: Months in Year | G84: 12
D85: Hours in Day | G85: 24
D86: Seconds in Minute | G86: 60
D87: Minutes in Hour | G87: 60
D88: Feet/Meters | G88: 9
D89: Number of Scenarios | G89: =MAX(J2:AX2) -> 41

Sheet InputS
B4: Period | G4: =_xlfn.SEQUENCE(,20) -> 1 | H4: 2 | I4: 3 | J4: 4 | K4: 5 | L4: 6 | M4: 7 | N4: 8 | O4: 9 | P4: 10 | Q4: 11 | R4: 12 | S4: 13 | T4: 14 | U4: 15 | V4: 16 | W4: 17 | X4: 18 | Y4: 19 | Z4: 20
C6: Year | G6: =YEAR(InputC!G6) -> 2027 | H6: =G6+1 -> 2028 | I6: =H6+1 -> 2029 | J6: 2030 | K6: 2031 | L6: 2032 | M6: 2033 | N6: 2034 | O6: 2035 | P6: 2036 | Q6: 2037 | R6: 2038 | S6: 2039 | T6: 2040 | U6: 2041 | V6: 2042 | W6: 2043 | X6: 2044 | Y6: 2045 | Z6: 2046
B8: Utilization Rate
D9: Code | F9: =InputC!G39 -> 1
D11: ="Base Case "&$B$8 -> Base Case Utilization Rate | G11: =InputC!$G$37 -> 0.66 | H11: =InputC!$G$37 -> 0.66 | I11: =InputC!$G$37 -> 0.66 | J11: =InputC!$G$37 -> 0.66 | K11: =InputC!$G$37 -> 0.66 | L11: =InputC!$G$37 -> 0.66 | M11: =InputC!$G$37 -> 0.66 | N11: =InputC!$G$37 -> 0.66 | O11: =InputC!$G$37 -> 0.66 | P11: =InputC!$G$37 -> 0.66 | Q11: =InputC!$G$37 -> 0.66 | R11: =InputC!$G$37 -> 0.66 | S11: =InputC!$G$37 -> 0.66 | T11: =InputC!$G$37 -> 0.66 | U11: =InputC!$G$37 -> 0.66 | V11: =InputC!$G$37 -> 0.66 | W11: =InputC!$G$37 -> 0.66 | X11: =InputC!$G$37 -> 0.66 | Y11: =InputC!$G$37 -> 0.66 | Z11: =InputC!$G$37 -> 0.66
D12: ="Low Case "&$B$8 -> Low Case Utilization Rate | G12: 0.7 | H12: =G12-1% -> 0.69 | I12: =H12-1% -> 0.68 | J12: 0.67 | K12: 0.66 | L12: 0.65 | M12: 0.64 | N12: 0.63 | O12: 0.62 | P12: 0.61 | Q12: 0.6 | R12: 0.59 | S12: 0.58 | T12: 0.57 | U12: 0.56 | V12: 0.55 | W12: 0.54 | X12: 0.53 | Y12: 0.52 | Z12: 0.51
D13: ="High Case "&$B$8 -> High Case Utilization Rate | G13: 0.85 | H13: 0.85 | I13: 0.85 | J13: 0.85 | K13: 0.85 | L13: 0.85 | M13: 0.85 | N13: 0.85 | O13: 0.85 | P13: 0.85 | Q13: 0.85 | R13: 0.85 | S13: 0.85 | T13: 0.85 | U13: 0.85 | V13: 0.85 | W13: 0.85 | X13: 0.85 | Y13: 0.85 | Z13: 0.85
D15: =INDEX(D11:D13,$F$9) -> Base Case Utilization Rate | G15: =INDEX(G11:G13,$F$9) -> 0.66 | H15: =INDEX(H11:H13,$F$9) -> 0.66 | I15: =INDEX(I11:I13,$F$9) -> 0.66 | J15: =INDEX(J11:J13,$F$9) -> 0.66 | K15: =INDEX(K11:K13,$F$9) -> 0.66 | L15: =INDEX(L11:L13,$F$9) -> 0.66 | M15: =INDEX(M11:M13,$F$9) -> 0.66 | N15: =INDEX(N11:N13,$F$9) -> 0.66 | O15: =INDEX(O11:O13,$F$9) -> 0.66 | P15: =INDEX(P11:P13,$F$9) -> 0.66 | Q15: =INDEX(Q11:Q13,$F$9) -> 0.66 | R15: =INDEX(R11:R13,$F$9) -> 0.66 | S15: =INDEX(S11:S13,$F$9) -> 0.66 | T15: =INDEX(T11:T13,$F$9) -> 0.66 | U15: =INDEX(U11:U13,$F$9) -> 0.66 | V15: =INDEX(V11:V13,$F$9) -> 0.66 | W15: =INDEX(W11:W13,$F$9) -> 0.66 | X15: =INDEX(X11:X13,$F$9) -> 0.66 | Y15: =INDEX(Y11:Y13,$F$9) -> 0.66 | Z15: =INDEX(Z11:Z13,$F$9) -> 0.66
B17: Electricity Price
D18: Code | F18: =InputC!G60 -> 1
D20: ="Base Case "&B17 -> Base Case Electricity Price | G20: =InputC!$G$59 -> 180 | H20: =InputC!$G$59 -> 180 | I20: =InputC!$G$59 -> 180 | J20: =InputC!$G$59 -> 180 | K20: =InputC!$G$59 -> 180 | L20: =InputC!$G$59 -> 180 | M20: =InputC!$G$59 -> 180 | N20: =InputC!$G$59 -> 180 | O20: =InputC!$G$59 -> 180 | P20: =InputC!$G$59 -> 180 | Q20: =InputC!$G$59 -> 180 | R20: =InputC!$G$59 -> 180 | S20: =InputC!$G$59 -> 180 | T20: =InputC!$G$59 -> 180 | U20: =InputC!$G$59 -> 180 | V20: =InputC!$G$59 -> 180 | W20: =InputC!$G$59 -> 180 | X20: =InputC!$G$59 -> 180 | Y20: =InputC!$G$59 -> 180 | Z20: =InputC!$G$59 -> 180
D21: ="High Case "&B17 -> High Case Electricity Price | G21: 280 | H21: =G21*1.015 -> 284.2 | I21: =H21*1.015 -> 288.463 | J21: 292.789945 | K21: 297.1817942 | L21: 301.6395211 | M21: 306.1641139 | N21: 310.7565756 | O21: 315.4179242 | P21: 320.1491931 | Q21: 324.951431 | R21: 329.8257025 | S21: 334.773088 | T21: 339.7946843 | U21: 344.8916046 | V21: 350.0649787 | W21: 355.3159533 | X21: 360.6456926 | Y21: 366.055378 | Z21: 371.5462087
D22: ="Low Case "&B17 -> Low Case Electricity Price | G22: 150 | H22: 150 | I22: 150 | J22: 150 | K22: 150 | L22: 150 | M22: 150 | N22: 150 | O22: 150 | P22: 150 | Q22: 150 | R22: 150 | S22: 150 | T22: 150 | U22: 150 | V22: 150 | W22: 150 | X22: 150 | Y22: 150 | Z22: 150
D24: =INDEX(D20:D22,$F$18) -> Base Case Electricity Price | G24: =INDEX(G20:G22,$F$18) -> 180 | H24: =INDEX(H20:H22,$F$18) -> 180 | I24: =INDEX(I20:I22,$F$18) -> 180 | J24: =INDEX(J20:J22,$F$18) -> 180 | K24: =INDEX(K20:K22,$F$18) -> 180 | L24: =INDEX(L20:L22,$F$18) -> 180 | M24: =INDEX(M20:M22,$F$18) -> 180 | N24: =INDEX(N20:N22,$F$18) -> 180 | O24: =INDEX(O20:O22,$F$18) -> 180 | P24: =INDEX(P20:P22,$F$18) -> 180 | Q24: =INDEX(Q20:Q22,$F$18) -> 180 | R24: =INDEX(R20:R22,$F$18) -> 180 | S24: =INDEX(S20:S22,$F$18) -> 180 | T24: =INDEX(T20:T22,$F$18) -> 180 | U24: =INDEX(U20:U22,$F$18) -> 180 | V24: =INDEX(V20:V22,$F$18) -> 180 | W24: =INDEX(W20:W22,$F$18) -> 180 | X24: =INDEX(X20:X22,$F$18) -> 180 | Y24: =INDEX(Y20:Y22,$F$18) -> 180 | Z24: =INDEX(Z20:Z22,$F$18) -> 180
B27: Degradation of PUE
F28: 1
D29: Code
D31: ="Base Case "&B27 -> Base Case Degradation of PUE | G31: =TRANSPOSE('Efficiency for Data Centers'!EK5:EK45) -> 0.015 | H31: 0.025 | I31: 0.02 | J31: 0.012 | K31: 0.018 | L31: 0.022 | M31: 0.028 | N31: 0.014 | O31: 0.015 | P31: 0.019 | Q31: 0.01 | R31: 0.016 | S31: 0.011 | T31: 0.012 | U31: 0.015 | V31: 0.008 | W31: 0.013 | X31: 0.009 | Y31: 0.007 | Z31: 0.011 | AA31: 0.012 | AB31: 0.018 | AC31: 0.006 | AD31: 0.009 | AE31: 0.014 | AF31: 0.013 | AG31: 0.019 | AH31: 0.016 | AI31: 0.014 | AJ31: 0.011 | AK31: 0.01 | AL31: 0.009 | AM31: 0.015 | AN31: 0.011 | AO31: 0.01 | AP31: 0.008 | AQ31: 0.007 | AR31: 0.012 | AS31: 0.008 | AT31: 0.009 | AU31: 0.007
D32: ="High Case "&B27 -> High Case Degradation of PUE | G32: =G31*1.5 -> 0.0225 | H32: =H31*1.5 -> 0.0375 | I32: 0.03 | J32: 0.018 | K32: 0.027 | L32: 0.033 | M32: 0.042 | N32: 0.021 | O32: 0.0225 | P32: 0.0285 | Q32: 0.015 | R32: 0.024 | S32: 0.0165 | T32: 0.018 | U32: 0.0225 | V32: 0.012 | W32: 0.0195 | X32: 0.0135 | Y32: 0.0105 | Z32: 0.0165 | AA32: 0.018 | AB32: 0.027 | AC32: 0.009 | AD32: 0.0135 | AE32: 0.021 | AF32: 0.0195 | AG32: 0.0285 | AH32: 0.024 | AI32: 0.021 | AJ32: 0.0165 | AK32: 0.015 | AL32: 0.0135 | AM32: 0.0225 | AN32: 0.0165 | AO32: 0.015 | AP32: 0.012 | AQ32: 0.0105 | AR32: 0.018 | AS32: 0.012 | AT32: 0.0135 | AU32: 0.0105
D33: ="Low Case "&B27 -> Low Case Degradation of PUE | G33: =G31*0.75 -> 0.01125 | H33: =H31*0.75 -> 0.01875 | I33: 0.015 | J33: 0.009 | K33: 0.0135 | L33: 0.0165 | M33: 0.021 | N33: 0.0105 | O33: 0.01125 | P33: 0.01425 | Q33: 0.0075 | R33: 0.012 | S33: 0.00825 | T33: 0.009 | U33: 0.01125 | V33: 0.006 | W33: 0.00975 | X33: 0.00675 | Y33: 0.00525 | Z33: 0.00825 | AA33: 0.009 | AB33: 0.0135 | AC33: 0.0045 | AD33: 0.00675 | AE33: 0.0105 | AF33: 0.00975 | AG33: 0.01425 | AH33: 0.012 | AI33: 0.0105 | AJ33: 0.00825 | AK33: 0.0075 | AL33: 0.00675 | AM33: 0.01125 | AN33: 0.00825 | AO33: 0.0075 | AP33: 0.006 | AQ33: 0.00525 | AR33: 0.009 | AS33: 0.006 | AT33: 0.00675 | AU33: 0.00525
D35: =INDEX(D31:D33,$F$28) -> Base Case Degradation of PUE | G35: =INDEX(G31:G33,$F$28) -> 0.015 | H35: =INDEX(H31:H33,$F$28) -> 0.025 | I35: =INDEX(I31:I33,$F$28) -> 0.02 | J35: =INDEX(J31:J33,$F$28) -> 0.012 | K35: =INDEX(K31:K33,$F$28) -> 0.018 | L35: =INDEX(L31:L33,$F$28) -> 0.022 | M35: =INDEX(M31:M33,$F$28) -> 0.028 | N35: =INDEX(N31:N33,$F$28) -> 0.014 | O35: =INDEX(O31:O33,$F$28) -> 0.015 | P35: =INDEX(P31:P33,$F$28) -> 0.019 | Q35: =INDEX(Q31:Q33,$F$28) -> 0.01 | R35: =INDEX(R31:R33,$F$28) -> 0.016 | S35: =INDEX(S31:S33,$F$28) -> 0.011 | T35: =INDEX(T31:T33,$F$28) -> 0.012 | U35: =INDEX(U31:U33,$F$28) -> 0.015 | V35: =INDEX(V31:V33,$F$28) -> 0.008 | W35: =INDEX(W31:W33,$F$28) -> 0.013 | X35: =INDEX(X31:X33,$F$28) -> 0.009 | Y35: =INDEX(Y31:Y33,$F$28) -> 0.007 | Z35: =INDEX(Z31:Z33,$F$28) -> 0.011

Sheet InputC-Electricity Drill Down
E2: Units | J2: =InputC!J3 -> Legacy Data Centers - High Cost | K2: =InputC!K3 -> Legacy Data Centers - Low Cost | L2: =InputC!L3 -> Legacy Data Centers - Computer Room Air Conditioning | M2: =InputC!M3 -> Legacy Data Centers - Hot/Cold Aisle Containment | N2: =InputC!N3 -> Legacy Data Centers - Chilled Water Central Loops | O2: =InputC!O3 -> Early AI Date Centers - High Cost | P2: =InputC!P3 -> Early AI Date Centers - Low Cost | Q2: =InputC!Q3 -> Early AI Date Centers - Single Phase Direct to Liquid Cooling | R2: =InputC!R3 -> Early AI Date Centers - Coolant Distribution Units | S2: =InputC!S3 -> Early AI Date Centers - Hybrid Air-Liquid Infrastructure | T2: =InputC!T3 -> Modern AI Factories - High Cost | U2: =InputC!U3 -> Modern AI Factories - Low Cost | V2: =InputC!V3 -> Modern AI Factories - Single Phase Direct-to-Chip Liquid Cooling | W2: =InputC!W3 -> Modern AI Factories - Coolant Distribution Units (CDUs) | X2: =InputC!X3 -> Modern AI Factories - Hybrid Air-Liquid Infrastructure | Y2: =InputC!Y3 -> Next-Gen Superclusters - High Cost | Z2: =InputC!Z3 -> Next-Gen Superclusters - Low Cost | AA2: =InputC!AA3 -> Next-Gen Superclusters - Chiller-Less Dry Cooling | AB2: =InputC!AB3 -> Next-Gen Superclusters - High -Impedance Dielectric Coolants | AC2: =InputC!AC3 -> Next-Gen Superclusters - AI-Driven Grid Balance Cooling | AD2: =InputC!AD3 -> Specialized Inference Farms - High Cost | AE2: =InputC!AE3 -> Specialized Inference Farms - Low Cost | AF2: =InputC!AF3 -> Specialized Inference Farms - Chassis-Level Immersion Cooling | AG2: =InputC!AG3 -> Specialized Inference Farms - Open-Tank-Phase Immersion | AH2: =InputC!AH3 -> Specialized Inference Farms - Liquid-to-Air (L2A) Sidecars | AI2: =InputC!AI3 -> NVIDIA Hopper (H200) - High Cost | AJ2: =InputC!AJ3 -> NVIDIA Hopper (H200) - Low Cost | AK2: =InputC!AK3 -> NVIDIA Hopper (H200) - Hyrid Air | AL2: =InputC!AL3 -> NVIDIA Hopper (H200) - Fluid-Assisted | AM2: =InputC!AM3 -> NVIDIA Hopper (H200) - Single Phase Direct-to-Chip Liquid Cooling | AN2: =InputC!AN3 -> NVIDIA Hopper (H200) - Double Phase Direct-to-Chip Liquid Cooling | AO2: =InputC!AO3 -> NVIDIA Blackwell (GB300 / B300) - High Cost | AP2: =InputC!AP3 -> NVIDIA Blackwell (GB300 / B300) - Low Cost | AQ2: =InputC!AQ3 -> NVIDIA Blackwell (GB300 / B300) - 90% Direct-to-Chip Liquid | AR2: =InputC!AR3 -> NVIDIA Blackwell (GB300 / B300) - Single Phase Direct-to-Chip Liquid Cooling | AS2: =InputC!AS3 -> NVIDIA Blackwell (GB300 / B300) - Double Phase Direct-to-Chip Liquid Cooling | AT2: =InputC!AT3 -> NVIDIA Vera Rubin NVL72 - High Cost | AU2: =InputC!AU3 -> NVIDIA Vera Rubin NVL72 - Low Cost | AV2: =InputC!AV3 -> NVIDIA Vera Rubin NVL72 - 45 C Warm-Water Closed-Loop Liquid | AW2: =InputC!AW3 -> NVIDIA Vera Rubin NVL72 - Single Phase Direct-to-Chip Liquid Cooling | AX2: =InputC!AX3 -> NVIDIA Vera Rubin NVL72 - Double Phase Direct-to-Chip Liquid Cooling | AY2: =InputC!AY3 -> NVIDA Vera Alternative Scenario (Full Description Copied from ___) | AZ2: =InputC!AZ3 -> NVIDA Blackwell Alternative Scenario (Full Description Copied from ___) | BA2: =InputC!BA3 -> NVIDA Blackwell Alternative Scenario (Full Description Copied from ___) | BB2: =InputC!BB3 -> NVIDA Hopper Added Scenario (Full Description Copied from ___) | BC2: =InputC!BC3 -> Added Scenario (Full Description Copied from ___)
B4: PUE Drill Down
C5: High PUE Range from Gemini | E5: x | J5: =TRANSPOSE('Efficiency for Data Centers'!DY5:DY45) -> 1.9 | K5: 2.2 | L5: 2 | M5: 1.6 | N5: 1.5 | O5: 1.45 | P5: 1.65 | Q5: 1.3 | R5: 1.32 | S5: 1.4 | T5: 1.18 | U5: 1.35 | V5: 1.15 | W5: 1.16 | X5: 1.25 | Y5: 1.1 | Z5: 1.25 | AA5: 1.12 | AB5: 1.07 | AC5: 1.12 | AD5: 1.35 | AE5: 1.55 | AF5: 1.18 | AG5: 1.08 | AH5: 1.35 | AI5: 1.22 | AJ5: 1.45 | AK5: 1.5 | AL5: 1.35 | AM5: 1.18 | AN5: 1.14 | AO5: 1.14 | AP5: 1.3 | AQ5: 1.13 | AR5: 1.15 | AS5: 1.11 | AT5: 1.12 | AU5: 1.25 | AV5: 1.07 | AW5: 1.14 | AX5: 1.1
C6: Low PUE Range from Gemini | E6: x | J6: =TRANSPOSE('Efficiency for Data Centers'!DZ5:DZ45) -> 1.6 | K6: 1.8 | L6: 1.7 | M6: 1.4 | N6: 1.35 | O6: 1.3 | P6: 1.45 | Q6: 1.2 | R6: 1.22 | S6: 1.28 | T6: 1.12 | U6: 1.22 | V6: 1.1 | W6: 1.11 | X6: 1.18 | Y6: 1.05 | Z6: 1.15 | AA6: 1.06 | AB6: 1.03 | AC6: 1.07 | AD6: 1.2 | AE6: 1.35 | AF6: 1.12 | AG6: 1.04 | AH6: 1.25 | AI6: 1.15 | AJ6: 1.3 | AK6: 1.35 | AL6: 1.25 | AM6: 1.12 | AN6: 1.08 | AO6: 1.1 | AP6: 1.2 | AQ6: 1.09 | AR6: 1.1 | AS6: 1.05 | AT6: 1.08 | AU6: 1.18 | AV6: 1.04 | AW6: 1.09 | AX6: 1.05
C8: Implied Efficiency - High PUE | E8: % | J8: =1/J5 -> 0.5263157895 | K8: =1/K5 -> 0.4545454545 | L8: 0.5 | M8: 0.625 | N8: 0.6666666667 | O8: 0.6896551724 | P8: 0.6060606061 | Q8: 0.7692307692 | R8: 0.7575757576 | S8: 0.7142857143 | T8: 0.8474576271 | U8: 0.7407407407 | V8: 0.8695652174 | W8: 0.8620689655 | X8: 0.8 | Y8: 0.9090909091 | Z8: 0.8 | AA8: 0.8928571429 | AB8: 0.9345794393 | AC8: 0.8928571429 | AD8: 0.7407407407 | AE8: 0.6451612903 | AF8: 0.8474576271 | AG8: 0.9259259259 | AH8: 0.7407407407 | AI8: 0.8196721311 | AJ8: 0.6896551724 | AK8: 0.6666666667 | AL8: 0.7407407407 | AM8: 0.8474576271 | AN8: 0.8771929825 | AO8: 0.8771929825 | AP8: 0.7692307692 | AQ8: 0.8849557522 | AR8: 0.8695652174 | AS8: 0.9009009009 | AT8: 0.8928571429 | AU8: 0.8 | AV8: 0.9345794393 | AW8: 0.8771929825 | AX8: 0.9090909091
C9: Implied Efficiency - Low PUE | E9: % | J9: =1/J6 -> 0.625 | K9: 0.5555555556 | L9: 0.5882352941 | M9: 0.7142857143 | N9: 0.7407407407 | O9: 0.7692307692 | P9: 0.6896551724 | Q9: 0.8333333333 | R9: 0.8196721311 | S9: 0.78125 | T9: 0.8928571429 | U9: 0.8196721311 | V9: 0.9090909091 | W9: 0.9009009009 | X9: 0.8474576271 | Y9: 0.9523809524 | Z9: 0.8695652174 | AA9: 0.9433962264 | AB9: 0.9708737864 | AC9: 0.9345794393 | AD9: 0.8333333333 | AE9: 0.7407407407 | AF9: 0.8928571429 | AG9: 0.9615384615 | AH9: 0.8 | AI9: 0.8695652174 | AJ9: 0.7692307692 | AK9: 0.7407407407 | AL9: 0.8 | AM9: 0.8928571429 | AN9: 0.9259259259 | AO9: 0.9090909091 | AP9: 0.8333333333 | AQ9: 0.9174311927 | AR9: 0.9090909091 | AS9: 0.9523809524 | AT9: 0.9259259259 | AU9: 0.8474576271 | AV9: 0.9615384615 | AW9: 0.9174311927 | AX9: 0.9523809524
C11: Applied PUE (True is High) | E11: =InputC!G76 -> TRUE | J11: =IF($E$11,J5,J6) -> 1.9 | K11: =IF($E$11,K5,K6) -> 2.2 | L11: 2 | M11: 1.6 | N11: 1.5 | O11: 1.45 | P11: 1.65 | Q11: 1.3 | R11: 1.32 | S11: 1.4 | T11: 1.18 | U11: 1.35 | V11: 1.15 | W11: 1.16 | X11: 1.25 | Y11: 1.1 | Z11: 1.25 | AA11: 1.12 | AB11: 1.07 | AC11: 1.12 | AD11: 1.35 | AE11: 1.55 | AF11: 1.18 | AG11: 1.08 | AH11: 1.35 | AI11: 1.22 | AJ11: 1.45 | AK11: 1.5 | AL11: 1.35 | AM11: 1.18 | AN11: 1.14 | AO11: 1.14 | AP11: 1.3 | AQ11: 1.13 | AR11: 1.15 | AS11: 1.11 | AT11: 1.12 | AU11: 1.25 | AV11: 1.07 | AW11: 1.14 | AX11: 1.1
B13: PUE from Losses Efficiencty Perrcent
C14: High Range Cooling Loss from Gemini | E14: % | J14: =TRANSPOSE('Efficiency for Data Centers'!EH5:EH45) -> 0.45 | K14: 0.55 | L14: 0.48 | M14: 0.33 | N14: 0.3 | O14: 0.28 | P14: 0.36 | Q14: 0.2 | R14: 0.22 | S14: 0.25 | T14: 0.13 | U14: 0.24 | V14: 0.12 | W14: 0.13 | X14: 0.18 | Y14: 0.08 | Z14: 0.16 | AA14: 0.09 | AB14: 0.05 | AC14: 0.1 | AD14: 0.15 | AE14: 0.32 | AF14: 0.13 | AG14: 0.06 | AH14: 0.24 | AI14: 0.16 | AJ14: 0.28 | AK14: 0.3 | AL14: 0.23 | AM14: 0.14 | AN14: 0.11 | AO14: 0.11 | AP14: 0.21 | AQ14: 0.1 | AR14: 0.12 | AS14: 0.09 | AT14: 0.09 | AU14: 0.18 | AV14: 0.06 | AW14: 0.1 | AX14: 0.08
C15: Low Range Cooling Loss from Gemini | E15: % | J15: =TRANSPOSE('Efficiency for Data Centers'!EE5:EE45) -> 0.35 | K15: 0.4 | L15: 0.38 | M15: 0.25 | N15: 0.22 | O15: 0.2 | P15: 0.28 | Q15: 0.14 | R15: 0.15 | S15: 0.18 | T15: 0.09 | U15: 0.16 | V15: 0.08 | W15: 0.09 | X15: 0.13 | Y15: 0.04 | Z15: 0.11 | AA15: 0.05 | AB15: 0.02 | AC15: 0.1 | AD15: 0.15 | AE15: 0.22 | AF15: 0.09 | AG15: 0.03 | AH15: 0.18 | AI15: 0.11 | AJ15: 0.21 | AK15: 0.23 | AL15: 0.17 | AM15: 0.1 | AN15: 0.07 | AO15: 0.08 | AP15: 0.15 | AQ15: 0.07 | AR15: 0.08 | AS15: 0.04 | AT15: 0.06 | AU15: 0.13 | AV15: 0.03 | AW15: 0.07 | AX15: 0.04
C17: High Range Loss from UPS and Equipment | E17: % | J17: =TRANSPOSE('Efficiency for Data Centers'!EI5:EI45) -> 0.12 | K17: 0.16 | L17: 0.13 | M17: 0.11 | N17: 0.1 | O17: 0.08 | P17: 0.12 | Q17: 0.08 | R17: 0.08 | S17: 0.09 | T17: 0.06 | U17: 0.1 | V17: 0.06 | W17: 0.06 | X17: 0.07 | Y17: 0.05 | Z17: 0.08 | AA17: 0.05 | AB17: 0.04 | AC17: 0.06 | AD17: 0.07 | AE17: 0.08 | AF17: 0.04 | AG17: 0.03 | AH17: 0.06 | AI17: 0.07 | AJ17: 0.08 | AK17: 0.1 | AL17: 0.08 | AM17: 0.07 | AN17: 0.06 | AO17: 0.05 | AP17: 0.08 | AQ17: 0.05 | AR17: 0.055 | AS17: 0.045 | AT17: 0.04 | AU17: 0.07 | AV17: 0.045 | AW17: 0.05 | AX17: 0.04
C18: Low Range Loss from UPS and Equipment | E18: % | J18: =TRANSPOSE('Efficiency for Data Centers'!EF5:EF45) -> 0.08 | K18: 0.12 | L18: 0.09 | M18: 0.08 | N18: 0.07 | O18: 0.06 | P18: 0.09 | Q18: 0.06 | R18: 0.06 | S18: 0.07 | T18: 0.04 | U18: 0.07 | V18: 0.04 | W18: 0.04 | X18: 0.05 | Y18: 0.03 | Z18: 0.06 | AA18: 0.03 | AB18: 0.03 | AC18: 0.04 | AD18: 0.05 | AE18: 0.08 | AF18: 0.04 | AG18: 0.03 | AH18: 0.06 | AI18: 0.05 | AJ18: 0.11 | AK18: 0.07 | AL18: 0.06 | AM18: 0.05 | AN18: 0.04 | AO18: 0.035 | AP18: 0.06 | AQ18: 0.035 | AR18: 0.04 | AS18: 0.035 | AT18: 0.025 | AU18: 0.05 | AV18: 0.03 | AW18: 0.03 | AX18: 0.025
C20: High Range Loss from Lighting and Other | E20: % | J20: =TRANSPOSE('Efficiency for Data Centers'!EJ5:EJ45) -> 0.013 | K20: 0.015 | L20: 0.013 | M20: 0.009 | N20: 0.01 | O20: 0.004 | P20: 0.008 | Q20: 0.004 | R20: 0.004 | S20: 0.005 | T20: 0.0015 | U20: 0.004 | V20: 0.0015 | W20: 0.0015 | X20: 0.0025 | Y20: 0.0005 | Z20: 0.0015 | AA20: 0.0006 | AB20: 0.0004 | AC20: 0.0005 | AD20: 0.0035 | AE20: 0.006 | AF20: 0.002 | AG20: 0.0015 | AH20: 0.0045 | AI20: 0.002 | AJ20: 0.006 | AK20: 0.0045 | AL20: 0.003 | AM20: 0.002 | AN20: 0.0018 | AO20: 0.0008 | AP20: 0.0025 | AQ20: 0.0007 | AR20: 0.0009 | AS20: 0.0006 | AT20: 0.0004 | AU20: 0.0015 | AV20: 0.0005 | AW20: 0.0006 | AX20: 0.0004
C21: Low Range Loss from Lighting and Other | E21: % | J21: =TRANSPOSE('Efficiency for Data Centers'!EG5:EG45) -> 0.008 | K21: 0.01 | L21: 0.008 | M21: 0.009 | N21: 0.006 | O21: 0.002 | P21: 0.005 | Q21: 0.002 | R21: 0.002 | S21: 0.003 | T21: 0.0005 | U21: 0.002 | V21: 0.0005 | W21: 0.0005 | X21: 0.001 | Y21: 0.0001 | Z21: 0.0008 | AA21: 0.0002 | AB21: 0.0001 | AC21: 0.0002 | AD21: 0.0015 | AE21: 0.003 | AF21: 0.001 | AG21: 0.0005 | AH21: 0.002 | AI21: 0.001 | AJ21: 0.0035 | AK21: 0.0025 | AL21: 0.0015 | AM21: 0.001 | AN21: 0.0008 | AO21: 0.0003 | AP21: 0.0012 | AQ21: 0.0002 | AR21: 0.0003 | AS21: 0.0002 | AT21: 0.0001 | AU21: 0.0006 | AV21: 0.0002 | AW21: 0.0002 | AX21: 0.0001
C23: Sum of High Losses (No Compounding) | E23: % | J23: =J14+J17+J20 -> 0.583 | K23: =K14+K17+K20 -> 0.725 | L23: 0.623 | M23: 0.449 | N23: 0.41 | O23: 0.364 | P23: 0.488 | Q23: 0.284 | R23: 0.304 | S23: 0.345 | T23: 0.1915 | U23: 0.344 | V23: 0.1815 | W23: 0.1915 | X23: 0.2525 | Y23: 0.1305 | Z23: 0.2415 | AA23: 0.1406 | AB23: 0.0904 | AC23: 0.1605 | AD23: 0.2235 | AE23: 0.406 | AF23: 0.172 | AG23: 0.0915 | AH23: 0.3045 | AI23: 0.232 | AJ23: 0.366 | AK23: 0.4045 | AL23: 0.313 | AM23: 0.212 | AN23: 0.1718 | AO23: 0.1608 | AP23: 0.2925 | AQ23: 0.1507 | AR23: 0.1759 | AS23: 0.1356 | AT23: 0.1304 | AU23: 0.2515 | AV23: 0.1055 | AW23: 0.1506 | AX23: 0.1204
C24: Sum of Low Losses (No Compounding) | E24: % | J24: =J15+J18+J21 -> 0.438 | K24: =K15+K18+K21 -> 0.53 | L24: 0.478 | M24: 0.339 | N24: 0.296 | O24: 0.262 | P24: 0.375 | Q24: 0.202 | R24: 0.212 | S24: 0.253 | T24: 0.1305 | U24: 0.232 | V24: 0.1205 | W24: 0.1305 | X24: 0.181 | Y24: 0.0701 | Z24: 0.1708 | AA24: 0.0802 | AB24: 0.0501 | AC24: 0.1402 | AD24: 0.2015 | AE24: 0.303 | AF24: 0.131 | AG24: 0.0605 | AH24: 0.242 | AI24: 0.161 | AJ24: 0.3235 | AK24: 0.3025 | AL24: 0.2315 | AM24: 0.151 | AN24: 0.1108 | AO24: 0.1153 | AP24: 0.2112 | AQ24: 0.1052 | AR24: 0.1203 | AS24: 0.0752 | AT24: 0.0851 | AU24: 0.1806 | AV24: 0.0602 | AW24: 0.1002 | AX24: 0.0651
C26: PUE from High Range Loss | E26: x | J26: =1/(1-J23) -> 2.398081535 | K26: =1/(1-K23) -> 3.636363636 | L26: 2.652519894 | M26: 1.814882033 | N26: 1.694915254 | O26: 1.572327044 | P26: 1.953125 | Q26: 1.396648045 | R26: 1.436781609 | S26: 1.526717557 | T26: 1.23685838 | U26: 1.524390244 | V26: 1.221747098 | W26: 1.23685838 | X26: 1.337792642 | Y26: 1.150086256 | Z26: 1.318391562 | AA26: 1.163602513 | AB26: 1.099384345 | AC26: 1.191185229 | AD26: 1.287830006 | AE26: 1.683501684 | AF26: 1.207729469 | AG26: 1.100715465 | AH26: 1.437814522 | AI26: 1.302083333 | AJ26: 1.577287066 | AK26: 1.679261125 | AL26: 1.455604076 | AM26: 1.269035533 | AN26: 1.207437817 | AO26: 1.191611058 | AP26: 1.413427562 | AQ26: 1.177440245 | AR26: 1.21344497 | AS26: 1.156871819 | AT26: 1.149954002 | AU26: 1.336005344 | AV26: 1.117942985 | AW26: 1.177301625 | AX26: 1.1368804
C27: PUE from Low Range Loss | E27: x | J27: =1/(1-J24) -> 1.779359431 | K27: =1/(1-K24) -> 2.127659574 | L27: 1.915708812 | M27: 1.512859304 | N27: 1.420454545 | O27: 1.35501355 | P27: 1.6 | Q27: 1.253132832 | R27: 1.269035533 | S27: 1.338688086 | T27: 1.150086256 | U27: 1.302083333 | V27: 1.137009665 | W27: 1.150086256 | X27: 1.221001221 | Y27: 1.07538445 | Z27: 1.205981669 | AA27: 1.087192868 | AB27: 1.052742394 | AC27: 1.163061177 | AD27: 1.252348153 | AE27: 1.43472023 | AF27: 1.150747986 | AG27: 1.064395955 | AH27: 1.319261214 | AI27: 1.191895113 | AJ27: 1.4781966 | AK27: 1.433691756 | AL27: 1.301236174 | AM27: 1.177856302 | AN27: 1.124606388 | AO27: 1.130326664 | AP27: 1.267748479 | AQ27: 1.117568172 | AR27: 1.136751165 | AS27: 1.081314879 | AT27: 1.09301563 | AU27: 1.220405175 | AV27: 1.064056182 | AW27: 1.11135808 | AX27: 1.069633116
C29: Applied PUE from Loss Analysis | E29: Flag | F29: =E11 -> TRUE | J29: =IF($F$29,J26,J27) -> 2.398081535 | K29: 3.636363636 | L29: 2.652519894 | M29: 1.814882033 | N29: 1.694915254 | O29: 1.572327044 | P29: 1.953125 | Q29: 1.396648045 | R29: 1.436781609 | S29: 1.526717557 | T29: 1.23685838 | U29: 1.524390244 | V29: 1.221747098 | W29: 1.23685838 | X29: 1.337792642 | Y29: 1.150086256 | Z29: 1.318391562 | AA29: 1.163602513 | AB29: 1.099384345 | AC29: 1.191185229 | AD29: 1.287830006 | AE29: 1.683501684 | AF29: 1.207729469 | AG29: 1.100715465 | AH29: 1.437814522 | AI29: 1.302083333 | AJ29: 1.577287066 | AK29: 1.679261125 | AL29: 1.455604076 | AM29: 1.269035533 | AN29: 1.207437817 | AO29: 1.191611058 | AP29: 1.413427562 | AQ29: 1.177440245 | AR29: 1.21344497 | AS29: 1.156871819 | AT29: 1.149954002 | AU29: 1.336005344 | AV29: 1.117942985 | AW29: 1.177301625 | AX29: 1.1368804
B31: PUE with Temperature Adjustment
C32: PUE at | E32: x | F32: 10 | J32: =TRANSPOSE('Efficiency for Data Centers'!EA5:EA45) -> 1.5 | K32: 1.7 | L32: 1.6 | M32: 1.35 | N32: 1.28 | O32: 1.22 | P32: 1.38 | Q32: 1.15 | R32: 1.17 | S32: 1.2 | T32: 1.09 | U32: 1.18 | V32: 1.08 | W32: 1.09 | X32: 1.14 | Y32: 1.04 | Z32: 1.12 | AA32: 1.05 | AB32: 1.02 | AC32: 1.05 | AD32: 1.16 | AE32: 1.28 | AF32: 1.1 | AG32: 1.03 | AH32: 1.18 | AI32: 1.12 | AJ32: 1.24 | AK32: 1.28 | AL32: 1.2 | AM32: 1.1 | AN32: 1.07 | AO32: 1.08 | AP32: 1.16 | AQ32: 1.07 | AR32: 1.08 | AS32: 1.04 | AT32: 1.06 | AU32: 1.14 | AV32: 1.03 | AW32: 1.07 | AX32: 1.04
C33: PUE at | E33: x | F33: 20 | J33: =TRANSPOSE('Efficiency for Data Centers'!EB5:EB45) -> 1.65 | K33: 1.9 | L33: 1.8 | M33: 1.48 | N33: 1.4 | O33: 1.32 | P33: 1.5 | Q33: 1.22 | R33: 1.25 | S33: 1.3 | T33: 1.13 | U33: 1.25 | V33: 1.11 | W33: 1.12 | X33: 1.2 | Y33: 1.06 | Z33: 1.18 | AA33: 1.08 | AB33: 1.04 | AC33: 1.08 | AD33: 1.24 | AE33: 1.4 | AF33: 1.14 | AG33: 1.05 | AH33: 1.28 | AI33: 1.17 | AJ33: 1.35 | AK33: 1.4 | AL33: 1.28 | AM33: 1.14 | AN33: 1.1 | AO33: 1.11 | AP33: 1.23 | AQ33: 1.1 | AR33: 1.12 | AS33: 1.07 | AT33: 1.09 | AU33: 1.2 | AV33: 1.05 | AW33: 1.1 | AX33: 1.06
C34: PUE at | E34: x | F34: 30 | J34: =TRANSPOSE('Efficiency for Data Centers'!EC5:EC45) -> 1.95 | K34: 2.3 | L34: 2.15 | M34: 1.7 | N34: 1.6 | O34: 1.5 | P34: 1.75 | Q34: 1.35 | R34: 1.38 | S34: 1.48 | T34: 1.21 | U34: 1.4 | V34: 1.18 | W34: 1.19 | X34: 1.3 | Y34: 1.12 | Z34: 1.28 | AA34: 1.14 | AB34: 1.08 | AC34: 1.15 | AD34: 1.42 | AE34: 1.68 | AF34: 1.22 | AG34: 1.09 | AH34: 1.45 | AI34: 1.26 | AJ34: 1.52 | AK34: 1.62 | AL34: 1.42 | AM34: 1.22 | AN34: 1.16 | AO34: 1.16 | AP34: 1.35 | AQ34: 1.15 | AR34: 1.17 | AS34: 1.12 | AT34: 1.14 | AU34: 1.32 | AV34: 1.08 | AW34: 1.15 | AX34: 1.11
C36: Slope | E36: PUE Chg/Temp Chg | J36: =(J32-J33)/($F$32-$F$33) -> 0.015 | K36: 0.02 | L36: 0.02 | M36: 0.013 | N36: 0.012 | O36: 0.01 | P36: 0.012 | Q36: 0.007 | R36: 0.008 | S36: 0.01 | T36: 0.004 | U36: 0.007 | V36: 0.003 | W36: 0.003 | X36: 0.006 | Y36: 0.002 | Z36: 0.006 | AA36: 0.003 | AB36: 0.002 | AC36: 0.003 | AD36: 0.008 | AE36: 0.012 | AF36: 0.004 | AG36: 0.002 | AH36: 0.01 | AI36: 0.005 | AJ36: 0.011 | AK36: 0.012 | AL36: 0.008 | AM36: 0.004 | AN36: 0.003 | AO36: 0.003 | AP36: 0.007 | AQ36: 0.003 | AR36: 0.004 | AS36: 0.003 | AT36: 0.003 | AU36: 0.006 | AV36: 0.002 | AW36: 0.003 | AX36: 0.002
C37: Slope | E37: PUE Chg/Temp Chg | J37: =(J33-J34)/($F$33-$F$34) -> 0.03 | K37: 0.04 | L37: 0.035 | M37: 0.022 | N37: 0.02 | O37: 0.018 | P37: 0.025 | Q37: 0.013 | R37: 0.013 | S37: 0.018 | T37: 0.008 | U37: 0.015 | V37: 0.007 | W37: 0.007 | X37: 0.01 | Y37: 0.006 | Z37: 0.01 | AA37: 0.006 | AB37: 0.004 | AC37: 0.007 | AD37: 0.018 | AE37: 0.028 | AF37: 0.008 | AG37: 0.004 | AH37: 0.017 | AI37: 0.009 | AJ37: 0.017 | AK37: 0.022 | AL37: 0.014 | AM37: 0.008 | AN37: 0.006 | AO37: 0.005 | AP37: 0.012 | AQ37: 0.005 | AR37: 0.005 | AS37: 0.005 | AT37: 0.005 | AU37: 0.012 | AV37: 0.003 | AW37: 0.005 | AX37: 0.005
C39: Intercept | E39: PUE at 0 | J39: =J32-J36*$F$32 -> 1.35 | K39: 1.5 | L39: 1.4 | M39: 1.22 | N39: 1.16 | O39: 1.12 | P39: 1.26 | Q39: 1.08 | R39: 1.09 | S39: 1.1 | T39: 1.05 | U39: 1.11 | V39: 1.05 | W39: 1.06 | X39: 1.08 | Y39: 1.02 | Z39: 1.06 | AA39: 1.02 | AB39: 1 | AC39: 1.02 | AD39: 1.08 | AE39: 1.16 | AF39: 1.06 | AG39: 1.01 | AH39: 1.08 | AI39: 1.07 | AJ39: 1.13 | AK39: 1.16 | AL39: 1.12 | AM39: 1.06 | AN39: 1.04 | AO39: 1.05 | AP39: 1.09 | AQ39: 1.04 | AR39: 1.04 | AS39: 1.01 | AT39: 1.03 | AU39: 1.08 | AV39: 1.01 | AW39: 1.04 | AX39: 1.02
C40: Intercept | E40: PUE at 0 | J40: =J33-J37*$F$33 -> 1.05 | K40: 1.1 | L40: 1.1 | M40: 1.04 | N40: 1 | O40: 0.96 | P40: 1 | Q40: 0.96 | R40: 0.99 | S40: 0.94 | T40: 0.97 | U40: 0.95 | V40: 0.97 | W40: 0.98 | X40: 1 | Y40: 0.94 | Z40: 0.98 | AA40: 0.96 | AB40: 0.96 | AC40: 0.94 | AD40: 0.88 | AE40: 0.84 | AF40: 0.98 | AG40: 0.97 | AH40: 0.94 | AI40: 0.99 | AJ40: 1.01 | AK40: 0.96 | AL40: 1 | AM40: 0.98 | AN40: 0.98 | AO40: 1.01 | AP40: 0.99 | AQ40: 1 | AR40: 1.02 | AS40: 0.97 | AT40: 0.99 | AU40: 0.96 | AV40: 0.99 | AW40: 1 | AX40: 0.96
C42: PUE at Temperature Using First Slope | E42: x | F42: =InputC!G30 -> 25 | J42: =J39+J36*$F$42 -> 1.725 | K42: 2 | L42: 1.9 | M42: 1.545 | N42: 1.46 | O42: 1.37 | P42: 1.56 | Q42: 1.255 | R42: 1.29 | S42: 1.35 | T42: 1.15 | U42: 1.285 | V42: 1.125 | W42: 1.135 | X42: 1.23 | Y42: 1.07 | Z42: 1.21 | AA42: 1.095 | AB42: 1.05 | AC42: 1.095 | AD42: 1.28 | AE42: 1.46 | AF42: 1.16 | AG42: 1.06 | AH42: 1.33 | AI42: 1.195 | AJ42: 1.405 | AK42: 1.46 | AL42: 1.32 | AM42: 1.16 | AN42: 1.115 | AO42: 1.125 | AP42: 1.265 | AQ42: 1.115 | AR42: 1.14 | AS42: 1.085 | AT42: 1.105 | AU42: 1.23 | AV42: 1.06 | AW42: 1.115 | AX42: 1.07
C43: PUE at Temperature Using Second Slope | E43: x | F43: =F42 -> 25 | J43: =J40+J37*$F$43 -> 1.8 | K43: 2.1 | L43: 1.975 | M43: 1.59 | N43: 1.5 | O43: 1.41 | P43: 1.625 | Q43: 1.285 | R43: 1.315 | S43: 1.39 | T43: 1.17 | U43: 1.325 | V43: 1.145 | W43: 1.155 | X43: 1.25 | Y43: 1.09 | Z43: 1.23 | AA43: 1.11 | AB43: 1.06 | AC43: 1.115 | AD43: 1.33 | AE43: 1.54 | AF43: 1.18 | AG43: 1.07 | AH43: 1.365 | AI43: 1.215 | AJ43: 1.435 | AK43: 1.51 | AL43: 1.35 | AM43: 1.18 | AN43: 1.13 | AO43: 1.135 | AP43: 1.29 | AQ43: 1.125 | AR43: 1.145 | AS43: 1.095 | AT43: 1.115 | AU43: 1.26 | AV43: 1.065 | AW43: 1.125 | AX43: 1.085
C44: Average PUE | E44: x | J44: =AVERAGE(J42:J43) -> 1.7625 | K44: =AVERAGE(K42:K43) -> 2.05 | L44: 1.9375 | M44: 1.5675 | N44: 1.48 | O44: 1.39 | P44: 1.5925 | Q44: 1.27 | R44: 1.3025 | S44: 1.37 | T44: 1.16 | U44: 1.305 | V44: 1.135 | W44: 1.145 | X44: 1.24 | Y44: 1.08 | Z44: 1.22 | AA44: 1.1025 | AB44: 1.055 | AC44: 1.105 | AD44: 1.305 | AE44: 1.5 | AF44: 1.17 | AG44: 1.065 | AH44: 1.3475 | AI44: 1.205 | AJ44: 1.42 | AK44: 1.485 | AL44: 1.335 | AM44: 1.17 | AN44: 1.1225 | AO44: 1.13 | AP44: 1.2775 | AQ44: 1.12 | AR44: 1.1425 | AS44: 1.09 | AT44: 1.11 | AU44: 1.245 | AV44: 1.0625 | AW44: 1.12 | AX44: 1.0775
B46: Capital Expenditure Drill Down
C47: Total Capital Expenditure per kW without Building etc | E47: USD/kW | J47: =TRANSPOSE('Capital Expenditures'!HG4:HG44) -> 14500 | K47: 8000 | L47: 9500 | M47: 10200 | N47: 13500 | O47: 26000 | P47: 18500 | Q47: 20500 | R47: 19800 | S47: 21000 | T47: 42000 | U47: 33000 | V47: 35500 | W47: 34800 | X47: 37000 | Y47: 55000 | Z47: 44000 | AA47: 46000 | AB47: 49500 | AC47: 48000 | AD47: 28500 | AE47: 21000 | AF47: 25500 | AG47: 27000 | AH47: 23500 | AI47: 34500 | AJ47: 27000 | AK47: 28500 | AL47: 29800 | AM47: 31200 | AN47: 33500 | AO47: 53000 | AP47: 42000 | AQ47: 45500 | AR47: 46800 | AS47: 49500 | AT47: 61000 | AU47: 48500 | AV47: 51000 | AW47: 53200 | AX47: 56000
C48: General Building, office lighting, land cost per kW | E48: USD/kW | J48: =TRANSPOSE('Capital Expenditures'!HL4:HL44) -> 2200 | K48: 1000 | L48: 1400 | M48: 1450 | N48: 1600 | O48: 2400 | P48: 1300 | Q48: 1500 | R48: 1450 | S48: 1600 | T48: 2700 | U48: 1700 | V48: 1800 | W48: 1800 | X48: 1900 | Y48: 3200 | Z48: 2100 | AA48: 2200 | AB48: 2400 | AC48: 2200 | AD48: 2500 | AE48: 1400 | AF48: 1500 | AG48: 1600 | AH48: 1400 | AI48: 2300 | AJ48: 1500 | AK48: 1600 | AL48: 1600 | AM48: 1600 | AN48: 1700 | AO48: 2600 | AP48: 1700 | AQ48: 1800 | AR48: 1800 | AS48: 1900 | AT48: 2800 | AU48: 2000 | AV48: 2000 | AW48: 2000 | AX48: 2100
C50: Total Capital Expenditure per kW - Sum | E50: USD/kW | J50: =J47+J48 -> 16700 | K50: =K47+K48 -> 9000 | L50: 10900 | M50: 11650 | N50: 15100 | O50: 28400 | P50: 19800 | Q50: 22000 | R50: 21250 | S50: 22600 | T50: 44700 | U50: 34700 | V50: 37300 | W50: 36600 | X50: 38900 | Y50: 58200 | Z50: 46100 | AA50: 48200 | AB50: 51900 | AC50: 50200 | AD50: 31000 | AE50: 22400 | AF50: 27000 | AG50: 28600 | AH50: 24900 | AI50: 36800 | AJ50: 28500 | AK50: 30100 | AL50: 31400 | AM50: 32800 | AN50: 35200 | AO50: 55600 | AP50: 43700 | AQ50: 47300 | AR50: 48600 | AS50: 51400 | AT50: 63800 | AU50: 50500 | AV50: 53000 | AW50: 55200 | AX50: 58100
C51: Applied Capital Expenditue per kW | E51: USD/kW | J51: =J50 -> 16700 | K51: =K50 -> 9000 | L51: 10900 | M51: 11650 | N51: 15100 | O51: 28400 | P51: 19800 | Q51: 22000 | R51: 21250 | S51: 22600 | T51: 44700 | U51: 34700 | V51: 37300 | W51: 36600 | X51: 38900 | Y51: 58200 | Z51: 46100 | AA51: 48200 | AB51: 51900 | AC51: 50200 | AD51: 31000 | AE51: 22400 | AF51: 27000 | AG51: 28600 | AH51: 24900 | AI51: 36800 | AJ51: 28500 | AK51: 30100 | AL51: 31400 | AM51: 32800 | AN51: 35200 | AO51: 55600 | AP51: 43700 | AQ51: 47300 | AR51: 48600 | AS51: 51400 | AT51: 63800 | AU51: 50500 | AV51: 53000 | AW51: 55200 | AX51: 58100
C53: Capital Expenditures for IT Equipment per kW | E53: USD/kW | J53: =TRANSPOSE('Capital Expenditures'!HH4:HH44) -> 3500 | K53: 2500 | L53: 3000 | M53: 3000 | N53: 3000 | O53: 14000 | P53: 11000 | Q53: 11500 | R53: 11000 | S53: 11500 | T53: 26000 | U53: 21000 | V53: 22000 | W53: 21500 | X53: 23000 | Y53: 35000 | Z53: 29000 | AA53: 30000 | AB53: 31000 | AC53: 30500 | AD53: 16500 | AE53: 12500 | AF53: 14500 | AG53: 14000 | AH53: 13500 | AI53: 22000 | AJ53: 17500 | AK53: 18000 | AL53: 18500 | AM53: 19000 | AN53: 19500 | AO53: 35000 | AP53: 27500 | AQ53: 29000 | AR53: 30000 | AS53: 31000 | AT53: 43000 | AU53: 34500 | AV53: 35500 | AW53: 37000 | AX53: 38500
C55: Capital Expenditures for IT Equipment per kW - Low | E55: USD/kW | J55: =TRANSPOSE('Capital Expenditures'!IE4:IE44) -> 1800 | K55: 800 | L55: 1000 | M55: 1200 | N55: 1500 | O55: 12500 | P55: 6000 | Q55: 9000 | R55: 9500 | S55: 8500 | T55: 32000 | U55: 18000 | V55: 25000 | W55: 24000 | X55: 22000 | Y55: 40000 | Z55: 26000 | AA55: 30000 | AB55: 28000 | AC55: 35000 | AD55: 14000 | AE55: 5000 | AF55: 11000 | AG55: 10000 | AH55: 7500 | AI55: 16000 | AJ55: 11000 | AK55: 12500 | AL55: 13000 | AM55: 13500 | AN55: 14000 | AO55: 35000 | AP55: 24000 | AQ55: 28000 | AR55: 27000 | AS55: 30000 | AT55: 48000 | AU55: 32000 | AV55: 36000 | AW55: 35000 | AX55: 40000
C56: Total Electric Capital Expenditures per kW - Summary | E56: USD/kW | J56: =TRANSPOSE('Capital Expenditures'!HI4:HI44) -> 5000 | K56: 3000 | L56: 3500 | M56: 3700 | N56: 4000 | O56: 6000 | P56: 4500 | Q56: 4800 | R56: 4800 | S56: 5000 | T56: 8500 | U56: 6500 | V56: 7000 | W56: 6800 | X56: 7200 | Y56: 11000 | Z56: 8500 | AA56: 9000 | AB56: 9500 | AC56: 10500 | AD56: 6000 | AE56: 4500 | AF56: 5200 | AG56: 5200 | AH56: 4800 | AI56: 6500 | AJ56: 5000 | AK56: 5200 | AL56: 5400 | AM56: 5700 | AN56: 6000 | AO56: 9500 | AP56: 8000 | AQ56: 8500 | AR56: 8800 | AS56: 9000 | AT56: 10000 | AU56: 8000 | AV56: 8000 | AW56: 8700 | AX56: 9000
C57: Total Electric Capital Expenditures per kW - Low | E57: USD/kW | J57: =TRANSPOSE('Capital Expenditures'!IA4:IA44) -> 4500 | K57: 2500 | L57: 2800 | M57: 3200 | N57: 3800 | O57: 5200 | P57: 3500 | Q57: 4000 | R57: 4200 | S57: 4600 | T57: 5800 | U57: 4200 | V57: 4400 | W57: 4600 | X57: 4800 | Y57: 6200 | Z57: 4600 | AA57: 4800 | AB57: 5500 | AC57: 5800 | AD57: 4800 | AE57: 3200 | AF57: 4200 | AG57: 4600 | AH57: 3600 | AI57: 1600 | AJ57: 1100 | AK57: 1200 | AL57: 1300 | AM57: 1400 | AN57: 1700 | AO57: 2200 | AP57: 1600 | AQ57: 1800 | AR57: 1700 | AS57: 2400 | AT57: 2600 | AU57: 1800 | AV57: 1900 | AW57: 2000 | AX57: 2800
C59: Alt Electric Capital Expenditures per kW - High | E59: USD/kW | J59: =TRANSPOSE('Capital Expenditures'!IB4:IB44) -> 8000 | K59: 4600 | L59: 4200 | M59: 5400 | N59: 7200 | O59: 9500 | P59: 6200 | Q59: 7400 | R59: 7800 | S59: 8400 | T59: 10500 | U59: 7500 | V59: 7800 | W59: 8200 | X59: 8800 | Y59: 11500 | Z59: 8200 | AA59: 8500 | AB59: 10000 | AC59: 10800 | AD59: 8800 | AE59: 5800 | AF59: 7500 | AG59: 8200 | AH59: 6200 | AI59: 3000 | AJ59: 2000 | AK59: 2200 | AL59: 2500 | AM59: 2700 | AN59: 3200 | AO59: 4200 | AP59: 3000 | AQ59: 3500 | AR59: 3200 | AS59: 4500 | AT59: 5200 | AU59: 3500 | AV59: 3800 | AW59: 4000 | AX59: 5800
C60: Alt Electric Capital Expenditures per kW - Low | E60: USD/kW | J60: =TRANSPOSE('Capital Expenditures'!IC4:IC44) -> 6500 | K60: 3800 | L60: 4200 | M60: 4500 | N60: 5800 | O60: 7800 | P60: 5200 | Q60: 6000 | R60: 6400 | S60: 6800 | T60: 8500 | U60: 6200 | V60: 6500 | W60: 6800 | X60: 7200 | Y60: 9500 | Z60: 6800 | AA60: 7000 | AB60: 8200 | AC60: 8800 | AD60: 7200 | AE60: 4800 | AF60: 6200 | AG60: 6800 | AH60: 5200 | AI60: 2400 | AJ60: 1600 | AK60: 1800 | AL60: 2000 | AM60: 2200 | AN60: 2600 | AO60: 3400 | AP60: 2400 | AQ60: 2800 | AR60: 2600 | AS60: 3600 | AT60: 4200 | AU60: 2800 | AV60: 3000 | AW60: 3200 | AX60: 4400
C62: Captial Expenditures for Replacement | E62: USD/kW | J62: =TRANSPOSE('Capital Expenditures'!IK4:IK44) -> 185 | K62: 75 | L62: 90 | M62: 110 | N62: 145 | O62: 410 | P62: 215 | Q62: 295 | R62: 260 | S62: 340 | T62: 880 | U62: 540 | V62: 620 | W62: 590 | X62: 70 | Y62: 1450 | Z62: 920 | AA62: 980 | AB62: 1120 | AC62: 1280 | AD62: 1150 | AE62: 740 | AF62: 820 | AG62: 960 | AH62: 790 | AI62: 680 | AJ62: 390 | AK62: 440 | AL62: 510 | AM62: 560 | AN62: 610 | AO62: 1950 | AP62: 1250 | AQ62: 1400 | AR62: 1480 | AS62: 1620 | AT62: 2800 | AU62: 1850 | AV62: 1980 | AW62: 2200 | AX62: 2450
C63: Percent of Capital Expenditures - Replacement | E63: USD/kW | J63: =TRANSPOSE('Capital Expenditures'!IJ4:IJ44) -> 0.12 | K63: 0.05 | L63: 0.06 | M63: 0.08 | N63: 0.1 | O63: 0.24 | P63: 0.14 | Q63: 0.18 | R63: 0.16 | S63: 0.2 | T63: 0.42 | U63: 0.28 | V63: 0.32 | W63: 0.3 | X63: 0.35 | Y63: 0.55 | Z63: 0.38 | AA63: 0.4 | AB63: 0.44 | AC63: 0.48 | AD63: 0.48 | AE63: 0.32 | AF63: 0.36 | AG63: 0.42 | AH63: 0.34 | AI63: 0.3 | AJ63: 0.18 | AK63: 0.22 | AL63: 0.25 | AM63: 0.26 | AN63: 0.28 | AO63: 0.65 | AP63: 0.45 | AQ63: 0.5 | AR63: 0.52 | AS63: 0.56 | AT63: 0.82 | AU63: 0.6 | AV63: 0.64 | AW63: 0.68 | AX63: 0.72
C64: Implied Total Capital Expenditures for Electricity | E64: USD/kW | J64: =J62/J63 -> 1541.666667 | K64: =K62/K63 -> 1500 | L64: 1500 | M64: 1375 | N64: 1450 | O64: 1708.333333 | P64: 1535.714286 | Q64: 1638.888889 | R64: 1625 | S64: 1700 | T64: 2095.238095 | U64: 1928.571429 | V64: 1937.5 | W64: 1966.666667 | X64: 200 | Y64: 2636.363636 | Z64: 2421.052632 | AA64: 2450 | AB64: 2545.454545 | AC64: 2666.666667 | AD64: 2395.833333 | AE64: 2312.5 | AF64: 2277.777778 | AG64: 2285.714286 | AH64: 2323.529412 | AI64: 2266.666667 | AJ64: 2166.666667 | AK64: 2000 | AL64: 2040 | AM64: 2153.846154 | AN64: 2178.571429 | AO64: 3000 | AP64: 2777.777778 | AQ64: 2800 | AR64: 2846.153846 | AS64: 2892.857143 | AT64: 3414.634146 | AU64: 3083.333333 | AV64: 3093.75 | AW64: 3235.294118 | AX64: 3402.777778
B66: Break Down of Electic and Mechanical Cost
C67: =TRANSPOSE('Capital Expenditures'!HN3:HY3) -> Total Electric Cost | E67: USD/kW | J67: =TRANSPOSE('Capital Expenditures'!HN4:HY44) -> 5000 | K67: 3000 | L67: 3500 | M67: 3500 | N67: 4000 | O67: 6000 | P67: 4500 | Q67: 4800 | R67: 4600 | S67: 5000 | T67: 8500 | U67: 6500 | V67: 7000 | W67: 6800 | X67: 7200 | Y67: 11000 | Z67: 8500 | AA67: 9000 | AB67: 9500 | AC67: 10500 | AD67: 6000 | AE67: 4500 | AF67: 5200 | AG67: 5500 | AH67: 4800 | AI67: 6500 | AJ67: 5000 | AK67: 5200 | AL67: 5400 | AM67: 5700 | AN67: 6000 | AO67: 9500 | AP67: 8000 | AQ67: 8500 | AR67: 8800 | AS67: 9000 | AT67: 10000 | AU67: 8000 | AV67: 8500 | AW67: 8700 | AX67: 9000
C68: Total Mechanical Cost | E68: USD/kW | J68: 6000 | K68: 2500 | L68: 3000 | M68: 3000 | N68: 4500 | O68: 6000 | P68: 3000 | Q68: 4200 | R68: 4200 | S68: 4500 | T68: 7500 | U68: 5500 | V68: 6500 | W68: 6500 | X68: 6800 | Y68: 9000 | Z68: 6500 | AA68: 7000 | AB68: 9000 | AC68: 7000 | AD68: 6000 | AE68: 4000 | AF68: 5800 | AG68: 7500 | AH68: 5200 | AI68: 6000 | AJ68: 4500 | AK68: 5300 | AL68: 5900 | AM68: 6500 | AN68: 8000 | AO68: 8500 | AP68: 6500 | AQ68: 8000 | AR68: 8000 | AS68: 9500 | AT68: 8000 | AU68: 6000 | AV68: 7000 | AW68: 7500 | AX68: 8500
C69: Back-up Generators | E69: USD/kW | J69: 1800 | K69: 1100 | L69: 1300 | M69: 1300 | N69: 1450 | O69: 2100 | P69: 1650 | Q69: 1700 | R69: 1650 | S69: 1800 | T69: 2800 | U69: 2200 | V69: 2350 | W69: 2300 | X69: 2400 | Y69: 3400 | Z69: 2700 | AA69: 2850 | AB69: 3000 | AC69: 2500 | AD69: 2000 | AE69: 1550 | AF69: 1750 | AG69: 1850 | AH69: 1600 | AI69: 2200 | AJ69: 1700 | AK69: 1750 | AL69: 1800 | AM69: 1900 | AN69: 2000 | AO69: 3000 | AP69: 2550 | AQ69: 2700 | AR69: 2800 | AS69: 2850 | AT69: 3100 | AU69: 2500 | AV69: 2650 | AW69: 2700 | AX69: 2800
C70: Universal Power Supply | E70: USD/kW | J70: 1500 | K70: 900 | L70: 1050 | M70: 1050 | N70: 1200 | O70: 1800 | P70: 1350 | Q70: 1450 | R70: 1400 | S70: 1500 | T70: 2400 | U70: 1800 | V70: 1950 | W70: 1900 | X70: 2000 | Y70: 3000 | Z70: 2300 | AA70: 2450 | AB70: 2600 | AC70: 4100 | AD70: 1700 | AE70: 1250 | AF70: 1450 | AG70: 1550 | AH70: 1350 | AI70: 1800 | AJ70: 1400 | AK70: 1450 | AL70: 1500 | AM70: 1600 | AN70: 1700 | AO70: 2650 | AP70: 2250 | AQ70: 2400 | AR70: 2450 | AS70: 2500 | AT70: 2800 | AU70: 2250 | AV70: 2400 | AW70: 2450 | AX70: 2500
C71: Transmission Step Down | E71: USD/kW | J71: 700 | K71: 400 | L71: 450 | M71: 450 | N71: 550 | O71: 850 | P71: 600 | Q71: 650 | R71: 600 | S71: 700 | T71: 1300 | U71: 1000 | V71: 1100 | W71: 1050 | X71: 1150 | Y71: 1800 | Z71: 1400 | AA71: 1500 | AB71: 1600 | AC71: 1700 | AD71: 850 | AE71: 600 | AF71: 700 | AG71: 750 | AH71: 650 | AI71: 900 | AJ71: 700 | AK71: 700 | AL71: 750 | AM71: 800 | AN71: 850 | AO71: 1450 | AP71: 1200 | AQ71: 1300 | AR71: 1350 | AS71: 1400 | AT71: 1600 | AU71: 1250 | AV71: 1350 | AW71: 1400 | AX71: 1450
C72: Switchgear/Dense Busway Distribution | E72: USD/kW | J72: 1000 | K72: 600 | L72: 700 | M72: 700 | N72: 800 | O72: 1250 | P72: 900 | Q72: 1000 | R72: 950 | S72: 1000 | T72: 2000 | U72: 1500 | V72: 1600 | W72: 1550 | X72: 1650 | Y72: 2800 | Z72: 2100 | AA72: 2200 | AB72: 2300 | AC72: 2200 | AD72: 1450 | AE72: 1100 | AF72: 1300 | AG72: 1350 | AH72: 1200 | AI72: 1600 | AJ72: 1200 | AK72: 1300 | AL72: 1350 | AM72: 1400 | AN72: 1450 | AO72: 2400 | AP72: 2000 | AQ72: 2100 | AR72: 2200 | AS72: 2250 | AT72: 2500 | AU72: 2000 | AV72: 2100 | AW72: 2150 | AX72: 2250
C73: Chillers | E73: USD/kW | J73: 2800 | K73: 1000 | L73: 0 | M73: 0 | N73: 2400 | O73: 2600 | P73: 1200 | Q73: 1500 | R73: 1600 | S73: 1600 | T73: 2800 | U73: 2000 | V73: 2200 | W73: 2100 | X73: 2100 | Y73: 3000 | Z73: 2000 | AA73: 0 | AB73: 2500 | AC73: 2200 | AD73: 2200 | AE73: 1400 | AF73: 1800 | AG73: 2000 | AH73: 0 | AI73: 2300 | AJ73: 1600 | AK73: 1800 | AL73: 1900 | AM73: 2100 | AN73: 2200 | AO73: 3000 | AP73: 2200 | AQ73: 2400 | AR73: 2500 | AS73: 2600 | AT73: 2800 | AU73: 2000 | AV73: 2100 | AW73: 2150 | AX73: 2250
C74: CRAH | E74: USD/kW | J74: 1500 | K74: 700 | L74: 1800 | M74: 1800 | N74: 1000 | O74: 0 | P74: 0 | Q74: 0 | R74: 0 | S74: 0 | T74: 0 | U74: 0 | V74: 0 | W74: 0 | X74: 0 | Y74: 0 | Z74: 0 | AA74: 0 | AB74: 0 | AC74: 0 | AD74: 0 | AE74: 0 | AF74: 0 | AG74: 0 | AH74: 0 | AI74: 0 | AJ74: 0 | AK74: 0 | AL74: 0 | AM74: 0 | AN74: 0 | AO74: 0 | AP74: 0 | AQ74: 0 | AR74: 0 | AS74: 0 | AT74: 0 | AU74: 0 | AV74: 0 | AW74: 0 | AX74: 0
C75: CDU | J75: 1700 | K75: 800 | L75: 1200 | M75: 1200 | N75: 1100 | O75: 1600 | P75: 900 | Q75: 0 | R75: 0 | S75: 0 | T75: 0 | U75: 0 | V75: 0 | W75: 0 | X75: 0 | Y75: 0 | Z75: 0 | AA75: 0 | AB75: 0 | AC75: 0 | AD75: 0 | AE75: 0 | AF75: 0 | AG75: 0 | AH75: 0 | AI75: 0 | AJ75: 0 | AK75: 0 | AL75: 0 | AM75: 0 | AN75: 0 | AO75: 0 | AP75: 0 | AQ75: 0 | AR75: 0 | AS75: 0 | AT75: 0 | AU75: 0 | AV75: 0 | AW75: 0 | AX75: 0
C76: Piping/Liq Loop/Adiabatic Dry Fluid Coolers/Dense Secondary Loops | E76: USD/kW | J76: 0 | K76: 0 | L76: 0 | M76: 0 | N76: 0 | O76: 0 | P76: 0 | Q76: 1400 | R76: 0 | S76: 0 | T76: 2700 | U76: 1900 | V76: 2500 | W76: 2600 | X76: 2800 | Y76: 3400 | Z76: 2500 | AA76: 3800 | AB76: 0 | AC76: 0 | AD76: 2000 | AE76: 1300 | AF76: 0 | AG76: 3800 | AH76: 3400 | AI76: 2100 | AJ76: 1500 | AK76: 0 | AL76: 0 | AM76: 0 | AN76: 0 | AO76: 3400 | AP76: 2600 | AQ76: 0 | AR76: 0 | AS76: 0 | AT76: 3300 | AU76: 2500 | AV76: 2300 | AW76: 0 | AX76: 0
C77: In Chassis CDU/Dielectric Fluid Pumps and Loops | E77: USD/kW | J77: 0 | K77: 0 | L77: 0 | M77: 0 | N77: 0 | O77: 0 | P77: 0 | Q77: 0 | R77: 1350 | S77: 1700 | T77: 0 | U77: 0 | V77: 0 | W77: 0 | X77: 0 | Y77: 0 | Z77: 0 | AA77: 0 | AB77: 3900 | AC77: 2800 | AD77: 0 | AE77: 0 | AF77: 2500 | AG77: 0 | AH77: 0 | AI77: 0 | AJ77: 0 | AK77: 2100 | AL77: 2400 | AM77: 2800 | AN77: 4100 | AO77: 0 | AP77: 0 | AQ77: 3800 | AR77: 3700 | AS77: 4900 | AT77: 0 | AU77: 0 | AV77: 0 | AW77: 3500 | AX77: 4300
C78: Other - Loops, CDUs and Mechanical Sheel | E78: USD/kW | J78: 0 | K78: 0 | L78: 0 | M78: 0 | N78: 0 | O78: 1800 | P78: 900 | Q78: 1300 | R78: 1250 | S78: 1200 | T78: 2000 | U78: 1600 | V78: 1800 | W78: 1800 | X78: 1900 | Y78: 2600 | Z78: 2000 | AA78: 3200 | AB78: 2600 | AC78: 2000 | AD78: 1800 | AE78: 1300 | AF78: 1500 | AG78: 1700 | AH78: 1800 | AI78: 1600 | AJ78: 1400 | AK78: 1400 | AL78: 1600 | AM78: 1600 | AN78: 1700 | AO78: 2100 | AP78: 1700 | AQ78: 1800 | AR78: 1800 | AS78: 2000 | AT78: 1900 | AU78: 1500 | AV78: 1500 | AW78: 1700 | AX78: 1800
C81: Electrical Cost Check | E81: USD/kW | J81: =J69+J70+J71+J72 -> 5000 | K81: =K69+K70+K71+K72 -> 3000 | L81: 3500 | M81: 3500 | N81: 4000 | O81: 6000 | P81: 4500 | Q81: 4800 | R81: 4600 | S81: 5000 | T81: 8500 | U81: 6500 | V81: 7000 | W81: 6800 | X81: 7200 | Y81: 11000 | Z81: 8500 | AA81: 9000 | AB81: 9500 | AC81: 10500 | AD81: 6000 | AE81: 4500 | AF81: 5200 | AG81: 5500 | AH81: 4800 | AI81: 6500 | AJ81: 5000 | AK81: 5200 | AL81: 5400 | AM81: 5700 | AN81: 6000 | AO81: 9500 | AP81: 8000 | AQ81: 8500 | AR81: 8800 | AS81: 9000 | AT81: 10000 | AU81: 8000 | AV81: 8500 | AW81: 8700 | AX81: 9000
C82: Mechanical Cost Check | E82: USD/kW | J82: =J74+J75+J76+J77+J78+J73 -> 6000 | K82: =K74+K75+K76+K77+K78+K73 -> 2500 | L82: 3000 | M82: 3000 | N82: 4500 | O82: 6000 | P82: 3000 | Q82: 4200 | R82: 4200 | S82: 4500 | T82: 7500 | U82: 5500 | V82: 6500 | W82: 6500 | X82: 6800 | Y82: 9000 | Z82: 6500 | AA82: 7000 | AB82: 9000 | AC82: 7000 | AD82: 6000 | AE82: 4000 | AF82: 5800 | AG82: 7500 | AH82: 5200 | AI82: 6000 | AJ82: 4500 | AK82: 5300 | AL82: 5900 | AM82: 6500 | AN82: 8000 | AO82: 8500 | AP82: 6500 | AQ82: 8000 | AR82: 8000 | AS82: 9500 | AT82: 8000 | AU82: 6000 | AV82: 5900 | AW82: 7350 | AX82: 8350
C84: Electrical Test | J84: =J81=J67 -> TRUE | K84: =K81=K67 -> TRUE | L84: TRUE | M84: TRUE | N84: TRUE | O84: TRUE | P84: TRUE | Q84: TRUE | R84: TRUE | S84: TRUE | T84: TRUE | U84: TRUE | V84: TRUE | W84: TRUE | X84: TRUE | Y84: TRUE | Z84: TRUE | AA84: TRUE | AB84: TRUE | AC84: TRUE | AD84: TRUE | AE84: TRUE | AF84: TRUE | AG84: TRUE | AH84: TRUE | AI84: TRUE | AJ84: TRUE | AK84: TRUE | AL84: TRUE | AM84: TRUE | AN84: TRUE | AO84: TRUE | AP84: TRUE | AQ84: TRUE | AR84: TRUE | AS84: TRUE | AT84: TRUE | AU84: TRUE | AV84: TRUE | AW84: TRUE | AX84: TRUE
C85: Mechanical Test | J85: =J82=J68 -> TRUE | K85: =K82=K68 -> TRUE | L85: TRUE | M85: TRUE | N85: TRUE | O85: TRUE | P85: TRUE | Q85: TRUE | R85: TRUE | S85: TRUE | T85: TRUE | U85: TRUE | V85: TRUE | W85: TRUE | X85: TRUE | Y85: TRUE | Z85: TRUE | AA85: TRUE | AB85: TRUE | AC85: TRUE | AD85: TRUE | AE85: TRUE | AF85: TRUE | AG85: TRUE | AH85: TRUE | AI85: TRUE | AJ85: TRUE | AK85: TRUE | AL85: TRUE | AM85: TRUE | AN85: TRUE | AO85: TRUE | AP85: TRUE | AQ85: TRUE | AR85: TRUE | AS85: TRUE | AT85: TRUE | AU85: TRUE | AV85: FALSE | AW85: FALSE | AX85: FALSE
B87: Other Inputs
C88: Replacement Months - Low | E88: Months | J88: =TRANSPOSE('Capital Expenditures'!IG4:IG44) -> 60 | K88: 36 | L88: 48 | M88: 48 | N88: 60 | O88: 36 | P88: 24 | Q88: 42 | R88: 36 | S88: 48 | T88: 30 | U88: 24 | V88: 36 | W88: 30 | X88: 36 | Y88: 24 | Z88: 18 | AA88: 30 | AB88: 36 | AC88: 24 | AD88: 36 | AE88: 24 | AF88: 42 | AG88: 48 | AH88: 30 | AI88: 48 | AJ88: 36 | AK88: 36 | AL88: 42 | AM88: 48 | AN88: 36 | AO88: 24 | AP88: 30 | AQ88: 26 | AR88: 26 | AS88: 28 | AT88: 30 | AU88: 20 | AV88: 36 | AW88: 30 | AX88: 24
C89: Replacement Months - High | E89: Months | J89: =TRANSPOSE('Capital Expenditures'!IF4:IF44) -> 84 | K89: 48 | L89: 60 | M89: 72 | N89: 72 | O89: 48 | P89: 36 | Q89: 54 | R89: 48 | S89: 60 | T89: 36 | U89: 30 | V89: 42 | W89: 36 | X89: 48 | Y89: 30 | Z89: 24 | AA89: 36 | AB89: 48 | AC89: 36 | AD89: 48 | AE89: 36 | AF89: 54 | AG89: 60 | AH89: 42 | AI89: 60 | AJ89: 42 | AK89: 48 | AL89: 54 | AM89: 60 | AN89: 49 | AO89: 24 | AP89: 30 | AQ89: 26 | AR89: 26 | AS89: 28 | AT89: 36 | AU89: 26 | AV89: 42 | AW89: 36 | AX89: 32
C90: Replacement Months - Average | E90: Months | J90: =ROUND(AVERAGE(J88:J89),0) -> 72 | K90: =ROUND(AVERAGE(K88:K89),0) -> 42 | L90: 54 | M90: 60 | N90: 66 | O90: 42 | P90: 30 | Q90: 48 | R90: 42 | S90: 54 | T90: 33 | U90: 27 | V90: 39 | W90: 33 | X90: 42 | Y90: 27 | Z90: 21 | AA90: 33 | AB90: 42 | AC90: 30 | AD90: 42 | AE90: 30 | AF90: 48 | AG90: 54 | AH90: 36 | AI90: 54 | AJ90: 39 | AK90: 42 | AL90: 48 | AM90: 54 | AN90: 43 | AO90: 24 | AP90: 30 | AQ90: 26 | AR90: 26 | AS90: 28 | AT90: 33 | AU90: 23 | AV90: 39 | AW90: 33 | AX90: 28
C92: MM Token per kW per Month - Prompt 1 from Gemini | E92: MM Tokens per kW Month | J92: =TRANSPOSE('Token per kW'!DF3:DF43) -> 0.005 | K92: 0.012 | L92: 0.006 | M92: 0.018 | N92: 0.025 | O92: 0.85 | P92: 1.95 | Q92: 3.4 | R92: 3.85 | S92: 2.9 | T92: 12.5 | U92: 26 | V92: 42.5 | W92: 45 | X92: 34.5 | Y92: 95 | Z92: 185 | AA92: 210 | AB92: 245 | AC92: 260 | AD92: 150 | AE92: 310 | AF92: 415 | AG92: 480 | AH92: 365 | AI92: 48 | AJ92: 92 | AK92: 62 | AL92: 84 | AM92: 115 | AN92: 138 | AO92: 380 | AP92: 740 | AQ92: 890 | AR92: 980 | AS92: 1120 | AT92: 2400 | AU92: 4600 | AV92: 5100 | AW92: 5800 | AX92: 6500
C93: MM Token per kW per Month - Prompt 2 - Low | E93: MM Tokens per kW Month | J93: =TRANSPOSE('Token per kW'!DI3:DI43) -> 0.02 | K93: 0.04 | L93: 0.03 | M93: 0.04 | N93: 0.04 | O93: 1.2 | P93: 1.5 | Q93: 1.8 | R93: 1.7 | S93: 1.6 | T93: 4.5 | U93: 5.5 | V93: 6.2 | W93: 6 | X93: 5.2 | Y93: 8.5 | Z93: 11 | AA93: 10.5 | AB93: 12 | AC93: 10 | AD93: 14 | AE93: 18.5 | AF93: 22 | AG93: 24.5 | AH93: 16 | AI93: 3.8 | AJ93: 4.8 | AK93: 4 | AL93: 4.4 | AM93: 5 | AN93: 5.4 | AO93: 18 | AP93: 23 | AQ93: 21.5 | AR93: 22.5 | AS93: 24.5 | AT93: 32 | AU93: 41 | AV93: 38 | AW93: 40 | AX93: 44
C94: MM Token per kW per Month - Prompt 2 - High | E94: MM Tokens per kW Month | J94: =TRANSPOSE('Token per kW'!DJ3:DJ43) -> 0.05 | K94: 0.08 | L94: 0.06 | M94: 0.07 | N94: 0.08 | O94: 2.5 | P94: 3.2 | Q94: 3.8 | R94: 3.6 | S94: 3.4 | T94: 9.5 | U94: 11.5 | V94: 13 | W94: 12.5 | X94: 11 | Y94: 18 | Z94: 22.5 | AA94: 21 | AB94: 24.5 | AC94: 21.5 | AD94: 30 | AE94: 38 | AF94: 45 | AG94: 50 | AH94: 34 | AI94: 8 | AJ94: 10.2 | AK94: 8.5 | AL94: 9.2 | AM94: 10.5 | AN94: 11.2 | AO94: 38 | AP94: 48 | AQ94: 45 | AR94: 47 | AS94: 51 | AT94: 68 | AU94: 85 | AV94: 80 | AW94: 83 | AX94: 92
C96: Chemical Tons per 100 kW | E96: Tons/100 kW | J96: =TRANSPOSE('Capital Expenditures'!II4:II44) -> 140 | K96: 110 | L96: 45 | M96: 95 | N96: 220 | O96: 340 | P96: 280 | Q96: 410 | R96: 180 | S96: 290 | T96: 620 | U96: 510 | V96: 740 | W96: 480 | X96: 580 | Y96: 1850 | Z96: 1400 | AA96: 1650 | AB96: 2100 | AC96: 880 | AD96: 0 | AE96: 0 | AF96: 0 | AG96: 0 | AH96: 0 | AI96: 580 | AJ96: 460 | AK96: 240 | AL96: 510 | AM96: 720 | AN96: 850 | AO96: 1250 | AP96: 980 | AQ96: 1100 | AR96: 1320 | AS96: 1480 | AT96: 2100 | AU96: 1650 | AV96: 1400 | AW96: 2400 | AX96: 2850
C97: Chemical Cost per Ton | E97: USD/Ton | J97: =TRANSPOSE('Capital Expenditures'!IH4:IH44) -> 4500 | K97: 2200 | L97: 1800 | M97: 2400 | N97: 3800 | O97: 12500 | P97: 5500 | Q97: 14000 | R97: 16500 | S97: 9200 | T97: 38000 | U97: 18500 | V97: 32000 | W97: 35000 | X97: 24000 | Y97: 140000 | Z97: 65000 | AA97: 110000 | AB97: 165000 | AC97: 45000 | AD97: 0 | AE97: 0 | AF97: 0 | AG97: 0 | AH97: 0 | AI97: 35000 | AJ97: 16000 | AK97: 12000 | AL97: 26000 | AM97: 34000 | AN97: 88000 | AO97: 95000 | AP97: 48000 | AQ97: 78000 | AR97: 85000 | AS97: 145000 | AT97: 180000 | AU97: 88000 | AV97: 55000 | AW97: 160000 | AX97: 230000

Sheet FM Monthly
H1: Price in MW | I1: =F33 -> 6000 | J1: Target IRR | K1: =F119 -> 0.09
H2: Price in MM Tokens | I2: =Price -> 34.36213712 | J2: IRR | K2: =F117 -> 0.0900000006
B4: Timeline | E4: Units | F4: Driver | H4: Sum
C5: Period | I5: =_xlfn.SEQUENCE(,300) -> 1 | J5: 2 | K5: 3 | L5: 4 | M5: 5 | N5: 6 | O5: 7 | P5: 8 | Q5: 9 | R5: 10 | S5: 11 | T5: 12 | U5: 13 | V5: 14 | W5: 15 | X5: 16 | Y5: 17 | Z5: 18 | AA5: 19 | AB5: 20 | AC5: 21 | AD5: 22 | AE5: 23 | AF5: 24 | AG5: 25 | AH5: 26 | AI5: 27 | AJ5: 28 | AK5: 29 | AL5: 30 | AM5: 31 | AN5: 32 | AO5: 33 | AP5: 34 | AQ5: 35 | AR5: 36 | AS5: 37 | AT5: 38 | AU5: 39 | AV5: 40 | AW5: 41 | AX5: 42 | AY5: 43 | AZ5: 44 | BA5: 45 | BB5: 46 | BC5: 47 | BD5: 48 | BE5: 49 | BF5: 50 | BG5: 51 | BH5: 52 | BI5: 53 | BJ5: 54 | BK5: 55 | BL5: 56 | BM5: 57 | BN5: 58 | BO5: 59 | BP5: 60 | BQ5: 61 | BR5: 62 | BS5: 63 | BT5: 64 | BU5: 65 | BV5: 66 | BW5: 67 | BX5: 68 | BY5: 69 | BZ5: 70 | CA5: 71 | CB5: 72 | CC5: 73 | CD5: 74 | CE5: 75 | CF5: 76 | CG5: 77 | CH5: 78 | CI5: 79 | CJ5: 80 | CK5: 81 | CL5: 82 | CM5: 83 | CN5: 84 | CO5: 85 | CP5: 86 | CQ5: 87 | CR5: 88 | CS5: 89 | CT5: 90 | CU5: 91 | CV5: 92 | CW5: 93 | CX5: 94 | CY5: 95 | CZ5: 96 | DA5: 97 | DB5: 98 | DC5: 99 | DD5: 100 | DE5: 101 | DF5: 102 | DG5: 103 | DH5: 104 | DI5: 105 | DJ5: 106 | DK5: 107 | DL5: 108 | DM5: 109 | DN5: 110 | DO5: 111 | DP5: 112 | DQ5: 113 | DR5: 114 | DS5: 115 | DT5: 116 | DU5: 117 | DV5: 118 | DW5: 119 | DX5: 120 | DY5: 121 | DZ5: 122 | EA5: 123 | EB5: 124 | EC5: 125 | ED5: 126 | EE5: 127 | EF5: 128 | EG5: 129 | EH5: 130 | EI5: 131 | EJ5: 132 | EK5: 133 | EL5: 134 | EM5: 135 | EN5: 136 | EO5: 137 | EP5: 138 | EQ5: 139 | ER5: 140 | ES5: 141 | ET5: 142 | EU5: 143 | EV5: 144 | EW5: 145 | EX5: 146 | EY5: 147 | EZ5: 148 | FA5: 149 | FB5: 150 | FC5: 151 | FD5: 152 | FE5: 153 | FF5: 154 | FG5: 155 | FH5: 156 | FI5: 157 | FJ5: 158 | FK5: 159 | FL5: 160 | FM5: 161 | FN5: 162 | FO5: 163 | FP5: 164 | FQ5: 165 | FR5: 166 | FS5: 167 | FT5: 168 | FU5: 169 | FV5: 170 | FW5: 171 | FX5: 172 | FY5: 173 | FZ5: 174 | GA5: 175 | GB5: 176 | GC5: 177 | GD5: 178 | GE5: 179 | GF5: 180 | GG5: 181 | GH5: 182 | GI5: 183 | GJ5: 184 | GK5: 185 | GL5: 186 | GM5: 187 | GN5: 188 | GO5: 189 | GP5: 190 | GQ5: 191 | GR5: 192 | GS5: 193 | GT5: 194 | GU5: 195 | GV5: 196 | GW5: 197 | GX5: 198 | GY5: 199 | GZ5: 200 | HA5: 201 | HB5: 202 | HC5: 203 | HD5: 204 | HE5: 205 | HF5: 206 | HG5: 207 | HH5: 208 | HI5: 209 | HJ5: 210 | HK5: 211 | HL5: 212 | HM5: 213 | HN5: 214 | HO5: 215 | HP5: 216 | HQ5: 217 | HR5: 218 | HS5: 219 | HT5: 220 | HU5: 221 | HV5: 222 | HW5: 223 | HX5: 224 | HY5: 225 | HZ5: 226 | IA5: 227 | IB5: 228 | IC5: 229 | ID5: 230 | IE5: 231 | IF5: 232 | IG5: 233 | IH5: 234 | II5: 235 | IJ5: 236 | IK5: 237 | IL5: 238 | IM5: 239 | IN5: 240 | IO5: 241 | IP5: 242 | IQ5: 243 | IR5: 244 | IS5: 245 | IT5: 246 | IU5: 247 | IV5: 248 | IW5: 249 | IX5: 250 | IY5: 251 | IZ5: 252 | JA5: 253 | JB5: 254 | JC5: 255 | JD5: 256 | JE5: 257 | JF5: 258 | JG5: 259 | JH5: 260 | JI5: 261 | JJ5: 262 | JK5: 263 | JL5: 264 | JM5: 265 | JN5: 266 | JO5: 267 | JP5: 268 | JQ5: 269 | JR5: 270 | JS5: 271 | JT5: 272 | JU5: 273 | JV5: 274 | JW5: 275 | JX5: 276 | JY5: 277 | JZ5: 278 | KA5: 279 | KB5: 280 | KC5: 281 | KD5: 282 | KE5: 283 | KF5: 284 | KG5: 285 | KH5: 286 | KI5: 287 | KJ5: 288 | KK5: 289 | KL5: 290 | KM5: 291 | KN5: 292 | KO5: 293 | KP5: 294 | KQ5: 295 | KR5: 296 | KS5: 297 | KT5: 298 | KU5: 299 | KV5: 300
C6: Construction Periods | E6: Flag | F6: =InputC!G7 -> 24 | H6: =SUM(I6:KV6) -> 24 | I6: =(I5<=$F$6)*1 -> 1 | J6: =(J5<=$F$6)*1 -> 1 | K6: 1 | L6: 1 | M6: 1 | N6: 1 | O6: 1 | P6: 1 | Q6: 1 | R6: 1 | S6: 1 | T6: 1 | U6: 1 | V6: 1 | W6: 1 | X6: 1 | Y6: 1 | Z6: 1 | AA6: 1 | AB6: 1 | AC6: 1 | AD6: 1 | AE6: 1 | AF6: 1 | AG6: 0 | AH6: 0 | AI6: 0 | AJ6: 0 | AK6: 0 | AL6: 0 | AM6: 0 | AN6: 0 | AO6: 0 | AP6: 0 | AQ6: 0 | AR6: 0 | AS6: 0 | AT6: 0 | AU6: 0 | AV6: 0 | AW6: 0 | AX6: 0 | AY6: 0 | AZ6: 0 | BA6: 0 | BB6: 0 | BC6: 0 | BD6: 0 | BE6: 0 | BF6: 0 | BG6: 0 | BH6: 0 | BI6: 0 | BJ6: 0 | BK6: 0 | BL6: 0 | BM6: 0 | BN6: 0 | BO6: 0 | BP6: 0 | BQ6: 0 | BR6: 0 | BS6: 0 | BT6: 0 | BU6: 0 | BV6: =(BV5<=$F$6)*1 -> 0 | BW6: 0 | BX6: 0 | BY6: 0 | BZ6: 0 | CA6: 0 | CB6: 0 | CC6: 0 | CD6: 0 | CE6: 0 | CF6: 0 | CG6: 0 | CH6: 0 | CI6: 0 | CJ6: 0 | CK6: 0 | CL6: 0 | CM6: 0 | CN6: 0 | CO6: 0 | CP6: 0 | CQ6: 0 | CR6: 0 | CS6: 0 | CT6: 0 | CU6: 0 | CV6: 0 | CW6: 0 | CX6: 0 | CY6: 0 | CZ6: 0 | DA6: 0 | DB6: 0 | DC6: 0 | DD6: 0 | DE6: 0 | DF6: 0 | DG6: 0 | DH6: 0 | DI6: 0 | DJ6: 0 | DK6: 0 | DL6: 0 | DM6: 0 | DN6: 0 | DO6: 0 | DP6: 0 | DQ6: 0 | DR6: 0 | DS6: 0 | DT6: 0 | DU6: 0 | DV6: 0 | DW6: 0 | DX6: 0 | DY6: 0 | DZ6: 0 | EA6: 0 | EB6: 0 | EC6: 0 | ED6: 0 | EE6: 0 | EF6: 0 | EG6: 0 | EH6: =(EH5<=$F$6)*1 -> 0 | EI6: 0 | EJ6: 0 | EK6: 0 | EL6: 0 | EM6: 0 | EN6: 0 | EO6: 0 | EP6: 0 | EQ6: 0 | ER6: 0 | ES6: 0 | ET6: 0 | EU6: 0 | EV6: 0 | EW6: 0 | EX6: 0 | EY6: 0 | EZ6: 0 | FA6: 0 | FB6: 0 | FC6: 0 | FD6: 0 | FE6: 0 | FF6: 0 | FG6: 0 | FH6: 0 | FI6: 0 | FJ6: 0 | FK6: 0 | FL6: 0 | FM6: 0 | FN6: 0 | FO6: 0 | FP6: 0 | FQ6: 0 | FR6: 0 | FS6: 0 | FT6: 0 | FU6: 0 | FV6: 0 | FW6: 0 | FX6: 0 | FY6: 0 | FZ6: 0 | GA6: 0 | GB6: 0 | GC6: 0 | GD6: 0 | GE6: 0 | GF6: 0 | GG6: 0 | GH6: 0 | GI6: 0 | GJ6: 0 | GK6: 0 | GL6: 0 | GM6: 0 | GN6: 0 | GO6: 0 | GP6: 0 | GQ6: 0 | GR6: 0 | GS6: 0 | GT6: =(GT5<=$F$6)*1 -> 0 | GU6: 0 | GV6: 0 | GW6: 0 | GX6: 0 | GY6: 0 | GZ6: 0 | HA6: 0 | HB6: 0 | HC6: 0 | HD6: 0 | HE6: 0 | HF6: 0 | HG6: 0 | HH6: 0 | HI6: 0 | HJ6: 0 | HK6: 0 | HL6: 0 | HM6: 0 | HN6: 0 | HO6: 0 | HP6: 0 | HQ6: 0 | HR6: 0 | HS6: 0 | HT6: 0 | HU6: 0 | HV6: 0 | HW6: 0 | HX6: 0 | HY6: 0 | HZ6: 0 | IA6: 0 | IB6: 0 | IC6: 0 | ID6: 0 | IE6: 0 | IF6: 0 | IG6: 0 | IH6: 0 | II6: 0 | IJ6: 0 | IK6: 0 | IL6: 0 | IM6: 0 | IN6: 0 | IO6: 0 | IP6: 0 | IQ6: 0 | IR6: 0 | IS6: 0 | IT6: 0 | IU6: 0 | IV6: 0 | IW6: 0 | IX6: 0 | IY6: 0 | IZ6: 0 | JA6: 0 | JB6: 0 | JC6: 0 | JD6: 0 | JE6: 0 | JF6: =(JF5<=$F$6)*1 -> 0 | JG6: 0 | JH6: 0 | JI6: 0 | JJ6: 0 | JK6: 0 | JL6: 0 | JM6: 0 | JN6: 0 | JO6: 0 | JP6: 0 | JQ6: 0 | JR6: 0 | JS6: 0 | JT6: 0 | JU6: 0 | JV6: 0 | JW6: 0 | JX6: 0 | JY6: 0 | JZ6: 0 | KA6: 0 | KB6: 0 | KC6: 0 | KD6: 0 | KE6: 0 | KF6: 0 | KG6: 0 | KH6: 0 | KI6: 0 | KJ6: 0 | KK6: 0 | KL6: 0 | KM6: 0 | KN6: 0 | KO6: 0 | KP6: 0 | KQ6: 0 | KR6: 0 | KS6: 0 | KT6: 0 | KU6: 0 | KV6: 0
C7: Start of the period | E7: Date | I7: =H8+1 -> 2027-01-01 | J7: =I8+1 -> 2027-02-01 | K7: 2027-03-01 | L7: 2027-04-01 | M7: 2027-05-01 | N7: 2027-06-01 | O7: 2027-07-01 | P7: 2027-08-01 | Q7: 2027-09-01 | R7: 2027-10-01 | S7: 2027-11-01 | T7: 2027-12-01 | U7: 2028-01-01 | V7: 2028-02-01 | W7: 2028-03-01 | X7: 2028-04-01 | Y7: 2028-05-01 | Z7: 2028-06-01 | AA7: 2028-07-01 | AB7: 2028-08-01 | AC7: 2028-09-01 | AD7: 2028-10-01 | AE7: 2028-11-01 | AF7: 2028-12-01 | AG7: 2029-01-01 | AH7: 2029-02-01 | AI7: 2029-03-01 | AJ7: 2029-04-01 | AK7: 2029-05-01 | AL7: 2029-06-01 | AM7: 2029-07-01 | AN7: 2029-08-01 | AO7: 2029-09-01 | AP7: 2029-10-01 | AQ7: 2029-11-01 | AR7: 2029-12-01 | AS7: 2030-01-01 | AT7: 2030-02-01 | AU7: 2030-03-01 | AV7: 2030-04-01 | AW7: 2030-05-01 | AX7: 2030-06-01 | AY7: 2030-07-01 | AZ7: 2030-08-01 | BA7: 2030-09-01 | BB7: 2030-10-01 | BC7: 2030-11-01 | BD7: 2030-12-01 | BE7: 2031-01-01 | BF7: 2031-02-01 | BG7: 2031-03-01 | BH7: 2031-04-01 | BI7: 2031-05-01 | BJ7: 2031-06-01 | BK7: 2031-07-01 | BL7: 2031-08-01 | BM7: 2031-09-01 | BN7: 2031-10-01 | BO7: 2031-11-01 | BP7: 2031-12-01 | BQ7: 2032-01-01 | BR7: 2032-02-01 | BS7: 2032-03-01 | BT7: 2032-04-01 | BU7: 2032-05-01 | BV7: =BU8+1 -> 2032-06-01 | BW7: 2032-07-01 | BX7: 2032-08-01 | BY7: 2032-09-01 | BZ7: 2032-10-01 | CA7: 2032-11-01 | CB7: 2032-12-01 | CC7: 2033-01-01 | CD7: 2033-02-01 | CE7: 2033-03-01 | CF7: 2033-04-01 | CG7: 2033-05-01 | CH7: 2033-06-01 | CI7: 2033-07-01 | CJ7: 2033-08-01 | CK7: 2033-09-01 | CL7: 2033-10-01 | CM7: 2033-11-01 | CN7: 2033-12-01 | CO7: 2034-01-01 | CP7: 2034-02-01 | CQ7: 2034-03-01 | CR7: 2034-04-01 | CS7: 2034-05-01 | CT7: 2034-06-01 | CU7: 2034-07-01 | CV7: 2034-08-01 | CW7: 2034-09-01 | CX7: 2034-10-01 | CY7: 2034-11-01 | CZ7: 2034-12-01 | DA7: 2035-01-01 | DB7: 2035-02-01 | DC7: 2035-03-01 | DD7: 2035-04-01 | DE7: 2035-05-01 | DF7: 2035-06-01 | DG7: 2035-07-01 | DH7: 2035-08-01 | DI7: 2035-09-01 | DJ7: 2035-10-01 | DK7: 2035-11-01 | DL7: 2035-12-01 | DM7: 2036-01-01 | DN7: 2036-02-01 | DO7: 2036-03-01 | DP7: 2036-04-01 | DQ7: 2036-05-01 | DR7: 2036-06-01 | DS7: 2036-07-01 | DT7: 2036-08-01 | DU7: 2036-09-01 | DV7: 2036-10-01 | DW7: 2036-11-01 | DX7: 2036-12-01 | DY7: 2037-01-01 | DZ7: 2037-02-01 | EA7: 2037-03-01 | EB7: 2037-04-01 | EC7: 2037-05-01 | ED7: 2037-06-01 | EE7: 2037-07-01 | EF7: 2037-08-01 | EG7: 2037-09-01 | EH7: =EG8+1 -> 2037-10-01 | EI7: 2037-11-01 | EJ7: 2037-12-01 | EK7: 2038-01-01 | EL7: 2038-02-01 | EM7: 2038-03-01 | EN7: 2038-04-01 | EO7: 2038-05-01 | EP7: 2038-06-01 | EQ7: 2038-07-01 | ER7: 2038-08-01 | ES7: 2038-09-01 | ET7: 2038-10-01 | EU7: 2038-11-01 | EV7: 2038-12-01 | EW7: 2039-01-01 | EX7: 2039-02-01 | EY7: 2039-03-01 | EZ7: 2039-04-01 | FA7: 2039-05-01 | FB7: 2039-06-01 | FC7: 2039-07-01 | FD7: 2039-08-01 | FE7: 2039-09-01 | FF7: 2039-10-01 | FG7: 2039-11-01 | FH7: 2039-12-01 | FI7: 2040-01-01 | FJ7: 2040-02-01 | FK7: 2040-03-01 | FL7: 2040-04-01 | FM7: 2040-05-01 | FN7: 2040-06-01 | FO7: 2040-07-01 | FP7: 2040-08-01 | FQ7: 2040-09-01 | FR7: 2040-10-01 | FS7: 2040-11-01 | FT7: 2040-12-01 | FU7: 2041-01-01 | FV7: 2041-02-01 | FW7: 2041-03-01 | FX7: 2041-04-01 | FY7: 2041-05-01 | FZ7: 2041-06-01 | GA7: 2041-07-01 | GB7: 2041-08-01 | GC7: 2041-09-01 | GD7: 2041-10-01 | GE7: 2041-11-01 | GF7: 2041-12-01 | GG7: 2042-01-01 | GH7: 2042-02-01 | GI7: 2042-03-01 | GJ7: 2042-04-01 | GK7: 2042-05-01 | GL7: 2042-06-01 | GM7: 2042-07-01 | GN7: 2042-08-01 | GO7: 2042-09-01 | GP7: 2042-10-01 | GQ7: 2042-11-01 | GR7: 2042-12-01 | GS7: 2043-01-01 | GT7: =GS8+1 -> 2043-02-01 | GU7: 2043-03-01 | GV7: 2043-04-01 | GW7: 2043-05-01 | GX7: 2043-06-01 | GY7: 2043-07-01 | GZ7: 2043-08-01 | HA7: 2043-09-01 | HB7: 2043-10-01 | HC7: 2043-11-01 | HD7: 2043-12-01 | HE7: 2044-01-01 | HF7: 2044-02-01 | HG7: 2044-03-01 | HH7: 2044-04-01 | HI7: 2044-05-01 | HJ7: 2044-06-01 | HK7: 2044-07-01 | HL7: 2044-08-01 | HM7: 2044-09-01 | HN7: 2044-10-01 | HO7: 2044-11-01 | HP7: 2044-12-01 | HQ7: 2045-01-01 | HR7: 2045-02-01 | HS7: 2045-03-01 | HT7: 2045-04-01 | HU7: 2045-05-01 | HV7: 2045-06-01 | HW7: 2045-07-01 | HX7: 2045-08-01 | HY7: 2045-09-01 | HZ7: 2045-10-01 | IA7: 2045-11-01 | IB7: 2045-12-01 | IC7: 2046-01-01 | ID7: 2046-02-01 | IE7: 2046-03-01 | IF7: 2046-04-01 | IG7: 2046-05-01 | IH7: 2046-06-01 | II7: 2046-07-01 | IJ7: 2046-08-01 | IK7: 2046-09-01 | IL7: 2046-10-01 | IM7: 2046-11-01 | IN7: 2046-12-01 | IO7: 2047-01-01 | IP7: 2047-02-01 | IQ7: 2047-03-01 | IR7: 2047-04-01 | IS7: 2047-05-01 | IT7: 2047-06-01 | IU7: 2047-07-01 | IV7: 2047-08-01 | IW7: 2047-09-01 | IX7: 2047-10-01 | IY7: 2047-11-01 | IZ7: 2047-12-01 | JA7: 2048-01-01 | JB7: 2048-02-01 | JC7: 2048-03-01 | JD7: 2048-04-01 | JE7: 2048-05-01 | JF7: =JE8+1 -> 2048-06-01 | JG7: 2048-07-01 | JH7: 2048-08-01 | JI7: 2048-09-01 | JJ7: 2048-10-01 | JK7: 2048-11-01 | JL7: 2048-12-01 | JM7: 2049-01-01 | JN7: 2049-02-01 | JO7: 2049-03-01 | JP7: 2049-04-01 | JQ7: 2049-05-01 | JR7: 2049-06-01 | JS7: 2049-07-01 | JT7: 2049-08-01 | JU7: 2049-09-01 | JV7: 2049-10-01 | JW7: 2049-11-01 | JX7: 2049-12-01 | JY7: 2050-01-01 | JZ7: 2050-02-01 | KA7: 2050-03-01 | KB7: 2050-04-01 | KC7: 2050-05-01 | KD7: 2050-06-01 | KE7: 2050-07-01 | KF7: 2050-08-01 | KG7: 2050-09-01 | KH7: 2050-10-01 | KI7: 2050-11-01 | KJ7: 2050-12-01 | KK7: 2051-01-01 | KL7: 2051-02-01 | KM7: 2051-03-01 | KN7: 2051-04-01 | KO7: 2051-05-01 | KP7: 2051-06-01 | KQ7: 2051-07-01 | KR7: 2051-08-01 | KS7: 2051-09-01 | KT7: 2051-10-01 | KU7: 2051-11-01 | KV7: 2051-12-01
C8: End of the period | E8: Date | H8: =InputC!G6-1 -> 2026-12-31 | I8: =EOMONTH(I7,0) -> 2027-01-31 | J8: =EOMONTH(J7,0) -> 2027-02-28 | K8: 2027-03-31 | L8: 2027-04-30 | M8: 2027-05-31 | N8: 2027-06-30 | O8: 2027-07-31 | P8: 2027-08-31 | Q8: 2027-09-30 | R8: 2027-10-31 | S8: 2027-11-30 | T8: 2027-12-31 | U8: 2028-01-31 | V8: 2028-02-29 | W8: 2028-03-31 | X8: 2028-04-30 | Y8: 2028-05-31 | Z8: 2028-06-30 | AA8: 2028-07-31 | AB8: 2028-08-31 | AC8: 2028-09-30 | AD8: 2028-10-31 | AE8: 2028-11-30 | AF8: 2028-12-31 | AG8: 2029-01-31 | AH8: 2029-02-28 | AI8: 2029-03-31 | AJ8: 2029-04-30 | AK8: 2029-05-31 | AL8: 2029-06-30 | AM8: 2029-07-31 | AN8: 2029-08-31 | AO8: 2029-09-30 | AP8: 2029-10-31 | AQ8: 2029-11-30 | AR8: 2029-12-31 | AS8: 2030-01-31 | AT8: 2030-02-28 | AU8: 2030-03-31 | AV8: 2030-04-30 | AW8: 2030-05-31 | AX8: 2030-06-30 | AY8: 2030-07-31 | AZ8: 2030-08-31 | BA8: 2030-09-30 | BB8: 2030-10-31 | BC8: 2030-11-30 | BD8: 2030-12-31 | BE8: 2031-01-31 | BF8: 2031-02-28 | BG8: 2031-03-31 | BH8: 2031-04-30 | BI8: 2031-05-31 | BJ8: 2031-06-30 | BK8: 2031-07-31 | BL8: 2031-08-31 | BM8: 2031-09-30 | BN8: 2031-10-31 | BO8: 2031-11-30 | BP8: 2031-12-31 | BQ8: 2032-01-31 | BR8: 2032-02-29 | BS8: 2032-03-31 | BT8: 2032-04-30 | BU8: 2032-05-31 | BV8: =EOMONTH(BV7,0) -> 2032-06-30 | BW8: 2032-07-31 | BX8: 2032-08-31 | BY8: 2032-09-30 | BZ8: 2032-10-31 | CA8: 2032-11-30 | CB8: 2032-12-31 | CC8: 2033-01-31 | CD8: 2033-02-28 | CE8: 2033-03-31 | CF8: 2033-04-30 | CG8: 2033-05-31 | CH8: 2033-06-30 | CI8: 2033-07-31 | CJ8: 2033-08-31 | CK8: 2033-09-30 | CL8: 2033-10-31 | CM8: 2033-11-30 | CN8: 2033-12-31 | CO8: 2034-01-31 | CP8: 2034-02-28 | CQ8: 2034-03-31 | CR8: 2034-04-30 | CS8: 2034-05-31 | CT8: 2034-06-30 | CU8: 2034-07-31 | CV8: 2034-08-31 | CW8: 2034-09-30 | CX8: 2034-10-31 | CY8: 2034-11-30 | CZ8: 2034-12-31 | DA8: 2035-01-31 | DB8: 2035-02-28 | DC8: 2035-03-31 | DD8: 2035-04-30 | DE8: 2035-05-31 | DF8: 2035-06-30 | DG8: 2035-07-31 | DH8: 2035-08-31 | DI8: 2035-09-30 | DJ8: 2035-10-31 | DK8: 2035-11-30 | DL8: 2035-12-31 | DM8: 2036-01-31 | DN8: 2036-02-29 | DO8: 2036-03-31 | DP8: 2036-04-30 | DQ8: 2036-05-31 | DR8: 2036-06-30 | DS8: 2036-07-31 | DT8: 2036-08-31 | DU8: 2036-09-30 | DV8: 2036-10-31 | DW8: 2036-11-30 | DX8: 2036-12-31 | DY8: 2037-01-31 | DZ8: 2037-02-28 | EA8: 2037-03-31 | EB8: 2037-04-30 | EC8: 2037-05-31 | ED8: 2037-06-30 | EE8: 2037-07-31 | EF8: 2037-08-31 | EG8: 2037-09-30 | EH8: =EOMONTH(EH7,0) -> 2037-10-31 | EI8: 2037-11-30 | EJ8: 2037-12-31 | EK8: 2038-01-31 | EL8: 2038-02-28 | EM8: 2038-03-31 | EN8: 2038-04-30 | EO8: 2038-05-31 | EP8: 2038-06-30 | EQ8: 2038-07-31 | ER8: 2038-08-31 | ES8: 2038-09-30 | ET8: 2038-10-31 | EU8: 2038-11-30 | EV8: 2038-12-31 | EW8: 2039-01-31 | EX8: 2039-02-28 | EY8: 2039-03-31 | EZ8: 2039-04-30 | FA8: 2039-05-31 | FB8: 2039-06-30 | FC8: 2039-07-31 | FD8: 2039-08-31 | FE8: 2039-09-30 | FF8: 2039-10-31 | FG8: 2039-11-30 | FH8: 2039-12-31 | FI8: 2040-01-31 | FJ8: 2040-02-29 | FK8: 2040-03-31 | FL8: 2040-04-30 | FM8: 2040-05-31 | FN8: 2040-06-30 | FO8: 2040-07-31 | FP8: 2040-08-31 | FQ8: 2040-09-30 | FR8: 2040-10-31 | FS8: 2040-11-30 | FT8: 2040-12-31 | FU8: 2041-01-31 | FV8: 2041-02-28 | FW8: 2041-03-31 | FX8: 2041-04-30 | FY8: 2041-05-31 | FZ8: 2041-06-30 | GA8: 2041-07-31 | GB8: 2041-08-31 | GC8: 2041-09-30 | GD8: 2041-10-31 | GE8: 2041-11-30 | GF8: 2041-12-31 | GG8: 2042-01-31 | GH8: 2042-02-28 | GI8: 2042-03-31 | GJ8: 2042-04-30 | GK8: 2042-05-31 | GL8: 2042-06-30 | GM8: 2042-07-31 | GN8: 2042-08-31 | GO8: 2042-09-30 | GP8: 2042-10-31 | GQ8: 2042-11-30 | GR8: 2042-12-31 | GS8: 2043-01-31 | GT8: =EOMONTH(GT7,0) -> 2043-02-28 | GU8: 2043-03-31 | GV8: 2043-04-30 | GW8: 2043-05-31 | GX8: 2043-06-30 | GY8: 2043-07-31 | GZ8: 2043-08-31 | HA8: 2043-09-30 | HB8: 2043-10-31 | HC8: 2043-11-30 | HD8: 2043-12-31 | HE8: 2044-01-31 | HF8: 2044-02-29 | HG8: 2044-03-31 | HH8: 2044-04-30 | HI8: 2044-05-31 | HJ8: 2044-06-30 | HK8: 2044-07-31 | HL8: 2044-08-31 | HM8: 2044-09-30 | HN8: 2044-10-31 | HO8: 2044-11-30 | HP8: 2044-12-31 | HQ8: 2045-01-31 | HR8: 2045-02-28 | HS8: 2045-03-31 | HT8: 2045-04-30 | HU8: 2045-05-31 | HV8: 2045-06-30 | HW8: 2045-07-31 | HX8: 2045-08-31 | HY8: 2045-09-30 | HZ8: 2045-10-31 | IA8: 2045-11-30 | IB8: 2045-12-31 | IC8: 2046-01-31 | ID8: 2046-02-28 | IE8: 2046-03-31 | IF8: 2046-04-30 | IG8: 2046-05-31 | IH8: 2046-06-30 | II8: 2046-07-31 | IJ8: 2046-08-31 | IK8: 2046-09-30 | IL8: 2046-10-31 | IM8: 2046-11-30 | IN8: 2046-12-31 | IO8: 2047-01-31 | IP8: 2047-02-28 | IQ8: 2047-03-31 | IR8: 2047-04-30 | IS8: 2047-05-31 | IT8: 2047-06-30 | IU8: 2047-07-31 | IV8: 2047-08-31 | IW8: 2047-09-30 | IX8: 2047-10-31 | IY8: 2047-11-30 | IZ8: 2047-12-31 | JA8: 2048-01-31 | JB8: 2048-02-29 | JC8: 2048-03-31 | JD8: 2048-04-30 | JE8: 2048-05-31 | JF8: =EOMONTH(JF7,0) -> 2048-06-30 | JG8: 2048-07-31 | JH8: 2048-08-31 | JI8: 2048-09-30 | JJ8: 2048-10-31 | JK8: 2048-11-30 | JL8: 2048-12-31 | JM8: 2049-01-31 | JN8: 2049-02-28 | JO8: 2049-03-31 | JP8: 2049-04-30 | JQ8: 2049-05-31 | JR8: 2049-06-30 | JS8: 2049-07-31 | JT8: 2049-08-31 | JU8: 2049-09-30 | JV8: 2049-10-31 | JW8: 2049-11-30 | JX8: 2049-12-31 | JY8: 2050-01-31 | JZ8: 2050-02-28 | KA8: 2050-03-31 | KB8: 2050-04-30 | KC8: 2050-05-31 | KD8: 2050-06-30 | KE8: 2050-07-31 | KF8: 2050-08-31 | KG8: 2050-09-30 | KH8: 2050-10-31 | KI8: 2050-11-30 | KJ8: 2050-12-31 | KK8: 2051-01-31 | KL8: 2051-02-28 | KM8: 2051-03-31 | KN8: 2051-04-30 | KO8: 2051-05-31 | KP8: 2051-06-30 | KQ8: 2051-07-31 | KR8: 2051-08-31 | KS8: 2051-09-30 | KT8: 2051-10-31 | KU8: 2051-11-30 | KV8: 2051-12-31
C9: Operation period | E9: Flag | F9: =InputC!G8 -> 2029-01-01 | G9: =InputC!G10 -> 2054-01-31 | H9: =SUM(I9:KV9) -> 276 | I9: =(AND(I7>=$F$9,I8<$G$9))*1 -> 0 | J9: =(AND(J7>=$F$9,J8<$G$9))*1 -> 0 | K9: 0 | L9: 0 | M9: 0 | N9: 0 | O9: 0 | P9: 0 | Q9: 0 | R9: 0 | S9: 0 | T9: 0 | U9: 0 | V9: 0 | W9: 0 | X9: 0 | Y9: 0 | Z9: 0 | AA9: 0 | AB9: 0 | AC9: 0 | AD9: 0 | AE9: 0 | AF9: 0 | AG9: 1 | AH9: 1 | AI9: 1 | AJ9: 1 | AK9: 1 | AL9: 1 | AM9: 1 | AN9: 1 | AO9: 1 | AP9: 1 | AQ9: 1 | AR9: 1 | AS9: 1 | AT9: 1 | AU9: 1 | AV9: 1 | AW9: 1 | AX9: 1 | AY9: 1 | AZ9: 1 | BA9: 1 | BB9: 1 | BC9: 1 | BD9: 1 | BE9: 1 | BF9: 1 | BG9: 1 | BH9: 1 | BI9: 1 | BJ9: 1 | BK9: 1 | BL9: 1 | BM9: 1 | BN9: 1 | BO9: 1 | BP9: 1 | BQ9: 1 | BR9: 1 | BS9: 1 | BT9: 1 | BU9: 1 | BV9: =(AND(BV7>=$F$9,BV8<$G$9))*1 -> 1 | BW9: 1 | BX9: 1 | BY9: 1 | BZ9: 1 | CA9: 1 | CB9: 1 | CC9: 1 | CD9: 1 | CE9: 1 | CF9: 1 | CG9: 1 | CH9: 1 | CI9: 1 | CJ9: 1 | CK9: 1 | CL9: 1 | CM9: 1 | CN9: 1 | CO9: 1 | CP9: 1 | CQ9: 1 | CR9: 1 | CS9: 1 | CT9: 1 | CU9: 1 | CV9: 1 | CW9: 1 | CX9: 1 | CY9: 1 | CZ9: 1 | DA9: 1 | DB9: 1 | DC9: 1 | DD9: 1 | DE9: 1 | DF9: 1 | DG9: 1 | DH9: 1 | DI9: 1 | DJ9: 1 | DK9: 1 | DL9: 1 | DM9: 1 | DN9: 1 | DO9: 1 | DP9: 1 | DQ9: 1 | DR9: 1 | DS9: 1 | DT9: 1 | DU9: 1 | DV9: 1 | DW9: 1 | DX9: 1 | DY9: 1 | DZ9: 1 | EA9: 1 | EB9: 1 | EC9: 1 | ED9: 1 | EE9: 1 | EF9: 1 | EG9: 1 | EH9: =(AND(EH7>=$F$9,EH8<$G$9))*1 -> 1 | EI9: 1 | EJ9: 1 | EK9: 1 | EL9: 1 | EM9: 1 | EN9: 1 | EO9: 1 | EP9: 1 | EQ9: 1 | ER9: 1 | ES9: 1 | ET9: 1 | EU9: 1 | EV9: 1 | EW9: 1 | EX9: 1 | EY9: 1 | EZ9: 1 | FA9: 1 | FB9: 1 | FC9: 1 | FD9: 1 | FE9: 1 | FF9: 1 | FG9: 1 | FH9: 1 | FI9: 1 | FJ9: 1 | FK9: 1 | FL9: 1 | FM9: 1 | FN9: 1 | FO9: 1 | FP9: 1 | FQ9: 1 | FR9: 1 | FS9: 1 | FT9: 1 | FU9: 1 | FV9: 1 | FW9: 1 | FX9: 1 | FY9: 1 | FZ9: 1 | GA9: 1 | GB9: 1 | GC9: 1 | GD9: 1 | GE9: 1 | GF9: 1 | GG9: 1 | GH9: 1 | GI9: 1 | GJ9: 1 | GK9: 1 | GL9: 1 | GM9: 1 | GN9: 1 | GO9: 1 | GP9: 1 | GQ9: 1 | GR9: 1 | GS9: 1 | GT9: =(AND(GT7>=$F$9,GT8<$G$9))*1 -> 1 | GU9: 1 | GV9: 1 | GW9: 1 | GX9: 1 | GY9: 1 | GZ9: 1 | HA9: 1 | HB9: 1 | HC9: 1 | HD9: 1 | HE9: 1 | HF9: 1 | HG9: 1 | HH9: 1 | HI9: 1 | HJ9: 1 | HK9: 1 | HL9: 1 | HM9: 1 | HN9: 1 | HO9: 1 | HP9: 1 | HQ9: 1 | HR9: 1 | HS9: 1 | HT9: 1 | HU9: 1 | HV9: 1 | HW9: 1 | HX9: 1 | HY9: 1 | HZ9: 1 | IA9: 1 | IB9: 1 | IC9: 1 | ID9: 1 | IE9: 1 | IF9: 1 | IG9: 1 | IH9: 1 | II9: 1 | IJ9: 1 | IK9: 1 | IL9: 1 | IM9: 1 | IN9: 1 | IO9: 1 | IP9: 1 | IQ9: 1 | IR9: 1 | IS9: 1 | IT9: 1 | IU9: 1 | IV9: 1 | IW9: 1 | IX9: 1 | IY9: 1 | IZ9: 1 | JA9: 1 | JB9: 1 | JC9: 1 | JD9: 1 | JE9: 1 | JF9: =(AND(JF7>=$F$9,JF8<$G$9))*1 -> 1 | JG9: 1 | JH9: 1 | JI9: 1 | JJ9: 1 | JK9: 1 | JL9: 1 | JM9: 1 | JN9: 1 | JO9: 1 | JP9: 1 | JQ9: 1 | JR9: 1 | JS9: 1 | JT9: 1 | JU9: 1 | JV9: 1 | JW9: 1 | JX9: 1 | JY9: 1 | JZ9: 1 | KA9: 1 | KB9: 1 | KC9: 1 | KD9: 1 | KE9: 1 | KF9: 1 | KG9: 1 | KH9: 1 | KI9: 1 | KJ9: 1 | KK9: 1 | KL9: 1 | KM9: 1 | KN9: 1 | KO9: 1 | KP9: 1 | KQ9: 1 | KR9: 1 | KS9: 1 | KT9: 1 | KU9: 1 | KV9: 1
C10: Year | E10: Year | I10: =YEAR(I8) -> 2027 | J10: =YEAR(J8) -> 2027 | K10: 2027 | L10: 2027 | M10: 2027 | N10: 2027 | O10: 2027 | P10: 2027 | Q10: 2027 | R10: 2027 | S10: 2027 | T10: 2027 | U10: 2028 | V10: 2028 | W10: 2028 | X10: 2028 | Y10: 2028 | Z10: 2028 | AA10: 2028 | AB10: 2028 | AC10: 2028 | AD10: 2028 | AE10: 2028 | AF10: 2028 | AG10: 2029 | AH10: 2029 | AI10: 2029 | AJ10: 2029 | AK10: 2029 | AL10: 2029 | AM10: 2029 | AN10: 2029 | AO10: 2029 | AP10: 2029 | AQ10: 2029 | AR10: 2029 | AS10: 2030 | AT10: 2030 | AU10: 2030 | AV10: 2030 | AW10: 2030 | AX10: 2030 | AY10: 2030 | AZ10: 2030 | BA10: 2030 | BB10: 2030 | BC10: 2030 | BD10: 2030 | BE10: 2031 | BF10: 2031 | BG10: 2031 | BH10: 2031 | BI10: 2031 | BJ10: 2031 | BK10: 2031 | BL10: 2031 | BM10: 2031 | BN10: 2031 | BO10: 2031 | BP10: 2031 | BQ10: 2032 | BR10: 2032 | BS10: 2032 | BT10: 2032 | BU10: 2032 | BV10: =YEAR(BV8) -> 2032 | BW10: 2032 | BX10: 2032 | BY10: 2032 | BZ10: 2032 | CA10: 2032 | CB10: 2032 | CC10: 2033 | CD10: 2033 | CE10: 2033 | CF10: 2033 | CG10: 2033 | CH10: 2033 | CI10: 2033 | CJ10: 2033 | CK10: 2033 | CL10: 2033 | CM10: 2033 | CN10: 2033 | CO10: 2034 | CP10: 2034 | CQ10: 2034 | CR10: 2034 | CS10: 2034 | CT10: 2034 | CU10: 2034 | CV10: 2034 | CW10: 2034 | CX10: 2034 | CY10: 2034 | CZ10: 2034 | DA10: 2035 | DB10: 2035 | DC10: 2035 | DD10: 2035 | DE10: 2035 | DF10: 2035 | DG10: 2035 | DH10: 2035 | DI10: 2035 | DJ10: 2035 | DK10: 2035 | DL10: 2035 | DM10: 2036 | DN10: 2036 | DO10: 2036 | DP10: 2036 | DQ10: 2036 | DR10: 2036 | DS10: 2036 | DT10: 2036 | DU10: 2036 | DV10: 2036 | DW10: 2036 | DX10: 2036 | DY10: 2037 | DZ10: 2037 | EA10: 2037 | EB10: 2037 | EC10: 2037 | ED10: 2037 | EE10: 2037 | EF10: 2037 | EG10: 2037 | EH10: =YEAR(EH8) -> 2037 | EI10: 2037 | EJ10: 2037 | EK10: 2038 | EL10: 2038 | EM10: 2038 | EN10: 2038 | EO10: 2038 | EP10: 2038 | EQ10: 2038 | ER10: 2038 | ES10: 2038 | ET10: 2038 | EU10: 2038 | EV10: 2038 | EW10: 2039 | EX10: 2039 | EY10: 2039 | EZ10: 2039 | FA10: 2039 | FB10: 2039 | FC10: 2039 | FD10: 2039 | FE10: 2039 | FF10: 2039 | FG10: 2039 | FH10: 2039 | FI10: 2040 | FJ10: 2040 | FK10: 2040 | FL10: 2040 | FM10: 2040 | FN10: 2040 | FO10: 2040 | FP10: 2040 | FQ10: 2040 | FR10: 2040 | FS10: 2040 | FT10: 2040 | FU10: 2041 | FV10: 2041 | FW10: 2041 | FX10: 2041 | FY10: 2041 | FZ10: 2041 | GA10: 2041 | GB10: 2041 | GC10: 2041 | GD10: 2041 | GE10: 2041 | GF10: 2041 | GG10: 2042 | GH10: 2042 | GI10: 2042 | GJ10: 2042 | GK10: 2042 | GL10: 2042 | GM10: 2042 | GN10: 2042 | GO10: 2042 | GP10: 2042 | GQ10: 2042 | GR10: 2042 | GS10: 2043 | GT10: =YEAR(GT8) -> 2043 | GU10: 2043 | GV10: 2043 | GW10: 2043 | GX10: 2043 | GY10: 2043 | GZ10: 2043 | HA10: 2043 | HB10: 2043 | HC10: 2043 | HD10: 2043 | HE10: 2044 | HF10: 2044 | HG10: 2044 | HH10: 2044 | HI10: 2044 | HJ10: 2044 | HK10: 2044 | HL10: 2044 | HM10: 2044 | HN10: 2044 | HO10: 2044 | HP10: 2044 | HQ10: 2045 | HR10: 2045 | HS10: 2045 | HT10: 2045 | HU10: 2045 | HV10: 2045 | HW10: 2045 | HX10: 2045 | HY10: 2045 | HZ10: 2045 | IA10: 2045 | IB10: 2045 | IC10: 2046 | ID10: 2046 | IE10: 2046 | IF10: 2046 | IG10: 2046 | IH10: 2046 | II10: 2046 | IJ10: 2046 | IK10: 2046 | IL10: 2046 | IM10: 2046 | IN10: 2046 | IO10: 2047 | IP10: 2047 | IQ10: 2047 | IR10: 2047 | IS10: 2047 | IT10: 2047 | IU10: 2047 | IV10: 2047 | IW10: 2047 | IX10: 2047 | IY10: 2047 | IZ10: 2047 | JA10: 2048 | JB10: 2048 | JC10: 2048 | JD10: 2048 | JE10: 2048 | JF10: =YEAR(JF8) -> 2048 | JG10: 2048 | JH10: 2048 | JI10: 2048 | JJ10: 2048 | JK10: 2048 | JL10: 2048 | JM10: 2049 | JN10: 2049 | JO10: 2049 | JP10: 2049 | JQ10: 2049 | JR10: 2049 | JS10: 2049 | JT10: 2049 | JU10: 2049 | JV10: 2049 | JW10: 2049 | JX10: 2049 | JY10: 2050 | JZ10: 2050 | KA10: 2050 | KB10: 2050 | KC10: 2050 | KD10: 2050 | KE10: 2050 | KF10: 2050 | KG10: 2050 | KH10: 2050 | KI10: 2050 | KJ10: 2050 | KK10: 2051 | KL10: 2051 | KM10: 2051 | KN10: 2051 | KO10: 2051 | KP10: 2051 | KQ10: 2051 | KR10: 2051 | KS10: 2051 | KT10: 2051 | KU10: 2051 | KV10: 2051
B12: Operations
C14: MW of data center | E14: MW IT | F14: =InputC!G14 -> 40 | I14: =$F$14*I9 -> 0 | J14: 0 | K14: 0 | L14: 0 | M14: 0 | N14: 0 | O14: 0 | P14: 0 | Q14: 0 | R14: 0 | S14: 0 | T14: 0 | U14: 0 | V14: 0 | W14: 0 | X14: 0 | Y14: 0 | Z14: 0 | AA14: 0 | AB14: 0 | AC14: 0 | AD14: 0 | AE14: 0 | AF14: 0 | AG14: 40 | AH14: 40 | AI14: 40 | AJ14: 40 | AK14: 40 | AL14: 40 | AM14: 40 | AN14: 40 | AO14: 40 | AP14: 40 | AQ14: 40 | AR14: 40 | AS14: 40 | AT14: 40 | AU14: 40 | AV14: 40 | AW14: 40 | AX14: 40 | AY14: 40 | AZ14: 40 | BA14: 40 | BB14: 40 | BC14: 40 | BD14: 40 | BE14: 40 | BF14: 40 | BG14: 40 | BH14: 40 | BI14: 40 | BJ14: 40 | BK14: 40 | BL14: 40 | BM14: 40 | BN14: 40 | BO14: 40 | BP14: 40 | BQ14: 40 | BR14: 40 | BS14: 40 | BT14: 40 | BU14: =$F$14*BU9 -> 40 | BV14: 40 | BW14: 40 | BX14: 40 | BY14: 40 | BZ14: 40 | CA14: 40 | CB14: 40 | CC14: 40 | CD14: 40 | CE14: 40 | CF14: 40 | CG14: 40 | CH14: 40 | CI14: 40 | CJ14: 40 | CK14: 40 | CL14: 40 | CM14: 40 | CN14: 40 | CO14: 40 | CP14: 40 | CQ14: 40 | CR14: 40 | CS14: 40 | CT14: 40 | CU14: 40 | CV14: 40 | CW14: 40 | CX14: 40 | CY14: 40 | CZ14: 40 | DA14: 40 | DB14: 40 | DC14: 40 | DD14: 40 | DE14: 40 | DF14: 40 | DG14: 40 | DH14: 40 | DI14: 40 | DJ14: 40 | DK14: 40 | DL14: 40 | DM14: 40 | DN14: 40 | DO14: 40 | DP14: 40 | DQ14: 40 | DR14: 40 | DS14: 40 | DT14: 40 | DU14: 40 | DV14: 40 | DW14: 40 | DX14: 40 | DY14: 40 | DZ14: 40 | EA14: 40 | EB14: 40 | EC14: 40 | ED14: 40 | EE14: 40 | EF14: 40 | EG14: =$F$14*EG9 -> 40 | EH14: 40 | EI14: 40 | EJ14: 40 | EK14: 40 | EL14: 40 | EM14: 40 | EN14: 40 | EO14: 40 | EP14: 40 | EQ14: 40 | ER14: 40 | ES14: 40 | ET14: 40 | EU14: 40 | EV14: 40 | EW14: 40 | EX14: 40 | EY14: 40 | EZ14: 40 | FA14: 40 | FB14: 40 | FC14: 40 | FD14: 40 | FE14: 40 | FF14: 40 | FG14: 40 | FH14: 40 | FI14: 40 | FJ14: 40 | FK14: 40 | FL14: 40 | FM14: 40 | FN14: 40 | FO14: 40 | FP14: 40 | FQ14: 40 | FR14: 40 | FS14: 40 | FT14: 40 | FU14: 40 | FV14: 40 | FW14: 40 | FX14: 40 | FY14: 40 | FZ14: 40 | GA14: 40 | GB14: 40 | GC14: 40 | GD14: 40 | GE14: 40 | GF14: 40 | GG14: 40 | GH14: 40 | GI14: 40 | GJ14: 40 | GK14: 40 | GL14: 40 | GM14: 40 | GN14: 40 | GO14: 40 | GP14: 40 | GQ14: 40 | GR14: 40 | GS14: =$F$14*GS9 -> 40 | GT14: 40 | GU14: 40 | GV14: 40 | GW14: 40 | GX14: 40 | GY14: 40 | GZ14: 40 | HA14: 40 | HB14: 40 | HC14: 40 | HD14: 40 | HE14: 40 | HF14: 40 | HG14: 40 | HH14: 40 | HI14: 40 | HJ14: 40 | HK14: 40 | HL14: 40 | HM14: 40 | HN14: 40 | HO14: 40 | HP14: 40 | HQ14: 40 | HR14: 40 | HS14: 40 | HT14: 40 | HU14: 40 | HV14: 40 | HW14: 40 | HX14: 40 | HY14: 40 | HZ14: 40 | IA14: 40 | IB14: 40 | IC14: 40 | ID14: 40 | IE14: 40 | IF14: 40 | IG14: 40 | IH14: 40 | II14: 40 | IJ14: 40 | IK14: 40 | IL14: 40 | IM14: 40 | IN14: 40 | IO14: 40 | IP14: 40 | IQ14: 40 | IR14: 40 | IS14: 40 | IT14: 40 | IU14: 40 | IV14: 40 | IW14: 40 | IX14: 40 | IY14: 40 | IZ14: 40 | JA14: 40 | JB14: 40 | JC14: 40 | JD14: 40 | JE14: =$F$14*JE9 -> 40 | JF14: 40 | JG14: 40 | JH14: 40 | JI14: 40 | JJ14: 40 | JK14: 40 | JL14: 40 | JM14: 40 | JN14: 40 | JO14: 40 | JP14: 40 | JQ14: 40 | JR14: 40 | JS14: 40 | JT14: 40 | JU14: 40 | JV14: 40 | JW14: 40 | JX14: 40 | JY14: 40 | JZ14: 40 | KA14: 40 | KB14: 40 | KC14: 40 | KD14: 40 | KE14: 40 | KF14: 40 | KG14: 40 | KH14: 40 | KI14: 40 | KJ14: 40 | KK14: 40 | KL14: 40 | KM14: 40 | KN14: 40 | KO14: 40 | KP14: 40 | KQ14: 40 | KR14: 40 | KS14: 40 | KT14: 40 | KU14: 40 | KV14: 40
C15: Number of days | E15: Days | I15: =I8-I7+1 -> 31 | J15: =J8-J7+1 -> 28 | K15: 31 | L15: 30 | M15: 31 | N15: 30 | O15: 31 | P15: 31 | Q15: 30 | R15: 31 | S15: 30 | T15: 31 | U15: 31 | V15: 29 | W15: 31 | X15: 30 | Y15: 31 | Z15: 30 | AA15: 31 | AB15: 31 | AC15: 30 | AD15: 31 | AE15: 30 | AF15: 31 | AG15: 31 | AH15: 28 | AI15: 31 | AJ15: 30 | AK15: 31 | AL15: 30 | AM15: 31 | AN15: 31 | AO15: 30 | AP15: 31 | AQ15: 30 | AR15: 31 | AS15: 31 | AT15: 28 | AU15: 31 | AV15: 30 | AW15: 31 | AX15: 30 | AY15: 31 | AZ15: 31 | BA15: 30 | BB15: 31 | BC15: 30 | BD15: 31 | BE15: 31 | BF15: 28 | BG15: 31 | BH15: 30 | BI15: 31 | BJ15: 30 | BK15: 31 | BL15: 31 | BM15: 30 | BN15: 31 | BO15: 30 | BP15: 31 | BQ15: 31 | BR15: 29 | BS15: 31 | BT15: 30 | BU15: 31 | BV15: =BV8-BV7+1 -> 30 | BW15: 31 | BX15: 31 | BY15: 30 | BZ15: 31 | CA15: 30 | CB15: 31 | CC15: 31 | CD15: 28 | CE15: 31 | CF15: 30 | CG15: 31 | CH15: 30 | CI15: 31 | CJ15: 31 | CK15: 30 | CL15: 31 | CM15: 30 | CN15: 31 | CO15: 31 | CP15: 28 | CQ15: 31 | CR15: 30 | CS15: 31 | CT15: 30 | CU15: 31 | CV15: 31 | CW15: 30 | CX15: 31 | CY15: 30 | CZ15: 31 | DA15: 31 | DB15: 28 | DC15: 31 | DD15: 30 | DE15: 31 | DF15: 30 | DG15: 31 | DH15: 31 | DI15: 30 | DJ15: 31 | DK15: 30 | DL15: 31 | DM15: 31 | DN15: 29 | DO15: 31 | DP15: 30 | DQ15: 31 | DR15: 30 | DS15: 31 | DT15: 31 | DU15: 30 | DV15: 31 | DW15: 30 | DX15: 31 | DY15: 31 | DZ15: 28 | EA15: 31 | EB15: 30 | EC15: 31 | ED15: 30 | EE15: 31 | EF15: 31 | EG15: 30 | EH15: =EH8-EH7+1 -> 31 | EI15: 30 | EJ15: 31 | EK15: 31 | EL15: 28 | EM15: 31 | EN15: 30 | EO15: 31 | EP15: 30 | EQ15: 31 | ER15: 31 | ES15: 30 | ET15: 31 | EU15: 30 | EV15: 31 | EW15: 31 | EX15: 28 | EY15: 31 | EZ15: 30 | FA15: 31 | FB15: 30 | FC15: 31 | FD15: 31 | FE15: 30 | FF15: 31 | FG15: 30 | FH15: 31 | FI15: 31 | FJ15: 29 | FK15: 31 | FL15: 30 | FM15: 31 | FN15: 30 | FO15: 31 | FP15: 31 | FQ15: 30 | FR15: 31 | FS15: 30 | FT15: 31 | FU15: 31 | FV15: 28 | FW15: 31 | FX15: 30 | FY15: 31 | FZ15: 30 | GA15: 31 | GB15: 31 | GC15: 30 | GD15: 31 | GE15: 30 | GF15: 31 | GG15: 31 | GH15: 28 | GI15: 31 | GJ15: 30 | GK15: 31 | GL15: 30 | GM15: 31 | GN15: 31 | GO15: 30 | GP15: 31 | GQ15: 30 | GR15: 31 | GS15: 31 | GT15: =GT8-GT7+1 -> 28 | GU15: 31 | GV15: 30 | GW15: 31 | GX15: 30 | GY15: 31 | GZ15: 31 | HA15: 30 | HB15: 31 | HC15: 30 | HD15: 31 | HE15: 31 | HF15: 29 | HG15: 31 | HH15: 30 | HI15: 31 | HJ15: 30 | HK15: 31 | HL15: 31 | HM15: 30 | HN15: 31 | HO15: 30 | HP15: 31 | HQ15: 31 | HR15: 28 | HS15: 31 | HT15: 30 | HU15: 31 | HV15: 30 | HW15: 31 | HX15: 31 | HY15: 30 | HZ15: 31 | IA15: 30 | IB15: 31 | IC15: 31 | ID15: 28 | IE15: 31 | IF15: 30 | IG15: 31 | IH15: 30 | II15: 31 | IJ15: 31 | IK15: 30 | IL15: 31 | IM15: 30 | IN15: 31 | IO15: 31 | IP15: 28 | IQ15: 31 | IR15: 30 | IS15: 31 | IT15: 30 | IU15: 31 | IV15: 31 | IW15: 30 | IX15: 31 | IY15: 30 | IZ15: 31 | JA15: 31 | JB15: 29 | JC15: 31 | JD15: 30 | JE15: 31 | JF15: =JF8-JF7+1 -> 30 | JG15: 31 | JH15: 31 | JI15: 30 | JJ15: 31 | JK15: 30 | JL15: 31 | JM15: 31 | JN15: 28 | JO15: 31 | JP15: 30 | JQ15: 31 | JR15: 30 | JS15: 31 | JT15: 31 | JU15: 30 | JV15: 31 | JW15: 30 | JX15: 31 | JY15: 31 | JZ15: 28 | KA15: 31 | KB15: 30 | KC15: 31 | KD15: 30 | KE15: 31 | KF15: 31 | KG15: 30 | KH15: 31 | KI15: 30 | KJ15: 31 | KK15: 31 | KL15: 28 | KM15: 31 | KN15: 30 | KO15: 31 | KP15: 30 | KQ15: 31 | KR15: 31 | KS15: 30 | KT15: 31 | KU15: 30 | KV15: 31
C16: Number of hours | E16: Hours | I16: =I15*24 -> 744 | J16: =J15*24 -> 672 | K16: 744 | L16: 720 | M16: 744 | N16: 720 | O16: 744 | P16: 744 | Q16: 720 | R16: 744 | S16: 720 | T16: 744 | U16: 744 | V16: 696 | W16: 744 | X16: 720 | Y16: 744 | Z16: 720 | AA16: 744 | AB16: 744 | AC16: 720 | AD16: 744 | AE16: 720 | AF16: 744 | AG16: 744 | AH16: 672 | AI16: 744 | AJ16: 720 | AK16: 744 | AL16: 720 | AM16: 744 | AN16: 744 | AO16: 720 | AP16: 744 | AQ16: 720 | AR16: 744 | AS16: 744 | AT16: 672 | AU16: 744 | AV16: 720 | AW16: 744 | AX16: 720 | AY16: 744 | AZ16: 744 | BA16: 720 | BB16: 744 | BC16: 720 | BD16: 744 | BE16: 744 | BF16: 672 | BG16: 744 | BH16: 720 | BI16: 744 | BJ16: 720 | BK16: 744 | BL16: 744 | BM16: 720 | BN16: 744 | BO16: 720 | BP16: 744 | BQ16: 744 | BR16: 696 | BS16: 744 | BT16: 720 | BU16: 744 | BV16: =BV15*24 -> 720 | BW16: 744 | BX16: 744 | BY16: 720 | BZ16: 744 | CA16: 720 | CB16: 744 | CC16: 744 | CD16: 672 | CE16: 744 | CF16: 720 | CG16: 744 | CH16: 720 | CI16: 744 | CJ16: 744 | CK16: 720 | CL16: 744 | CM16: 720 | CN16: 744 | CO16: 744 | CP16: 672 | CQ16: 744 | CR16: 720 | CS16: 744 | CT16: 720 | CU16: 744 | CV16: 744 | CW16: 720 | CX16: 744 | CY16: 720 | CZ16: 744 | DA16: 744 | DB16: 672 | DC16: 744 | DD16: 720 | DE16: 744 | DF16: 720 | DG16: 744 | DH16: 744 | DI16: 720 | DJ16: 744 | DK16: 720 | DL16: 744 | DM16: 744 | DN16: 696 | DO16: 744 | DP16: 720 | DQ16: 744 | DR16: 720 | DS16: 744 | DT16: 744 | DU16: 720 | DV16: 744 | DW16: 720 | DX16: 744 | DY16: 744 | DZ16: 672 | EA16: 744 | EB16: 720 | EC16: 744 | ED16: 720 | EE16: 744 | EF16: 744 | EG16: 720 | EH16: =EH15*24 -> 744 | EI16: 720 | EJ16: 744 | EK16: 744 | EL16: 672 | EM16: 744 | EN16: 720 | EO16: 744 | EP16: 720 | EQ16: 744 | ER16: 744 | ES16: 720 | ET16: 744 | EU16: 720 | EV16: 744 | EW16: 744 | EX16: 672 | EY16: 744 | EZ16: 720 | FA16: 744 | FB16: 720 | FC16: 744 | FD16: 744 | FE16: 720 | FF16: 744 | FG16: 720 | FH16: 744 | FI16: 744 | FJ16: 696 | FK16: 744 | FL16: 720 | FM16: 744 | FN16: 720 | FO16: 744 | FP16: 744 | FQ16: 720 | FR16: 744 | FS16: 720 | FT16: 744 | FU16: 744 | FV16: 672 | FW16: 744 | FX16: 720 | FY16: 744 | FZ16: 720 | GA16: 744 | GB16: 744 | GC16: 720 | GD16: 744 | GE16: 720 | GF16: 744 | GG16: 744 | GH16: 672 | GI16: 744 | GJ16: 720 | GK16: 744 | GL16: 720 | GM16: 744 | GN16: 744 | GO16: 720 | GP16: 744 | GQ16: 720 | GR16: 744 | GS16: 744 | GT16: =GT15*24 -> 672 | GU16: 744 | GV16: 720 | GW16: 744 | GX16: 720 | GY16: 744 | GZ16: 744 | HA16: 720 | HB16: 744 | HC16: 720 | HD16: 744 | HE16: 744 | HF16: 696 | HG16: 744 | HH16: 720 | HI16: 744 | HJ16: 720 | HK16: 744 | HL16: 744 | HM16: 720 | HN16: 744 | HO16: 720 | HP16: 744 | HQ16: 744 | HR16: 672 | HS16: 744 | HT16: 720 | HU16: 744 | HV16: 720 | HW16: 744 | HX16: 744 | HY16: 720 | HZ16: 744 | IA16: 720 | IB16: 744 | IC16: 744 | ID16: 672 | IE16: 744 | IF16: 720 | IG16: 744 | IH16: 720 | II16: 744 | IJ16: 744 | IK16: 720 | IL16: 744 | IM16: 720 | IN16: 744 | IO16: 744 | IP16: 672 | IQ16: 744 | IR16: 720 | IS16: 744 | IT16: 720 | IU16: 744 | IV16: 744 | IW16: 720 | IX16: 744 | IY16: 720 | IZ16: 744 | JA16: 744 | JB16: 696 | JC16: 744 | JD16: 720 | JE16: 744 | JF16: =JF15*24 -> 720 | JG16: 744 | JH16: 744 | JI16: 720 | JJ16: 744 | JK16: 720 | JL16: 744 | JM16: 744 | JN16: 672 | JO16: 744 | JP16: 720 | JQ16: 744 | JR16: 720 | JS16: 744 | JT16: 744 | JU16: 720 | JV16: 744 | JW16: 720 | JX16: 744 | JY16: 744 | JZ16: 672 | KA16: 744 | KB16: 720 | KC16: 744 | KD16: 720 | KE16: 744 | KF16: 744 | KG16: 720 | KH16: 744 | KI16: 720 | KJ16: 744 | KK16: 744 | KL16: 672 | KM16: 744 | KN16: 720 | KO16: 744 | KP16: 720 | KQ16: 744 | KR16: 744 | KS16: 720 | KT16: 744 | KU16: 720 | KV16: 744
C17: MWh of IT Potential | E17: MWh | I17: =I16*I14 -> 0 | J17: 0 | K17: 0 | L17: 0 | M17: 0 | N17: 0 | O17: 0 | P17: 0 | Q17: 0 | R17: 0 | S17: 0 | T17: 0 | U17: 0 | V17: 0 | W17: 0 | X17: 0 | Y17: 0 | Z17: 0 | AA17: 0 | AB17: 0 | AC17: 0 | AD17: 0 | AE17: 0 | AF17: 0 | AG17: 29760 | AH17: 26880 | AI17: 29760 | AJ17: 28800 | AK17: 29760 | AL17: 28800 | AM17: 29760 | AN17: 29760 | AO17: 28800 | AP17: 29760 | AQ17: 28800 | AR17: 29760 | AS17: 29760 | AT17: 26880 | AU17: 29760 | AV17: 28800 | AW17: 29760 | AX17: 28800 | AY17: 29760 | AZ17: 29760 | BA17: 28800 | BB17: 29760 | BC17: 28800 | BD17: 29760 | BE17: 29760 | BF17: 26880 | BG17: 29760 | BH17: 28800 | BI17: 29760 | BJ17: 28800 | BK17: 29760 | BL17: 29760 | BM17: 28800 | BN17: 29760 | BO17: 28800 | BP17: 29760 | BQ17: 29760 | BR17: 27840 | BS17: 29760 | BT17: 28800 | BU17: =BU16*BU14 -> 29760 | BV17: 28800 | BW17: 29760 | BX17: 29760 | BY17: 28800 | BZ17: 29760 | CA17: 28800 | CB17: 29760 | CC17: 29760 | CD17: 26880 | CE17: 29760 | CF17: 28800 | CG17: 29760 | CH17: 28800 | CI17: 29760 | CJ17: 29760 | CK17: 28800 | CL17: 29760 | CM17: 28800 | CN17: 29760 | CO17: 29760 | CP17: 26880 | CQ17: 29760 | CR17: 28800 | CS17: 29760 | CT17: 28800 | CU17: 29760 | CV17: 29760 | CW17: 28800 | CX17: 29760 | CY17: 28800 | CZ17: 29760 | DA17: 29760 | DB17: 26880 | DC17: 29760 | DD17: 28800 | DE17: 29760 | DF17: 28800 | DG17: 29760 | DH17: 29760 | DI17: 28800 | DJ17: 29760 | DK17: 28800 | DL17: 29760 | DM17: 29760 | DN17: 27840 | DO17: 29760 | DP17: 28800 | DQ17: 29760 | DR17: 28800 | DS17: 29760 | DT17: 29760 | DU17: 28800 | DV17: 29760 | DW17: 28800 | DX17: 29760 | DY17: 29760 | DZ17: 26880 | EA17: 29760 | EB17: 28800 | EC17: 29760 | ED17: 28800 | EE17: 29760 | EF17: 29760 | EG17: =EG16*EG14 -> 28800 | EH17: 29760 | EI17: 28800 | EJ17: 29760 | EK17: 29760 | EL17: 26880 | EM17: 29760 | EN17: 28800 | EO17: 29760 | EP17: 28800 | EQ17: 29760 | ER17: 29760 | ES17: 28800 | ET17: 29760 | EU17: 28800 | EV17: 29760 | EW17: 29760 | EX17: 26880 | EY17: 29760 | EZ17: 28800 | FA17: 29760 | FB17: 28800 | FC17: 29760 | FD17: 29760 | FE17: 28800 | FF17: 29760 | FG17: 28800 | FH17: 29760 | FI17: 29760 | FJ17: 27840 | FK17: 29760 | FL17: 28800 | FM17: 29760 | FN17: 28800 | FO17: 29760 | FP17: 29760 | FQ17: 28800 | FR17: 29760 | FS17: 28800 | FT17: 29760 | FU17: 29760 | FV17: 26880 | FW17: 29760 | FX17: 28800 | FY17: 29760 | FZ17: 28800 | GA17: 29760 | GB17: 29760 | GC17: 28800 | GD17: 29760 | GE17: 28800 | GF17: 29760 | GG17: 29760 | GH17: 26880 | GI17: 29760 | GJ17: 28800 | GK17: 29760 | GL17: 28800 | GM17: 29760 | GN17: 29760 | GO17: 28800 | GP17: 29760 | GQ17: 28800 | GR17: 29760 | GS17: =GS16*GS14 -> 29760 | GT17: 26880 | GU17: 29760 | GV17: 28800 | GW17: 29760 | GX17: 28800 | GY17: 29760 | GZ17: 29760 | HA17: 28800 | HB17: 29760 | HC17: 28800 | HD17: 29760 | HE17: 29760 | HF17: 27840 | HG17: 29760 | HH17: 28800 | HI17: 29760 | HJ17: 28800 | HK17: 29760 | HL17: 29760 | HM17: 28800 | HN17: 29760 | HO17: 28800 | HP17: 29760 | HQ17: 29760 | HR17: 26880 | HS17: 29760 | HT17: 28800 | HU17: 29760 | HV17: 28800 | HW17: 29760 | HX17: 29760 | HY17: 28800 | HZ17: 29760 | IA17: 28800 | IB17: 29760 | IC17: 29760 | ID17: 26880 | IE17: 29760 | IF17: 28800 | IG17: 29760 | IH17: 28800 | II17: 29760 | IJ17: 29760 | IK17: 28800 | IL17: 29760 | IM17: 28800 | IN17: 29760 | IO17: 29760 | IP17: 26880 | IQ17: 29760 | IR17: 28800 | IS17: 29760 | IT17: 28800 | IU17: 29760 | IV17: 29760 | IW17: 28800 | IX17: 29760 | IY17: 28800 | IZ17: 29760 | JA17: 29760 | JB17: 27840 | JC17: 29760 | JD17: 28800 | JE17: =JE16*JE14 -> 29760 | JF17: 28800 | JG17: 29760 | JH17: 29760 | JI17: 28800 | JJ17: 29760 | JK17: 28800 | JL17: 29760 | JM17: 29760 | JN17: 26880 | JO17: 29760 | JP17: 28800 | JQ17: 29760 | JR17: 28800 | JS17: 29760 | JT17: 29760 | JU17: 28800 | JV17: 29760 | JW17: 28800 | JX17: 29760 | JY17: 29760 | JZ17: 26880 | KA17: 29760 | KB17: 28800 | KC17: 29760 | KD17: 28800 | KE17: 29760 | KF17: 29760 | KG17: 28800 | KH17: 29760 | KI17: 28800 | KJ17: 29760 | KK17: 29760 | KL17: 26880 | KM17: 29760 | KN17: 28800 | KO17: 29760 | KP17: 28800 | KQ17: 29760 | KR17: 29760 | KS17: 28800 | KT17: 29760 | KU17: 28800 | KV17: 29760
C18: MWh of IT sold | E18: MWh IT | F18: =InputC!G25 -> 0.9 | H18: =SUM(I18:XFD18) -> 7257600 | I18: =I17*$F$18 -> 0 | J18: =J17*$F$18 -> 0 | K18: 0 | L18: 0 | M18: 0 | N18: 0 | O18: 0 | P18: 0 | Q18: 0 | R18: 0 | S18: 0 | T18: 0 | U18: 0 | V18: 0 | W18: 0 | X18: 0 | Y18: 0 | Z18: 0 | AA18: 0 | AB18: 0 | AC18: 0 | AD18: 0 | AE18: 0 | AF18: 0 | AG18: 26784 | AH18: 24192 | AI18: 26784 | AJ18: 25920 | AK18: 26784 | AL18: 25920 | AM18: 26784 | AN18: 26784 | AO18: 25920 | AP18: 26784 | AQ18: 25920 | AR18: 26784 | AS18: 26784 | AT18: 24192 | AU18: 26784 | AV18: 25920 | AW18: 26784 | AX18: 25920 | AY18: 26784 | AZ18: 26784 | BA18: 25920 | BB18: 26784 | BC18: 25920 | BD18: 26784 | BE18: 26784 | BF18: 24192 | BG18: 26784 | BH18: 25920 | BI18: 26784 | BJ18: 25920 | BK18: 26784 | BL18: 26784 | BM18: 25920 | BN18: 26784 | BO18: 25920 | BP18: 26784 | BQ18: 26784 | BR18: 25056 | BS18: 26784 | BT18: 25920 | BU18: 26784 | BV18: =BV17*$F$18 -> 25920 | BW18: 26784 | BX18: 26784 | BY18: 25920 | BZ18: 26784 | CA18: 25920 | CB18: 26784 | CC18: 26784 | CD18: 24192 | CE18: 26784 | CF18: 25920 | CG18: 26784 | CH18: 25920 | CI18: 26784 | CJ18: 26784 | CK18: 25920 | CL18: 26784 | CM18: 25920 | CN18: 26784 | CO18: 26784 | CP18: 24192 | CQ18: 26784 | CR18: 25920 | CS18: 26784 | CT18: 25920 | CU18: 26784 | CV18: 26784 | CW18: 25920 | CX18: 26784 | CY18: 25920 | CZ18: 26784 | DA18: 26784 | DB18: 24192 | DC18: 26784 | DD18: 25920 | DE18: 26784 | DF18: 25920 | DG18: 26784 | DH18: 26784 | DI18: 25920 | DJ18: 26784 | DK18: 25920 | DL18: 26784 | DM18: 26784 | DN18: 25056 | DO18: 26784 | DP18: 25920 | DQ18: 26784 | DR18: 25920 | DS18: 26784 | DT18: 26784 | DU18: 25920 | DV18: 26784 | DW18: 25920 | DX18: 26784 | DY18: 26784 | DZ18: 24192 | EA18: 26784 | EB18: 25920 | EC18: 26784 | ED18: 25920 | EE18: 26784 | EF18: 26784 | EG18: 25920 | EH18: =EH17*$F$18 -> 26784 | EI18: 25920 | EJ18: 26784 | EK18: 26784 | EL18: 24192 | EM18: 26784 | EN18: 25920 | EO18: 26784 | EP18: 25920 | EQ18: 26784 | ER18: 26784 | ES18: 25920 | ET18: 26784 | EU18: 25920 | EV18: 26784 | EW18: 26784 | EX18: 24192 | EY18: 26784 | EZ18: 25920 | FA18: 26784 | FB18: 25920 | FC18: 26784 | FD18: 26784 | FE18: 25920 | FF18: 26784 | FG18: 25920 | FH18: 26784 | FI18: 26784 | FJ18: 25056 | FK18: 26784 | FL18: 25920 | FM18: 26784 | FN18: 25920 | FO18: 26784 | FP18: 26784 | FQ18: 25920 | FR18: 26784 | FS18: 25920 | FT18: 26784 | FU18: 26784 | FV18: 24192 | FW18: 26784 | FX18: 25920 | FY18: 26784 | FZ18: 25920 | GA18: 26784 | GB18: 26784 | GC18: 25920 | GD18: 26784 | GE18: 25920 | GF18: 26784 | GG18: 26784 | GH18: 24192 | GI18: 26784 | GJ18: 25920 | GK18: 26784 | GL18: 25920 | GM18: 26784 | GN18: 26784 | GO18: 25920 | GP18: 26784 | GQ18: 25920 | GR18: 26784 | GS18: 26784 | GT18: =GT17*$F$18 -> 24192 | GU18: 26784 | GV18: 25920 | GW18: 26784 | GX18: 25920 | GY18: 26784 | GZ18: 26784 | HA18: 25920 | HB18: 26784 | HC18: 25920 | HD18: 26784 | HE18: 26784 | HF18: 25056 | HG18: 26784 | HH18: 25920 | HI18: 26784 | HJ18: 25920 | HK18: 26784 | HL18: 26784 | HM18: 25920 | HN18: 26784 | HO18: 25920 | HP18: 26784 | HQ18: 26784 | HR18: 24192 | HS18: 26784 | HT18: 25920 | HU18: 26784 | HV18: 25920 | HW18: 26784 | HX18: 26784 | HY18: 25920 | HZ18: 26784 | IA18: 25920 | IB18: 26784 | IC18: 26784 | ID18: 24192 | IE18: 26784 | IF18: 25920 | IG18: 26784 | IH18: 25920 | II18: 26784 | IJ18: 26784 | IK18: 25920 | IL18: 26784 | IM18: 25920 | IN18: 26784 | IO18: 26784 | IP18: 24192 | IQ18: 26784 | IR18: 25920 | IS18: 26784 | IT18: 25920 | IU18: 26784 | IV18: 26784 | IW18: 25920 | IX18: 26784 | IY18: 25920 | IZ18: 26784 | JA18: 26784 | JB18: 25056 | JC18: 26784 | JD18: 25920 | JE18: 26784 | JF18: =JF17*$F$18 -> 25920 | JG18: 26784 | JH18: 26784 | JI18: 25920 | JJ18: 26784 | JK18: 25920 | JL18: 26784 | JM18: 26784 | JN18: 24192 | JO18: 26784 | JP18: 25920 | JQ18: 26784 | JR18: 25920 | JS18: 26784 | JT18: 26784 | JU18: 25920 | JV18: 26784 | JW18: 25920 | JX18: 26784 | JY18: 26784 | JZ18: 24192 | KA18: 26784 | KB18: 25920 | KC18: 26784 | KD18: 25920 | KE18: 26784 | KF18: 26784 | KG18: 25920 | KH18: 26784 | KI18: 25920 | KJ18: 26784 | KK18: 26784 | KL18: 24192 | KM18: 26784 | KN18: 25920 | KO18: 26784 | KP18: 25920 | KQ18: 26784 | KR18: 26784 | KS18: 25920 | KT18: 26784 | KU18: 25920 | KV18: 26784
C20: PUE without Degradation | E20: Purchased/Used | F20: =InputC!G27 -> 1.9 | I20: =$F$20 -> 1.9 | J20: =$F$20 -> 1.9 | K20: 1.9 | L20: 1.9 | M20: 1.9 | N20: 1.9 | O20: 1.9 | P20: 1.9 | Q20: 1.9 | R20: 1.9 | S20: 1.9 | T20: 1.9 | U20: 1.9 | V20: 1.9 | W20: 1.9 | X20: 1.9 | Y20: 1.9 | Z20: 1.9 | AA20: 1.9 | AB20: 1.9 | AC20: 1.9 | AD20: 1.9 | AE20: 1.9 | AF20: 1.9 | AG20: 1.9 | AH20: 1.9 | AI20: 1.9 | AJ20: 1.9 | AK20: 1.9 | AL20: 1.9 | AM20: 1.9 | AN20: 1.9 | AO20: 1.9 | AP20: 1.9 | AQ20: 1.9 | AR20: 1.9 | AS20: 1.9 | AT20: 1.9 | AU20: 1.9 | AV20: 1.9 | AW20: 1.9 | AX20: 1.9 | AY20: 1.9 | AZ20: 1.9 | BA20: 1.9 | BB20: 1.9 | BC20: 1.9 | BD20: 1.9 | BE20: 1.9 | BF20: 1.9 | BG20: 1.9 | BH20: 1.9 | BI20: 1.9 | BJ20: 1.9 | BK20: 1.9 | BL20: 1.9 | BM20: 1.9 | BN20: 1.9 | BO20: 1.9 | BP20: 1.9 | BQ20: 1.9 | BR20: 1.9 | BS20: 1.9 | BT20: 1.9 | BU20: 1.9 | BV20: =$F$20 -> 1.9 | BW20: 1.9 | BX20: 1.9 | BY20: 1.9 | BZ20: 1.9 | CA20: 1.9 | CB20: 1.9 | CC20: 1.9 | CD20: 1.9 | CE20: 1.9 | CF20: 1.9 | CG20: 1.9 | CH20: 1.9 | CI20: 1.9 | CJ20: 1.9 | CK20: 1.9 | CL20: 1.9 | CM20: 1.9 | CN20: 1.9 | CO20: 1.9 | CP20: 1.9 | CQ20: 1.9 | CR20: 1.9 | CS20: 1.9 | CT20: 1.9 | CU20: 1.9 | CV20: 1.9 | CW20: 1.9 | CX20: 1.9 | CY20: 1.9 | CZ20: 1.9 | DA20: 1.9 | DB20: 1.9 | DC20: 1.9 | DD20: 1.9 | DE20: 1.9 | DF20: 1.9 | DG20: 1.9 | DH20: 1.9 | DI20: 1.9 | DJ20: 1.9 | DK20: 1.9 | DL20: 1.9 | DM20: 1.9 | DN20: 1.9 | DO20: 1.9 | DP20: 1.9 | DQ20: 1.9 | DR20: 1.9 | DS20: 1.9 | DT20: 1.9 | DU20: 1.9 | DV20: 1.9 | DW20: 1.9 | DX20: 1.9 | DY20: 1.9 | DZ20: 1.9 | EA20: 1.9 | EB20: 1.9 | EC20: 1.9 | ED20: 1.9 | EE20: 1.9 | EF20: 1.9 | EG20: 1.9 | EH20: =$F$20 -> 1.9 | EI20: 1.9 | EJ20: 1.9 | EK20: 1.9 | EL20: 1.9 | EM20: 1.9 | EN20: 1.9 | EO20: 1.9 | EP20: 1.9 | EQ20: 1.9 | ER20: 1.9 | ES20: 1.9 | ET20: 1.9 | EU20: 1.9 | EV20: 1.9 | EW20: 1.9 | EX20: 1.9 | EY20: 1.9 | EZ20: 1.9 | FA20: 1.9 | FB20: 1.9 | FC20: 1.9 | FD20: 1.9 | FE20: 1.9 | FF20: 1.9 | FG20: 1.9 | FH20: 1.9 | FI20: 1.9 | FJ20: 1.9 | FK20: 1.9 | FL20: 1.9 | FM20: 1.9 | FN20: 1.9 | FO20: 1.9 | FP20: 1.9 | FQ20: 1.9 | FR20: 1.9 | FS20: 1.9 | FT20: 1.9 | FU20: 1.9 | FV20: 1.9 | FW20: 1.9 | FX20: 1.9 | FY20: 1.9 | FZ20: 1.9 | GA20: 1.9 | GB20: 1.9 | GC20: 1.9 | GD20: 1.9 | GE20: 1.9 | GF20: 1.9 | GG20: 1.9 | GH20: 1.9 | GI20: 1.9 | GJ20: 1.9 | GK20: 1.9 | GL20: 1.9 | GM20: 1.9 | GN20: 1.9 | GO20: 1.9 | GP20: 1.9 | GQ20: 1.9 | GR20: 1.9 | GS20: 1.9 | GT20: =$F$20 -> 1.9 | GU20: 1.9 | GV20: 1.9 | GW20: 1.9 | GX20: 1.9 | GY20: 1.9 | GZ20: 1.9 | HA20: 1.9 | HB20: 1.9 | HC20: 1.9 | HD20: 1.9 | HE20: 1.9 | HF20: 1.9 | HG20: 1.9 | HH20: 1.9 | HI20: 1.9 | HJ20: 1.9 | HK20: 1.9 | HL20: 1.9 | HM20: 1.9 | HN20: 1.9 | HO20: 1.9 | HP20: 1.9 | HQ20: 1.9 | HR20: 1.9 | HS20: 1.9 | HT20: 1.9 | HU20: 1.9 | HV20: 1.9 | HW20: 1.9 | HX20: 1.9 | HY20: 1.9 | HZ20: 1.9 | IA20: 1.9 | IB20: 1.9 | IC20: 1.9 | ID20: 1.9 | IE20: 1.9 | IF20: 1.9 | IG20: 1.9 | IH20: 1.9 | II20: 1.9 | IJ20: 1.9 | IK20: 1.9 | IL20: 1.9 | IM20: 1.9 | IN20: 1.9 | IO20: 1.9 | IP20: 1.9 | IQ20: 1.9 | IR20: 1.9 | IS20: 1.9 | IT20: 1.9 | IU20: 1.9 | IV20: 1.9 | IW20: 1.9 | IX20: 1.9 | IY20: 1.9 | IZ20: 1.9 | JA20: 1.9 | JB20: 1.9 | JC20: 1.9 | JD20: 1.9 | JE20: 1.9 | JF20: =$F$20 -> 1.9 | JG20: 1.9 | JH20: 1.9 | JI20: 1.9 | JJ20: 1.9 | JK20: 1.9 | JL20: 1.9 | JM20: 1.9 | JN20: 1.9 | JO20: 1.9 | JP20: 1.9 | JQ20: 1.9 | JR20: 1.9 | JS20: 1.9 | JT20: 1.9 | JU20: 1.9 | JV20: 1.9 | JW20: 1.9 | JX20: 1.9 | JY20: 1.9 | JZ20: 1.9 | KA20: 1.9 | KB20: 1.9 | KC20: 1.9 | KD20: 1.9 | KE20: 1.9 | KF20: 1.9 | KG20: 1.9 | KH20: 1.9 | KI20: 1.9 | KJ20: 1.9 | KK20: 1.9 | KL20: 1.9 | KM20: 1.9 | KN20: 1.9 | KO20: 1.9 | KP20: 1.9 | KQ20: 1.9 | KR20: 1.9 | KS20: 1.9 | KT20: 1.9 | KU20: 1.9 | KV20: 1.9
C21: PUE Degradation per Month | E21: PUE per month | F21: =InputC!G33 -> 0.015 | G21: =(1+F21)^(1/12)-1 -> 0.001241487716 | I21: =$G$21*I9 -> 0 | J21: =$G$21*J9 -> 0 | K21: 0 | L21: 0 | M21: 0 | N21: 0 | O21: 0 | P21: 0 | Q21: 0 | R21: 0 | S21: 0 | T21: 0 | U21: 0 | V21: 0 | W21: 0 | X21: 0 | Y21: 0 | Z21: 0 | AA21: 0 | AB21: 0 | AC21: 0 | AD21: 0 | AE21: 0 | AF21: 0 | AG21: 0.001241487716 | AH21: 0.001241487716 | AI21: 0.001241487716 | AJ21: 0.001241487716 | AK21: 0.001241487716 | AL21: 0.001241487716 | AM21: 0.001241487716 | AN21: 0.001241487716 | AO21: 0.001241487716 | AP21: 0.001241487716 | AQ21: 0.001241487716 | AR21: 0.001241487716 | AS21: 0.001241487716 | AT21: 0.001241487716 | AU21: 0.001241487716 | AV21: 0.001241487716 | AW21: 0.001241487716 | AX21: 0.001241487716 | AY21: 0.001241487716 | AZ21: 0.001241487716 | BA21: 0.001241487716 | BB21: 0.001241487716 | BC21: 0.001241487716 | BD21: 0.001241487716 | BE21: 0.001241487716 | BF21: 0.001241487716 | BG21: 0.001241487716 | BH21: 0.001241487716 | BI21: 0.001241487716 | BJ21: 0.001241487716 | BK21: 0.001241487716 | BL21: 0.001241487716 | BM21: 0.001241487716 | BN21: 0.001241487716 | BO21: 0.001241487716 | BP21: 0.001241487716 | BQ21: 0.001241487716 | BR21: 0.001241487716 | BS21: 0.001241487716 | BT21: 0.001241487716 | BU21: 0.001241487716 | BV21: =$G$21*BV9 -> 0.001241487716 | BW21: 0.001241487716 | BX21: 0.001241487716 | BY21: 0.001241487716 | BZ21: 0.001241487716 | CA21: 0.001241487716 | CB21: 0.001241487716 | CC21: 0.001241487716 | CD21: 0.001241487716 | CE21: 0.001241487716 | CF21: 0.001241487716 | CG21: 0.001241487716 | CH21: 0.001241487716 | CI21: 0.001241487716 | CJ21: 0.001241487716 | CK21: 0.001241487716 | CL21: 0.001241487716 | CM21: 0.001241487716 | CN21: 0.001241487716 | CO21: 0.001241487716 | CP21: 0.001241487716 | CQ21: 0.001241487716 | CR21: 0.001241487716 | CS21: 0.001241487716 | CT21: 0.001241487716 | CU21: 0.001241487716 | CV21: 0.001241487716 | CW21: 0.001241487716 | CX21: 0.001241487716 | CY21: 0.001241487716 | CZ21: 0.001241487716 | DA21: 0.001241487716 | DB21: 0.001241487716 | DC21: 0.001241487716 | DD21: 0.001241487716 | DE21: 0.001241487716 | DF21: 0.001241487716 | DG21: 0.001241487716 | DH21: 0.001241487716 | DI21: 0.001241487716 | DJ21: 0.001241487716 | DK21: 0.001241487716 | DL21: 0.001241487716 | DM21: 0.001241487716 | DN21: 0.001241487716 | DO21: 0.001241487716 | DP21: 0.001241487716 | DQ21: 0.001241487716 | DR21: 0.001241487716 | DS21: 0.001241487716 | DT21: 0.001241487716 | DU21: 0.001241487716 | DV21: 0.001241487716 | DW21: 0.001241487716 | DX21: 0.001241487716 | DY21: 0.001241487716 | DZ21: 0.001241487716 | EA21: 0.001241487716 | EB21: 0.001241487716 | EC21: 0.001241487716 | ED21: 0.001241487716 | EE21: 0.001241487716 | EF21: 0.001241487716 | EG21: 0.001241487716 | EH21: =$G$21*EH9 -> 0.001241487716 | EI21: 0.001241487716 | EJ21: 0.001241487716 | EK21: 0.001241487716 | EL21: 0.001241487716 | EM21: 0.001241487716 | EN21: 0.001241487716 | EO21: 0.001241487716 | EP21: 0.001241487716 | EQ21: 0.001241487716 | ER21: 0.001241487716 | ES21: 0.001241487716 | ET21: 0.001241487716 | EU21: 0.001241487716 | EV21: 0.001241487716 | EW21: 0.001241487716 | EX21: 0.001241487716 | EY21: 0.001241487716 | EZ21: 0.001241487716 | FA21: 0.001241487716 | FB21: 0.001241487716 | FC21: 0.001241487716 | FD21: 0.001241487716 | FE21: 0.001241487716 | FF21: 0.001241487716 | FG21: 0.001241487716 | FH21: 0.001241487716 | FI21: 0.001241487716 | FJ21: 0.001241487716 | FK21: 0.001241487716 | FL21: 0.001241487716 | FM21: 0.001241487716 | FN21: 0.001241487716 | FO21: 0.001241487716 | FP21: 0.001241487716 | FQ21: 0.001241487716 | FR21: 0.001241487716 | FS21: 0.001241487716 | FT21: 0.001241487716 | FU21: 0.001241487716 | FV21: 0.001241487716 | FW21: 0.001241487716 | FX21: 0.001241487716 | FY21: 0.001241487716 | FZ21: 0.001241487716 | GA21: 0.001241487716 | GB21: 0.001241487716 | GC21: 0.001241487716 | GD21: 0.001241487716 | GE21: 0.001241487716 | GF21: 0.001241487716 | GG21: 0.001241487716 | GH21: 0.001241487716 | GI21: 0.001241487716 | GJ21: 0.001241487716 | GK21: 0.001241487716 | GL21: 0.001241487716 | GM21: 0.001241487716 | GN21: 0.001241487716 | GO21: 0.001241487716 | GP21: 0.001241487716 | GQ21: 0.001241487716 | GR21: 0.001241487716 | GS21: 0.001241487716 | GT21: =$G$21*GT9 -> 0.001241487716 | GU21: 0.001241487716 | GV21: 0.001241487716 | GW21: 0.001241487716 | GX21: 0.001241487716 | GY21: 0.001241487716 | GZ21: 0.001241487716 | HA21: 0.001241487716 | HB21: 0.001241487716 | HC21: 0.001241487716 | HD21: 0.001241487716 | HE21: 0.001241487716 | HF21: 0.001241487716 | HG21: 0.001241487716 | HH21: 0.001241487716 | HI21: 0.001241487716 | HJ21: 0.001241487716 | HK21: 0.001241487716 | HL21: 0.001241487716 | HM21: 0.001241487716 | HN21: 0.001241487716 | HO21: 0.001241487716 | HP21: 0.001241487716 | HQ21: 0.001241487716 | HR21: 0.001241487716 | HS21: 0.001241487716 | HT21: 0.001241487716 | HU21: 0.001241487716 | HV21: 0.001241487716 | HW21: 0.001241487716 | HX21: 0.001241487716 | HY21: 0.001241487716 | HZ21: 0.001241487716 | IA21: 0.001241487716 | IB21: 0.001241487716 | IC21: 0.001241487716 | ID21: 0.001241487716 | IE21: 0.001241487716 | IF21: 0.001241487716 | IG21: 0.001241487716 | IH21: 0.001241487716 | II21: 0.001241487716 | IJ21: 0.001241487716 | IK21: 0.001241487716 | IL21: 0.001241487716 | IM21: 0.001241487716 | IN21: 0.001241487716 | IO21: 0.001241487716 | IP21: 0.001241487716 | IQ21: 0.001241487716 | IR21: 0.001241487716 | IS21: 0.001241487716 | IT21: 0.001241487716 | IU21: 0.001241487716 | IV21: 0.001241487716 | IW21: 0.001241487716 | IX21: 0.001241487716 | IY21: 0.001241487716 | IZ21: 0.001241487716 | JA21: 0.001241487716 | JB21: 0.001241487716 | JC21: 0.001241487716 | JD21: 0.001241487716 | JE21: 0.001241487716 | JF21: =$G$21*JF9 -> 0.001241487716 | JG21: 0.001241487716 | JH21: 0.001241487716 | JI21: 0.001241487716 | JJ21: 0.001241487716 | JK21: 0.001241487716 | JL21: 0.001241487716 | JM21: 0.001241487716 | JN21: 0.001241487716 | JO21: 0.001241487716 | JP21: 0.001241487716 | JQ21: 0.001241487716 | JR21: 0.001241487716 | JS21: 0.001241487716 | JT21: 0.001241487716 | JU21: 0.001241487716 | JV21: 0.001241487716 | JW21: 0.001241487716 | JX21: 0.001241487716 | JY21: 0.001241487716 | JZ21: 0.001241487716 | KA21: 0.001241487716 | KB21: 0.001241487716 | KC21: 0.001241487716 | KD21: 0.001241487716 | KE21: 0.001241487716 | KF21: 0.001241487716 | KG21: 0.001241487716 | KH21: 0.001241487716 | KI21: 0.001241487716 | KJ21: 0.001241487716 | KK21: 0.001241487716 | KL21: 0.001241487716 | KM21: 0.001241487716 | KN21: 0.001241487716 | KO21: 0.001241487716 | KP21: 0.001241487716 | KQ21: 0.001241487716 | KR21: 0.001241487716 | KS21: 0.001241487716 | KT21: 0.001241487716 | KU21: 0.001241487716 | KV21: 0.001241487716
C22: PUE after Degradation | E22: Purchased/Used | F22: =F20 -> 1.9 | I22: =F22 -> 1.9 | J22: =I22+J21 -> 1.9 | K22: =J22+K21 -> 1.9 | L22: 1.9 | M22: 1.9 | N22: 1.9 | O22: 1.9 | P22: 1.9 | Q22: 1.9 | R22: 1.9 | S22: 1.9 | T22: 1.9 | U22: 1.9 | V22: 1.9 | W22: 1.9 | X22: 1.9 | Y22: 1.9 | Z22: 1.9 | AA22: 1.9 | AB22: 1.9 | AC22: 1.9 | AD22: 1.9 | AE22: 1.9 | AF22: 1.9 | AG22: 1.901241488 | AH22: 1.902482975 | AI22: 1.903724463 | AJ22: 1.904965951 | AK22: 1.906207439 | AL22: 1.907448926 | AM22: 1.908690414 | AN22: 1.909931902 | AO22: 1.911173389 | AP22: 1.912414877 | AQ22: 1.913656365 | AR22: 1.914897853 | AS22: 1.91613934 | AT22: 1.917380828 | AU22: 1.918622316 | AV22: 1.919863803 | AW22: 1.921105291 | AX22: 1.922346779 | AY22: 1.923588267 | AZ22: 1.924829754 | BA22: 1.926071242 | BB22: 1.92731273 | BC22: 1.928554217 | BD22: 1.929795705 | BE22: 1.931037193 | BF22: 1.932278681 | BG22: 1.933520168 | BH22: 1.934761656 | BI22: 1.936003144 | BJ22: 1.937244631 | BK22: 1.938486119 | BL22: 1.939727607 | BM22: 1.940969095 | BN22: 1.942210582 | BO22: 1.94345207 | BP22: 1.944693558 | BQ22: 1.945935046 | BR22: 1.947176533 | BS22: 1.948418021 | BT22: 1.949659509 | BU22: 1.950900996 | BV22: 1.952142484 | BW22: =BV22+BW21 -> 1.953383972 | BX22: 1.95462546 | BY22: 1.955866947 | BZ22: 1.957108435 | CA22: 1.958349923 | CB22: 1.95959141 | CC22: 1.960832898 | CD22: 1.962074386 | CE22: 1.963315874 | CF22: 1.964557361 | CG22: 1.965798849 | CH22: 1.967040337 | CI22: 1.968281824 | CJ22: 1.969523312 | CK22: 1.9707648 | CL22: 1.972006288 | CM22: 1.973247775 | CN22: 1.974489263 | CO22: 1.975730751 | CP22: 1.976972238 | CQ22: 1.978213726 | CR22: 1.979455214 | CS22: 1.980696702 | CT22: 1.981938189 | CU22: 1.983179677 | CV22: 1.984421165 | CW22: 1.985662652 | CX22: 1.98690414 | CY22: 1.988145628 | CZ22: 1.989387116 | DA22: 1.990628603 | DB22: 1.991870091 | DC22: 1.993111579 | DD22: 1.994353066 | DE22: 1.995594554 | DF22: 1.996836042 | DG22: 1.99807753 | DH22: 1.999319017 | DI22: 2.000560505 | DJ22: 2.001801993 | DK22: 2.00304348 | DL22: 2.004284968 | DM22: 2.005526456 | DN22: 2.006767944 | DO22: 2.008009431 | DP22: 2.009250919 | DQ22: 2.010492407 | DR22: 2.011733894 | DS22: 2.012975382 | DT22: 2.01421687 | DU22: 2.015458358 | DV22: 2.016699845 | DW22: 2.017941333 | DX22: 2.019182821 | DY22: 2.020424308 | DZ22: 2.021665796 | EA22: 2.022907284 | EB22: 2.024148772 | EC22: 2.025390259 | ED22: 2.026631747 | EE22: 2.027873235 | EF22: 2.029114723 | EG22: 2.03035621 | EH22: 2.031597698 | EI22: =EH22+EI21 -> 2.032839186 | EJ22: 2.034080673 | EK22: 2.035322161 | EL22: 2.036563649 | EM22: 2.037805137 | EN22: 2.039046624 | EO22: 2.040288112 | EP22: 2.0415296 | EQ22: 2.042771087 | ER22: 2.044012575 | ES22: 2.045254063 | ET22: 2.046495551 | EU22: 2.047737038 | EV22: 2.048978526 | EW22: 2.050220014 | EX22: 2.051461501 | EY22: 2.052702989 | EZ22: 2.053944477 | FA22: 2.055185965 | FB22: 2.056427452 | FC22: 2.05766894 | FD22: 2.058910428 | FE22: 2.060151915 | FF22: 2.061393403 | FG22: 2.062634891 | FH22: 2.063876379 | FI22: 2.065117866 | FJ22: 2.066359354 | FK22: 2.067600842 | FL22: 2.068842329 | FM22: 2.070083817 | FN22: 2.071325305 | FO22: 2.072566793 | FP22: 2.07380828 | FQ22: 2.075049768 | FR22: 2.076291256 | FS22: 2.077532743 | FT22: 2.078774231 | FU22: 2.080015719 | FV22: 2.081257207 | FW22: 2.082498694 | FX22: 2.083740182 | FY22: 2.08498167 | FZ22: 2.086223157 | GA22: 2.087464645 | GB22: 2.088706133 | GC22: 2.089947621 | GD22: 2.091189108 | GE22: 2.092430596 | GF22: 2.093672084 | GG22: 2.094913571 | GH22: 2.096155059 | GI22: 2.097396547 | GJ22: 2.098638035 | GK22: 2.099879522 | GL22: 2.10112101 | GM22: 2.102362498 | GN22: 2.103603985 | GO22: 2.104845473 | GP22: 2.106086961 | GQ22: 2.107328449 | GR22: 2.108569936 | GS22: 2.109811424 | GT22: 2.111052912 | GU22: =GT22+GU21 -> 2.1122944 | GV22: 2.113535887 | GW22: 2.114777375 | GX22: 2.116018863 | GY22: 2.11726035 | GZ22: 2.118501838 | HA22: 2.119743326 | HB22: 2.120984814 | HC22: 2.122226301 | HD22: 2.123467789 | HE22: 2.124709277 | HF22: 2.125950764 | HG22: 2.127192252 | HH22: 2.12843374 | HI22: 2.129675228 | HJ22: 2.130916715 | HK22: 2.132158203 | HL22: 2.133399691 | HM22: 2.134641178 | HN22: 2.135882666 | HO22: 2.137124154 | HP22: 2.138365642 | HQ22: 2.139607129 | HR22: 2.140848617 | HS22: 2.142090105 | HT22: 2.143331592 | HU22: 2.14457308 | HV22: 2.145814568 | HW22: 2.147056056 | HX22: 2.148297543 | HY22: 2.149539031 | HZ22: 2.150780519 | IA22: 2.152022006 | IB22: 2.153263494 | IC22: 2.154504982 | ID22: 2.15574647 | IE22: 2.156987957 | IF22: 2.158229445 | IG22: 2.159470933 | IH22: 2.16071242 | II22: 2.161953908 | IJ22: 2.163195396 | IK22: 2.164436884 | IL22: 2.165678371 | IM22: 2.166919859 | IN22: 2.168161347 | IO22: 2.169402834 | IP22: 2.170644322 | IQ22: 2.17188581 | IR22: 2.173127298 | IS22: 2.174368785 | IT22: 2.175610273 | IU22: 2.176851761 | IV22: 2.178093248 | IW22: 2.179334736 | IX22: 2.180576224 | IY22: 2.181817712 | IZ22: 2.183059199 | JA22: 2.184300687 | JB22: 2.185542175 | JC22: 2.186783662 | JD22: 2.18802515 | JE22: 2.189266638 | JF22: 2.190508126 | JG22: =JF22+JG21 -> 2.191749613 | JH22: 2.192991101 | JI22: 2.194232589 | JJ22: 2.195474077 | JK22: 2.196715564 | JL22: 2.197957052 | JM22: 2.19919854 | JN22: 2.200440027 | JO22: 2.201681515 | JP22: 2.202923003 | JQ22: 2.204164491 | JR22: 2.205405978 | JS22: 2.206647466 | JT22: 2.207888954 | JU22: 2.209130441 | JV22: 2.210371929 | JW22: 2.211613417 | JX22: 2.212854905 | JY22: 2.214096392 | JZ22: 2.21533788 | KA22: 2.216579368 | KB22: 2.217820855 | KC22: 2.219062343 | KD22: 2.220303831 | KE22: 2.221545319 | KF22: 2.222786806 | KG22: 2.224028294 | KH22: 2.225269782 | KI22: 2.226511269 | KJ22: 2.227752757 | KK22: 2.228994245 | KL22: 2.230235733 | KM22: 2.23147722 | KN22: 2.232718708 | KO22: 2.233960196 | KP22: 2.235201683 | KQ22: 2.236443171 | KR22: 2.237684659 | KS22: 2.238926147 | KT22: 2.240167634 | KU22: 2.241409122 | KV22: 2.24265061
C24: MWh Electricity purchased from Applied PUE | E24: MWh | H24: =SUM(I24:XFD24) -> 15037565.88 | I24: =I22*I18 -> 0 | J24: 0 | K24: 0 | L24: 0 | M24: 0 | N24: 0 | O24: 0 | P24: 0 | Q24: 0 | R24: 0 | S24: 0 | T24: 0 | U24: 0 | V24: 0 | W24: 0 | X24: 0 | Y24: 0 | Z24: 0 | AA24: 0 | AB24: 0 | AC24: 0 | AD24: 0 | AE24: 0 | AF24: 0 | AG24: 50922.85201 | AH24: 46024.86814 | AI24: 50989.35602 | AJ24: 49376.71745 | AK24: 51055.86003 | AL24: 49441.07617 | AM24: 51122.36405 | AN24: 51155.61606 | AO24: 49537.61425 | AP24: 51222.12007 | AQ24: 49601.97298 | AR24: 51288.62408 | AS24: 51321.87609 | AT24: 46385.27699 | AU24: 51388.3801 | AV24: 49762.86979 | AW24: 51454.88412 | AX24: 49827.22851 | AY24: 51521.38813 | AZ24: 51554.64014 | BA24: 49923.76659 | BB24: 51621.14415 | BC24: 49988.12532 | BD24: 51687.64817 | BE24: 51720.90017 | BF24: 46745.68584 | BG24: 51787.40419 | BH24: 50149.02213 | BI24: 51853.9082 | BJ24: 50213.38085 | BK24: 51920.41222 | BL24: 51953.66422 | BM24: 50309.91893 | BN24: 52020.16824 | BO24: 50374.27766 | BP24: 52086.67225 | BQ24: 52119.92426 | BR24: 48788.45522 | BS24: 52186.42827 | BT24: 50535.17446 | BU24: =BU22*BU18 -> 52252.93229 | BV24: 50599.53319 | BW24: 52319.4363 | BX24: 52352.68831 | BY24: 50696.07127 | BZ24: 52419.19232 | CA24: 50760.43 | CB24: 52485.69634 | CC24: 52518.94834 | CD24: 47466.50354 | CE24: 52585.45236 | CF24: 50921.3268 | CG24: 52651.95637 | CH24: 50985.68553 | CI24: 52718.46038 | CJ24: 52751.71239 | CK24: 51082.22361 | CL24: 52818.21641 | CM24: 51146.58234 | CN24: 52884.72042 | CO24: 52917.97243 | CP24: 47826.91239 | CQ24: 52984.47644 | CR24: 51307.47914 | CS24: 53050.98045 | CT24: 51371.83787 | CU24: 53117.48447 | CV24: 53150.73648 | CW24: 51468.37595 | CX24: 53217.24049 | CY24: 51532.73467 | CZ24: 53283.7445 | DA24: 53316.99651 | DB24: 48187.32124 | DC24: 53383.50052 | DD24: 51693.63148 | DE24: 53450.00454 | DF24: 51757.99021 | DG24: 53516.50855 | DH24: 53549.76056 | DI24: 51854.52829 | DJ24: 53616.26457 | DK24: 51918.88701 | DL24: 53682.76859 | DM24: 53716.02059 | DN24: 50281.5776 | DO24: 53782.52461 | DP24: 52079.78382 | DQ24: 53849.02862 | DR24: 52144.14254 | DS24: 53915.53264 | DT24: 53948.78464 | DU24: 52240.68063 | DV24: 54015.28866 | DW24: 52305.03935 | DX24: 54081.79267 | DY24: 54115.04468 | DZ24: 48908.13894 | EA24: 54181.54869 | EB24: 52465.93616 | EC24: 54248.05271 | ED24: 52530.29488 | EE24: 54314.55672 | EF24: 54347.80873 | EG24: =EG22*EG18 -> 52626.83297 | EH24: 54414.31274 | EI24: 52691.19169 | EJ24: 54480.81676 | EK24: 54514.06876 | EL24: 49268.54779 | EM24: 54580.57278 | EN24: 52852.0885 | EO24: 54647.07679 | EP24: 52916.44722 | EQ24: 54713.5808 | ER24: 54746.83281 | ES24: 53012.98531 | ET24: 54813.33683 | EU24: 53077.34403 | EV24: 54879.84084 | EW24: 54913.09285 | EX24: 49628.95664 | EY24: 54979.59686 | EZ24: 53238.24084 | FA24: 55046.10087 | FB24: 53302.59956 | FC24: 55112.60489 | FD24: 55145.8569 | FE24: 53399.13765 | FF24: 55212.36091 | FG24: 53463.49637 | FH24: 55278.86492 | FI24: 55312.11693 | FJ24: 51774.69997 | FK24: 55378.62094 | FL24: 53624.39318 | FM24: 55445.12496 | FN24: 53688.7519 | FO24: 55511.62897 | FP24: 55544.88098 | FQ24: 53785.28999 | FR24: 55611.38499 | FS24: 53849.64871 | FT24: 55677.88901 | FU24: 55711.14101 | FV24: 50349.77434 | FW24: 55777.64503 | FX24: 54010.54552 | FY24: 55844.14904 | FZ24: 54074.90424 | GA24: 55910.65306 | GB24: 55943.90506 | GC24: 54171.44233 | GD24: 56010.40908 | GE24: 54235.80105 | GF24: 56076.91309 | GG24: 56110.1651 | GH24: 50710.18319 | GI24: 56176.66911 | GJ24: 54396.69786 | GK24: 56243.17313 | GL24: 54461.05658 | GM24: 56309.67714 | GN24: 56342.92915 | GO24: 54557.59467 | GP24: 56409.43316 | GQ24: 54621.95339 | GR24: 56475.93718 | GS24: =GS22*GS18 -> 56509.18918 | GT24: 51070.59204 | GU24: 56575.6932 | GV24: 54782.8502 | GW24: 56642.19721 | GX24: 54847.20892 | GY24: 56708.70122 | GZ24: 56741.95323 | HA24: 54943.74701 | HB24: 56808.45725 | HC24: 55008.10573 | HD24: 56874.96126 | HE24: 56908.21327 | HF24: 53267.82235 | HG24: 56974.71728 | HH24: 55169.00254 | HI24: 57041.22129 | HJ24: 55233.36126 | HK24: 57107.72531 | HL24: 57140.97732 | HM24: 55329.89934 | HN24: 57207.48133 | HO24: 55394.25807 | HP24: 57273.98534 | HQ24: 57307.23735 | HR24: 51791.40974 | HS24: 57373.74136 | HT24: 55555.15488 | HU24: 57440.24538 | HV24: 55619.5136 | HW24: 57506.74939 | HX24: 57540.0014 | HY24: 55716.05168 | HZ24: 57606.50541 | IA24: 55780.41041 | IB24: 57673.00943 | IC24: 57706.26143 | ID24: 52151.81859 | IE24: 57772.76545 | IF24: 55941.30721 | IG24: 57839.26946 | IH24: 56005.66594 | II24: 57905.77348 | IJ24: 57939.02548 | IK24: 56102.20402 | IL24: 58005.5295 | IM24: 56166.56275 | IN24: 58072.03351 | IO24: 58105.28552 | IP24: 52512.22744 | IQ24: 58171.78953 | IR24: 56327.45955 | IS24: 58238.29355 | IT24: 56391.81828 | IU24: 58304.79756 | IV24: 58338.04957 | IW24: 56488.35636 | IX24: 58404.55358 | IY24: 56552.71509 | IZ24: 58471.0576 | JA24: 58504.3096 | JB24: 54760.94473 | JC24: 58570.81362 | JD24: 56713.61189 | JE24: =JE22*JE18 -> 58637.31763 | JF24: 56777.97062 | JG24: 58703.82164 | JH24: 58737.07365 | JI24: 56874.5087 | JJ24: 58803.57767 | JK24: 56938.86742 | JL24: 58870.08168 | JM24: 58903.33369 | JN24: 53233.04514 | JO24: 58969.8377 | JP24: 57099.76423 | JQ24: 59036.34171 | JR24: 57164.12296 | JS24: 59102.84573 | JT24: 59136.09774 | JU24: 57260.66104 | JV24: 59202.60175 | JW24: 57325.01976 | JX24: 59269.10576 | JY24: 59302.35777 | JZ24: 53593.45399 | KA24: 59368.86178 | KB24: 57485.91657 | KC24: 59435.3658 | KD24: 57550.2753 | KE24: 59501.86981 | KF24: 59535.12182 | KG24: 57646.81338 | KH24: 59601.62583 | KI24: 57711.1721 | KJ24: 59668.12985 | KK24: 59701.38185 | KL24: 53953.86284 | KM24: 59767.88587 | KN24: 57872.06891 | KO24: 59834.38988 | KP24: 57936.42763 | KQ24: 59900.8939 | KR24: 59934.1459 | KS24: 58032.96572 | KT24: 60000.64992 | KU24: 58097.32444 | KV24: 60067.15393
C26: MM Tokens per kW Month Capacity | E26: MM Tokens per kW/Month | F26: =InputC!G35 -> 0.05 | I26: =$F$26*I9 -> 0 | J26: 0 | K26: 0 | L26: 0 | M26: 0 | N26: 0 | O26: 0 | P26: 0 | Q26: 0 | R26: 0 | S26: 0 | T26: 0 | U26: 0 | V26: 0 | W26: 0 | X26: 0 | Y26: 0 | Z26: 0 | AA26: 0 | AB26: 0 | AC26: 0 | AD26: 0 | AE26: 0 | AF26: 0 | AG26: 0.05 | AH26: 0.05 | AI26: 0.05 | AJ26: 0.05 | AK26: 0.05 | AL26: 0.05 | AM26: 0.05 | AN26: 0.05 | AO26: 0.05 | AP26: 0.05 | AQ26: 0.05 | AR26: 0.05 | AS26: 0.05 | AT26: 0.05 | AU26: 0.05 | AV26: 0.05 | AW26: 0.05 | AX26: 0.05 | AY26: 0.05 | AZ26: 0.05 | BA26: 0.05 | BB26: 0.05 | BC26: 0.05 | BD26: 0.05 | BE26: 0.05 | BF26: 0.05 | BG26: 0.05 | BH26: 0.05 | BI26: 0.05 | BJ26: 0.05 | BK26: 0.05 | BL26: 0.05 | BM26: 0.05 | BN26: 0.05 | BO26: 0.05 | BP26: 0.05 | BQ26: 0.05 | BR26: 0.05 | BS26: 0.05 | BT26: 0.05 | BU26: =$F$26*BU9 -> 0.05 | BV26: 0.05 | BW26: 0.05 | BX26: 0.05 | BY26: 0.05 | BZ26: 0.05 | CA26: 0.05 | CB26: 0.05 | CC26: 0.05 | CD26: 0.05 | CE26: 0.05 | CF26: 0.05 | CG26: 0.05 | CH26: 0.05 | CI26: 0.05 | CJ26: 0.05 | CK26: 0.05 | CL26: 0.05 | CM26: 0.05 | CN26: 0.05 | CO26: 0.05 | CP26: 0.05 | CQ26: 0.05 | CR26: 0.05 | CS26: 0.05 | CT26: 0.05 | CU26: 0.05 | CV26: 0.05 | CW26: 0.05 | CX26: 0.05 | CY26: 0.05 | CZ26: 0.05 | DA26: 0.05 | DB26: 0.05 | DC26: 0.05 | DD26: 0.05 | DE26: 0.05 | DF26: 0.05 | DG26: 0.05 | DH26: 0.05 | DI26: 0.05 | DJ26: 0.05 | DK26: 0.05 | DL26: 0.05 | DM26: 0.05 | DN26: 0.05 | DO26: 0.05 | DP26: 0.05 | DQ26: 0.05 | DR26: 0.05 | DS26: 0.05 | DT26: 0.05 | DU26: 0.05 | DV26: 0.05 | DW26: 0.05 | DX26: 0.05 | DY26: 0.05 | DZ26: 0.05 | EA26: 0.05 | EB26: 0.05 | EC26: 0.05 | ED26: 0.05 | EE26: 0.05 | EF26: 0.05 | EG26: =$F$26*EG9 -> 0.05 | EH26: 0.05 | EI26: 0.05 | EJ26: 0.05 | EK26: 0.05 | EL26: 0.05 | EM26: 0.05 | EN26: 0.05 | EO26: 0.05 | EP26: 0.05 | EQ26: 0.05 | ER26: 0.05 | ES26: 0.05 | ET26: 0.05 | EU26: 0.05 | EV26: 0.05 | EW26: 0.05 | EX26: 0.05 | EY26: 0.05 | EZ26: 0.05 | FA26: 0.05 | FB26: 0.05 | FC26: 0.05 | FD26: 0.05 | FE26: 0.05 | FF26: 0.05 | FG26: 0.05 | FH26: 0.05 | FI26: 0.05 | FJ26: 0.05 | FK26: 0.05 | FL26: 0.05 | FM26: 0.05 | FN26: 0.05 | FO26: 0.05 | FP26: 0.05 | FQ26: 0.05 | FR26: 0.05 | FS26: 0.05 | FT26: 0.05 | FU26: 0.05 | FV26: 0.05 | FW26: 0.05 | FX26: 0.05 | FY26: 0.05 | FZ26: 0.05 | GA26: 0.05 | GB26: 0.05 | GC26: 0.05 | GD26: 0.05 | GE26: 0.05 | GF26: 0.05 | GG26: 0.05 | GH26: 0.05 | GI26: 0.05 | GJ26: 0.05 | GK26: 0.05 | GL26: 0.05 | GM26: 0.05 | GN26: 0.05 | GO26: 0.05 | GP26: 0.05 | GQ26: 0.05 | GR26: 0.05 | GS26: =$F$26*GS9 -> 0.05 | GT26: 0.05 | GU26: 0.05 | GV26: 0.05 | GW26: 0.05 | GX26: 0.05 | GY26: 0.05 | GZ26: 0.05 | HA26: 0.05 | HB26: 0.05 | HC26: 0.05 | HD26: 0.05 | HE26: 0.05 | HF26: 0.05 | HG26: 0.05 | HH26: 0.05 | HI26: 0.05 | HJ26: 0.05 | HK26: 0.05 | HL26: 0.05 | HM26: 0.05 | HN26: 0.05 | HO26: 0.05 | HP26: 0.05 | HQ26: 0.05 | HR26: 0.05 | HS26: 0.05 | HT26: 0.05 | HU26: 0.05 | HV26: 0.05 | HW26: 0.05 | HX26: 0.05 | HY26: 0.05 | HZ26: 0.05 | IA26: 0.05 | IB26: 0.05 | IC26: 0.05 | ID26: 0.05 | IE26: 0.05 | IF26: 0.05 | IG26: 0.05 | IH26: 0.05 | II26: 0.05 | IJ26: 0.05 | IK26: 0.05 | IL26: 0.05 | IM26: 0.05 | IN26: 0.05 | IO26: 0.05 | IP26: 0.05 | IQ26: 0.05 | IR26: 0.05 | IS26: 0.05 | IT26: 0.05 | IU26: 0.05 | IV26: 0.05 | IW26: 0.05 | IX26: 0.05 | IY26: 0.05 | IZ26: 0.05 | JA26: 0.05 | JB26: 0.05 | JC26: 0.05 | JD26: 0.05 | JE26: =$F$26*JE9 -> 0.05 | JF26: 0.05 | JG26: 0.05 | JH26: 0.05 | JI26: 0.05 | JJ26: 0.05 | JK26: 0.05 | JL26: 0.05 | JM26: 0.05 | JN26: 0.05 | JO26: 0.05 | JP26: 0.05 | JQ26: 0.05 | JR26: 0.05 | JS26: 0.05 | JT26: 0.05 | JU26: 0.05 | JV26: 0.05 | JW26: 0.05 | JX26: 0.05 | JY26: 0.05 | JZ26: 0.05 | KA26: 0.05 | KB26: 0.05 | KC26: 0.05 | KD26: 0.05 | KE26: 0.05 | KF26: 0.05 | KG26: 0.05 | KH26: 0.05 | KI26: 0.05 | KJ26: 0.05 | KK26: 0.05 | KL26: 0.05 | KM26: 0.05 | KN26: 0.05 | KO26: 0.05 | KP26: 0.05 | KQ26: 0.05 | KR26: 0.05 | KS26: 0.05 | KT26: 0.05 | KU26: 0.05 | KV26: 0.05
C27: Million Tokens per MW Month | E27: MM Tokens/MW Mnt | I27: =I26*I14*1000 -> 0 | J27: 0 | K27: 0 | L27: 0 | M27: 0 | N27: 0 | O27: 0 | P27: 0 | Q27: 0 | R27: 0 | S27: 0 | T27: 0 | U27: 0 | V27: 0 | W27: 0 | X27: 0 | Y27: 0 | Z27: 0 | AA27: 0 | AB27: 0 | AC27: 0 | AD27: 0 | AE27: 0 | AF27: 0 | AG27: 2000 | AH27: 2000 | AI27: 2000 | AJ27: 2000 | AK27: 2000 | AL27: 2000 | AM27: 2000 | AN27: 2000 | AO27: 2000 | AP27: 2000 | AQ27: 2000 | AR27: 2000 | AS27: 2000 | AT27: 2000 | AU27: 2000 | AV27: 2000 | AW27: 2000 | AX27: 2000 | AY27: 2000 | AZ27: 2000 | BA27: 2000 | BB27: 2000 | BC27: 2000 | BD27: 2000 | BE27: 2000 | BF27: 2000 | BG27: 2000 | BH27: 2000 | BI27: 2000 | BJ27: 2000 | BK27: 2000 | BL27: 2000 | BM27: 2000 | BN27: 2000 | BO27: 2000 | BP27: 2000 | BQ27: 2000 | BR27: 2000 | BS27: 2000 | BT27: 2000 | BU27: =BU26*BU14*1000 -> 2000 | BV27: 2000 | BW27: 2000 | BX27: 2000 | BY27: 2000 | BZ27: 2000 | CA27: 2000 | CB27: 2000 | CC27: 2000 | CD27: 2000 | CE27: 2000 | CF27: 2000 | CG27: 2000 | CH27: 2000 | CI27: 2000 | CJ27: 2000 | CK27: 2000 | CL27: 2000 | CM27: 2000 | CN27: 2000 | CO27: 2000 | CP27: 2000 | CQ27: 2000 | CR27: 2000 | CS27: 2000 | CT27: 2000 | CU27: 2000 | CV27: 2000 | CW27: 2000 | CX27: 2000 | CY27: 2000 | CZ27: 2000 | DA27: 2000 | DB27: 2000 | DC27: 2000 | DD27: 2000 | DE27: 2000 | DF27: 2000 | DG27: 2000 | DH27: 2000 | DI27: 2000 | DJ27: 2000 | DK27: 2000 | DL27: 2000 | DM27: 2000 | DN27: 2000 | DO27: 2000 | DP27: 2000 | DQ27: 2000 | DR27: 2000 | DS27: 2000 | DT27: 2000 | DU27: 2000 | DV27: 2000 | DW27: 2000 | DX27: 2000 | DY27: 2000 | DZ27: 2000 | EA27: 2000 | EB27: 2000 | EC27: 2000 | ED27: 2000 | EE27: 2000 | EF27: 2000 | EG27: =EG26*EG14*1000 -> 2000 | EH27: 2000 | EI27: 2000 | EJ27: 2000 | EK27: 2000 | EL27: 2000 | EM27: 2000 | EN27: 2000 | EO27: 2000 | EP27: 2000 | EQ27: 2000 | ER27: 2000 | ES27: 2000 | ET27: 2000 | EU27: 2000 | EV27: 2000 | EW27: 2000 | EX27: 2000 | EY27: 2000 | EZ27: 2000 | FA27: 2000 | FB27: 2000 | FC27: 2000 | FD27: 2000 | FE27: 2000 | FF27: 2000 | FG27: 2000 | FH27: 2000 | FI27: 2000 | FJ27: 2000 | FK27: 2000 | FL27: 2000 | FM27: 2000 | FN27: 2000 | FO27: 2000 | FP27: 2000 | FQ27: 2000 | FR27: 2000 | FS27: 2000 | FT27: 2000 | FU27: 2000 | FV27: 2000 | FW27: 2000 | FX27: 2000 | FY27: 2000 | FZ27: 2000 | GA27: 2000 | GB27: 2000 | GC27: 2000 | GD27: 2000 | GE27: 2000 | GF27: 2000 | GG27: 2000 | GH27: 2000 | GI27: 2000 | GJ27: 2000 | GK27: 2000 | GL27: 2000 | GM27: 2000 | GN27: 2000 | GO27: 2000 | GP27: 2000 | GQ27: 2000 | GR27: 2000 | GS27: =GS26*GS14*1000 -> 2000 | GT27: 2000 | GU27: 2000 | GV27: 2000 | GW27: 2000 | GX27: 2000 | GY27: 2000 | GZ27: 2000 | HA27: 2000 | HB27: 2000 | HC27: 2000 | HD27: 2000 | HE27: 2000 | HF27: 2000 | HG27: 2000 | HH27: 2000 | HI27: 2000 | HJ27: 2000 | HK27: 2000 | HL27: 2000 | HM27: 2000 | HN27: 2000 | HO27: 2000 | HP27: 2000 | HQ27: 2000 | HR27: 2000 | HS27: 2000 | HT27: 2000 | HU27: 2000 | HV27: 2000 | HW27: 2000 | HX27: 2000 | HY27: 2000 | HZ27: 2000 | IA27: 2000 | IB27: 2000 | IC27: 2000 | ID27: 2000 | IE27: 2000 | IF27: 2000 | IG27: 2000 | IH27: 2000 | II27: 2000 | IJ27: 2000 | IK27: 2000 | IL27: 2000 | IM27: 2000 | IN27: 2000 | IO27: 2000 | IP27: 2000 | IQ27: 2000 | IR27: 2000 | IS27: 2000 | IT27: 2000 | IU27: 2000 | IV27: 2000 | IW27: 2000 | IX27: 2000 | IY27: 2000 | IZ27: 2000 | JA27: 2000 | JB27: 2000 | JC27: 2000 | JD27: 2000 | JE27: =JE26*JE14*1000 -> 2000 | JF27: 2000 | JG27: 2000 | JH27: 2000 | JI27: 2000 | JJ27: 2000 | JK27: 2000 | JL27: 2000 | JM27: 2000 | JN27: 2000 | JO27: 2000 | JP27: 2000 | JQ27: 2000 | JR27: 2000 | JS27: 2000 | JT27: 2000 | JU27: 2000 | JV27: 2000 | JW27: 2000 | JX27: 2000 | JY27: 2000 | JZ27: 2000 | KA27: 2000 | KB27: 2000 | KC27: 2000 | KD27: 2000 | KE27: 2000 | KF27: 2000 | KG27: 2000 | KH27: 2000 | KI27: 2000 | KJ27: 2000 | KK27: 2000 | KL27: 2000 | KM27: 2000 | KN27: 2000 | KO27: 2000 | KP27: 2000 | KQ27: 2000 | KR27: 2000 | KS27: 2000 | KT27: 2000 | KU27: 2000 | KV27: 2000
C29: Utilization Factor of Data Center | E29: % | F29: =InputC!G37 -> 0.66 | I29: =$F$29 -> 0.66 | J29: =$F$29 -> 0.66 | K29: 0.66 | L29: 0.66 | M29: 0.66 | N29: 0.66 | O29: 0.66 | P29: 0.66 | Q29: 0.66 | R29: 0.66 | S29: 0.66 | T29: 0.66 | U29: 0.66 | V29: 0.66 | W29: 0.66 | X29: 0.66 | Y29: 0.66 | Z29: 0.66 | AA29: 0.66 | AB29: 0.66 | AC29: 0.66 | AD29: 0.66 | AE29: 0.66 | AF29: 0.66 | AG29: 0.66 | AH29: 0.66 | AI29: 0.66 | AJ29: 0.66 | AK29: 0.66 | AL29: 0.66 | AM29: 0.66 | AN29: 0.66 | AO29: 0.66 | AP29: 0.66 | AQ29: 0.66 | AR29: 0.66 | AS29: 0.66 | AT29: 0.66 | AU29: 0.66 | AV29: 0.66 | AW29: 0.66 | AX29: 0.66 | AY29: 0.66 | AZ29: 0.66 | BA29: 0.66 | BB29: 0.66 | BC29: 0.66 | BD29: 0.66 | BE29: 0.66 | BF29: 0.66 | BG29: 0.66 | BH29: 0.66 | BI29: 0.66 | BJ29: 0.66 | BK29: 0.66 | BL29: 0.66 | BM29: 0.66 | BN29: 0.66 | BO29: 0.66 | BP29: 0.66 | BQ29: 0.66 | BR29: 0.66 | BS29: 0.66 | BT29: 0.66 | BU29: 0.66 | BV29: =$F$29 -> 0.66 | BW29: 0.66 | BX29: 0.66 | BY29: 0.66 | BZ29: 0.66 | CA29: 0.66 | CB29: 0.66 | CC29: 0.66 | CD29: 0.66 | CE29: 0.66 | CF29: 0.66 | CG29: 0.66 | CH29: 0.66 | CI29: 0.66 | CJ29: 0.66 | CK29: 0.66 | CL29: 0.66 | CM29: 0.66 | CN29: 0.66 | CO29: 0.66 | CP29: 0.66 | CQ29: 0.66 | CR29: 0.66 | CS29: 0.66 | CT29: 0.66 | CU29: 0.66 | CV29: 0.66 | CW29: 0.66 | CX29: 0.66 | CY29: 0.66 | CZ29: 0.66 | DA29: 0.66 | DB29: 0.66 | DC29: 0.66 | DD29: 0.66 | DE29: 0.66 | DF29: 0.66 | DG29: 0.66 | DH29: 0.66 | DI29: 0.66 | DJ29: 0.66 | DK29: 0.66 | DL29: 0.66 | DM29: 0.66 | DN29: 0.66 | DO29: 0.66 | DP29: 0.66 | DQ29: 0.66 | DR29: 0.66 | DS29: 0.66 | DT29: 0.66 | DU29: 0.66 | DV29: 0.66 | DW29: 0.66 | DX29: 0.66 | DY29: 0.66 | DZ29: 0.66 | EA29: 0.66 | EB29: 0.66 | EC29: 0.66 | ED29: 0.66 | EE29: 0.66 | EF29: 0.66 | EG29: 0.66 | EH29: =$F$29 -> 0.66 | EI29: 0.66 | EJ29: 0.66 | EK29: 0.66 | EL29: 0.66 | EM29: 0.66 | EN29: 0.66 | EO29: 0.66 | EP29: 0.66 | EQ29: 0.66 | ER29: 0.66 | ES29: 0.66 | ET29: 0.66 | EU29: 0.66 | EV29: 0.66 | EW29: 0.66 | EX29: 0.66 | EY29: 0.66 | EZ29: 0.66 | FA29: 0.66 | FB29: 0.66 | FC29: 0.66 | FD29: 0.66 | FE29: 0.66 | FF29: 0.66 | FG29: 0.66 | FH29: 0.66 | FI29: 0.66 | FJ29: 0.66 | FK29: 0.66 | FL29: 0.66 | FM29: 0.66 | FN29: 0.66 | FO29: 0.66 | FP29: 0.66 | FQ29: 0.66 | FR29: 0.66 | FS29: 0.66 | FT29: 0.66 | FU29: 0.66 | FV29: 0.66 | FW29: 0.66 | FX29: 0.66 | FY29: 0.66 | FZ29: 0.66 | GA29: 0.66 | GB29: 0.66 | GC29: 0.66 | GD29: 0.66 | GE29: 0.66 | GF29: 0.66 | GG29: 0.66 | GH29: 0.66 | GI29: 0.66 | GJ29: 0.66 | GK29: 0.66 | GL29: 0.66 | GM29: 0.66 | GN29: 0.66 | GO29: 0.66 | GP29: 0.66 | GQ29: 0.66 | GR29: 0.66 | GS29: 0.66 | GT29: =$F$29 -> 0.66 | GU29: 0.66 | GV29: 0.66 | GW29: 0.66 | GX29: 0.66 | GY29: 0.66 | GZ29: 0.66 | HA29: 0.66 | HB29: 0.66 | HC29: 0.66 | HD29: 0.66 | HE29: 0.66 | HF29: 0.66 | HG29: 0.66 | HH29: 0.66 | HI29: 0.66 | HJ29: 0.66 | HK29: 0.66 | HL29: 0.66 | HM29: 0.66 | HN29: 0.66 | HO29: 0.66 | HP29: 0.66 | HQ29: 0.66 | HR29: 0.66 | HS29: 0.66 | HT29: 0.66 | HU29: 0.66 | HV29: 0.66 | HW29: 0.66 | HX29: 0.66 | HY29: 0.66 | HZ29: 0.66 | IA29: 0.66 | IB29: 0.66 | IC29: 0.66 | ID29: 0.66 | IE29: 0.66 | IF29: 0.66 | IG29: 0.66 | IH29: 0.66 | II29: 0.66 | IJ29: 0.66 | IK29: 0.66 | IL29: 0.66 | IM29: 0.66 | IN29: 0.66 | IO29: 0.66 | IP29: 0.66 | IQ29: 0.66 | IR29: 0.66 | IS29: 0.66 | IT29: 0.66 | IU29: 0.66 | IV29: 0.66 | IW29: 0.66 | IX29: 0.66 | IY29: 0.66 | IZ29: 0.66 | JA29: 0.66 | JB29: 0.66 | JC29: 0.66 | JD29: 0.66 | JE29: 0.66 | JF29: =$F$29 -> 0.66 | JG29: 0.66 | JH29: 0.66 | JI29: 0.66 | JJ29: 0.66 | JK29: 0.66 | JL29: 0.66 | JM29: 0.66 | JN29: 0.66 | JO29: 0.66 | JP29: 0.66 | JQ29: 0.66 | JR29: 0.66 | JS29: 0.66 | JT29: 0.66 | JU29: 0.66 | JV29: 0.66 | JW29: 0.66 | JX29: 0.66 | JY29: 0.66 | JZ29: 0.66 | KA29: 0.66 | KB29: 0.66 | KC29: 0.66 | KD29: 0.66 | KE29: 0.66 | KF29: 0.66 | KG29: 0.66 | KH29: 0.66 | KI29: 0.66 | KJ29: 0.66 | KK29: 0.66 | KL29: 0.66 | KM29: 0.66 | KN29: 0.66 | KO29: 0.66 | KP29: 0.66 | KQ29: 0.66 | KR29: 0.66 | KS29: 0.66 | KT29: 0.66 | KU29: 0.66 | KV29: 0.66
C31: Million Tokens per Month Sold | E31: MM/Month | F31: =MAX(I31:KV31) -> 1320 | H31: =SUM(I31:XFD31) -> 364320 | I31: =I27*I29 -> 0 | J31: =J27*J29 -> 0 | K31: 0 | L31: 0 | M31: 0 | N31: 0 | O31: 0 | P31: 0 | Q31: 0 | R31: 0 | S31: 0 | T31: 0 | U31: 0 | V31: 0 | W31: 0 | X31: 0 | Y31: 0 | Z31: 0 | AA31: 0 | AB31: 0 | AC31: 0 | AD31: 0 | AE31: 0 | AF31: 0 | AG31: 1320 | AH31: 1320 | AI31: 1320 | AJ31: 1320 | AK31: 1320 | AL31: 1320 | AM31: 1320 | AN31: 1320 | AO31: 1320 | AP31: 1320 | AQ31: 1320 | AR31: 1320 | AS31: 1320 | AT31: 1320 | AU31: 1320 | AV31: 1320 | AW31: 1320 | AX31: 1320 | AY31: 1320 | AZ31: 1320 | BA31: 1320 | BB31: 1320 | BC31: 1320 | BD31: 1320 | BE31: 1320 | BF31: 1320 | BG31: 1320 | BH31: 1320 | BI31: 1320 | BJ31: 1320 | BK31: 1320 | BL31: 1320 | BM31: 1320 | BN31: 1320 | BO31: 1320 | BP31: 1320 | BQ31: 1320 | BR31: 1320 | BS31: 1320 | BT31: 1320 | BU31: 1320 | BV31: =BV27*BV29 -> 1320 | BW31: 1320 | BX31: 1320 | BY31: 1320 | BZ31: 1320 | CA31: 1320 | CB31: 1320 | CC31: 1320 | CD31: 1320 | CE31: 1320 | CF31: 1320 | CG31: 1320 | CH31: 1320 | CI31: 1320 | CJ31: 1320 | CK31: 1320 | CL31: 1320 | CM31: 1320 | CN31: 1320 | CO31: 1320 | CP31: 1320 | CQ31: 1320 | CR31: 1320 | CS31: 1320 | CT31: 1320 | CU31: 1320 | CV31: 1320 | CW31: 1320 | CX31: 1320 | CY31: 1320 | CZ31: 1320 | DA31: 1320 | DB31: 1320 | DC31: 1320 | DD31: 1320 | DE31: 1320 | DF31: 1320 | DG31: 1320 | DH31: 1320 | DI31: 1320 | DJ31: 1320 | DK31: 1320 | DL31: 1320 | DM31: 1320 | DN31: 1320 | DO31: 1320 | DP31: 1320 | DQ31: 1320 | DR31: 1320 | DS31: 1320 | DT31: 1320 | DU31: 1320 | DV31: 1320 | DW31: 1320 | DX31: 1320 | DY31: 1320 | DZ31: 1320 | EA31: 1320 | EB31: 1320 | EC31: 1320 | ED31: 1320 | EE31: 1320 | EF31: 1320 | EG31: 1320 | EH31: =EH27*EH29 -> 1320 | EI31: 1320 | EJ31: 1320 | EK31: 1320 | EL31: 1320 | EM31: 1320 | EN31: 1320 | EO31: 1320 | EP31: 1320 | EQ31: 1320 | ER31: 1320 | ES31: 1320 | ET31: 1320 | EU31: 1320 | EV31: 1320 | EW31: 1320 | EX31: 1320 | EY31: 1320 | EZ31: 1320 | FA31: 1320 | FB31: 1320 | FC31: 1320 | FD31: 1320 | FE31: 1320 | FF31: 1320 | FG31: 1320 | FH31: 1320 | FI31: 1320 | FJ31: 1320 | FK31: 1320 | FL31: 1320 | FM31: 1320 | FN31: 1320 | FO31: 1320 | FP31: 1320 | FQ31: 1320 | FR31: 1320 | FS31: 1320 | FT31: 1320 | FU31: 1320 | FV31: 1320 | FW31: 1320 | FX31: 1320 | FY31: 1320 | FZ31: 1320 | GA31: 1320 | GB31: 1320 | GC31: 1320 | GD31: 1320 | GE31: 1320 | GF31: 1320 | GG31: 1320 | GH31: 1320 | GI31: 1320 | GJ31: 1320 | GK31: 1320 | GL31: 1320 | GM31: 1320 | GN31: 1320 | GO31: 1320 | GP31: 1320 | GQ31: 1320 | GR31: 1320 | GS31: 1320 | GT31: =GT27*GT29 -> 1320 | GU31: 1320 | GV31: 1320 | GW31: 1320 | GX31: 1320 | GY31: 1320 | GZ31: 1320 | HA31: 1320 | HB31: 1320 | HC31: 1320 | HD31: 1320 | HE31: 1320 | HF31: 1320 | HG31: 1320 | HH31: 1320 | HI31: 1320 | HJ31: 1320 | HK31: 1320 | HL31: 1320 | HM31: 1320 | HN31: 1320 | HO31: 1320 | HP31: 1320 | HQ31: 1320 | HR31: 1320 | HS31: 1320 | HT31: 1320 | HU31: 1320 | HV31: 1320 | HW31: 1320 | HX31: 1320 | HY31: 1320 | HZ31: 1320 | IA31: 1320 | IB31: 1320 | IC31: 1320 | ID31: 1320 | IE31: 1320 | IF31: 1320 | IG31: 1320 | IH31: 1320 | II31: 1320 | IJ31: 1320 | IK31: 1320 | IL31: 1320 | IM31: 1320 | IN31: 1320 | IO31: 1320 | IP31: 1320 | IQ31: 1320 | IR31: 1320 | IS31: 1320 | IT31: 1320 | IU31: 1320 | IV31: 1320 | IW31: 1320 | IX31: 1320 | IY31: 1320 | IZ31: 1320 | JA31: 1320 | JB31: 1320 | JC31: 1320 | JD31: 1320 | JE31: 1320 | JF31: =JF27*JF29 -> 1320 | JG31: 1320 | JH31: 1320 | JI31: 1320 | JJ31: 1320 | JK31: 1320 | JL31: 1320 | JM31: 1320 | JN31: 1320 | JO31: 1320 | JP31: 1320 | JQ31: 1320 | JR31: 1320 | JS31: 1320 | JT31: 1320 | JU31: 1320 | JV31: 1320 | JW31: 1320 | JX31: 1320 | JY31: 1320 | JZ31: 1320 | KA31: 1320 | KB31: 1320 | KC31: 1320 | KD31: 1320 | KE31: 1320 | KF31: 1320 | KG31: 1320 | KH31: 1320 | KI31: 1320 | KJ31: 1320 | KK31: 1320 | KL31: 1320 | KM31: 1320 | KN31: 1320 | KO31: 1320 | KP31: 1320 | KQ31: 1320 | KR31: 1320 | KS31: 1320 | KT31: 1320 | KU31: 1320 | KV31: 1320
C33: Price of IT per MWH (Legacy) | E33: USD/MWH | F33: 6000 | G33: Price | I33: =$F$33 -> 6000 | J33: 6000 | K33: 6000 | L33: 6000 | M33: 6000 | N33: 6000 | O33: 6000 | P33: 6000 | Q33: 6000 | R33: 6000 | S33: 6000 | T33: 6000 | U33: 6000 | V33: 6000 | W33: 6000 | X33: 6000 | Y33: 6000 | Z33: 6000 | AA33: 6000 | AB33: 6000 | AC33: 6000 | AD33: 6000 | AE33: 6000 | AF33: 6000 | AG33: 6000 | AH33: 6000 | AI33: 6000 | AJ33: 6000 | AK33: 6000 | AL33: 6000 | AM33: 6000 | AN33: 6000 | AO33: 6000 | AP33: 6000 | AQ33: 6000 | AR33: 6000 | AS33: 6000 | AT33: 6000 | AU33: 6000 | AV33: 6000 | AW33: 6000 | AX33: 6000 | AY33: 6000 | AZ33: 6000 | BA33: 6000 | BB33: 6000 | BC33: 6000 | BD33: 6000 | BE33: 6000 | BF33: 6000 | BG33: 6000 | BH33: 6000 | BI33: 6000 | BJ33: 6000 | BK33: 6000 | BL33: 6000 | BM33: 6000 | BN33: 6000 | BO33: 6000 | BP33: 6000 | BQ33: 6000 | BR33: 6000 | BS33: 6000 | BT33: 6000 | BU33: =$F$33 -> 6000 | BV33: 6000 | BW33: 6000 | BX33: 6000 | BY33: 6000 | BZ33: 6000 | CA33: 6000 | CB33: 6000 | CC33: 6000 | CD33: 6000 | CE33: 6000 | CF33: 6000 | CG33: 6000 | CH33: 6000 | CI33: 6000 | CJ33: 6000 | CK33: 6000 | CL33: 6000 | CM33: 6000 | CN33: 6000 | CO33: 6000 | CP33: 6000 | CQ33: 6000 | CR33: 6000 | CS33: 6000 | CT33: 6000 | CU33: 6000 | CV33: 6000 | CW33: 6000 | CX33: 6000 | CY33: 6000 | CZ33: 6000 | DA33: 6000 | DB33: 6000 | DC33: 6000 | DD33: 6000 | DE33: 6000 | DF33: 6000 | DG33: 6000 | DH33: 6000 | DI33: 6000 | DJ33: 6000 | DK33: 6000 | DL33: 6000 | DM33: 6000 | DN33: 6000 | DO33: 6000 | DP33: 6000 | DQ33: 6000 | DR33: 6000 | DS33: 6000 | DT33: 6000 | DU33: 6000 | DV33: 6000 | DW33: 6000 | DX33: 6000 | DY33: 6000 | DZ33: 6000 | EA33: 6000 | EB33: 6000 | EC33: 6000 | ED33: 6000 | EE33: 6000 | EF33: 6000 | EG33: =$F$33 -> 6000 | EH33: 6000 | EI33: 6000 | EJ33: 6000 | EK33: 6000 | EL33: 6000 | EM33: 6000 | EN33: 6000 | EO33: 6000 | EP33: 6000 | EQ33: 6000 | ER33: 6000 | ES33: 6000 | ET33: 6000 | EU33: 6000 | EV33: 6000 | EW33: 6000 | EX33: 6000 | EY33: 6000 | EZ33: 6000 | FA33: 6000 | FB33: 6000 | FC33: 6000 | FD33: 6000 | FE33: 6000 | FF33: 6000 | FG33: 6000 | FH33: 6000 | FI33: 6000 | FJ33: 6000 | FK33: 6000 | FL33: 6000 | FM33: 6000 | FN33: 6000 | FO33: 6000 | FP33: 6000 | FQ33: 6000 | FR33: 6000 | FS33: 6000 | FT33: 6000 | FU33: 6000 | FV33: 6000 | FW33: 6000 | FX33: 6000 | FY33: 6000 | FZ33: 6000 | GA33: 6000 | GB33: 6000 | GC33: 6000 | GD33: 6000 | GE33: 6000 | GF33: 6000 | GG33: 6000 | GH33: 6000 | GI33: 6000 | GJ33: 6000 | GK33: 6000 | GL33: 6000 | GM33: 6000 | GN33: 6000 | GO33: 6000 | GP33: 6000 | GQ33: 6000 | GR33: 6000 | GS33: =$F$33 -> 6000 | GT33: 6000 | GU33: 6000 | GV33: 6000 | GW33: 6000 | GX33: 6000 | GY33: 6000 | GZ33: 6000 | HA33: 6000 | HB33: 6000 | HC33: 6000 | HD33: 6000 | HE33: 6000 | HF33: 6000 | HG33: 6000 | HH33: 6000 | HI33: 6000 | HJ33: 6000 | HK33: 6000 | HL33: 6000 | HM33: 6000 | HN33: 6000 | HO33: 6000 | HP33: 6000 | HQ33: 6000 | HR33: 6000 | HS33: 6000 | HT33: 6000 | HU33: 6000 | HV33: 6000 | HW33: 6000 | HX33: 6000 | HY33: 6000 | HZ33: 6000 | IA33: 6000 | IB33: 6000 | IC33: 6000 | ID33: 6000 | IE33: 6000 | IF33: 6000 | IG33: 6000 | IH33: 6000 | II33: 6000 | IJ33: 6000 | IK33: 6000 | IL33: 6000 | IM33: 6000 | IN33: 6000 | IO33: 6000 | IP33: 6000 | IQ33: 6000 | IR33: 6000 | IS33: 6000 | IT33: 6000 | IU33: 6000 | IV33: 6000 | IW33: 6000 | IX33: 6000 | IY33: 6000 | IZ33: 6000 | JA33: 6000 | JB33: 6000 | JC33: 6000 | JD33: 6000 | JE33: =$F$33 -> 6000 | JF33: 6000 | JG33: 6000 | JH33: 6000 | JI33: 6000 | JJ33: 6000 | JK33: 6000 | JL33: 6000 | JM33: 6000 | JN33: 6000 | JO33: 6000 | JP33: 6000 | JQ33: 6000 | JR33: 6000 | JS33: 6000 | JT33: 6000 | JU33: 6000 | JV33: 6000 | JW33: 6000 | JX33: 6000 | JY33: 6000 | JZ33: 6000 | KA33: 6000 | KB33: 6000 | KC33: 6000 | KD33: 6000 | KE33: 6000 | KF33: 6000 | KG33: 6000 | KH33: 6000 | KI33: 6000 | KJ33: 6000 | KK33: 6000 | KL33: 6000 | KM33: 6000 | KN33: 6000 | KO33: 6000 | KP33: 6000 | KQ33: 6000 | KR33: 6000 | KS33: 6000 | KT33: 6000 | KU33: 6000 | KV33: 6000
C35: Price from Input | E35: USD/MM Token | F35: =IF(use_goal_seek,InputC!G79,InputC!G80) -> 10906.80771 | G35: TRUE | H35: use goal seek
C36: Price from Goal Seek | E36: USD/MM Token | F36: 34.36213712
C37: Price per MM Token - Goal seek or Given | E37: USD/MM Token | F37: =IF(apply_goal_seek,Price,F35) -> 10906.80771 | G37: FALSE | H37: apply goal seek | I37: =$F$37 -> 10906.80771 | J37: =$F$37 -> 10906.80771 | K37: 10906.80771 | L37: 10906.80771 | M37: 10906.80771 | N37: 10906.80771 | O37: 10906.80771 | P37: 10906.80771 | Q37: 10906.80771 | R37: 10906.80771 | S37: 10906.80771 | T37: 10906.80771 | U37: 10906.80771 | V37: 10906.80771 | W37: 10906.80771 | X37: 10906.80771 | Y37: 10906.80771 | Z37: 10906.80771 | AA37: 10906.80771 | AB37: 10906.80771 | AC37: 10906.80771 | AD37: 10906.80771 | AE37: 10906.80771 | AF37: 10906.80771 | AG37: 10906.80771 | AH37: 10906.80771 | AI37: 10906.80771 | AJ37: 10906.80771 | AK37: 10906.80771 | AL37: 10906.80771 | AM37: 10906.80771 | AN37: 10906.80771 | AO37: 10906.80771 | AP37: 10906.80771 | AQ37: 10906.80771 | AR37: 10906.80771 | AS37: 10906.80771 | AT37: 10906.80771 | AU37: 10906.80771 | AV37: 10906.80771 | AW37: 10906.80771 | AX37: 10906.80771 | AY37: 10906.80771 | AZ37: 10906.80771 | BA37: 10906.80771 | BB37: 10906.80771 | BC37: 10906.80771 | BD37: 10906.80771 | BE37: 10906.80771 | BF37: 10906.80771 | BG37: 10906.80771 | BH37: 10906.80771 | BI37: 10906.80771 | BJ37: 10906.80771 | BK37: 10906.80771 | BL37: 10906.80771 | BM37: 10906.80771 | BN37: 10906.80771 | BO37: 10906.80771 | BP37: 10906.80771 | BQ37: 10906.80771 | BR37: 10906.80771 | BS37: 10906.80771 | BT37: 10906.80771 | BU37: 10906.80771 | BV37: =$F$37 -> 10906.80771 | BW37: 10906.80771 | BX37: 10906.80771 | BY37: 10906.80771 | BZ37: 10906.80771 | CA37: 10906.80771 | CB37: 10906.80771 | CC37: 10906.80771 | CD37: 10906.80771 | CE37: 10906.80771 | CF37: 10906.80771 | CG37: 10906.80771 | CH37: 10906.80771 | CI37: 10906.80771 | CJ37: 10906.80771 | CK37: 10906.80771 | CL37: 10906.80771 | CM37: 10906.80771 | CN37: 10906.80771 | CO37: 10906.80771 | CP37: 10906.80771 | CQ37: 10906.80771 | CR37: 10906.80771 | CS37: 10906.80771 | CT37: 10906.80771 | CU37: 10906.80771 | CV37: 10906.80771 | CW37: 10906.80771 | CX37: 10906.80771 | CY37: 10906.80771 | CZ37: 10906.80771 | DA37: 10906.80771 | DB37: 10906.80771 | DC37: 10906.80771 | DD37: 10906.80771 | DE37: 10906.80771 | DF37: 10906.80771 | DG37: 10906.80771 | DH37: 10906.80771 | DI37: 10906.80771 | DJ37: 10906.80771 | DK37: 10906.80771 | DL37: 10906.80771 | DM37: 10906.80771 | DN37: 10906.80771 | DO37: 10906.80771 | DP37: 10906.80771 | DQ37: 10906.80771 | DR37: 10906.80771 | DS37: 10906.80771 | DT37: 10906.80771 | DU37: 10906.80771 | DV37: 10906.80771 | DW37: 10906.80771 | DX37: 10906.80771 | DY37: 10906.80771 | DZ37: 10906.80771 | EA37: 10906.80771 | EB37: 10906.80771 | EC37: 10906.80771 | ED37: 10906.80771 | EE37: 10906.80771 | EF37: 10906.80771 | EG37: 10906.80771 | EH37: =$F$37 -> 10906.80771 | EI37: 10906.80771 | EJ37: 10906.80771 | EK37: 10906.80771 | EL37: 10906.80771 | EM37: 10906.80771 | EN37: 10906.80771 | EO37: 10906.80771 | EP37: 10906.80771 | EQ37: 10906.80771 | ER37: 10906.80771 | ES37: 10906.80771 | ET37: 10906.80771 | EU37: 10906.80771 | EV37: 10906.80771 | EW37: 10906.80771 | EX37: 10906.80771 | EY37: 10906.80771 | EZ37: 10906.80771 | FA37: 10906.80771 | FB37: 10906.80771 | FC37: 10906.80771 | FD37: 10906.80771 | FE37: 10906.80771 | FF37: 10906.80771 | FG37: 10906.80771 | FH37: 10906.80771 | FI37: 10906.80771 | FJ37: 10906.80771 | FK37: 10906.80771 | FL37: 10906.80771 | FM37: 10906.80771 | FN37: 10906.80771 | FO37: 10906.80771 | FP37: 10906.80771 | FQ37: 10906.80771 | FR37: 10906.80771 | FS37: 10906.80771 | FT37: 10906.80771 | FU37: 10906.80771 | FV37: 10906.80771 | FW37: 10906.80771 | FX37: 10906.80771 | FY37: 10906.80771 | FZ37: 10906.80771 | GA37: 10906.80771 | GB37: 10906.80771 | GC37: 10906.80771 | GD37: 10906.80771 | GE37: 10906.80771 | GF37: 10906.80771 | GG37: 10906.80771 | GH37: 10906.80771 | GI37: 10906.80771 | GJ37: 10906.80771 | GK37: 10906.80771 | GL37: 10906.80771 | GM37: 10906.80771 | GN37: 10906.80771 | GO37: 10906.80771 | GP37: 10906.80771 | GQ37: 10906.80771 | GR37: 10906.80771 | GS37: 10906.80771 | GT37: =$F$37 -> 10906.80771 | GU37: 10906.80771 | GV37: 10906.80771 | GW37: 10906.80771 | GX37: 10906.80771 | GY37: 10906.80771 | GZ37: 10906.80771 | HA37: 10906.80771 | HB37: 10906.80771 | HC37: 10906.80771 | HD37: 10906.80771 | HE37: 10906.80771 | HF37: 10906.80771 | HG37: 10906.80771 | HH37: 10906.80771 | HI37: 10906.80771 | HJ37: 10906.80771 | HK37: 10906.80771 | HL37: 10906.80771 | HM37: 10906.80771 | HN37: 10906.80771 | HO37: 10906.80771 | HP37: 10906.80771 | HQ37: 10906.80771 | HR37: 10906.80771 | HS37: 10906.80771 | HT37: 10906.80771 | HU37: 10906.80771 | HV37: 10906.80771 | HW37: 10906.80771 | HX37: 10906.80771 | HY37: 10906.80771 | HZ37: 10906.80771 | IA37: 10906.80771 | IB37: 10906.80771 | IC37: 10906.80771 | ID37: 10906.80771 | IE37: 10906.80771 | IF37: 10906.80771 | IG37: 10906.80771 | IH37: 10906.80771 | II37: 10906.80771 | IJ37: 10906.80771 | IK37: 10906.80771 | IL37: 10906.80771 | IM37: 10906.80771 | IN37: 10906.80771 | IO37: 10906.80771 | IP37: 10906.80771 | IQ37: 10906.80771 | IR37: 10906.80771 | IS37: 10906.80771 | IT37: 10906.80771 | IU37: 10906.80771 | IV37: 10906.80771 | IW37: 10906.80771 | IX37: 10906.80771 | IY37: 10906.80771 | IZ37: 10906.80771 | JA37: 10906.80771 | JB37: 10906.80771 | JC37: 10906.80771 | JD37: 10906.80771 | JE37: 10906.80771 | JF37: =$F$37 -> 10906.80771 | JG37: 10906.80771 | JH37: 10906.80771 | JI37: 10906.80771 | JJ37: 10906.80771 | JK37: 10906.80771 | JL37: 10906.80771 | JM37: 10906.80771 | JN37: 10906.80771 | JO37: 10906.80771 | JP37: 10906.80771 | JQ37: 10906.80771 | JR37: 10906.80771 | JS37: 10906.80771 | JT37: 10906.80771 | JU37: 10906.80771 | JV37: 10906.80771 | JW37: 10906.80771 | JX37: 10906.80771 | JY37: 10906.80771 | JZ37: 10906.80771 | KA37: 10906.80771 | KB37: 10906.80771 | KC37: 10906.80771 | KD37: 10906.80771 | KE37: 10906.80771 | KF37: 10906.80771 | KG37: 10906.80771 | KH37: 10906.80771 | KI37: 10906.80771 | KJ37: 10906.80771 | KK37: 10906.80771 | KL37: 10906.80771 | KM37: 10906.80771 | KN37: 10906.80771 | KO37: 10906.80771 | KP37: 10906.80771 | KQ37: 10906.80771 | KR37: 10906.80771 | KS37: 10906.80771 | KT37: 10906.80771 | KU37: 10906.80771 | KV37: 10906.80771
C38: Price per MM Token with Inflation | E38: USD/MM Token | I38: =I37*I46 -> 10924.82119 | J38: 10942.86442 | K38: 10960.93745 | L38: 10979.04033 | M38: 10997.17311 | N38: 11015.33583 | O38: 11033.52856 | P38: 11051.75133 | Q38: 11070.00419 | R38: 11088.2872 | S38: 11106.60041 | T38: 11124.94387 | U38: 11143.31761 | V38: 11161.72171 | W38: 11180.1562 | X38: 11198.62114 | Y38: 11217.11657 | Z38: 11235.64255 | AA38: 11254.19913 | AB38: 11272.78635 | AC38: 11291.40428 | AD38: 11310.05295 | AE38: 11328.73242 | AF38: 11347.44274 | AG38: 11366.18397 | AH38: 11384.95614 | AI38: 11403.75932 | AJ38: 11422.59356 | AK38: 11441.4589 | AL38: 11460.3554 | AM38: 11479.28311 | AN38: 11498.24208 | AO38: 11517.23236 | AP38: 11536.25401 | AQ38: 11555.30707 | AR38: 11574.3916 | AS38: 11593.50765 | AT38: 11612.65527 | AU38: 11631.83451 | AV38: 11651.04543 | AW38: 11670.28808 | AX38: 11689.56251 | AY38: 11708.86877 | AZ38: 11728.20692 | BA38: 11747.57701 | BB38: 11766.97909 | BC38: 11786.41321 | BD38: 11805.87943 | BE38: 11825.3778 | BF38: 11844.90837 | BG38: 11864.4712 | BH38: 11884.06634 | BI38: 11903.69384 | BJ38: 11923.35376 | BK38: 11943.04615 | BL38: 11962.77106 | BM38: 11982.52855 | BN38: 12002.31867 | BO38: 12022.14147 | BP38: 12041.99702 | BQ38: 12061.88536 | BR38: 12081.80654 | BS38: 12101.76063 | BT38: 12121.74767 | BU38: =BU37*BU46 -> 12141.76772 | BV38: 12161.82084 | BW38: 12181.90707 | BX38: 12202.02648 | BY38: 12222.17912 | BZ38: 12242.36504 | CA38: 12262.5843 | CB38: 12282.83696 | CC38: 12303.12306 | CD38: 12323.44267 | CE38: 12343.79584 | CF38: 12364.18262 | CG38: 12384.60307 | CH38: 12405.05725 | CI38: 12425.54521 | CJ38: 12446.06701 | CK38: 12466.6227 | CL38: 12487.21234 | CM38: 12507.83599 | CN38: 12528.4937 | CO38: 12549.18552 | CP38: 12569.91152 | CQ38: 12590.67175 | CR38: 12611.46627 | CS38: 12632.29513 | CT38: 12653.1584 | CU38: 12674.05612 | CV38: 12694.98835 | CW38: 12715.95516 | CX38: 12736.95659 | CY38: 12757.99271 | CZ38: 12779.06357 | DA38: 12800.16923 | DB38: 12821.30975 | DC38: 12842.48519 | DD38: 12863.6956 | DE38: 12884.94104 | DF38: 12906.22157 | DG38: 12927.53724 | DH38: 12948.88812 | DI38: 12970.27426 | DJ38: 12991.69572 | DK38: 13013.15256 | DL38: 13034.64484 | DM38: 13056.17262 | DN38: 13077.73595 | DO38: 13099.33489 | DP38: 13120.96951 | DQ38: 13142.63986 | DR38: 13164.346 | DS38: 13186.08798 | DT38: 13207.86588 | DU38: 13229.67974 | DV38: 13251.52964 | DW38: 13273.41562 | DX38: 13295.33774 | DY38: 13317.29607 | DZ38: 13339.29067 | EA38: 13361.32159 | EB38: 13383.3889 | EC38: 13405.49266 | ED38: 13427.63292 | EE38: 13449.80974 | EF38: 13472.0232 | EG38: =EG37*EG46 -> 13494.27334 | EH38: 13516.56023 | EI38: 13538.88393 | EJ38: 13561.24449 | EK38: 13583.64199 | EL38: 13606.07648 | EM38: 13628.54802 | EN38: 13651.05668 | EO38: 13673.60251 | EP38: 13696.18557 | EQ38: 13718.80594 | ER38: 13741.46366 | ES38: 13764.15881 | ET38: 13786.89143 | EU38: 13809.66161 | EV38: 13832.46938 | EW38: 13855.31483 | EX38: 13878.19801 | EY38: 13901.11898 | EZ38: 13924.07781 | FA38: 13947.07456 | FB38: 13970.10929 | FC38: 13993.18206 | FD38: 14016.29294 | FE38: 14039.44198 | FF38: 14062.62926 | FG38: 14085.85484 | FH38: 14109.11877 | FI38: 14132.42113 | FJ38: 14155.76197 | FK38: 14179.14136 | FL38: 14202.55937 | FM38: 14226.01605 | FN38: 14249.51147 | FO38: 14273.0457 | FP38: 14296.61879 | FQ38: 14320.23082 | FR38: 14343.88185 | FS38: 14367.57193 | FT38: 14391.30115 | FU38: 14415.06955 | FV38: 14438.87721 | FW38: 14462.72419 | FX38: 14486.61056 | FY38: 14510.53637 | FZ38: 14534.5017 | GA38: 14558.50661 | GB38: 14582.55117 | GC38: 14606.63544 | GD38: 14630.75948 | GE38: 14654.92337 | GF38: 14679.12717 | GG38: 14703.37094 | GH38: 14727.65476 | GI38: 14751.97867 | GJ38: 14776.34277 | GK38: 14800.7471 | GL38: 14825.19174 | GM38: 14849.67674 | GN38: 14874.20219 | GO38: 14898.76815 | GP38: 14923.37467 | GQ38: 14948.02184 | GR38: 14972.70971 | GS38: =GS37*GS46 -> 14997.43836 | GT38: 15022.20785 | GU38: 15047.01825 | GV38: 15071.86962 | GW38: 15096.76204 | GX38: 15121.69557 | GY38: 15146.67028 | GZ38: 15171.68624 | HA38: 15196.74351 | HB38: 15221.84217 | HC38: 15246.98228 | HD38: 15272.16391 | HE38: 15297.38713 | HF38: 15322.65201 | HG38: 15347.95861 | HH38: 15373.30701 | HI38: 15398.69728 | HJ38: 15424.12948 | HK38: 15449.60369 | HL38: 15475.11996 | HM38: 15500.67838 | HN38: 15526.27901 | HO38: 15551.92192 | HP38: 15577.60719 | HQ38: 15603.33487 | HR38: 15629.10505 | HS38: 15654.91779 | HT38: 15680.77315 | HU38: 15706.67123 | HV38: 15732.61207 | HW38: 15758.59576 | HX38: 15784.62236 | HY38: 15810.69195 | HZ38: 15836.80459 | IA38: 15862.96036 | IB38: 15889.15933 | IC38: 15915.40157 | ID38: 15941.68715 | IE38: 15968.01614 | IF38: 15994.38862 | IG38: 16020.80465 | IH38: 16047.26431 | II38: 16073.76767 | IJ38: 16100.31481 | IK38: 16126.90579 | IL38: 16153.54068 | IM38: 16180.21957 | IN38: 16206.94252 | IO38: 16233.7096 | IP38: 16260.52089 | IQ38: 16287.37646 | IR38: 16314.27639 | IS38: 16341.22074 | IT38: 16368.2096 | IU38: 16395.24303 | IV38: 16422.3211 | IW38: 16449.4439 | IX38: 16476.6115 | IY38: 16503.82396 | IZ38: 16531.08137 | JA38: 16558.38379 | JB38: 16585.73131 | JC38: 16613.12399 | JD38: 16640.56192 | JE38: =JE37*JE46 -> 16668.04516 | JF38: 16695.57379 | JG38: 16723.14789 | JH38: 16750.76753 | JI38: 16778.43278 | JJ38: 16806.14373 | JK38: 16833.90044 | JL38: 16861.70299 | JM38: 16889.55147 | JN38: 16917.44594 | JO38: 16945.38647 | JP38: 16973.37316 | JQ38: 17001.40606 | JR38: 17029.48527 | JS38: 17057.61085 | JT38: 17085.78288 | JU38: 17114.00144 | JV38: 17142.2666 | JW38: 17170.57845 | JX38: 17198.93705 | JY38: 17227.3425 | JZ38: 17255.79485 | KA38: 17284.2942 | KB38: 17312.84062 | KC38: 17341.43418 | KD38: 17370.07497 | KE38: 17398.76306 | KF38: 17427.49853 | KG38: 17456.28147 | KH38: 17485.11193 | KI38: 17513.99002 | KJ38: 17542.9158 | KK38: 17571.88935 | KL38: 17600.91075 | KM38: 17629.98009 | KN38: 17659.09743 | KO38: 17688.26287 | KP38: 17717.47647 | KQ38: 17746.73832 | KR38: 17776.04851 | KS38: 17805.40709 | KT38: 17834.81417 | KU38: 17864.26982 | KV38: 17893.77411
C39: Revenues from Selling Tokens | E39: USD | H39: =SUM(I39:XFD39) -> 5240692039 | I39: =I38*I31 -> 0 | J39: =J38*J31 -> 0 | K39: =K38*K31 -> 0 | L39: =L38*L31 -> 0 | M39: =M38*M31 -> 0 | N39: =N38*N31 -> 0 | O39: =O38*O31 -> 0 | P39: =P38*P31 -> 0 | Q39: =Q38*Q31 -> 0 | R39: =R38*R31 -> 0 | S39: =S38*S31 -> 0 | T39: =T38*T31 -> 0 | U39: =U38*U31 -> 0 | V39: =V38*V31 -> 0 | W39: =W38*W31 -> 0 | X39: =X38*X31 -> 0 | Y39: =Y38*Y31 -> 0 | Z39: =Z38*Z31 -> 0 | AA39: =AA38*AA31 -> 0 | AB39: =AB38*AB31 -> 0 | AC39: =AC38*AC31 -> 0 | AD39: =AD38*AD31 -> 0 | AE39: =AE38*AE31 -> 0 | AF39: =AF38*AF31 -> 0 | AG39: =AG38*AG31 -> 15003362.84 | AH39: =AH38*AH31 -> 15028142.11 | AI39: =AI38*AI31 -> 15052962.31 | AJ39: =AJ38*AJ31 -> 15077823.5 | AK39: =AK38*AK31 -> 15102725.75 | AL39: =AL38*AL31 -> 15127669.13 | AM39: =AM38*AM31 -> 15152653.71 | AN39: =AN38*AN31 -> 15177679.55 | AO39: =AO38*AO31 -> 15202746.72 | AP39: =AP38*AP31 -> 15227855.29 | AQ39: =AQ38*AQ31 -> 15253005.33 | AR39: =AR38*AR31 -> 15278196.91 | AS39: =AS38*AS31 -> 15303430.09 | AT39: =AT38*AT31 -> 15328704.95 | AU39: =AU38*AU31 -> 15354021.55 | AV39: =AV38*AV31 -> 15379379.97 | AW39: =AW38*AW31 -> 15404780.27 | AX39: =AX38*AX31 -> 15430222.51 | AY39: =AY38*AY31 -> 15455706.78 | AZ39: =AZ38*AZ31 -> 15481233.14 | BA39: =BA38*BA31 -> 15506801.65 | BB39: =BB38*BB31 -> 15532412.4 | BC39: =BC38*BC31 -> 15558065.44 | BD39: =BD38*BD31 -> 15583760.85 | BE39: =BE38*BE31 -> 15609498.7 | BF39: =BF38*BF31 -> 15635279.05 | BG39: =BG38*BG31 -> 15661101.99 | BH39: =BH38*BH31 -> 15686967.57 | BI39: =BI38*BI31 -> 15712875.87 | BJ39: =BJ38*BJ31 -> 15738826.96 | BK39: =BK38*BK31 -> 15764820.92 | BL39: =BL38*BL31 -> 15790857.8 | BM39: =BM38*BM31 -> 15816937.68 | BN39: =BN38*BN31 -> 15843060.64 | BO39: =BO38*BO31 -> 15869226.75 | BP39: =BP38*BP31 -> 15895436.06 | BQ39: =BQ38*BQ31 -> 15921688.67 | BR39: =BR38*BR31 -> 15947984.63 | BS39: =BS38*BS31 -> 15974324.03 | BT39: =BT38*BT31 -> 16000706.92 | BU39: =BU38*BU31 -> 16027133.39 | BV39: =BV38*BV31 -> 16053603.5 | BW39: =BW38*BW31 -> 16080117.33 | BX39: =BX38*BX31 -> 16106674.96 | BY39: =BY38*BY31 -> 16133276.44 | BZ39: =BZ38*BZ31 -> 16159921.86 | CA39: =CA38*CA31 -> 16186611.28 | CB39: =CB38*CB31 -> 16213344.79 | CC39: =CC38*CC31 -> 16240122.44 | CD39: =CD38*CD31 -> 16266944.33 | CE39: =CE38*CE31 -> 16293810.51 | CF39: =CF38*CF31 -> 16320721.06 | CG39: =CG38*CG31 -> 16347676.06 | CH39: =CH38*CH31 -> 16374675.57 | CI39: =CI38*CI31 -> 16401719.68 | CJ39: =CJ38*CJ31 -> 16428808.45 | CK39: =CK38*CK31 -> 16455941.97 | CL39: =CL38*CL31 -> 16483120.29 | CM39: =CM38*CM31 -> 16510343.51 | CN39: =CN38*CN31 -> 16537611.68 | CO39: =CO38*CO31 -> 16564924.89 | CP39: =CP38*CP31 -> 16592283.21 | CQ39: =CQ38*CQ31 -> 16619686.72 | CR39: =CR38*CR31 -> 16647135.48 | CS39: =CS38*CS31 -> 16674629.58 | CT39: =CT38*CT31 -> 16702169.08 | CU39: =CU38*CU31 -> 16729754.07 | CV39: =CV38*CV31 -> 16757384.62 | CW39: =CW38*CW31 -> 16785060.81 | CX39: =CX38*CX31 -> 16812782.7 | CY39: =CY38*CY31 -> 16840550.38 | CZ39: =CZ38*CZ31 -> 16868363.91 | DA39: =DA38*DA31 -> 16896223.39 | DB39: =DB38*DB31 -> 16924128.88 | DC39: =DC38*DC31 -> 16952080.45 | DD39: =DD38*DD31 -> 16980078.19 | DE39: =DE38*DE31 -> 17008122.17 | DF39: =DF38*DF31 -> 17036212.47 | DG39: =DG38*DG31 -> 17064349.16 | DH39: =DH38*DH31 -> 17092532.32 | DI39: =DI38*DI31 -> 17120762.02 | DJ39: =DJ38*DJ31 -> 17149038.35 | DK39: =DK38*DK31 -> 17177361.38 | DL39: =DL38*DL31 -> 17205731.19 | DM39: =DM38*DM31 -> 17234147.86 | DN39: =DN38*DN31 -> 17262611.45 | DO39: =DO38*DO31 -> 17291122.06 | DP39: =DP38*DP31 -> 17319679.75 | DQ39: =DQ38*DQ31 -> 17348284.61 | DR39: =DR38*DR31 -> 17376936.72 | DS39: =DS38*DS31 -> 17405636.14 | DT39: =DT38*DT31 -> 17434382.96 | DU39: =DU38*DU31 -> 17463177.26 | DV39: =DV38*DV31 -> 17492019.12 | DW39: =DW38*DW31 -> 17520908.61 | DX39: =DX38*DX31 -> 17549845.82 | DY39: =DY38*DY31 -> 17578830.81 | DZ39: =DZ38*DZ31 -> 17607863.68 | EA39: =EA38*EA31 -> 17636944.5 | EB39: =EB38*EB31 -> 17666073.35 | EC39: =EC38*EC31 -> 17695250.3 | ED39: =ED38*ED31 -> 17724475.45 | EE39: =EE38*EE31 -> 17753748.86 | EF39: =EF38*EF31 -> 17783070.62 | EG39: =EG38*EG31 -> 17812440.81 | EH39: =EH38*EH31 -> 17841859.5 | EI39: =EI38*EI31 -> 17871326.78 | EJ39: =EJ38*EJ31 -> 17900842.73 | EK39: =EK38*EK31 -> 17930407.43 | EL39: =EL38*EL31 -> 17960020.96 | EM39: =EM38*EM31 -> 17989683.39 | EN39: =EN38*EN31 -> 18019394.82 | EO39: =EO38*EO31 -> 18049155.31 | EP39: =EP38*EP31 -> 18078964.96 | EQ39: =EQ38*EQ31 -> 18108823.84 | ER39: =ER38*ER31 -> 18138732.03 | ES39: =ES38*ES31 -> 18168689.62 | ET39: =ET38*ET31 -> 18198696.69 | EU39: =EU38*EU31 -> 18228753.32 | EV39: =EV38*EV31 -> 18258859.59 | EW39: =EW38*EW31 -> 18289015.58 | EX39: =EX38*EX31 -> 18319221.38 | EY39: =EY38*EY31 -> 18349477.06 | EZ39: =EZ38*EZ31 -> 18379782.71 | FA39: =FA38*FA31 -> 18410138.42 | FB39: =FB38*FB31 -> 18440544.26 | FC39: =FC38*FC31 -> 18471000.32 | FD39: =FD38*FD31 -> 18501506.67 | FE39: =FE38*FE31 -> 18532063.42 | FF39: =FF38*FF31 -> 18562670.63 | FG39: =FG38*FG31 -> 18593328.39 | FH39: =FH38*FH31 -> 18624036.78 | FI39: =FI38*FI31 -> 18654795.89 | FJ39: =FJ38*FJ31 -> 18685605.8 | FK39: =FK38*FK31 -> 18716466.6 | FL39: =FL38*FL31 -> 18747378.37 | FM39: =FM38*FM31 -> 18778341.19 | FN39: =FN38*FN31 -> 18809355.14 | FO39: =FO38*FO31 -> 18840420.32 | FP39: =FP38*FP31 -> 18871536.81 | FQ39: =FQ38*FQ31 -> 18902704.69 | FR39: =FR38*FR31 -> 18933924.04 | FS39: =FS38*FS31 -> 18965194.95 | FT39: =FT38*FT31 -> 18996517.52 | FU39: =FU38*FU31 -> 19027891.81 | FV39: =FV38*FV31 -> 19059317.92 | FW39: =FW38*FW31 -> 19090795.93 | FX39: =FX38*FX31 -> 19122325.93 | FY39: =FY38*FY31 -> 19153908.01 | FZ39: =FZ38*FZ31 -> 19185542.25 | GA39: =GA38*GA31 -> 19217228.73 | GB39: =GB38*GB31 -> 19248967.54 | GC39: =GC38*GC31 -> 19280758.78 | GD39: =GD38*GD31 -> 19312602.52 | GE39: =GE38*GE31 -> 19344498.85 | GF39: =GF38*GF31 -> 19376447.87 | GG39: =GG38*GG31 -> 19408449.64 | GH39: =GH38*GH31 -> 19440504.28 | GI39: =GI38*GI31 -> 19472611.85 | GJ39: =GJ38*GJ31 -> 19504772.45 | GK39: =GK38*GK31 -> 19536986.17 | GL39: =GL38*GL31 -> 19569253.09 | GM39: =GM38*GM31 -> 19601573.3 | GN39: =GN38*GN31 -> 19633946.9 | GO39: =GO38*GO31 -> 19666373.95 | GP39: =GP38*GP31 -> 19698854.57 | GQ39: =GQ38*GQ31 -> 19731388.83 | GR39: =GR38*GR31 -> 19763976.82 | GS39: =GS38*GS31 -> 19796618.64 | GT39: =GT38*GT31 -> 19829314.36 | GU39: =GU38*GU31 -> 19862064.09 | GV39: =GV38*GV31 -> 19894867.9 | GW39: =GW38*GW31 -> 19927725.89 | GX39: =GX38*GX31 -> 19960638.15 | GY39: =GY38*GY31 -> 19993604.77 | GZ39: =GZ38*GZ31 -> 20026625.83 | HA39: =HA38*HA31 -> 20059701.43 | HB39: =HB38*HB31 -> 20092831.66 | HC39: =HC38*HC31 -> 20126016.61 | HD39: =HD38*HD31 -> 20159256.36 | HE39: =HE38*HE31 -> 20192551.01 | HF39: =HF38*HF31 -> 20225900.65 | HG39: =HG38*HG31 -> 20259305.37 | HH39: =HH38*HH31 -> 20292765.26 | HI39: =HI38*HI31 -> 20326280.41 | HJ39: =HJ38*HJ31 -> 20359850.92 | HK39: =HK38*HK31 -> 20393476.86 | HL39: =HL38*HL31 -> 20427158.35 | HM39: =HM38*HM31 -> 20460895.46 | HN39: =HN38*HN31 -> 20494688.29 | HO39: =HO38*HO31 -> 20528536.94 | HP39: =HP38*HP31 -> 20562441.49 | HQ39: =HQ38*HQ31 -> 20596402.03 | HR39: =HR38*HR31 -> 20630418.66 | HS39: =HS38*HS31 -> 20664491.48 | HT39: =HT38*HT31 -> 20698620.56 | HU39: =HU38*HU31 -> 20732806.02 | HV39: =HV38*HV31 -> 20767047.93 | HW39: =HW38*HW31 -> 20801346.4 | HX39: =HX38*HX31 -> 20835701.52 | HY39: =HY38*HY31 -> 20870113.37 | HZ39: =HZ38*HZ31 -> 20904582.06 | IA39: =IA38*IA31 -> 20939107.68 | IB39: =IB38*IB31 -> 20973690.32 | IC39: =IC38*IC31 -> 21008330.07 | ID39: =ID38*ID31 -> 21043027.04 | IE39: =IE38*IE31 -> 21077781.31 | IF39: =IF38*IF31 -> 21112592.98 | IG39: =IG38*IG31 -> 21147462.14 | IH39: =IH38*IH31 -> 21182388.89 | II39: =II38*II31 -> 21217373.33 | IJ39: =IJ38*IJ31 -> 21252415.55 | IK39: =IK38*IK31 -> 21287515.64 | IL39: =IL38*IL31 -> 21322673.7 | IM39: =IM38*IM31 -> 21357889.83 | IN39: =IN38*IN31 -> 21393164.12 | IO39: =IO38*IO31 -> 21428496.67 | IP39: =IP38*IP31 -> 21463887.58 | IQ39: =IQ38*IQ31 -> 21499336.93 | IR39: =IR38*IR31 -> 21534844.84 | IS39: =IS38*IS31 -> 21570411.38 | IT39: =IT38*IT31 -> 21606036.67 | IU39: =IU38*IU31 -> 21641720.8 | IV39: =IV38*IV31 -> 21677463.86 | IW39: =IW38*IW31 -> 21713265.95 | IX39: =IX38*IX31 -> 21749127.18 | IY39: =IY38*IY31 -> 21785047.63 | IZ39: =IZ38*IZ31 -> 21821027.41 | JA39: =JA38*JA31 -> 21857066.61 | JB39: =JB38*JB31 -> 21893165.33 | JC39: =JC38*JC31 -> 21929323.67 | JD39: =JD38*JD31 -> 21965541.73 | JE39: =JE38*JE31 -> 22001819.61 | JF39: =JF38*JF31 -> 22038157.4 | JG39: =JG38*JG31 -> 22074555.21 | JH39: =JH38*JH31 -> 22111013.14 | JI39: =JI38*JI31 -> 22147531.27 | JJ39: =JJ38*JJ31 -> 22184109.72 | JK39: =JK38*JK31 -> 22220748.58 | JL39: =JL38*JL31 -> 22257447.95 | JM39: =JM38*JM31 -> 22294207.94 | JN39: =JN38*JN31 -> 22331028.63 | JO39: =JO38*JO31 -> 22367910.14 | JP39: =JP38*JP31 -> 22404852.57 | JQ39: =JQ38*JQ31 -> 22441856 | JR39: =JR38*JR31 -> 22478920.55 | JS39: =JS38*JS31 -> 22516046.32 | JT39: =JT38*JT31 -> 22553233.4 | JU39: =JU38*JU31 -> 22590481.9 | JV39: =JV38*JV31 -> 22627791.91 | JW39: =JW38*JW31 -> 22665163.55 | JX39: =JX38*JX31 -> 22702596.91 | JY39: =JY38*JY31 -> 22740092.1 | JZ39: =JZ38*JZ31 -> 22777649.21 | KA39: =KA38*KA31 -> 22815268.35 | KB39: =KB38*KB31 -> 22852949.62 | KC39: =KC38*KC31 -> 22890693.12 | KD39: =KD38*KD31 -> 22928498.96 | KE39: =KE38*KE31 -> 22966367.24 | KF39: =KF38*KF31 -> 23004298.07 | KG39: =KG38*KG31 -> 23042291.53 | KH39: =KH38*KH31 -> 23080347.75 | KI39: =KI38*KI31 -> 23118466.82 | KJ39: =KJ38*KJ31 -> 23156648.85 | KK39: =KK38*KK31 -> 23194893.94 | KL39: =KL38*KL31 -> 23233202.19 | KM39: =KM38*KM31 -> 23271573.71 | KN39: =KN38*KN31 -> 23310008.61 | KO39: =KO38*KO31 -> 23348506.98 | KP39: =KP38*KP31 -> 23387068.94 | KQ39: =KQ38*KQ31 -> 23425694.59 | KR39: =KR38*KR31 -> 23464384.03 | KS39: =KS38*KS31 -> 23503137.36 | KT39: =KT38*KT31 -> 23541954.71 | KU39: =KU38*KU31 -> 23580836.16 | KV39: =KV38*KV31 -> 23619781.83
C40: IRR | E40: % | F40: =F117 -> 0.0900000006
B42: Inflation and Economic Statistics
C44: Annual Inflation Rate | E44: % p.a. | F44: =InputC!G66 -> 0.02 | I44: =$F$44 -> 0.02 | J44: 0.02 | K44: 0.02 | L44: 0.02 | M44: 0.02 | N44: 0.02 | O44: 0.02 | P44: 0.02 | Q44: 0.02 | R44: 0.02 | S44: 0.02 | T44: 0.02 | U44: 0.02 | V44: 0.02 | W44: 0.02 | X44: 0.02 | Y44: 0.02 | Z44: 0.02 | AA44: 0.02 | AB44: 0.02 | AC44: 0.02 | AD44: 0.02 | AE44: 0.02 | AF44: 0.02 | AG44: 0.02 | AH44: 0.02 | AI44: 0.02 | AJ44: 0.02 | AK44: 0.02 | AL44: 0.02 | AM44: 0.02 | AN44: 0.02 | AO44: 0.02 | AP44: 0.02 | AQ44: 0.02 | AR44: 0.02 | AS44: 0.02 | AT44: 0.02 | AU44: 0.02 | AV44: 0.02 | AW44: 0.02 | AX44: 0.02 | AY44: 0.02 | AZ44: 0.02 | BA44: 0.02 | BB44: 0.02 | BC44: 0.02 | BD44: 0.02 | BE44: 0.02 | BF44: 0.02 | BG44: 0.02 | BH44: 0.02 | BI44: 0.02 | BJ44: 0.02 | BK44: 0.02 | BL44: 0.02 | BM44: 0.02 | BN44: 0.02 | BO44: 0.02 | BP44: 0.02 | BQ44: 0.02 | BR44: 0.02 | BS44: 0.02 | BT44: 0.02 | BU44: =$F$44 -> 0.02 | BV44: 0.02 | BW44: 0.02 | BX44: 0.02 | BY44: 0.02 | BZ44: 0.02 | CA44: 0.02 | CB44: 0.02 | CC44: 0.02 | CD44: 0.02 | CE44: 0.02 | CF44: 0.02 | CG44: 0.02 | CH44: 0.02 | CI44: 0.02 | CJ44: 0.02 | CK44: 0.02 | CL44: 0.02 | CM44: 0.02 | CN44: 0.02 | CO44: 0.02 | CP44: 0.02 | CQ44: 0.02 | CR44: 0.02 | CS44: 0.02 | CT44: 0.02 | CU44: 0.02 | CV44: 0.02 | CW44: 0.02 | CX44: 0.02 | CY44: 0.02 | CZ44: 0.02 | DA44: 0.02 | DB44: 0.02 | DC44: 0.02 | DD44: 0.02 | DE44: 0.02 | DF44: 0.02 | DG44: 0.02 | DH44: 0.02 | DI44: 0.02 | DJ44: 0.02 | DK44: 0.02 | DL44: 0.02 | DM44: 0.02 | DN44: 0.02 | DO44: 0.02 | DP44: 0.02 | DQ44: 0.02 | DR44: 0.02 | DS44: 0.02 | DT44: 0.02 | DU44: 0.02 | DV44: 0.02 | DW44: 0.02 | DX44: 0.02 | DY44: 0.02 | DZ44: 0.02 | EA44: 0.02 | EB44: 0.02 | EC44: 0.02 | ED44: 0.02 | EE44: 0.02 | EF44: 0.02 | EG44: =$F$44 -> 0.02 | EH44: 0.02 | EI44: 0.02 | EJ44: 0.02 | EK44: 0.02 | EL44: 0.02 | EM44: 0.02 | EN44: 0.02 | EO44: 0.02 | EP44: 0.02 | EQ44: 0.02 | ER44: 0.02 | ES44: 0.02 | ET44: 0.02 | EU44: 0.02 | EV44: 0.02 | EW44: 0.02 | EX44: 0.02 | EY44: 0.02 | EZ44: 0.02 | FA44: 0.02 | FB44: 0.02 | FC44: 0.02 | FD44: 0.02 | FE44: 0.02 | FF44: 0.02 | FG44: 0.02 | FH44: 0.02 | FI44: 0.02 | FJ44: 0.02 | FK44: 0.02 | FL44: 0.02 | FM44: 0.02 | FN44: 0.02 | FO44: 0.02 | FP44: 0.02 | FQ44: 0.02 | FR44: 0.02 | FS44: 0.02 | FT44: 0.02 | FU44: 0.02 | FV44: 0.02 | FW44: 0.02 | FX44: 0.02 | FY44: 0.02 | FZ44: 0.02 | GA44: 0.02 | GB44: 0.02 | GC44: 0.02 | GD44: 0.02 | GE44: 0.02 | GF44: 0.02 | GG44: 0.02 | GH44: 0.02 | GI44: 0.02 | GJ44: 0.02 | GK44: 0.02 | GL44: 0.02 | GM44: 0.02 | GN44: 0.02 | GO44: 0.02 | GP44: 0.02 | GQ44: 0.02 | GR44: 0.02 | GS44: =$F$44 -> 0.02 | GT44: 0.02 | GU44: 0.02 | GV44: 0.02 | GW44: 0.02 | GX44: 0.02 | GY44: 0.02 | GZ44: 0.02 | HA44: 0.02 | HB44: 0.02 | HC44: 0.02 | HD44: 0.02 | HE44: 0.02 | HF44: 0.02 | HG44: 0.02 | HH44: 0.02 | HI44: 0.02 | HJ44: 0.02 | HK44: 0.02 | HL44: 0.02 | HM44: 0.02 | HN44: 0.02 | HO44: 0.02 | HP44: 0.02 | HQ44: 0.02 | HR44: 0.02 | HS44: 0.02 | HT44: 0.02 | HU44: 0.02 | HV44: 0.02 | HW44: 0.02 | HX44: 0.02 | HY44: 0.02 | HZ44: 0.02 | IA44: 0.02 | IB44: 0.02 | IC44: 0.02 | ID44: 0.02 | IE44: 0.02 | IF44: 0.02 | IG44: 0.02 | IH44: 0.02 | II44: 0.02 | IJ44: 0.02 | IK44: 0.02 | IL44: 0.02 | IM44: 0.02 | IN44: 0.02 | IO44: 0.02 | IP44: 0.02 | IQ44: 0.02 | IR44: 0.02 | IS44: 0.02 | IT44: 0.02 | IU44: 0.02 | IV44: 0.02 | IW44: 0.02 | IX44: 0.02 | IY44: 0.02 | IZ44: 0.02 | JA44: 0.02 | JB44: 0.02 | JC44: 0.02 | JD44: 0.02 | JE44: =$F$44 -> 0.02 | JF44: 0.02 | JG44: 0.02 | JH44: 0.02 | JI44: 0.02 | JJ44: 0.02 | JK44: 0.02 | JL44: 0.02 | JM44: 0.02 | JN44: 0.02 | JO44: 0.02 | JP44: 0.02 | JQ44: 0.02 | JR44: 0.02 | JS44: 0.02 | JT44: 0.02 | JU44: 0.02 | JV44: 0.02 | JW44: 0.02 | JX44: 0.02 | JY44: 0.02 | JZ44: 0.02 | KA44: 0.02 | KB44: 0.02 | KC44: 0.02 | KD44: 0.02 | KE44: 0.02 | KF44: 0.02 | KG44: 0.02 | KH44: 0.02 | KI44: 0.02 | KJ44: 0.02 | KK44: 0.02 | KL44: 0.02 | KM44: 0.02 | KN44: 0.02 | KO44: 0.02 | KP44: 0.02 | KQ44: 0.02 | KR44: 0.02 | KS44: 0.02 | KT44: 0.02 | KU44: 0.02 | KV44: 0.02
C45: Monthly Inflation Rate | E45: % p.m | F45: =(1+F44)^(1/12)-1 -> 0.001651581302 | I45: =$F$45 -> 0.001651581302 | J45: =$F$45 -> 0.001651581302 | K45: 0.001651581302 | L45: 0.001651581302 | M45: 0.001651581302 | N45: 0.001651581302 | O45: 0.001651581302 | P45: 0.001651581302 | Q45: 0.001651581302 | R45: 0.001651581302 | S45: 0.001651581302 | T45: 0.001651581302 | U45: 0.001651581302 | V45: 0.001651581302 | W45: 0.001651581302 | X45: 0.001651581302 | Y45: 0.001651581302 | Z45: 0.001651581302 | AA45: 0.001651581302 | AB45: 0.001651581302 | AC45: 0.001651581302 | AD45: 0.001651581302 | AE45: 0.001651581302 | AF45: 0.001651581302 | AG45: 0.001651581302 | AH45: 0.001651581302 | AI45: 0.001651581302 | AJ45: 0.001651581302 | AK45: 0.001651581302 | AL45: 0.001651581302 | AM45: 0.001651581302 | AN45: 0.001651581302 | AO45: 0.001651581302 | AP45: 0.001651581302 | AQ45: 0.001651581302 | AR45: 0.001651581302 | AS45: 0.001651581302 | AT45: 0.001651581302 | AU45: 0.001651581302 | AV45: 0.001651581302 | AW45: 0.001651581302 | AX45: 0.001651581302 | AY45: 0.001651581302 | AZ45: 0.001651581302 | BA45: 0.001651581302 | BB45: 0.001651581302 | BC45: 0.001651581302 | BD45: 0.001651581302 | BE45: 0.001651581302 | BF45: 0.001651581302 | BG45: 0.001651581302 | BH45: 0.001651581302 | BI45: 0.001651581302 | BJ45: 0.001651581302 | BK45: 0.001651581302 | BL45: 0.001651581302 | BM45: 0.001651581302 | BN45: 0.001651581302 | BO45: 0.001651581302 | BP45: 0.001651581302 | BQ45: 0.001651581302 | BR45: 0.001651581302 | BS45: 0.001651581302 | BT45: 0.001651581302 | BU45: 0.001651581302 | BV45: =$F$45 -> 0.001651581302 | BW45: 0.001651581302 | BX45: 0.001651581302 | BY45: 0.001651581302 | BZ45: 0.001651581302 | CA45: 0.001651581302 | CB45: 0.001651581302 | CC45: 0.001651581302 | CD45: 0.001651581302 | CE45: 0.001651581302 | CF45: 0.001651581302 | CG45: 0.001651581302 | CH45: 0.001651581302 | CI45: 0.001651581302 | CJ45: 0.001651581302 | CK45: 0.001651581302 | CL45: 0.001651581302 | CM45: 0.001651581302 | CN45: 0.001651581302 | CO45: 0.001651581302 | CP45: 0.001651581302 | CQ45: 0.001651581302 | CR45: 0.001651581302 | CS45: 0.001651581302 | CT45: 0.001651581302 | CU45: 0.001651581302 | CV45: 0.001651581302 | CW45: 0.001651581302 | CX45: 0.001651581302 | CY45: 0.001651581302 | CZ45: 0.001651581302 | DA45: 0.001651581302 | DB45: 0.001651581302 | DC45: 0.001651581302 | DD45: 0.001651581302 | DE45: 0.001651581302 | DF45: 0.001651581302 | DG45: 0.001651581302 | DH45: 0.001651581302 | DI45: 0.001651581302 | DJ45: 0.001651581302 | DK45: 0.001651581302 | DL45: 0.001651581302 | DM45: 0.001651581302 | DN45: 0.001651581302 | DO45: 0.001651581302 | DP45: 0.001651581302 | DQ45: 0.001651581302 | DR45: 0.001651581302 | DS45: 0.001651581302 | DT45: 0.001651581302 | DU45: 0.001651581302 | DV45: 0.001651581302 | DW45: 0.001651581302 | DX45: 0.001651581302 | DY45: 0.001651581302 | DZ45: 0.001651581302 | EA45: 0.001651581302 | EB45: 0.001651581302 | EC45: 0.001651581302 | ED45: 0.001651581302 | EE45: 0.001651581302 | EF45: 0.001651581302 | EG45: 0.001651581302 | EH45: =$F$45 -> 0.001651581302 | EI45: 0.001651581302 | EJ45: 0.001651581302 | EK45: 0.001651581302 | EL45: 0.001651581302 | EM45: 0.001651581302 | EN45: 0.001651581302 | EO45: 0.001651581302 | EP45: 0.001651581302 | EQ45: 0.001651581302 | ER45: 0.001651581302 | ES45: 0.001651581302 | ET45: 0.001651581302 | EU45: 0.001651581302 | EV45: 0.001651581302 | EW45: 0.001651581302 | EX45: 0.001651581302 | EY45: 0.001651581302 | EZ45: 0.001651581302 | FA45: 0.001651581302 | FB45: 0.001651581302 | FC45: 0.001651581302 | FD45: 0.001651581302 | FE45: 0.001651581302 | FF45: 0.001651581302 | FG45: 0.001651581302 | FH45: 0.001651581302 | FI45: 0.001651581302 | FJ45: 0.001651581302 | FK45: 0.001651581302 | FL45: 0.001651581302 | FM45: 0.001651581302 | FN45: 0.001651581302 | FO45: 0.001651581302 | FP45: 0.001651581302 | FQ45: 0.001651581302 | FR45: 0.001651581302 | FS45: 0.001651581302 | FT45: 0.001651581302 | FU45: 0.001651581302 | FV45: 0.001651581302 | FW45: 0.001651581302 | FX45: 0.001651581302 | FY45: 0.001651581302 | FZ45: 0.001651581302 | GA45: 0.001651581302 | GB45: 0.001651581302 | GC45: 0.001651581302 | GD45: 0.001651581302 | GE45: 0.001651581302 | GF45: 0.001651581302 | GG45: 0.001651581302 | GH45: 0.001651581302 | GI45: 0.001651581302 | GJ45: 0.001651581302 | GK45: 0.001651581302 | GL45: 0.001651581302 | GM45: 0.001651581302 | GN45: 0.001651581302 | GO45: 0.001651581302 | GP45: 0.001651581302 | GQ45: 0.001651581302 | GR45: 0.001651581302 | GS45: 0.001651581302 | GT45: =$F$45 -> 0.001651581302 | GU45: 0.001651581302 | GV45: 0.001651581302 | GW45: 0.001651581302 | GX45: 0.001651581302 | GY45: 0.001651581302 | GZ45: 0.001651581302 | HA45: 0.001651581302 | HB45: 0.001651581302 | HC45: 0.001651581302 | HD45: 0.001651581302 | HE45: 0.001651581302 | HF45: 0.001651581302 | HG45: 0.001651581302 | HH45: 0.001651581302 | HI45: 0.001651581302 | HJ45: 0.001651581302 | HK45: 0.001651581302 | HL45: 0.001651581302 | HM45: 0.001651581302 | HN45: 0.001651581302 | HO45: 0.001651581302 | HP45: 0.001651581302 | HQ45: 0.001651581302 | HR45: 0.001651581302 | HS45: 0.001651581302 | HT45: 0.001651581302 | HU45: 0.001651581302 | HV45: 0.001651581302 | HW45: 0.001651581302 | HX45: 0.001651581302 | HY45: 0.001651581302 | HZ45: 0.001651581302 | IA45: 0.001651581302 | IB45: 0.001651581302 | IC45: 0.001651581302 | ID45: 0.001651581302 | IE45: 0.001651581302 | IF45: 0.001651581302 | IG45: 0.001651581302 | IH45: 0.001651581302 | II45: 0.001651581302 | IJ45: 0.001651581302 | IK45: 0.001651581302 | IL45: 0.001651581302 | IM45: 0.001651581302 | IN45: 0.001651581302 | IO45: 0.001651581302 | IP45: 0.001651581302 | IQ45: 0.001651581302 | IR45: 0.001651581302 | IS45: 0.001651581302 | IT45: 0.001651581302 | IU45: 0.001651581302 | IV45: 0.001651581302 | IW45: 0.001651581302 | IX45: 0.001651581302 | IY45: 0.001651581302 | IZ45: 0.001651581302 | JA45: 0.001651581302 | JB45: 0.001651581302 | JC45: 0.001651581302 | JD45: 0.001651581302 | JE45: 0.001651581302 | JF45: =$F$45 -> 0.001651581302 | JG45: 0.001651581302 | JH45: 0.001651581302 | JI45: 0.001651581302 | JJ45: 0.001651581302 | JK45: 0.001651581302 | JL45: 0.001651581302 | JM45: 0.001651581302 | JN45: 0.001651581302 | JO45: 0.001651581302 | JP45: 0.001651581302 | JQ45: 0.001651581302 | JR45: 0.001651581302 | JS45: 0.001651581302 | JT45: 0.001651581302 | JU45: 0.001651581302 | JV45: 0.001651581302 | JW45: 0.001651581302 | JX45: 0.001651581302 | JY45: 0.001651581302 | JZ45: 0.001651581302 | KA45: 0.001651581302 | KB45: 0.001651581302 | KC45: 0.001651581302 | KD45: 0.001651581302 | KE45: 0.001651581302 | KF45: 0.001651581302 | KG45: 0.001651581302 | KH45: 0.001651581302 | KI45: 0.001651581302 | KJ45: 0.001651581302 | KK45: 0.001651581302 | KL45: 0.001651581302 | KM45: 0.001651581302 | KN45: 0.001651581302 | KO45: 0.001651581302 | KP45: 0.001651581302 | KQ45: 0.001651581302 | KR45: 0.001651581302 | KS45: 0.001651581302 | KT45: 0.001651581302 | KU45: 0.001651581302 | KV45: 0.001651581302
C46: Inflation Index | E46: Index | H46: 1 | I46: =H46*(1+I45) -> 1.001651581 | J46: =I46*(1+J45) -> 1.00330589 | K46: 1.004962932 | L46: 1.00662271 | M46: 1.008285229 | N46: 1.009950494 | O46: 1.011618509 | P46: 1.013289279 | Q46: 1.014962809 | R46: 1.016639103 | S46: 1.018318165 | T46: 1.02 | U46: 1.021684613 | V46: 1.023372008 | W46: 1.02506219 | X46: 1.026755164 | Y46: 1.028450933 | Z46: 1.030149504 | AA46: 1.031850879 | AB46: 1.033555065 | AC46: 1.035262065 | AD46: 1.036971885 | AE46: 1.038684528 | AF46: 1.0404 | AG46: 1.042118305 | AH46: 1.043839448 | AI46: 1.045563434 | AJ46: 1.047290267 | AK46: 1.049019952 | AL46: 1.050752494 | AM46: 1.052487897 | AN46: 1.054226166 | AO46: 1.055967307 | AP46: 1.057711322 | AQ46: 1.059458219 | AR46: 1.061208 | AS46: 1.062960671 | AT46: 1.064716237 | AU46: 1.066474703 | AV46: 1.068236072 | AW46: 1.070000351 | AX46: 1.071767544 | AY46: 1.073537655 | AZ46: 1.07531069 | BA46: 1.077086653 | BB46: 1.078865549 | BC46: 1.080647383 | BD46: 1.08243216 | BE46: 1.084219885 | BF46: 1.086010562 | BG46: 1.087804197 | BH46: 1.089600794 | BI46: 1.091400358 | BJ46: 1.093202895 | BK46: 1.095008408 | BL46: 1.096816903 | BM46: 1.098628386 | BN46: 1.10044286 | BO46: 1.102260331 | BP46: 1.104080803 | BQ46: 1.105904282 | BR46: 1.107730773 | BS46: 1.109560281 | BT46: 1.11139281 | BU46: 1.113228365 | BV46: =BU46*(1+BV45) -> 1.115066952 | BW46: 1.116908576 | BX46: 1.118753241 | BY46: 1.120600953 | BZ46: 1.122451717 | CA46: 1.124305537 | CB46: 1.126162419 | CC46: 1.128022368 | CD46: 1.129885389 | CE46: 1.131751486 | CF46: 1.133620666 | CG46: 1.135492933 | CH46: 1.137368291 | CI46: 1.139246748 | CJ46: 1.141128306 | CK46: 1.143012972 | CL46: 1.144900751 | CM46: 1.146791648 | CN46: 1.148685668 | CO46: 1.150582815 | CP46: 1.152483096 | CQ46: 1.154386516 | CR46: 1.156293079 | CS46: 1.158202791 | CT46: 1.160115657 | CU46: 1.162031683 | CV46: 1.163950872 | CW46: 1.165873232 | CX46: 1.167798766 | CY46: 1.169727481 | CZ46: 1.171659381 | DA46: 1.173594472 | DB46: 1.175532758 | DC46: 1.177474246 | DD46: 1.179418941 | DE46: 1.181366847 | DF46: 1.18331797 | DG46: 1.185272316 | DH46: 1.18722989 | DI46: 1.189190697 | DJ46: 1.191154742 | DK46: 1.193122031 | DL46: 1.195092569 | DM46: 1.197066361 | DN46: 1.199043414 | DO46: 1.201023731 | DP46: 1.20300732 | DQ46: 1.204994184 | DR46: 1.20698433 | DS46: 1.208977763 | DT46: 1.210974488 | DU46: 1.21297451 | DV46: 1.214977837 | DW46: 1.216984471 | DX46: 1.21899442 | DY46: 1.221007688 | DZ46: 1.223024282 | EA46: 1.225044206 | EB46: 1.227067466 | EC46: 1.229094068 | ED46: 1.231124016 | EE46: 1.233157318 | EF46: 1.235193977 | EG46: 1.237234001 | EH46: =EG46*(1+EH45) -> 1.239277393 | EI46: 1.241324161 | EJ46: 1.243374308 | EK46: 1.245427842 | EL46: 1.247484767 | EM46: 1.24954509 | EN46: 1.251608815 | EO46: 1.253675949 | EP46: 1.255746497 | EQ46: 1.257820464 | ER46: 1.259897857 | ES46: 1.261978681 | ET46: 1.264062941 | EU46: 1.266150644 | EV46: 1.268241795 | EW46: 1.270336399 | EX46: 1.272434463 | EY46: 1.274535992 | EZ46: 1.276640992 | FA46: 1.278749468 | FB46: 1.280861427 | FC46: 1.282976874 | FD46: 1.285095814 | FE46: 1.287218254 | FF46: 1.2893442 | FG46: 1.291473657 | FH46: 1.29360663 | FI46: 1.295743127 | FJ46: 1.297883152 | FK46: 1.300026712 | FL46: 1.302173811 | FM46: 1.304324457 | FN46: 1.306478655 | FO46: 1.308636411 | FP46: 1.31079773 | FQ46: 1.312962619 | FR46: 1.315131084 | FS46: 1.31730313 | FT46: 1.319478763 | FU46: 1.32165799 | FV46: 1.323840815 | FW46: 1.326027246 | FX46: 1.328217288 | FY46: 1.330410947 | FZ46: 1.332608228 | GA46: 1.334809139 | GB46: 1.337013685 | GC46: 1.339221872 | GD46: 1.341433706 | GE46: 1.343649192 | GF46: 1.345868338 | GG46: 1.348091149 | GH46: 1.350317631 | GI46: 1.352547791 | GJ46: 1.354781633 | GK46: 1.357019165 | GL46: 1.359260393 | GM46: 1.361505322 | GN46: 1.363753959 | GO46: 1.366006309 | GP46: 1.36826238 | GQ46: 1.370522176 | GR46: 1.372785705 | GS46: 1.375052972 | GT46: =GS46*(1+GT45) -> 1.377323984 | GU46: 1.379598747 | GV46: 1.381877266 | GW46: 1.384159549 | GX46: 1.386445601 | GY46: 1.388735428 | GZ46: 1.391029038 | HA46: 1.393326435 | HB46: 1.395627627 | HC46: 1.39793262 | HD46: 1.400241419 | HE46: 1.402554032 | HF46: 1.404870464 | HG46: 1.407190722 | HH46: 1.409514811 | HI46: 1.41184274 | HJ46: 1.414174513 | HK46: 1.416510137 | HL46: 1.418849619 | HM46: 1.421192964 | HN46: 1.42354018 | HO46: 1.425891272 | HP46: 1.428246248 | HQ46: 1.430605112 | HR46: 1.432967873 | HS46: 1.435334536 | HT46: 1.437705108 | HU46: 1.440079595 | HV46: 1.442458003 | HW46: 1.44484034 | HX46: 1.447226611 | HY46: 1.449616823 | HZ46: 1.452010983 | IA46: 1.454409098 | IB46: 1.456811173 | IC46: 1.459217215 | ID46: 1.46162723 | IE46: 1.464041227 | IF46: 1.46645921 | IG46: 1.468881186 | IH46: 1.471307163 | II46: 1.473737147 | IJ46: 1.476171143 | IK46: 1.47860916 | IL46: 1.481051203 | IM46: 1.48349728 | IN46: 1.485947396 | IO46: 1.488401559 | IP46: 1.490859775 | IQ46: 1.493322051 | IR46: 1.495788394 | IS46: 1.49825881 | IT46: 1.500733306 | IU46: 1.503211889 | IV46: 1.505694566 | IW46: 1.508181343 | IX46: 1.510672227 | IY46: 1.513167225 | IZ46: 1.515666344 | JA46: 1.51816959 | JB46: 1.520676971 | JC46: 1.523188492 | JD46: 1.525704162 | JE46: 1.528223986 | JF46: =JE46*(1+JF45) -> 1.530747973 | JG46: 1.533276127 | JH46: 1.535808457 | JI46: 1.53834497 | JJ46: 1.540885672 | JK46: 1.54343057 | JL46: 1.545979671 | JM46: 1.548532982 | JN46: 1.55109051 | JO46: 1.553652262 | JP46: 1.556218245 | JQ46: 1.558788466 | JR46: 1.561362932 | JS46: 1.56394165 | JT46: 1.566524627 | JU46: 1.569111869 | JV46: 1.571703385 | JW46: 1.574299181 | JX46: 1.576899264 | JY46: 1.579503642 | JZ46: 1.58211232 | KA46: 1.584725307 | KB46: 1.58734261 | KC46: 1.589964235 | KD46: 1.592590191 | KE46: 1.595220483 | KF46: 1.597855119 | KG46: 1.600494107 | KH46: 1.603137453 | KI46: 1.605785165 | KJ46: 1.608437249 | KK46: 1.611093714 | KL46: 1.613754567 | KM46: 1.616419813 | KN46: 1.619089462 | KO46: 1.62176352 | KP46: 1.624441994 | KQ46: 1.627124892 | KR46: 1.629812221 | KS46: 1.632503989 | KT46: 1.635200202 | KU46: 1.637900868 | KV46: 1.640605994
C48: Annual Inflation in Electricity Price | E48: % p.a. | F48: =InputC!G67 -> 0.02 | I48: =$F$48 -> 0.02 | J48: =$F$48 -> 0.02 | K48: 0.02 | L48: 0.02 | M48: 0.02 | N48: 0.02 | O48: 0.02 | P48: 0.02 | Q48: 0.02 | R48: 0.02 | S48: 0.02 | T48: 0.02 | U48: 0.02 | V48: 0.02 | W48: 0.02 | X48: 0.02 | Y48: 0.02 | Z48: 0.02 | AA48: 0.02 | AB48: 0.02 | AC48: 0.02 | AD48: 0.02 | AE48: 0.02 | AF48: 0.02 | AG48: 0.02 | AH48: 0.02 | AI48: 0.02 | AJ48: 0.02 | AK48: 0.02 | AL48: 0.02 | AM48: 0.02 | AN48: 0.02 | AO48: 0.02 | AP48: 0.02 | AQ48: 0.02 | AR48: 0.02 | AS48: 0.02 | AT48: 0.02 | AU48: 0.02 | AV48: 0.02 | AW48: 0.02 | AX48: 0.02 | AY48: 0.02 | AZ48: 0.02 | BA48: 0.02 | BB48: 0.02 | BC48: 0.02 | BD48: 0.02 | BE48: 0.02 | BF48: 0.02 | BG48: 0.02 | BH48: 0.02 | BI48: 0.02 | BJ48: 0.02 | BK48: 0.02 | BL48: 0.02 | BM48: 0.02 | BN48: 0.02 | BO48: 0.02 | BP48: 0.02 | BQ48: 0.02 | BR48: 0.02 | BS48: 0.02 | BT48: 0.02 | BU48: 0.02 | BV48: =$F$48 -> 0.02 | BW48: 0.02 | BX48: 0.02 | BY48: 0.02 | BZ48: 0.02 | CA48: 0.02 | CB48: 0.02 | CC48: 0.02 | CD48: 0.02 | CE48: 0.02 | CF48: 0.02 | CG48: 0.02 | CH48: 0.02 | CI48: 0.02 | CJ48: 0.02 | CK48: 0.02 | CL48: 0.02 | CM48: 0.02 | CN48: 0.02 | CO48: 0.02 | CP48: 0.02 | CQ48: 0.02 | CR48: 0.02 | CS48: 0.02 | CT48: 0.02 | CU48: 0.02 | CV48: 0.02 | CW48: 0.02 | CX48: 0.02 | CY48: 0.02 | CZ48: 0.02 | DA48: 0.02 | DB48: 0.02 | DC48: 0.02 | DD48: 0.02 | DE48: 0.02 | DF48: 0.02 | DG48: 0.02 | DH48: 0.02 | DI48: 0.02 | DJ48: 0.02 | DK48: 0.02 | DL48: 0.02 | DM48: 0.02 | DN48: 0.02 | DO48: 0.02 | DP48: 0.02 | DQ48: 0.02 | DR48: 0.02 | DS48: 0.02 | DT48: 0.02 | DU48: 0.02 | DV48: 0.02 | DW48: 0.02 | DX48: 0.02 | DY48: 0.02 | DZ48: 0.02 | EA48: 0.02 | EB48: 0.02 | EC48: 0.02 | ED48: 0.02 | EE48: 0.02 | EF48: 0.02 | EG48: 0.02 | EH48: =$F$48 -> 0.02 | EI48: 0.02 | EJ48: 0.02 | EK48: 0.02 | EL48: 0.02 | EM48: 0.02 | EN48: 0.02 | EO48: 0.02 | EP48: 0.02 | EQ48: 0.02 | ER48: 0.02 | ES48: 0.02 | ET48: 0.02 | EU48: 0.02 | EV48: 0.02 | EW48: 0.02 | EX48: 0.02 | EY48: 0.02 | EZ48: 0.02 | FA48: 0.02 | FB48: 0.02 | FC48: 0.02 | FD48: 0.02 | FE48: 0.02 | FF48: 0.02 | FG48: 0.02 | FH48: 0.02 | FI48: 0.02 | FJ48: 0.02 | FK48: 0.02 | FL48: 0.02 | FM48: 0.02 | FN48: 0.02 | FO48: 0.02 | FP48: 0.02 | FQ48: 0.02 | FR48: 0.02 | FS48: 0.02 | FT48: 0.02 | FU48: 0.02 | FV48: 0.02 | FW48: 0.02 | FX48: 0.02 | FY48: 0.02 | FZ48: 0.02 | GA48: 0.02 | GB48: 0.02 | GC48: 0.02 | GD48: 0.02 | GE48: 0.02 | GF48: 0.02 | GG48: 0.02 | GH48: 0.02 | GI48: 0.02 | GJ48: 0.02 | GK48: 0.02 | GL48: 0.02 | GM48: 0.02 | GN48: 0.02 | GO48: 0.02 | GP48: 0.02 | GQ48: 0.02 | GR48: 0.02 | GS48: 0.02 | GT48: =$F$48 -> 0.02 | GU48: 0.02 | GV48: 0.02 | GW48: 0.02 | GX48: 0.02 | GY48: 0.02 | GZ48: 0.02 | HA48: 0.02 | HB48: 0.02 | HC48: 0.02 | HD48: 0.02 | HE48: 0.02 | HF48: 0.02 | HG48: 0.02 | HH48: 0.02 | HI48: 0.02 | HJ48: 0.02 | HK48: 0.02 | HL48: 0.02 | HM48: 0.02 | HN48: 0.02 | HO48: 0.02 | HP48: 0.02 | HQ48: 0.02 | HR48: 0.02 | HS48: 0.02 | HT48: 0.02 | HU48: 0.02 | HV48: 0.02 | HW48: 0.02 | HX48: 0.02 | HY48: 0.02 | HZ48: 0.02 | IA48: 0.02 | IB48: 0.02 | IC48: 0.02 | ID48: 0.02 | IE48: 0.02 | IF48: 0.02 | IG48: 0.02 | IH48: 0.02 | II48: 0.02 | IJ48: 0.02 | IK48: 0.02 | IL48: 0.02 | IM48: 0.02 | IN48: 0.02 | IO48: 0.02 | IP48: 0.02 | IQ48: 0.02 | IR48: 0.02 | IS48: 0.02 | IT48: 0.02 | IU48: 0.02 | IV48: 0.02 | IW48: 0.02 | IX48: 0.02 | IY48: 0.02 | IZ48: 0.02 | JA48: 0.02 | JB48: 0.02 | JC48: 0.02 | JD48: 0.02 | JE48: 0.02 | JF48: =$F$48 -> 0.02 | JG48: 0.02 | JH48: 0.02 | JI48: 0.02 | JJ48: 0.02 | JK48: 0.02 | JL48: 0.02 | JM48: 0.02 | JN48: 0.02 | JO48: 0.02 | JP48: 0.02 | JQ48: 0.02 | JR48: 0.02 | JS48: 0.02 | JT48: 0.02 | JU48: 0.02 | JV48: 0.02 | JW48: 0.02 | JX48: 0.02 | JY48: 0.02 | JZ48: 0.02 | KA48: 0.02 | KB48: 0.02 | KC48: 0.02 | KD48: 0.02 | KE48: 0.02 | KF48: 0.02 | KG48: 0.02 | KH48: 0.02 | KI48: 0.02 | KJ48: 0.02 | KK48: 0.02 | KL48: 0.02 | KM48: 0.02 | KN48: 0.02 | KO48: 0.02 | KP48: 0.02 | KQ48: 0.02 | KR48: 0.02 | KS48: 0.02 | KT48: 0.02 | KU48: 0.02 | KV48: 0.02
C49: Monthly Electricity Inflation Rate | E49: % p.m | F49: =(1+F48)^(1/12)-1 -> 0.001651581302 | I49: =$F$49 -> 0.001651581302 | J49: =$F$49 -> 0.001651581302 | K49: 0.001651581302 | L49: 0.001651581302 | M49: 0.001651581302 | N49: 0.001651581302 | O49: 0.001651581302 | P49: 0.001651581302 | Q49: 0.001651581302 | R49: 0.001651581302 | S49: 0.001651581302 | T49: 0.001651581302 | U49: 0.001651581302 | V49: 0.001651581302 | W49: 0.001651581302 | X49: 0.001651581302 | Y49: 0.001651581302 | Z49: 0.001651581302 | AA49: 0.001651581302 | AB49: 0.001651581302 | AC49: 0.001651581302 | AD49: 0.001651581302 | AE49: 0.001651581302 | AF49: 0.001651581302 | AG49: 0.001651581302 | AH49: 0.001651581302 | AI49: 0.001651581302 | AJ49: 0.001651581302 | AK49: 0.001651581302 | AL49: 0.001651581302 | AM49: 0.001651581302 | AN49: 0.001651581302 | AO49: 0.001651581302 | AP49: 0.001651581302 | AQ49: 0.001651581302 | AR49: 0.001651581302 | AS49: 0.001651581302 | AT49: 0.001651581302 | AU49: 0.001651581302 | AV49: 0.001651581302 | AW49: 0.001651581302 | AX49: 0.001651581302 | AY49: 0.001651581302 | AZ49: 0.001651581302 | BA49: 0.001651581302 | BB49: 0.001651581302 | BC49: 0.001651581302 | BD49: 0.001651581302 | BE49: 0.001651581302 | BF49: 0.001651581302 | BG49: 0.001651581302 | BH49: 0.001651581302 | BI49: 0.001651581302 | BJ49: 0.001651581302 | BK49: 0.001651581302 | BL49: 0.001651581302 | BM49: 0.001651581302 | BN49: 0.001651581302 | BO49: 0.001651581302 | BP49: 0.001651581302 | BQ49: 0.001651581302 | BR49: 0.001651581302 | BS49: 0.001651581302 | BT49: 0.001651581302 | BU49: 0.001651581302 | BV49: =$F$49 -> 0.001651581302 | BW49: 0.001651581302 | BX49: 0.001651581302 | BY49: 0.001651581302 | BZ49: 0.001651581302 | CA49: 0.001651581302 | CB49: 0.001651581302 | CC49: 0.001651581302 | CD49: 0.001651581302 | CE49: 0.001651581302 | CF49: 0.001651581302 | CG49: 0.001651581302 | CH49: 0.001651581302 | CI49: 0.001651581302 | CJ49: 0.001651581302 | CK49: 0.001651581302 | CL49: 0.001651581302 | CM49: 0.001651581302 | CN49: 0.001651581302 | CO49: 0.001651581302 | CP49: 0.001651581302 | CQ49: 0.001651581302 | CR49: 0.001651581302 | CS49: 0.001651581302 | CT49: 0.001651581302 | CU49: 0.001651581302 | CV49: 0.001651581302 | CW49: 0.001651581302 | CX49: 0.001651581302 | CY49: 0.001651581302 | CZ49: 0.001651581302 | DA49: 0.001651581302 | DB49: 0.001651581302 | DC49: 0.001651581302 | DD49: 0.001651581302 | DE49: 0.001651581302 | DF49: 0.001651581302 | DG49: 0.001651581302 | DH49: 0.001651581302 | DI49: 0.001651581302 | DJ49: 0.001651581302 | DK49: 0.001651581302 | DL49: 0.001651581302 | DM49: 0.001651581302 | DN49: 0.001651581302 | DO49: 0.001651581302 | DP49: 0.001651581302 | DQ49: 0.001651581302 | DR49: 0.001651581302 | DS49: 0.001651581302 | DT49: 0.001651581302 | DU49: 0.001651581302 | DV49: 0.001651581302 | DW49: 0.001651581302 | DX49: 0.001651581302 | DY49: 0.001651581302 | DZ49: 0.001651581302 | EA49: 0.001651581302 | EB49: 0.001651581302 | EC49: 0.001651581302 | ED49: 0.001651581302 | EE49: 0.001651581302 | EF49: 0.001651581302 | EG49: 0.001651581302 | EH49: =$F$49 -> 0.001651581302 | EI49: 0.001651581302 | EJ49: 0.001651581302 | EK49: 0.001651581302 | EL49: 0.001651581302 | EM49: 0.001651581302 | EN49: 0.001651581302 | EO49: 0.001651581302 | EP49: 0.001651581302 | EQ49: 0.001651581302 | ER49: 0.001651581302 | ES49: 0.001651581302 | ET49: 0.001651581302 | EU49: 0.001651581302 | EV49: 0.001651581302 | EW49: 0.001651581302 | EX49: 0.001651581302 | EY49: 0.001651581302 | EZ49: 0.001651581302 | FA49: 0.001651581302 | FB49: 0.001651581302 | FC49: 0.001651581302 | FD49: 0.001651581302 | FE49: 0.001651581302 | FF49: 0.001651581302 | FG49: 0.001651581302 | FH49: 0.001651581302 | FI49: 0.001651581302 | FJ49: 0.001651581302 | FK49: 0.001651581302 | FL49: 0.001651581302 | FM49: 0.001651581302 | FN49: 0.001651581302 | FO49: 0.001651581302 | FP49: 0.001651581302 | FQ49: 0.001651581302 | FR49: 0.001651581302 | FS49: 0.001651581302 | FT49: 0.001651581302 | FU49: 0.001651581302 | FV49: 0.001651581302 | FW49: 0.001651581302 | FX49: 0.001651581302 | FY49: 0.001651581302 | FZ49: 0.001651581302 | GA49: 0.001651581302 | GB49: 0.001651581302 | GC49: 0.001651581302 | GD49: 0.001651581302 | GE49: 0.001651581302 | GF49: 0.001651581302 | GG49: 0.001651581302 | GH49: 0.001651581302 | GI49: 0.001651581302 | GJ49: 0.001651581302 | GK49: 0.001651581302 | GL49: 0.001651581302 | GM49: 0.001651581302 | GN49: 0.001651581302 | GO49: 0.001651581302 | GP49: 0.001651581302 | GQ49: 0.001651581302 | GR49: 0.001651581302 | GS49: 0.001651581302 | GT49: =$F$49 -> 0.001651581302 | GU49: 0.001651581302 | GV49: 0.001651581302 | GW49: 0.001651581302 | GX49: 0.001651581302 | GY49: 0.001651581302 | GZ49: 0.001651581302 | HA49: 0.001651581302 | HB49: 0.001651581302 | HC49: 0.001651581302 | HD49: 0.001651581302 | HE49: 0.001651581302 | HF49: 0.001651581302 | HG49: 0.001651581302 | HH49: 0.001651581302 | HI49: 0.001651581302 | HJ49: 0.001651581302 | HK49: 0.001651581302 | HL49: 0.001651581302 | HM49: 0.001651581302 | HN49: 0.001651581302 | HO49: 0.001651581302 | HP49: 0.001651581302 | HQ49: 0.001651581302 | HR49: 0.001651581302 | HS49: 0.001651581302 | HT49: 0.001651581302 | HU49: 0.001651581302 | HV49: 0.001651581302 | HW49: 0.001651581302 | HX49: 0.001651581302 | HY49: 0.001651581302 | HZ49: 0.001651581302 | IA49: 0.001651581302 | IB49: 0.001651581302 | IC49: 0.001651581302 | ID49: 0.001651581302 | IE49: 0.001651581302 | IF49: 0.001651581302 | IG49: 0.001651581302 | IH49: 0.001651581302 | II49: 0.001651581302 | IJ49: 0.001651581302 | IK49: 0.001651581302 | IL49: 0.001651581302 | IM49: 0.001651581302 | IN49: 0.001651581302 | IO49: 0.001651581302 | IP49: 0.001651581302 | IQ49: 0.001651581302 | IR49: 0.001651581302 | IS49: 0.001651581302 | IT49: 0.001651581302 | IU49: 0.001651581302 | IV49: 0.001651581302 | IW49: 0.001651581302 | IX49: 0.001651581302 | IY49: 0.001651581302 | IZ49: 0.001651581302 | JA49: 0.001651581302 | JB49: 0.001651581302 | JC49: 0.001651581302 | JD49: 0.001651581302 | JE49: 0.001651581302 | JF49: =$F$49 -> 0.001651581302 | JG49: 0.001651581302 | JH49: 0.001651581302 | JI49: 0.001651581302 | JJ49: 0.001651581302 | JK49: 0.001651581302 | JL49: 0.001651581302 | JM49: 0.001651581302 | JN49: 0.001651581302 | JO49: 0.001651581302 | JP49: 0.001651581302 | JQ49: 0.001651581302 | JR49: 0.001651581302 | JS49: 0.001651581302 | JT49: 0.001651581302 | JU49: 0.001651581302 | JV49: 0.001651581302 | JW49: 0.001651581302 | JX49: 0.001651581302 | JY49: 0.001651581302 | JZ49: 0.001651581302 | KA49: 0.001651581302 | KB49: 0.001651581302 | KC49: 0.001651581302 | KD49: 0.001651581302 | KE49: 0.001651581302 | KF49: 0.001651581302 | KG49: 0.001651581302 | KH49: 0.001651581302 | KI49: 0.001651581302 | KJ49: 0.001651581302 | KK49: 0.001651581302 | KL49: 0.001651581302 | KM49: 0.001651581302 | KN49: 0.001651581302 | KO49: 0.001651581302 | KP49: 0.001651581302 | KQ49: 0.001651581302 | KR49: 0.001651581302 | KS49: 0.001651581302 | KT49: 0.001651581302 | KU49: 0.001651581302 | KV49: 0.001651581302
C50: Inflation Index | E50: Index | H50: 1 | I50: =H50*(1+I49) -> 1.001651581 | J50: =I50*(1+J49) -> 1.00330589 | K50: 1.004962932 | L50: 1.00662271 | M50: 1.008285229 | N50: 1.009950494 | O50: 1.011618509 | P50: 1.013289279 | Q50: 1.014962809 | R50: 1.016639103 | S50: 1.018318165 | T50: 1.02 | U50: 1.021684613 | V50: 1.023372008 | W50: 1.02506219 | X50: 1.026755164 | Y50: 1.028450933 | Z50: 1.030149504 | AA50: 1.031850879 | AB50: 1.033555065 | AC50: 1.035262065 | AD50: 1.036971885 | AE50: 1.038684528 | AF50: 1.0404 | AG50: 1.042118305 | AH50: 1.043839448 | AI50: 1.045563434 | AJ50: 1.047290267 | AK50: 1.049019952 | AL50: 1.050752494 | AM50: 1.052487897 | AN50: 1.054226166 | AO50: 1.055967307 | AP50: 1.057711322 | AQ50: 1.059458219 | AR50: 1.061208 | AS50: 1.062960671 | AT50: 1.064716237 | AU50: 1.066474703 | AV50: 1.068236072 | AW50: 1.070000351 | AX50: 1.071767544 | AY50: 1.073537655 | AZ50: 1.07531069 | BA50: 1.077086653 | BB50: 1.078865549 | BC50: 1.080647383 | BD50: 1.08243216 | BE50: 1.084219885 | BF50: 1.086010562 | BG50: 1.087804197 | BH50: 1.089600794 | BI50: 1.091400358 | BJ50: 1.093202895 | BK50: 1.095008408 | BL50: 1.096816903 | BM50: 1.098628386 | BN50: 1.10044286 | BO50: 1.102260331 | BP50: 1.104080803 | BQ50: 1.105904282 | BR50: 1.107730773 | BS50: 1.109560281 | BT50: 1.11139281 | BU50: 1.113228365 | BV50: =BU50*(1+BV49) -> 1.115066952 | BW50: 1.116908576 | BX50: 1.118753241 | BY50: 1.120600953 | BZ50: 1.122451717 | CA50: 1.124305537 | CB50: 1.126162419 | CC50: 1.128022368 | CD50: 1.129885389 | CE50: 1.131751486 | CF50: 1.133620666 | CG50: 1.135492933 | CH50: 1.137368291 | CI50: 1.139246748 | CJ50: 1.141128306 | CK50: 1.143012972 | CL50: 1.144900751 | CM50: 1.146791648 | CN50: 1.148685668 | CO50: 1.150582815 | CP50: 1.152483096 | CQ50: 1.154386516 | CR50: 1.156293079 | CS50: 1.158202791 | CT50: 1.160115657 | CU50: 1.162031683 | CV50: 1.163950872 | CW50: 1.165873232 | CX50: 1.167798766 | CY50: 1.169727481 | CZ50: 1.171659381 | DA50: 1.173594472 | DB50: 1.175532758 | DC50: 1.177474246 | DD50: 1.179418941 | DE50: 1.181366847 | DF50: 1.18331797 | DG50: 1.185272316 | DH50: 1.18722989 | DI50: 1.189190697 | DJ50: 1.191154742 | DK50: 1.193122031 | DL50: 1.195092569 | DM50: 1.197066361 | DN50: 1.199043414 | DO50: 1.201023731 | DP50: 1.20300732 | DQ50: 1.204994184 | DR50: 1.20698433 | DS50: 1.208977763 | DT50: 1.210974488 | DU50: 1.21297451 | DV50: 1.214977837 | DW50: 1.216984471 | DX50: 1.21899442 | DY50: 1.221007688 | DZ50: 1.223024282 | EA50: 1.225044206 | EB50: 1.227067466 | EC50: 1.229094068 | ED50: 1.231124016 | EE50: 1.233157318 | EF50: 1.235193977 | EG50: 1.237234001 | EH50: =EG50*(1+EH49) -> 1.239277393 | EI50: 1.241324161 | EJ50: 1.243374308 | EK50: 1.245427842 | EL50: 1.247484767 | EM50: 1.24954509 | EN50: 1.251608815 | EO50: 1.253675949 | EP50: 1.255746497 | EQ50: 1.257820464 | ER50: 1.259897857 | ES50: 1.261978681 | ET50: 1.264062941 | EU50: 1.266150644 | EV50: 1.268241795 | EW50: 1.270336399 | EX50: 1.272434463 | EY50: 1.274535992 | EZ50: 1.276640992 | FA50: 1.278749468 | FB50: 1.280861427 | FC50: 1.282976874 | FD50: 1.285095814 | FE50: 1.287218254 | FF50: 1.2893442 | FG50: 1.291473657 | FH50: 1.29360663 | FI50: 1.295743127 | FJ50: 1.297883152 | FK50: 1.300026712 | FL50: 1.302173811 | FM50: 1.304324457 | FN50: 1.306478655 | FO50: 1.308636411 | FP50: 1.31079773 | FQ50: 1.312962619 | FR50: 1.315131084 | FS50: 1.31730313 | FT50: 1.319478763 | FU50: 1.32165799 | FV50: 1.323840815 | FW50: 1.326027246 | FX50: 1.328217288 | FY50: 1.330410947 | FZ50: 1.332608228 | GA50: 1.334809139 | GB50: 1.337013685 | GC50: 1.339221872 | GD50: 1.341433706 | GE50: 1.343649192 | GF50: 1.345868338 | GG50: 1.348091149 | GH50: 1.350317631 | GI50: 1.352547791 | GJ50: 1.354781633 | GK50: 1.357019165 | GL50: 1.359260393 | GM50: 1.361505322 | GN50: 1.363753959 | GO50: 1.366006309 | GP50: 1.36826238 | GQ50: 1.370522176 | GR50: 1.372785705 | GS50: 1.375052972 | GT50: =GS50*(1+GT49) -> 1.377323984 | GU50: 1.379598747 | GV50: 1.381877266 | GW50: 1.384159549 | GX50: 1.386445601 | GY50: 1.388735428 | GZ50: 1.391029038 | HA50: 1.393326435 | HB50: 1.395627627 | HC50: 1.39793262 | HD50: 1.400241419 | HE50: 1.402554032 | HF50: 1.404870464 | HG50: 1.407190722 | HH50: 1.409514811 | HI50: 1.41184274 | HJ50: 1.414174513 | HK50: 1.416510137 | HL50: 1.418849619 | HM50: 1.421192964 | HN50: 1.42354018 | HO50: 1.425891272 | HP50: 1.428246248 | HQ50: 1.430605112 | HR50: 1.432967873 | HS50: 1.435334536 | HT50: 1.437705108 | HU50: 1.440079595 | HV50: 1.442458003 | HW50: 1.44484034 | HX50: 1.447226611 | HY50: 1.449616823 | HZ50: 1.452010983 | IA50: 1.454409098 | IB50: 1.456811173 | IC50: 1.459217215 | ID50: 1.46162723 | IE50: 1.464041227 | IF50: 1.46645921 | IG50: 1.468881186 | IH50: 1.471307163 | II50: 1.473737147 | IJ50: 1.476171143 | IK50: 1.47860916 | IL50: 1.481051203 | IM50: 1.48349728 | IN50: 1.485947396 | IO50: 1.488401559 | IP50: 1.490859775 | IQ50: 1.493322051 | IR50: 1.495788394 | IS50: 1.49825881 | IT50: 1.500733306 | IU50: 1.503211889 | IV50: 1.505694566 | IW50: 1.508181343 | IX50: 1.510672227 | IY50: 1.513167225 | IZ50: 1.515666344 | JA50: 1.51816959 | JB50: 1.520676971 | JC50: 1.523188492 | JD50: 1.525704162 | JE50: 1.528223986 | JF50: =JE50*(1+JF49) -> 1.530747973 | JG50: 1.533276127 | JH50: 1.535808457 | JI50: 1.53834497 | JJ50: 1.540885672 | JK50: 1.54343057 | JL50: 1.545979671 | JM50: 1.548532982 | JN50: 1.55109051 | JO50: 1.553652262 | JP50: 1.556218245 | JQ50: 1.558788466 | JR50: 1.561362932 | JS50: 1.56394165 | JT50: 1.566524627 | JU50: 1.569111869 | JV50: 1.571703385 | JW50: 1.574299181 | JX50: 1.576899264 | JY50: 1.579503642 | JZ50: 1.58211232 | KA50: 1.584725307 | KB50: 1.58734261 | KC50: 1.589964235 | KD50: 1.592590191 | KE50: 1.595220483 | KF50: 1.597855119 | KG50: 1.600494107 | KH50: 1.603137453 | KI50: 1.605785165 | KJ50: 1.608437249 | KK50: 1.611093714 | KL50: 1.613754567 | KM50: 1.616419813 | KN50: 1.619089462 | KO50: 1.62176352 | KP50: 1.624441994 | KQ50: 1.627124892 | KR50: 1.629812221 | KS50: 1.632503989 | KT50: 1.635200202 | KU50: 1.637900868 | KV50: 1.640605994
C52: Annual Inflation in IT Equipment | E52: % p.a. | F52: =InputC!G68 -> -0.01 | I52: =$F$52 -> -0.01 | J52: =$F$52 -> -0.01 | K52: -0.01 | L52: -0.01 | M52: -0.01 | N52: -0.01 | O52: -0.01 | P52: -0.01 | Q52: -0.01 | R52: -0.01 | S52: -0.01 | T52: -0.01 | U52: -0.01 | V52: -0.01 | W52: -0.01 | X52: -0.01 | Y52: -0.01 | Z52: -0.01 | AA52: -0.01 | AB52: -0.01 | AC52: -0.01 | AD52: -0.01 | AE52: -0.01 | AF52: -0.01 | AG52: -0.01 | AH52: -0.01 | AI52: -0.01 | AJ52: -0.01 | AK52: -0.01 | AL52: -0.01 | AM52: -0.01 | AN52: -0.01 | AO52: -0.01 | AP52: -0.01 | AQ52: -0.01 | AR52: -0.01 | AS52: -0.01 | AT52: -0.01 | AU52: -0.01 | AV52: -0.01 | AW52: -0.01 | AX52: -0.01 | AY52: -0.01 | AZ52: -0.01 | BA52: -0.01 | BB52: -0.01 | BC52: -0.01 | BD52: -0.01 | BE52: -0.01 | BF52: -0.01 | BG52: -0.01 | BH52: -0.01 | BI52: -0.01 | BJ52: -0.01 | BK52: -0.01 | BL52: -0.01 | BM52: -0.01 | BN52: -0.01 | BO52: -0.01 | BP52: -0.01 | BQ52: -0.01 | BR52: -0.01 | BS52: -0.01 | BT52: -0.01 | BU52: -0.01 | BV52: =$F$52 -> -0.01 | BW52: -0.01 | BX52: -0.01 | BY52: -0.01 | BZ52: -0.01 | CA52: -0.01 | CB52: -0.01 | CC52: -0.01 | CD52: -0.01 | CE52: -0.01 | CF52: -0.01 | CG52: -0.01 | CH52: -0.01 | CI52: -0.01 | CJ52: -0.01 | CK52: -0.01 | CL52: -0.01 | CM52: -0.01 | CN52: -0.01 | CO52: -0.01 | CP52: -0.01 | CQ52: -0.01 | CR52: -0.01 | CS52: -0.01 | CT52: -0.01 | CU52: -0.01 | CV52: -0.01 | CW52: -0.01 | CX52: -0.01 | CY52: -0.01 | CZ52: -0.01 | DA52: -0.01 | DB52: -0.01 | DC52: -0.01 | DD52: -0.01 | DE52: -0.01 | DF52: -0.01 | DG52: -0.01 | DH52: -0.01 | DI52: -0.01 | DJ52: -0.01 | DK52: -0.01 | DL52: -0.01 | DM52: -0.01 | DN52: -0.01 | DO52: -0.01 | DP52: -0.01 | DQ52: -0.01 | DR52: -0.01 | DS52: -0.01 | DT52: -0.01 | DU52: -0.01 | DV52: -0.01 | DW52: -0.01 | DX52: -0.01 | DY52: -0.01 | DZ52: -0.01 | EA52: -0.01 | EB52: -0.01 | EC52: -0.01 | ED52: -0.01 | EE52: -0.01 | EF52: -0.01 | EG52: -0.01 | EH52: =$F$52 -> -0.01 | EI52: -0.01 | EJ52: -0.01 | EK52: -0.01 | EL52: -0.01 | EM52: -0.01 | EN52: -0.01 | EO52: -0.01 | EP52: -0.01 | EQ52: -0.01 | ER52: -0.01 | ES52: -0.01 | ET52: -0.01 | EU52: -0.01 | EV52: -0.01 | EW52: -0.01 | EX52: -0.01 | EY52: -0.01 | EZ52: -0.01 | FA52: -0.01 | FB52: -0.01 | FC52: -0.01 | FD52: -0.01 | FE52: -0.01 | FF52: -0.01 | FG52: -0.01 | FH52: -0.01 | FI52: -0.01 | FJ52: -0.01 | FK52: -0.01 | FL52: -0.01 | FM52: -0.01 | FN52: -0.01 | FO52: -0.01 | FP52: -0.01 | FQ52: -0.01 | FR52: -0.01 | FS52: -0.01 | FT52: -0.01 | FU52: -0.01 | FV52: -0.01 | FW52: -0.01 | FX52: -0.01 | FY52: -0.01 | FZ52: -0.01 | GA52: -0.01 | GB52: -0.01 | GC52: -0.01 | GD52: -0.01 | GE52: -0.01 | GF52: -0.01 | GG52: -0.01 | GH52: -0.01 | GI52: -0.01 | GJ52: -0.01 | GK52: -0.01 | GL52: -0.01 | GM52: -0.01 | GN52: -0.01 | GO52: -0.01 | GP52: -0.01 | GQ52: -0.01 | GR52: -0.01 | GS52: -0.01 | GT52: =$F$52 -> -0.01 | GU52: -0.01 | GV52: -0.01 | GW52: -0.01 | GX52: -0.01 | GY52: -0.01 | GZ52: -0.01 | HA52: -0.01 | HB52: -0.01 | HC52: -0.01 | HD52: -0.01 | HE52: -0.01 | HF52: -0.01 | HG52: -0.01 | HH52: -0.01 | HI52: -0.01 | HJ52: -0.01 | HK52: -0.01 | HL52: -0.01 | HM52: -0.01 | HN52: -0.01 | HO52: -0.01 | HP52: -0.01 | HQ52: -0.01 | HR52: -0.01 | HS52: -0.01 | HT52: -0.01 | HU52: -0.01 | HV52: -0.01 | HW52: -0.01 | HX52: -0.01 | HY52: -0.01 | HZ52: -0.01 | IA52: -0.01 | IB52: -0.01 | IC52: -0.01 | ID52: -0.01 | IE52: -0.01 | IF52: -0.01 | IG52: -0.01 | IH52: -0.01 | II52: -0.01 | IJ52: -0.01 | IK52: -0.01 | IL52: -0.01 | IM52: -0.01 | IN52: -0.01 | IO52: -0.01 | IP52: -0.01 | IQ52: -0.01 | IR52: -0.01 | IS52: -0.01 | IT52: -0.01 | IU52: -0.01 | IV52: -0.01 | IW52: -0.01 | IX52: -0.01 | IY52: -0.01 | IZ52: -0.01 | JA52: -0.01 | JB52: -0.01 | JC52: -0.01 | JD52: -0.01 | JE52: -0.01 | JF52: =$F$52 -> -0.01 | JG52: -0.01 | JH52: -0.01 | JI52: -0.01 | JJ52: -0.01 | JK52: -0.01 | JL52: -0.01 | JM52: -0.01 | JN52: -0.01 | JO52: -0.01 | JP52: -0.01 | JQ52: -0.01 | JR52: -0.01 | JS52: -0.01 | JT52: -0.01 | JU52: -0.01 | JV52: -0.01 | JW52: -0.01 | JX52: -0.01 | JY52: -0.01 | JZ52: -0.01 | KA52: -0.01 | KB52: -0.01 | KC52: -0.01 | KD52: -0.01 | KE52: -0.01 | KF52: -0.01 | KG52: -0.01 | KH52: -0.01 | KI52: -0.01 | KJ52: -0.01 | KK52: -0.01 | KL52: -0.01 | KM52: -0.01 | KN52: -0.01 | KO52: -0.01 | KP52: -0.01 | KQ52: -0.01 | KR52: -0.01 | KS52: -0.01 | KT52: -0.01 | KU52: -0.01 | KV52: -0.01
C53: Monthly IT Equipment Inflation Rate | E53: % p.m | F53: =(1+F52)^(1/12)-1 -> -0.0008371773591 | I53: =$F$53 -> -0.0008371773591 | J53: =$F$53 -> -0.0008371773591 | K53: -0.0008371773591 | L53: -0.0008371773591 | M53: -0.0008371773591 | N53: -0.0008371773591 | O53: -0.0008371773591 | P53: -0.0008371773591 | Q53: -0.0008371773591 | R53: -0.0008371773591 | S53: -0.0008371773591 | T53: -0.0008371773591 | U53: -0.0008371773591 | V53: -0.0008371773591 | W53: -0.0008371773591 | X53: -0.0008371773591 | Y53: -0.0008371773591 | Z53: -0.0008371773591 | AA53: -0.0008371773591 | AB53: -0.0008371773591 | AC53: -0.0008371773591 | AD53: -0.0008371773591 | AE53: -0.0008371773591 | AF53: -0.0008371773591 | AG53: -0.0008371773591 | AH53: -0.0008371773591 | AI53: -0.0008371773591 | AJ53: -0.0008371773591 | AK53: -0.0008371773591 | AL53: -0.0008371773591 | AM53: -0.0008371773591 | AN53: -0.0008371773591 | AO53: -0.0008371773591 | AP53: -0.0008371773591 | AQ53: -0.0008371773591 | AR53: -0.0008371773591 | AS53: -0.0008371773591 | AT53: -0.0008371773591 | AU53: -0.0008371773591 | AV53: -0.0008371773591 | AW53: -0.0008371773591 | AX53: -0.0008371773591 | AY53: -0.0008371773591 | AZ53: -0.0008371773591 | BA53: -0.0008371773591 | BB53: -0.0008371773591 | BC53: -0.0008371773591 | BD53: -0.0008371773591 | BE53: -0.0008371773591 | BF53: -0.0008371773591 | BG53: -0.0008371773591 | BH53: -0.0008371773591 | BI53: -0.0008371773591 | BJ53: -0.0008371773591 | BK53: -0.0008371773591 | BL53: -0.0008371773591 | BM53: -0.0008371773591 | BN53: -0.0008371773591 | BO53: -0.0008371773591 | BP53: -0.0008371773591 | BQ53: -0.0008371773591 | BR53: -0.0008371773591 | BS53: -0.0008371773591 | BT53: -0.0008371773591 | BU53: -0.0008371773591 | BV53: =$F$53 -> -0.0008371773591 | BW53: -0.0008371773591 | BX53: -0.0008371773591 | BY53: -0.0008371773591 | BZ53: -0.0008371773591 | CA53: -0.0008371773591 | CB53: -0.0008371773591 | CC53: -0.0008371773591 | CD53: -0.0008371773591 | CE53: -0.0008371773591 | CF53: -0.0008371773591 | CG53: -0.0008371773591 | CH53: -0.0008371773591 | CI53: -0.0008371773591 | CJ53: -0.0008371773591 | CK53: -0.0008371773591 | CL53: -0.0008371773591 | CM53: -0.0008371773591 | CN53: -0.0008371773591 | CO53: -0.0008371773591 | CP53: -0.0008371773591 | CQ53: -0.0008371773591 | CR53: -0.0008371773591 | CS53: -0.0008371773591 | CT53: -0.0008371773591 | CU53: -0.0008371773591 | CV53: -0.0008371773591 | CW53: -0.0008371773591 | CX53: -0.0008371773591 | CY53: -0.0008371773591 | CZ53: -0.0008371773591 | DA53: -0.0008371773591 | DB53: -0.0008371773591 | DC53: -0.0008371773591 | DD53: -0.0008371773591 | DE53: -0.0008371773591 | DF53: -0.0008371773591 | DG53: -0.0008371773591 | DH53: -0.0008371773591 | DI53: -0.0008371773591 | DJ53: -0.0008371773591 | DK53: -0.0008371773591 | DL53: -0.0008371773591 | DM53: -0.0008371773591 | DN53: -0.0008371773591 | DO53: -0.0008371773591 | DP53: -0.0008371773591 | DQ53: -0.0008371773591 | DR53: -0.0008371773591 | DS53: -0.0008371773591 | DT53: -0.0008371773591 | DU53: -0.0008371773591 | DV53: -0.0008371773591 | DW53: -0.0008371773591 | DX53: -0.0008371773591 | DY53: -0.0008371773591 | DZ53: -0.0008371773591 | EA53: -0.0008371773591 | EB53: -0.0008371773591 | EC53: -0.0008371773591 | ED53: -0.0008371773591 | EE53: -0.0008371773591 | EF53: -0.0008371773591 | EG53: -0.0008371773591 | EH53: =$F$53 -> -0.0008371773591 | EI53: -0.0008371773591 | EJ53: -0.0008371773591 | EK53: -0.0008371773591 | EL53: -0.0008371773591 | EM53: -0.0008371773591 | EN53: -0.0008371773591 | EO53: -0.0008371773591 | EP53: -0.0008371773591 | EQ53: -0.0008371773591 | ER53: -0.0008371773591 | ES53: -0.0008371773591 | ET53: -0.0008371773591 | EU53: -0.0008371773591 | EV53: -0.0008371773591 | EW53: -0.0008371773591 | EX53: -0.0008371773591 | EY53: -0.0008371773591 | EZ53: -0.0008371773591 | FA53: -0.0008371773591 | FB53: -0.0008371773591 | FC53: -0.0008371773591 | FD53: -0.0008371773591 | FE53: -0.0008371773591 | FF53: -0.0008371773591 | FG53: -0.0008371773591 | FH53: -0.0008371773591 | FI53: -0.0008371773591 | FJ53: -0.0008371773591 | FK53: -0.0008371773591 | FL53: -0.0008371773591 | FM53: -0.0008371773591 | FN53: -0.0008371773591 | FO53: -0.0008371773591 | FP53: -0.0008371773591 | FQ53: -0.0008371773591 | FR53: -0.0008371773591 | FS53: -0.0008371773591 | FT53: -0.0008371773591 | FU53: -0.0008371773591 | FV53: -0.0008371773591 | FW53: -0.0008371773591 | FX53: -0.0008371773591 | FY53: -0.0008371773591 | FZ53: -0.0008371773591 | GA53: -0.0008371773591 | GB53: -0.0008371773591 | GC53: -0.0008371773591 | GD53: -0.0008371773591 | GE53: -0.0008371773591 | GF53: -0.0008371773591 | GG53: -0.0008371773591 | GH53: -0.0008371773591 | GI53: -0.0008371773591 | GJ53: -0.0008371773591 | GK53: -0.0008371773591 | GL53: -0.0008371773591 | GM53: -0.0008371773591 | GN53: -0.0008371773591 | GO53: -0.0008371773591 | GP53: -0.0008371773591 | GQ53: -0.0008371773591 | GR53: -0.0008371773591 | GS53: -0.0008371773591 | GT53: =$F$53 -> -0.0008371773591 | GU53: -0.0008371773591 | GV53: -0.0008371773591 | GW53: -0.0008371773591 | GX53: -0.0008371773591 | GY53: -0.0008371773591 | GZ53: -0.0008371773591 | HA53: -0.0008371773591 | HB53: -0.0008371773591 | HC53: -0.0008371773591 | HD53: -0.0008371773591 | HE53: -0.0008371773591 | HF53: -0.0008371773591 | HG53: -0.0008371773591 | HH53: -0.0008371773591 | HI53: -0.0008371773591 | HJ53: -0.0008371773591 | HK53: -0.0008371773591 | HL53: -0.0008371773591 | HM53: -0.0008371773591 | HN53: -0.0008371773591 | HO53: -0.0008371773591 | HP53: -0.0008371773591 | HQ53: -0.0008371773591 | HR53: -0.0008371773591 | HS53: -0.0008371773591 | HT53: -0.0008371773591 | HU53: -0.0008371773591 | HV53: -0.0008371773591 | HW53: -0.0008371773591 | HX53: -0.0008371773591 | HY53: -0.0008371773591 | HZ53: -0.0008371773591 | IA53: -0.0008371773591 | IB53: -0.0008371773591 | IC53: -0.0008371773591 | ID53: -0.0008371773591 | IE53: -0.0008371773591 | IF53: -0.0008371773591 | IG53: -0.0008371773591 | IH53: -0.0008371773591 | II53: -0.0008371773591 | IJ53: -0.0008371773591 | IK53: -0.0008371773591 | IL53: -0.0008371773591 | IM53: -0.0008371773591 | IN53: -0.0008371773591 | IO53: -0.0008371773591 | IP53: -0.0008371773591 | IQ53: -0.0008371773591 | IR53: -0.0008371773591 | IS53: -0.0008371773591 | IT53: -0.0008371773591 | IU53: -0.0008371773591 | IV53: -0.0008371773591 | IW53: -0.0008371773591 | IX53: -0.0008371773591 | IY53: -0.0008371773591 | IZ53: -0.0008371773591 | JA53: -0.0008371773591 | JB53: -0.0008371773591 | JC53: -0.0008371773591 | JD53: -0.0008371773591 | JE53: -0.0008371773591 | JF53: =$F$53 -> -0.0008371773591 | JG53: -0.0008371773591 | JH53: -0.0008371773591 | JI53: -0.0008371773591 | JJ53: -0.0008371773591 | JK53: -0.0008371773591 | JL53: -0.0008371773591 | JM53: -0.0008371773591 | JN53: -0.0008371773591 | JO53: -0.0008371773591 | JP53: -0.0008371773591 | JQ53: -0.0008371773591 | JR53: -0.0008371773591 | JS53: -0.0008371773591 | JT53: -0.0008371773591 | JU53: -0.0008371773591 | JV53: -0.0008371773591 | JW53: -0.0008371773591 | JX53: -0.0008371773591 | JY53: -0.0008371773591 | JZ53: -0.0008371773591 | KA53: -0.0008371773591 | KB53: -0.0008371773591 | KC53: -0.0008371773591 | KD53: -0.0008371773591 | KE53: -0.0008371773591 | KF53: -0.0008371773591 | KG53: -0.0008371773591 | KH53: -0.0008371773591 | KI53: -0.0008371773591 | KJ53: -0.0008371773591 | KK53: -0.0008371773591 | KL53: -0.0008371773591 | KM53: -0.0008371773591 | KN53: -0.0008371773591 | KO53: -0.0008371773591 | KP53: -0.0008371773591 | KQ53: -0.0008371773591 | KR53: -0.0008371773591 | KS53: -0.0008371773591 | KT53: -0.0008371773591 | KU53: -0.0008371773591 | KV53: -0.0008371773591
C54: Inflation Index | E54: Index | H54: 1 | I54: =H54*(1+I53) -> 0.9991628226 | J54: =I54*(1+J53) -> 0.9983263461 | K54: 0.9974905699 | L54: 0.9966554934 | M54: 0.995821116 | N54: 0.9949874371 | O54: 0.9941544562 | P54: 0.9933221725 | Q54: 0.9924905857 | R54: 0.9916596951 | S54: 0.9908295 | T54: 0.99 | U54: 0.9891711944 | V54: 0.9883430827 | W54: 0.9875156642 | X54: 0.9866889385 | Y54: 0.9858629048 | Z54: 0.9850375627 | AA54: 0.9842129116 | AB54: 0.9833889508 | AC54: 0.9825656799 | AD54: 0.9817430981 | AE54: 0.980921205 | AF54: 0.9801 | AG54: 0.9792794825 | AH54: 0.9784596519 | AI54: 0.9776405076 | AJ54: 0.9768220491 | AK54: 0.9760042758 | AL54: 0.9751871871 | AM54: 0.9743707825 | AN54: 0.9735550613 | AO54: 0.9727400231 | AP54: 0.9719256671 | AQ54: 0.971111993 | AR54: 0.970299 | AS54: 0.9694866876 | AT54: 0.9686750553 | AU54: 0.9678641025 | AV54: 0.9670538286 | AW54: 0.966244233 | AX54: 0.9654353152 | AY54: 0.9646270746 | AZ54: 0.9638195107 | BA54: 0.9630126228 | BB54: 0.9622064105 | BC54: 0.961400873 | BD54: 0.96059601 | BE54: 0.9597918208 | BF54: 0.9589883048 | BG54: 0.9581854615 | BH54: 0.9573832903 | BI54: 0.9565817907 | BJ54: 0.9557809621 | BK54: 0.9549808039 | BL54: 0.9541813156 | BM54: 0.9533824966 | BN54: 0.9525843464 | BO54: 0.9517868643 | BP54: 0.9509900499 | BQ54: 0.9501939026 | BR54: 0.9493984217 | BS54: 0.9486036069 | BT54: 0.9478094574 | BU54: 0.9470159728 | BV54: =BU54*(1+BV53) -> 0.9462231525 | BW54: 0.9454309959 | BX54: 0.9446395024 | BY54: 0.9438486716 | BZ54: 0.9430585029 | CA54: 0.9422689957 | CB54: 0.9414801494 | CC54: 0.9406919635 | CD54: 0.9399044375 | CE54: 0.9391175708 | CF54: 0.9383313628 | CG54: 0.9375458131 | CH54: 0.9367609209 | CI54: 0.9359766859 | CJ54: 0.9351931074 | CK54: 0.9344101849 | CL54: 0.9336279179 | CM54: 0.9328463057 | CN54: 0.9320653479 | CO54: 0.9312850439 | CP54: 0.9305053931 | CQ54: 0.9297263951 | CR54: 0.9289480492 | CS54: 0.9281703549 | CT54: 0.9273933117 | CU54: 0.926616919 | CV54: 0.9258411763 | CW54: 0.9250660831 | CX54: 0.9242916387 | CY54: 0.9235178427 | CZ54: 0.9227446944 | DA54: 0.9219721935 | DB54: 0.9212003392 | DC54: 0.9204291311 | DD54: 0.9196585687 | DE54: 0.9188886514 | DF54: 0.9181193786 | DG54: 0.9173507499 | DH54: 0.9165827646 | DI54: 0.9158154222 | DJ54: 0.9150487223 | DK54: 0.9142826642 | DL54: 0.9135172475 | DM54: 0.9127524715 | DN54: 0.9119883358 | DO54: 0.9112248398 | DP54: 0.910461983 | DQ54: 0.9096997649 | DR54: 0.9089381848 | DS54: 0.9081772424 | DT54: 0.9074169369 | DU54: 0.906657268 | DV54: 0.9058982351 | DW54: 0.9051398376 | DX54: 0.904382075 | DY54: 0.9036249468 | DZ54: 0.9028684525 | EA54: 0.9021125914 | EB54: 0.9013573632 | EC54: 0.9006027672 | ED54: 0.899848803 | EE54: 0.8990954699 | EF54: 0.8983427676 | EG54: 0.8975906953 | EH54: =EG54*(1+EH53) -> 0.8968392527 | EI54: 0.8960884392 | EJ54: 0.8953382543 | EK54: 0.8945886973 | EL54: 0.8938397679 | EM54: 0.8930914655 | EN54: 0.8923437896 | EO54: 0.8915967396 | EP54: 0.8908503149 | EQ54: 0.8901045152 | ER54: 0.8893593399 | ES54: 0.8886147884 | ET54: 0.8878708602 | EU54: 0.8871275548 | EV54: 0.8863848717 | EW54: 0.8856428104 | EX54: 0.8849013703 | EY54: 0.8841605509 | EZ54: 0.8834203517 | FA54: 0.8826807722 | FB54: 0.8819418118 | FC54: 0.8812034701 | FD54: 0.8804657465 | FE54: 0.8797286405 | FF54: 0.8789921516 | FG54: 0.8782562793 | FH54: 0.877521023 | FI54: 0.8767863823 | FJ54: 0.8760523566 | FK54: 0.8753189454 | FL54: 0.8745861482 | FM54: 0.8738539644 | FN54: 0.8731223937 | FO54: 0.8723914354 | FP54: 0.871661089 | FQ54: 0.8709313541 | FR54: 0.8702022301 | FS54: 0.8694737165 | FT54: 0.8687458128 | FU54: 0.8680185184 | FV54: 0.867291833 | FW54: 0.8665657559 | FX54: 0.8658402867 | FY54: 0.8651154248 | FZ54: 0.8643911697 | GA54: 0.863667521 | GB54: 0.8629444781 | GC54: 0.8622220406 | GD54: 0.8615002078 | GE54: 0.8607789793 | GF54: 0.8600583546 | GG54: 0.8593383333 | GH54: 0.8586189147 | GI54: 0.8579000983 | GJ54: 0.8571818838 | GK54: 0.8564642705 | GL54: 0.855747258 | GM54: 0.8550308458 | GN54: 0.8543150334 | GO54: 0.8535998201 | GP54: 0.8528852057 | GQ54: 0.8521711895 | GR54: 0.8514577711 | GS54: 0.8507449499 | GT54: =GS54*(1+GT53) -> 0.8500327255 | GU54: 0.8493210974 | GV54: 0.848610065 | GW54: 0.8478996278 | GX54: 0.8471897855 | GY54: 0.8464805374 | GZ54: 0.845771883 | HA54: 0.8450638219 | HB54: 0.8443563536 | HC54: 0.8436494776 | HD54: 0.8429431934 | HE54: 0.8422375004 | HF54: 0.8415323983 | HG54: 0.8408278864 | HH54: 0.8401239643 | HI54: 0.8394206316 | HJ54: 0.8387178876 | HK54: 0.838015732 | HL54: 0.8373141642 | HM54: 0.8366131837 | HN54: 0.8359127901 | HO54: 0.8352129828 | HP54: 0.8345137615 | HQ54: 0.8338151254 | HR54: 0.8331170743 | HS54: 0.8324196075 | HT54: 0.8317227247 | HU54: 0.8310264252 | HV54: 0.8303307087 | HW54: 0.8296355747 | HX54: 0.8289410225 | HY54: 0.8282470519 | HZ54: 0.8275536622 | IA54: 0.826860853 | IB54: 0.8261686238 | IC54: 0.8254769742 | ID54: 0.8247859035 | IE54: 0.8240954115 | IF54: 0.8234054974 | IG54: 0.822716161 | IH54: 0.8220274016 | II54: 0.8213392189 | IJ54: 0.8206516123 | IK54: 0.8199645814 | IL54: 0.8192781256 | IM54: 0.8185922445 | IN54: 0.8179069376 | IO54: 0.8172222044 | IP54: 0.8165380445 | IQ54: 0.8158544573 | IR54: 0.8151714425 | IS54: 0.8144889994 | IT54: 0.8138071276 | IU54: 0.8131258267 | IV54: 0.8124450962 | IW54: 0.8117649356 | IX54: 0.8110853443 | IY54: 0.810406322 | IZ54: 0.8097278682 | JA54: 0.8090499824 | JB54: 0.8083726641 | JC54: 0.8076959128 | JD54: 0.807019728 | JE54: 0.8063441094 | JF54: =JE54*(1+JF53) -> 0.8056690564 | JG54: 0.8049945685 | JH54: 0.8043206452 | JI54: 0.8036472862 | JJ54: 0.8029744909 | JK54: 0.8023022588 | JL54: 0.8016305895 | JM54: 0.8009594826 | JN54: 0.8002889374 | JO54: 0.7996189536 | JP54: 0.7989495308 | JQ54: 0.7982806683 | JR54: 0.7976123658 | JS54: 0.7969446228 | JT54: 0.7962774388 | JU54: 0.7956108133 | JV54: 0.794944746 | JW54: 0.7942792362 | JX54: 0.7936142836 | JY54: 0.7929498877 | JZ54: 0.792286048 | KA54: 0.7916227641 | KB54: 0.7909600354 | KC54: 0.7902978616 | KD54: 0.7896362421 | KE54: 0.7889751765 | KF54: 0.7883146644 | KG54: 0.7876547052 | KH54: 0.7869952985 | KI54: 0.7863364439 | KJ54: 0.7856781408 | KK54: 0.7850203889 | KL54: 0.7843631876 | KM54: 0.7837065365 | KN54: 0.7830504351 | KO54: 0.782394883 | KP54: 0.7817398797 | KQ54: 0.7810854248 | KR54: 0.7804315178 | KS54: 0.7797781582 | KT54: 0.7791253455 | KU54: 0.7784730794 | KV54: 0.7778213594
B56: Capital Expendiure
C58: Cost/kW IT - IT Equipment | E58: USD/kW IT | F58: =InputC!G45 -> 3500 | I58: =$F$58 -> 3500 | J58: =$F$58 -> 3500 | K58: 3500 | L58: 3500 | M58: 3500 | N58: 3500 | O58: 3500 | P58: 3500 | Q58: 3500 | R58: 3500 | S58: 3500 | T58: 3500 | U58: 3500 | V58: 3500 | W58: 3500 | X58: 3500 | Y58: 3500 | Z58: 3500 | AA58: 3500 | AB58: 3500 | AC58: 3500 | AD58: 3500 | AE58: 3500 | AF58: 3500 | AG58: 3500 | AH58: 3500 | AI58: 3500 | AJ58: 3500 | AK58: 3500 | AL58: 3500 | AM58: 3500 | AN58: 3500 | AO58: 3500 | AP58: 3500 | AQ58: 3500 | AR58: 3500 | AS58: 3500 | AT58: 3500 | AU58: 3500 | AV58: 3500 | AW58: 3500 | AX58: 3500 | AY58: 3500 | AZ58: 3500 | BA58: 3500 | BB58: 3500 | BC58: 3500 | BD58: 3500 | BE58: 3500 | BF58: 3500 | BG58: 3500 | BH58: 3500 | BI58: 3500 | BJ58: 3500 | BK58: 3500 | BL58: 3500 | BM58: 3500 | BN58: 3500 | BO58: 3500 | BP58: 3500 | BQ58: 3500 | BR58: 3500 | BS58: 3500 | BT58: 3500 | BU58: 3500 | BV58: =$F$58 -> 3500 | BW58: 3500 | BX58: 3500 | BY58: 3500 | BZ58: 3500 | CA58: 3500 | CB58: 3500 | CC58: 3500 | CD58: 3500 | CE58: 3500 | CF58: 3500 | CG58: 3500 | CH58: 3500 | CI58: 3500 | CJ58: 3500 | CK58: 3500 | CL58: 3500 | CM58: 3500 | CN58: 3500 | CO58: 3500 | CP58: 3500 | CQ58: 3500 | CR58: 3500 | CS58: 3500 | CT58: 3500 | CU58: 3500 | CV58: 3500 | CW58: 3500 | CX58: 3500 | CY58: 3500 | CZ58: 3500 | DA58: 3500 | DB58: 3500 | DC58: 3500 | DD58: 3500 | DE58: 3500 | DF58: 3500 | DG58: 3500 | DH58: 3500 | DI58: 3500 | DJ58: 3500 | DK58: 3500 | DL58: 3500 | DM58: 3500 | DN58: 3500 | DO58: 3500 | DP58: 3500 | DQ58: 3500 | DR58: 3500 | DS58: 3500 | DT58: 3500 | DU58: 3500 | DV58: 3500 | DW58: 3500 | DX58: 3500 | DY58: 3500 | DZ58: 3500 | EA58: 3500 | EB58: 3500 | EC58: 3500 | ED58: 3500 | EE58: 3500 | EF58: 3500 | EG58: 3500 | EH58: =$F$58 -> 3500 | EI58: 3500 | EJ58: 3500 | EK58: 3500 | EL58: 3500 | EM58: 3500 | EN58: 3500 | EO58: 3500 | EP58: 3500 | EQ58: 3500 | ER58: 3500 | ES58: 3500 | ET58: 3500 | EU58: 3500 | EV58: 3500 | EW58: 3500 | EX58: 3500 | EY58: 3500 | EZ58: 3500 | FA58: 3500 | FB58: 3500 | FC58: 3500 | FD58: 3500 | FE58: 3500 | FF58: 3500 | FG58: 3500 | FH58: 3500 | FI58: 3500 | FJ58: 3500 | FK58: 3500 | FL58: 3500 | FM58: 3500 | FN58: 3500 | FO58: 3500 | FP58: 3500 | FQ58: 3500 | FR58: 3500 | FS58: 3500 | FT58: 3500 | FU58: 3500 | FV58: 3500 | FW58: 3500 | FX58: 3500 | FY58: 3500 | FZ58: 3500 | GA58: 3500 | GB58: 3500 | GC58: 3500 | GD58: 3500 | GE58: 3500 | GF58: 3500 | GG58: 3500 | GH58: 3500 | GI58: 3500 | GJ58: 3500 | GK58: 3500 | GL58: 3500 | GM58: 3500 | GN58: 3500 | GO58: 3500 | GP58: 3500 | GQ58: 3500 | GR58: 3500 | GS58: 3500 | GT58: =$F$58 -> 3500 | GU58: 3500 | GV58: 3500 | GW58: 3500 | GX58: 3500 | GY58: 3500 | GZ58: 3500 | HA58: 3500 | HB58: 3500 | HC58: 3500 | HD58: 3500 | HE58: 3500 | HF58: 3500 | HG58: 3500 | HH58: 3500 | HI58: 3500 | HJ58: 3500 | HK58: 3500 | HL58: 3500 | HM58: 3500 | HN58: 3500 | HO58: 3500 | HP58: 3500 | HQ58: 3500 | HR58: 3500 | HS58: 3500 | HT58: 3500 | HU58: 3500 | HV58: 3500 | HW58: 3500 | HX58: 3500 | HY58: 3500 | HZ58: 3500 | IA58: 3500 | IB58: 3500 | IC58: 3500 | ID58: 3500 | IE58: 3500 | IF58: 3500 | IG58: 3500 | IH58: 3500 | II58: 3500 | IJ58: 3500 | IK58: 3500 | IL58: 3500 | IM58: 3500 | IN58: 3500 | IO58: 3500 | IP58: 3500 | IQ58: 3500 | IR58: 3500 | IS58: 3500 | IT58: 3500 | IU58: 3500 | IV58: 3500 | IW58: 3500 | IX58: 3500 | IY58: 3500 | IZ58: 3500 | JA58: 3500 | JB58: 3500 | JC58: 3500 | JD58: 3500 | JE58: 3500 | JF58: =$F$58 -> 3500 | JG58: 3500 | JH58: 3500 | JI58: 3500 | JJ58: 3500 | JK58: 3500 | JL58: 3500 | JM58: 3500 | JN58: 3500 | JO58: 3500 | JP58: 3500 | JQ58: 3500 | JR58: 3500 | JS58: 3500 | JT58: 3500 | JU58: 3500 | JV58: 3500 | JW58: 3500 | JX58: 3500 | JY58: 3500 | JZ58: 3500 | KA58: 3500 | KB58: 3500 | KC58: 3500 | KD58: 3500 | KE58: 3500 | KF58: 3500 | KG58: 3500 | KH58: 3500 | KI58: 3500 | KJ58: 3500 | KK58: 3500 | KL58: 3500 | KM58: 3500 | KN58: 3500 | KO58: 3500 | KP58: 3500 | KQ58: 3500 | KR58: 3500 | KS58: 3500 | KT58: 3500 | KU58: 3500 | KV58: 3500
C59: Total Cost | E59: USD | F59: =F58*F14*1000 -> 140000000 | I59: =$F$59 -> 140000000 | J59: =$F$59 -> 140000000 | K59: 140000000 | L59: 140000000 | M59: 140000000 | N59: 140000000 | O59: 140000000 | P59: 140000000 | Q59: 140000000 | R59: 140000000 | S59: 140000000 | T59: 140000000 | U59: 140000000 | V59: 140000000 | W59: 140000000 | X59: 140000000 | Y59: 140000000 | Z59: 140000000 | AA59: 140000000 | AB59: 140000000 | AC59: 140000000 | AD59: 140000000 | AE59: 140000000 | AF59: 140000000 | AG59: 140000000 | AH59: 140000000 | AI59: 140000000 | AJ59: 140000000 | AK59: 140000000 | AL59: 140000000 | AM59: 140000000 | AN59: 140000000 | AO59: 140000000 | AP59: 140000000 | AQ59: 140000000 | AR59: 140000000 | AS59: 140000000 | AT59: 140000000 | AU59: 140000000 | AV59: 140000000 | AW59: 140000000 | AX59: 140000000 | AY59: 140000000 | AZ59: 140000000 | BA59: 140000000 | BB59: 140000000 | BC59: 140000000 | BD59: 140000000 | BE59: 140000000 | BF59: 140000000 | BG59: 140000000 | BH59: 140000000 | BI59: 140000000 | BJ59: 140000000 | BK59: 140000000 | BL59: 140000000 | BM59: 140000000 | BN59: 140000000 | BO59: 140000000 | BP59: 140000000 | BQ59: 140000000 | BR59: 140000000 | BS59: 140000000 | BT59: 140000000 | BU59: 140000000 | BV59: =$F$59 -> 140000000 | BW59: 140000000 | BX59: 140000000 | BY59: 140000000 | BZ59: 140000000 | CA59: 140000000 | CB59: 140000000 | CC59: 140000000 | CD59: 140000000 | CE59: 140000000 | CF59: 140000000 | CG59: 140000000 | CH59: 140000000 | CI59: 140000000 | CJ59: 140000000 | CK59: 140000000 | CL59: 140000000 | CM59: 140000000 | CN59: 140000000 | CO59: 140000000 | CP59: 140000000 | CQ59: 140000000 | CR59: 140000000 | CS59: 140000000 | CT59: 140000000 | CU59: 140000000 | CV59: 140000000 | CW59: 140000000 | CX59: 140000000 | CY59: 140000000 | CZ59: 140000000 | DA59: 140000000 | DB59: 140000000 | DC59: 140000000 | DD59: 140000000 | DE59: 140000000 | DF59: 140000000 | DG59: 140000000 | DH59: 140000000 | DI59: 140000000 | DJ59: 140000000 | DK59: 140000000 | DL59: 140000000 | DM59: 140000000 | DN59: 140000000 | DO59: 140000000 | DP59: 140000000 | DQ59: 140000000 | DR59: 140000000 | DS59: 140000000 | DT59: 140000000 | DU59: 140000000 | DV59: 140000000 | DW59: 140000000 | DX59: 140000000 | DY59: 140000000 | DZ59: 140000000 | EA59: 140000000 | EB59: 140000000 | EC59: 140000000 | ED59: 140000000 | EE59: 140000000 | EF59: 140000000 | EG59: 140000000 | EH59: =$F$59 -> 140000000 | EI59: 140000000 | EJ59: 140000000 | EK59: 140000000 | EL59: 140000000 | EM59: 140000000 | EN59: 140000000 | EO59: 140000000 | EP59: 140000000 | EQ59: 140000000 | ER59: 140000000 | ES59: 140000000 | ET59: 140000000 | EU59: 140000000 | EV59: 140000000 | EW59: 140000000 | EX59: 140000000 | EY59: 140000000 | EZ59: 140000000 | FA59: 140000000 | FB59: 140000000 | FC59: 140000000 | FD59: 140000000 | FE59: 140000000 | FF59: 140000000 | FG59: 140000000 | FH59: 140000000 | FI59: 140000000 | FJ59: 140000000 | FK59: 140000000 | FL59: 140000000 | FM59: 140000000 | FN59: 140000000 | FO59: 140000000 | FP59: 140000000 | FQ59: 140000000 | FR59: 140000000 | FS59: 140000000 | FT59: 140000000 | FU59: 140000000 | FV59: 140000000 | FW59: 140000000 | FX59: 140000000 | FY59: 140000000 | FZ59: 140000000 | GA59: 140000000 | GB59: 140000000 | GC59: 140000000 | GD59: 140000000 | GE59: 140000000 | GF59: 140000000 | GG59: 140000000 | GH59: 140000000 | GI59: 140000000 | GJ59: 140000000 | GK59: 140000000 | GL59: 140000000 | GM59: 140000000 | GN59: 140000000 | GO59: 140000000 | GP59: 140000000 | GQ59: 140000000 | GR59: 140000000 | GS59: 140000000 | GT59: =$F$59 -> 140000000 | GU59: 140000000 | GV59: 140000000 | GW59: 140000000 | GX59: 140000000 | GY59: 140000000 | GZ59: 140000000 | HA59: 140000000 | HB59: 140000000 | HC59: 140000000 | HD59: 140000000 | HE59: 140000000 | HF59: 140000000 | HG59: 140000000 | HH59: 140000000 | HI59: 140000000 | HJ59: 140000000 | HK59: 140000000 | HL59: 140000000 | HM59: 140000000 | HN59: 140000000 | HO59: 140000000 | HP59: 140000000 | HQ59: 140000000 | HR59: 140000000 | HS59: 140000000 | HT59: 140000000 | HU59: 140000000 | HV59: 140000000 | HW59: 140000000 | HX59: 140000000 | HY59: 140000000 | HZ59: 140000000 | IA59: 140000000 | IB59: 140000000 | IC59: 140000000 | ID59: 140000000 | IE59: 140000000 | IF59: 140000000 | IG59: 140000000 | IH59: 140000000 | II59: 140000000 | IJ59: 140000000 | IK59: 140000000 | IL59: 140000000 | IM59: 140000000 | IN59: 140000000 | IO59: 140000000 | IP59: 140000000 | IQ59: 140000000 | IR59: 140000000 | IS59: 140000000 | IT59: 140000000 | IU59: 140000000 | IV59: 140000000 | IW59: 140000000 | IX59: 140000000 | IY59: 140000000 | IZ59: 140000000 | JA59: 140000000 | JB59: 140000000 | JC59: 140000000 | JD59: 140000000 | JE59: 140000000 | JF59: =$F$59 -> 140000000 | JG59: 140000000 | JH59: 140000000 | JI59: 140000000 | JJ59: 140000000 | JK59: 140000000 | JL59: 140000000 | JM59: 140000000 | JN59: 140000000 | JO59: 140000000 | JP59: 140000000 | JQ59: 140000000 | JR59: 140000000 | JS59: 140000000 | JT59: 140000000 | JU59: 140000000 | JV59: 140000000 | JW59: 140000000 | JX59: 140000000 | JY59: 140000000 | JZ59: 140000000 | KA59: 140000000 | KB59: 140000000 | KC59: 140000000 | KD59: 140000000 | KE59: 140000000 | KF59: 140000000 | KG59: 140000000 | KH59: 140000000 | KI59: 140000000 | KJ59: 140000000 | KK59: 140000000 | KL59: 140000000 | KM59: 140000000 | KN59: 140000000 | KO59: 140000000 | KP59: 140000000 | KQ59: 140000000 | KR59: 140000000 | KS59: 140000000 | KT59: 140000000 | KU59: 140000000 | KV59: 140000000
C60: Spending Percent | E60: % | F60: =1/F6 -> 0.04166666667 | H60: =SUM(I60:XFD60) -> 1 | I60: =$F$60*I6 -> 0.04166666667 | J60: =$F$60*J6 -> 0.04166666667 | K60: =$F$60*K6 -> 0.04166666667 | L60: =$F$60*L6 -> 0.04166666667 | M60: =$F$60*M6 -> 0.04166666667 | N60: =$F$60*N6 -> 0.04166666667 | O60: =$F$60*O6 -> 0.04166666667 | P60: =$F$60*P6 -> 0.04166666667 | Q60: =$F$60*Q6 -> 0.04166666667 | R60: =$F$60*R6 -> 0.04166666667 | S60: =$F$60*S6 -> 0.04166666667 | T60: =$F$60*T6 -> 0.04166666667 | U60: =$F$60*U6 -> 0.04166666667 | V60: =$F$60*V6 -> 0.04166666667 | W60: =$F$60*W6 -> 0.04166666667 | X60: =$F$60*X6 -> 0.04166666667 | Y60: =$F$60*Y6 -> 0.04166666667 | Z60: =$F$60*Z6 -> 0.04166666667 | AA60: =$F$60*AA6 -> 0.04166666667 | AB60: =$F$60*AB6 -> 0.04166666667 | AC60: =$F$60*AC6 -> 0.04166666667 | AD60: =$F$60*AD6 -> 0.04166666667 | AE60: =$F$60*AE6 -> 0.04166666667 | AF60: =$F$60*AF6 -> 0.04166666667 | AG60: =$F$60*AG6 -> 0 | AH60: =$F$60*AH6 -> 0 | AI60: =$F$60*AI6 -> 0 | AJ60: =$F$60*AJ6 -> 0 | AK60: =$F$60*AK6 -> 0 | AL60: =$F$60*AL6 -> 0 | AM60: =$F$60*AM6 -> 0 | AN60: =$F$60*AN6 -> 0 | AO60: =$F$60*AO6 -> 0 | AP60: =$F$60*AP6 -> 0 | AQ60: =$F$60*AQ6 -> 0 | AR60: =$F$60*AR6 -> 0 | AS60: =$F$60*AS6 -> 0 | AT60: =$F$60*AT6 -> 0 | AU60: =$F$60*AU6 -> 0 | AV60: =$F$60*AV6 -> 0 | AW60: =$F$60*AW6 -> 0 | AX60: =$F$60*AX6 -> 0 | AY60: =$F$60*AY6 -> 0 | AZ60: =$F$60*AZ6 -> 0 | BA60: =$F$60*BA6 -> 0 | BB60: =$F$60*BB6 -> 0 | BC60: =$F$60*BC6 -> 0 | BD60: =$F$60*BD6 -> 0 | BE60: =$F$60*BE6 -> 0 | BF60: =$F$60*BF6 -> 0 | BG60: =$F$60*BG6 -> 0 | BH60: =$F$60*BH6 -> 0 | BI60: =$F$60*BI6 -> 0 | BJ60: =$F$60*BJ6 -> 0 | BK60: =$F$60*BK6 -> 0 | BL60: =$F$60*BL6 -> 0 | BM60: =$F$60*BM6 -> 0 | BN60: =$F$60*BN6 -> 0 | BO60: =$F$60*BO6 -> 0 | BP60: =$F$60*BP6 -> 0 | BQ60: =$F$60*BQ6 -> 0 | BR60: =$F$60*BR6 -> 0 | BS60: =$F$60*BS6 -> 0 | BT60: =$F$60*BT6 -> 0 | BU60: =$F$60*BU6 -> 0 | BV60: =$F$60*BV6 -> 0 | BW60: =$F$60*BW6 -> 0 | BX60: =$F$60*BX6 -> 0 | BY60: =$F$60*BY6 -> 0 | BZ60: =$F$60*BZ6 -> 0 | CA60: =$F$60*CA6 -> 0 | CB60: =$F$60*CB6 -> 0 | CC60: =$F$60*CC6 -> 0 | CD60: =$F$60*CD6 -> 0 | CE60: =$F$60*CE6 -> 0 | CF60: =$F$60*CF6 -> 0 | CG60: =$F$60*CG6 -> 0 | CH60: =$F$60*CH6 -> 0 | CI60: =$F$60*CI6 -> 0 | CJ60: =$F$60*CJ6 -> 0 | CK60: =$F$60*CK6 -> 0 | CL60: =$F$60*CL6 -> 0 | CM60: =$F$60*CM6 -> 0 | CN60: =$F$60*CN6 -> 0 | CO60: =$F$60*CO6 -> 0 | CP60: =$F$60*CP6 -> 0 | CQ60: =$F$60*CQ6 -> 0 | CR60: =$F$60*CR6 -> 0 | CS60: =$F$60*CS6 -> 0 | CT60: =$F$60*CT6 -> 0 | CU60: =$F$60*CU6 -> 0 | CV60: =$F$60*CV6 -> 0 | CW60: =$F$60*CW6 -> 0 | CX60: =$F$60*CX6 -> 0 | CY60: =$F$60*CY6 -> 0 | CZ60: =$F$60*CZ6 -> 0 | DA60: =$F$60*DA6 -> 0 | DB60: =$F$60*DB6 -> 0 | DC60: =$F$60*DC6 -> 0 | DD60: =$F$60*DD6 -> 0 | DE60: =$F$60*DE6 -> 0 | DF60: =$F$60*DF6 -> 0 | DG60: =$F$60*DG6 -> 0 | DH60: =$F$60*DH6 -> 0 | DI60: =$F$60*DI6 -> 0 | DJ60: =$F$60*DJ6 -> 0 | DK60: =$F$60*DK6 -> 0 | DL60: =$F$60*DL6 -> 0 | DM60: =$F$60*DM6 -> 0 | DN60: =$F$60*DN6 -> 0 | DO60: =$F$60*DO6 -> 0 | DP60: =$F$60*DP6 -> 0 | DQ60: =$F$60*DQ6 -> 0 | DR60: =$F$60*DR6 -> 0 | DS60: =$F$60*DS6 -> 0 | DT60: =$F$60*DT6 -> 0 | DU60: =$F$60*DU6 -> 0 | DV60: =$F$60*DV6 -> 0 | DW60: =$F$60*DW6 -> 0 | DX60: =$F$60*DX6 -> 0 | DY60: =$F$60*DY6 -> 0 | DZ60: =$F$60*DZ6 -> 0 | EA60: =$F$60*EA6 -> 0 | EB60: =$F$60*EB6 -> 0 | EC60: =$F$60*EC6 -> 0 | ED60: =$F$60*ED6 -> 0 | EE60: =$F$60*EE6 -> 0 | EF60: =$F$60*EF6 -> 0 | EG60: =$F$60*EG6 -> 0 | EH60: =$F$60*EH6 -> 0 | EI60: =$F$60*EI6 -> 0 | EJ60: =$F$60*EJ6 -> 0 | EK60: =$F$60*EK6 -> 0 | EL60: =$F$60*EL6 -> 0 | EM60: =$F$60*EM6 -> 0 | EN60: =$F$60*EN6 -> 0 | EO60: =$F$60*EO6 -> 0 | EP60: =$F$60*EP6 -> 0 | EQ60: =$F$60*EQ6 -> 0 | ER60: =$F$60*ER6 -> 0 | ES60: =$F$60*ES6 -> 0 | ET60: =$F$60*ET6 -> 0 | EU60: =$F$60*EU6 -> 0 | EV60: =$F$60*EV6 -> 0 | EW60: =$F$60*EW6 -> 0 | EX60: =$F$60*EX6 -> 0 | EY60: =$F$60*EY6 -> 0 | EZ60: =$F$60*EZ6 -> 0 | FA60: =$F$60*FA6 -> 0 | FB60: =$F$60*FB6 -> 0 | FC60: =$F$60*FC6 -> 0 | FD60: =$F$60*FD6 -> 0 | FE60: =$F$60*FE6 -> 0 | FF60: =$F$60*FF6 -> 0 | FG60: =$F$60*FG6 -> 0 | FH60: =$F$60*FH6 -> 0 | FI60: =$F$60*FI6 -> 0 | FJ60: =$F$60*FJ6 -> 0 | FK60: =$F$60*FK6 -> 0 | FL60: =$F$60*FL6 -> 0 | FM60: =$F$60*FM6 -> 0 | FN60: =$F$60*FN6 -> 0 | FO60: =$F$60*FO6 -> 0 | FP60: =$F$60*FP6 -> 0 | FQ60: =$F$60*FQ6 -> 0 | FR60: =$F$60*FR6 -> 0 | FS60: =$F$60*FS6 -> 0 | FT60: =$F$60*FT6 -> 0 | FU60: =$F$60*FU6 -> 0 | FV60: =$F$60*FV6 -> 0 | FW60: =$F$60*FW6 -> 0 | FX60: =$F$60*FX6 -> 0 | FY60: =$F$60*FY6 -> 0 | FZ60: =$F$60*FZ6 -> 0 | GA60: =$F$60*GA6 -> 0 | GB60: =$F$60*GB6 -> 0 | GC60: =$F$60*GC6 -> 0 | GD60: =$F$60*GD6 -> 0 | GE60: =$F$60*GE6 -> 0 | GF60: =$F$60*GF6 -> 0 | GG60: =$F$60*GG6 -> 0 | GH60: =$F$60*GH6 -> 0 | GI60: =$F$60*GI6 -> 0 | GJ60: =$F$60*GJ6 -> 0 | GK60: =$F$60*GK6 -> 0 | GL60: =$F$60*GL6 -> 0 | GM60: =$F$60*GM6 -> 0 | GN60: =$F$60*GN6 -> 0 | GO60: =$F$60*GO6 -> 0 | GP60: =$F$60*GP6 -> 0 | GQ60: =$F$60*GQ6 -> 0 | GR60: =$F$60*GR6 -> 0 | GS60: =$F$60*GS6 -> 0 | GT60: =$F$60*GT6 -> 0 | GU60: =$F$60*GU6 -> 0 | GV60: =$F$60*GV6 -> 0 | GW60: =$F$60*GW6 -> 0 | GX60: =$F$60*GX6 -> 0 | GY60: =$F$60*GY6 -> 0 | GZ60: =$F$60*GZ6 -> 0 | HA60: =$F$60*HA6 -> 0 | HB60: =$F$60*HB6 -> 0 | HC60: =$F$60*HC6 -> 0 | HD60: =$F$60*HD6 -> 0 | HE60: =$F$60*HE6 -> 0 | HF60: =$F$60*HF6 -> 0 | HG60: =$F$60*HG6 -> 0 | HH60: =$F$60*HH6 -> 0 | HI60: =$F$60*HI6 -> 0 | HJ60: =$F$60*HJ6 -> 0 | HK60: =$F$60*HK6 -> 0 | HL60: =$F$60*HL6 -> 0 | HM60: =$F$60*HM6 -> 0 | HN60: =$F$60*HN6 -> 0 | HO60: =$F$60*HO6 -> 0 | HP60: =$F$60*HP6 -> 0 | HQ60: =$F$60*HQ6 -> 0 | HR60: =$F$60*HR6 -> 0 | HS60: =$F$60*HS6 -> 0 | HT60: =$F$60*HT6 -> 0 | HU60: =$F$60*HU6 -> 0 | HV60: =$F$60*HV6 -> 0 | HW60: =$F$60*HW6 -> 0 | HX60: =$F$60*HX6 -> 0 | HY60: =$F$60*HY6 -> 0 | HZ60: =$F$60*HZ6 -> 0 | IA60: =$F$60*IA6 -> 0 | IB60: =$F$60*IB6 -> 0 | IC60: =$F$60*IC6 -> 0 | ID60: =$F$60*ID6 -> 0 | IE60: =$F$60*IE6 -> 0 | IF60: =$F$60*IF6 -> 0 | IG60: =$F$60*IG6 -> 0 | IH60: =$F$60*IH6 -> 0 | II60: =$F$60*II6 -> 0 | IJ60: =$F$60*IJ6 -> 0 | IK60: =$F$60*IK6 -> 0 | IL60: =$F$60*IL6 -> 0 | IM60: =$F$60*IM6 -> 0 | IN60: =$F$60*IN6 -> 0 | IO60: =$F$60*IO6 -> 0 | IP60: =$F$60*IP6 -> 0 | IQ60: =$F$60*IQ6 -> 0 | IR60: =$F$60*IR6 -> 0 | IS60: =$F$60*IS6 -> 0 | IT60: =$F$60*IT6 -> 0 | IU60: =$F$60*IU6 -> 0 | IV60: =$F$60*IV6 -> 0 | IW60: =$F$60*IW6 -> 0 | IX60: =$F$60*IX6 -> 0 | IY60: =$F$60*IY6 -> 0 | IZ60: =$F$60*IZ6 -> 0 | JA60: =$F$60*JA6 -> 0 | JB60: =$F$60*JB6 -> 0 | JC60: =$F$60*JC6 -> 0 | JD60: =$F$60*JD6 -> 0 | JE60: =$F$60*JE6 -> 0 | JF60: =$F$60*JF6 -> 0 | JG60: =$F$60*JG6 -> 0 | JH60: =$F$60*JH6 -> 0 | JI60: =$F$60*JI6 -> 0 | JJ60: =$F$60*JJ6 -> 0 | JK60: =$F$60*JK6 -> 0 | JL60: =$F$60*JL6 -> 0 | JM60: =$F$60*JM6 -> 0 | JN60: =$F$60*JN6 -> 0 | JO60: =$F$60*JO6 -> 0 | JP60: =$F$60*JP6 -> 0 | JQ60: =$F$60*JQ6 -> 0 | JR60: =$F$60*JR6 -> 0 | JS60: =$F$60*JS6 -> 0 | JT60: =$F$60*JT6 -> 0 | JU60: =$F$60*JU6 -> 0 | JV60: =$F$60*JV6 -> 0 | JW60: =$F$60*JW6 -> 0 | JX60: =$F$60*JX6 -> 0 | JY60: =$F$60*JY6 -> 0 | JZ60: =$F$60*JZ6 -> 0 | KA60: =$F$60*KA6 -> 0 | KB60: =$F$60*KB6 -> 0 | KC60: =$F$60*KC6 -> 0 | KD60: =$F$60*KD6 -> 0 | KE60: =$F$60*KE6 -> 0 | KF60: =$F$60*KF6 -> 0 | KG60: =$F$60*KG6 -> 0 | KH60: =$F$60*KH6 -> 0 | KI60: =$F$60*KI6 -> 0 | KJ60: =$F$60*KJ6 -> 0 | KK60: =$F$60*KK6 -> 0 | KL60: =$F$60*KL6 -> 0 | KM60: =$F$60*KM6 -> 0 | KN60: =$F$60*KN6 -> 0 | KO60: =$F$60*KO6 -> 0 | KP60: =$F$60*KP6 -> 0 | KQ60: =$F$60*KQ6 -> 0 | KR60: =$F$60*KR6 -> 0 | KS60: =$F$60*KS6 -> 0 | KT60: =$F$60*KT6 -> 0 | KU60: =$F$60*KU6 -> 0 | KV60: =$F$60*KV6 -> 0
C61: Total Capital Expenditure | E61: USD | I61: =I59*I60 -> 5833333.333 | J61: =J59*J60 -> 5833333.333 | K61: 5833333.333 | L61: 5833333.333 | M61: 5833333.333 | N61: 5833333.333 | O61: 5833333.333 | P61: 5833333.333 | Q61: 5833333.333 | R61: 5833333.333 | S61: 5833333.333 | T61: 5833333.333 | U61: 5833333.333 | V61: 5833333.333 | W61: 5833333.333 | X61: 5833333.333 | Y61: 5833333.333 | Z61: 5833333.333 | AA61: 5833333.333 | AB61: 5833333.333 | AC61: 5833333.333 | AD61: 5833333.333 | AE61: 5833333.333 | AF61: 5833333.333 | AG61: 0 | AH61: 0 | AI61: 0 | AJ61: 0 | AK61: 0 | AL61: 0 | AM61: 0 | AN61: 0 | AO61: 0 | AP61: 0 | AQ61: 0 | AR61: 0 | AS61: 0 | AT61: 0 | AU61: 0 | AV61: 0 | AW61: 0 | AX61: 0 | AY61: 0 | AZ61: 0 | BA61: 0 | BB61: 0 | BC61: 0 | BD61: 0 | BE61: 0 | BF61: 0 | BG61: 0 | BH61: 0 | BI61: 0 | BJ61: 0 | BK61: 0 | BL61: 0 | BM61: 0 | BN61: 0 | BO61: 0 | BP61: 0 | BQ61: 0 | BR61: 0 | BS61: 0 | BT61: 0 | BU61: 0 | BV61: =BV59*BV60 -> 0 | BW61: 0 | BX61: 0 | BY61: 0 | BZ61: 0 | CA61: 0 | CB61: 0 | CC61: 0 | CD61: 0 | CE61: 0 | CF61: 0 | CG61: 0 | CH61: 0 | CI61: 0 | CJ61: 0 | CK61: 0 | CL61: 0 | CM61: 0 | CN61: 0 | CO61: 0 | CP61: 0 | CQ61: 0 | CR61: 0 | CS61: 0 | CT61: 0 | CU61: 0 | CV61: 0 | CW61: 0 | CX61: 0 | CY61: 0 | CZ61: 0 | DA61: 0 | DB61: 0 | DC61: 0 | DD61: 0 | DE61: 0 | DF61: 0 | DG61: 0 | DH61: 0 | DI61: 0 | DJ61: 0 | DK61: 0 | DL61: 0 | DM61: 0 | DN61: 0 | DO61: 0 | DP61: 0 | DQ61: 0 | DR61: 0 | DS61: 0 | DT61: 0 | DU61: 0 | DV61: 0 | DW61: 0 | DX61: 0 | DY61: 0 | DZ61: 0 | EA61: 0 | EB61: 0 | EC61: 0 | ED61: 0 | EE61: 0 | EF61: 0 | EG61: 0 | EH61: =EH59*EH60 -> 0 | EI61: 0 | EJ61: 0 | EK61: 0 | EL61: 0 | EM61: 0 | EN61: 0 | EO61: 0 | EP61: 0 | EQ61: 0 | ER61: 0 | ES61: 0 | ET61: 0 | EU61: 0 | EV61: 0 | EW61: 0 | EX61: 0 | EY61: 0 | EZ61: 0 | FA61: 0 | FB61: 0 | FC61: 0 | FD61: 0 | FE61: 0 | FF61: 0 | FG61: 0 | FH61: 0 | FI61: 0 | FJ61: 0 | FK61: 0 | FL61: 0 | FM61: 0 | FN61: 0 | FO61: 0 | FP61: 0 | FQ61: 0 | FR61: 0 | FS61: 0 | FT61: 0 | FU61: 0 | FV61: 0 | FW61: 0 | FX61: 0 | FY61: 0 | FZ61: 0 | GA61: 0 | GB61: 0 | GC61: 0 | GD61: 0 | GE61: 0 | GF61: 0 | GG61: 0 | GH61: 0 | GI61: 0 | GJ61: 0 | GK61: 0 | GL61: 0 | GM61: 0 | GN61: 0 | GO61: 0 | GP61: 0 | GQ61: 0 | GR61: 0 | GS61: 0 | GT61: =GT59*GT60 -> 0 | GU61: 0 | GV61: 0 | GW61: 0 | GX61: 0 | GY61: 0 | GZ61: 0 | HA61: 0 | HB61: 0 | HC61: 0 | HD61: 0 | HE61: 0 | HF61: 0 | HG61: 0 | HH61: 0 | HI61: 0 | HJ61: 0 | HK61: 0 | HL61: 0 | HM61: 0 | HN61: 0 | HO61: 0 | HP61: 0 | HQ61: 0 | HR61: 0 | HS61: 0 | HT61: 0 | HU61: 0 | HV61: 0 | HW61: 0 | HX61: 0 | HY61: 0 | HZ61: 0 | IA61: 0 | IB61: 0 | IC61: 0 | ID61: 0 | IE61: 0 | IF61: 0 | IG61: 0 | IH61: 0 | II61: 0 | IJ61: 0 | IK61: 0 | IL61: 0 | IM61: 0 | IN61: 0 | IO61: 0 | IP61: 0 | IQ61: 0 | IR61: 0 | IS61: 0 | IT61: 0 | IU61: 0 | IV61: 0 | IW61: 0 | IX61: 0 | IY61: 0 | IZ61: 0 | JA61: 0 | JB61: 0 | JC61: 0 | JD61: 0 | JE61: 0 | JF61: =JF59*JF60 -> 0 | JG61: 0 | JH61: 0 | JI61: 0 | JJ61: 0 | JK61: 0 | JL61: 0 | JM61: 0 | JN61: 0 | JO61: 0 | JP61: 0 | JQ61: 0 | JR61: 0 | JS61: 0 | JT61: 0 | JU61: 0 | JV61: 0 | JW61: 0 | JX61: 0 | JY61: 0 | JZ61: 0 | KA61: 0 | KB61: 0 | KC61: 0 | KD61: 0 | KE61: 0 | KF61: 0 | KG61: 0 | KH61: 0 | KI61: 0 | KJ61: 0 | KK61: 0 | KL61: 0 | KM61: 0 | KN61: 0 | KO61: 0 | KP61: 0 | KQ61: 0 | KR61: 0 | KS61: 0 | KT61: 0 | KU61: 0 | KV61: 0
C63: Cost/kW IT - Electricity Equipment | E63: USD/kW IT | F63: =InputC!G47 -> 5000 | I63: =$F$63 -> 5000 | J63: =$F$63 -> 5000 | K63: 5000 | L63: 5000 | M63: 5000 | N63: 5000 | O63: 5000 | P63: 5000 | Q63: 5000 | R63: 5000 | S63: 5000 | T63: 5000 | U63: 5000 | V63: 5000 | W63: 5000 | X63: 5000 | Y63: 5000 | Z63: 5000 | AA63: 5000 | AB63: 5000 | AC63: 5000 | AD63: 5000 | AE63: 5000 | AF63: 5000 | AG63: 5000 | AH63: 5000 | AI63: 5000 | AJ63: 5000 | AK63: 5000 | AL63: 5000 | AM63: 5000 | AN63: 5000 | AO63: 5000 | AP63: 5000 | AQ63: 5000 | AR63: 5000 | AS63: 5000 | AT63: 5000 | AU63: 5000 | AV63: 5000 | AW63: 5000 | AX63: 5000 | AY63: 5000 | AZ63: 5000 | BA63: 5000 | BB63: 5000 | BC63: 5000 | BD63: 5000 | BE63: 5000 | BF63: 5000 | BG63: 5000 | BH63: 5000 | BI63: 5000 | BJ63: 5000 | BK63: 5000 | BL63: 5000 | BM63: 5000 | BN63: 5000 | BO63: 5000 | BP63: 5000 | BQ63: 5000 | BR63: 5000 | BS63: 5000 | BT63: 5000 | BU63: 5000 | BV63: =$F$63 -> 5000 | BW63: 5000 | BX63: 5000 | BY63: 5000 | BZ63: 5000 | CA63: 5000 | CB63: 5000 | CC63: 5000 | CD63: 5000 | CE63: 5000 | CF63: 5000 | CG63: 5000 | CH63: 5000 | CI63: 5000 | CJ63: 5000 | CK63: 5000 | CL63: 5000 | CM63: 5000 | CN63: 5000 | CO63: 5000 | CP63: 5000 | CQ63: 5000 | CR63: 5000 | CS63: 5000 | CT63: 5000 | CU63: 5000 | CV63: 5000 | CW63: 5000 | CX63: 5000 | CY63: 5000 | CZ63: 5000 | DA63: 5000 | DB63: 5000 | DC63: 5000 | DD63: 5000 | DE63: 5000 | DF63: 5000 | DG63: 5000 | DH63: 5000 | DI63: 5000 | DJ63: 5000 | DK63: 5000 | DL63: 5000 | DM63: 5000 | DN63: 5000 | DO63: 5000 | DP63: 5000 | DQ63: 5000 | DR63: 5000 | DS63: 5000 | DT63: 5000 | DU63: 5000 | DV63: 5000 | DW63: 5000 | DX63: 5000 | DY63: 5000 | DZ63: 5000 | EA63: 5000 | EB63: 5000 | EC63: 5000 | ED63: 5000 | EE63: 5000 | EF63: 5000 | EG63: 5000 | EH63: =$F$63 -> 5000 | EI63: 5000 | EJ63: 5000 | EK63: 5000 | EL63: 5000 | EM63: 5000 | EN63: 5000 | EO63: 5000 | EP63: 5000 | EQ63: 5000 | ER63: 5000 | ES63: 5000 | ET63: 5000 | EU63: 5000 | EV63: 5000 | EW63: 5000 | EX63: 5000 | EY63: 5000 | EZ63: 5000 | FA63: 5000 | FB63: 5000 | FC63: 5000 | FD63: 5000 | FE63: 5000 | FF63: 5000 | FG63: 5000 | FH63: 5000 | FI63: 5000 | FJ63: 5000 | FK63: 5000 | FL63: 5000 | FM63: 5000 | FN63: 5000 | FO63: 5000 | FP63: 5000 | FQ63: 5000 | FR63: 5000 | FS63: 5000 | FT63: 5000 | FU63: 5000 | FV63: 5000 | FW63: 5000 | FX63: 5000 | FY63: 5000 | FZ63: 5000 | GA63: 5000 | GB63: 5000 | GC63: 5000 | GD63: 5000 | GE63: 5000 | GF63: 5000 | GG63: 5000 | GH63: 5000 | GI63: 5000 | GJ63: 5000 | GK63: 5000 | GL63: 5000 | GM63: 5000 | GN63: 5000 | GO63: 5000 | GP63: 5000 | GQ63: 5000 | GR63: 5000 | GS63: 5000 | GT63: =$F$63 -> 5000 | GU63: 5000 | GV63: 5000 | GW63: 5000 | GX63: 5000 | GY63: 5000 | GZ63: 5000 | HA63: 5000 | HB63: 5000 | HC63: 5000 | HD63: 5000 | HE63: 5000 | HF63: 5000 | HG63: 5000 | HH63: 5000 | HI63: 5000 | HJ63: 5000 | HK63: 5000 | HL63: 5000 | HM63: 5000 | HN63: 5000 | HO63: 5000 | HP63: 5000 | HQ63: 5000 | HR63: 5000 | HS63: 5000 | HT63: 5000 | HU63: 5000 | HV63: 5000 | HW63: 5000 | HX63: 5000 | HY63: 5000 | HZ63: 5000 | IA63: 5000 | IB63: 5000 | IC63: 5000 | ID63: 5000 | IE63: 5000 | IF63: 5000 | IG63: 5000 | IH63: 5000 | II63: 5000 | IJ63: 5000 | IK63: 5000 | IL63: 5000 | IM63: 5000 | IN63: 5000 | IO63: 5000 | IP63: 5000 | IQ63: 5000 | IR63: 5000 | IS63: 5000 | IT63: 5000 | IU63: 5000 | IV63: 5000 | IW63: 5000 | IX63: 5000 | IY63: 5000 | IZ63: 5000 | JA63: 5000 | JB63: 5000 | JC63: 5000 | JD63: 5000 | JE63: 5000 | JF63: =$F$63 -> 5000 | JG63: 5000 | JH63: 5000 | JI63: 5000 | JJ63: 5000 | JK63: 5000 | JL63: 5000 | JM63: 5000 | JN63: 5000 | JO63: 5000 | JP63: 5000 | JQ63: 5000 | JR63: 5000 | JS63: 5000 | JT63: 5000 | JU63: 5000 | JV63: 5000 | JW63: 5000 | JX63: 5000 | JY63: 5000 | JZ63: 5000 | KA63: 5000 | KB63: 5000 | KC63: 5000 | KD63: 5000 | KE63: 5000 | KF63: 5000 | KG63: 5000 | KH63: 5000 | KI63: 5000 | KJ63: 5000 | KK63: 5000 | KL63: 5000 | KM63: 5000 | KN63: 5000 | KO63: 5000 | KP63: 5000 | KQ63: 5000 | KR63: 5000 | KS63: 5000 | KT63: 5000 | KU63: 5000 | KV63: 5000
C64: Total Cost | E64: USD | F64: =F63*F14*1000 -> 200000000 | I64: =$F$64 -> 200000000 | J64: =$F$64 -> 200000000 | K64: 200000000 | L64: 200000000 | M64: 200000000 | N64: 200000000 | O64: 200000000 | P64: 200000000 | Q64: 200000000 | R64: 200000000 | S64: 200000000 | T64: 200000000 | U64: 200000000 | V64: 200000000 | W64: 200000000 | X64: 200000000 | Y64: 200000000 | Z64: 200000000 | AA64: 200000000 | AB64: 200000000 | AC64: 200000000 | AD64: 200000000 | AE64: 200000000 | AF64: 200000000 | AG64: 200000000 | AH64: 200000000 | AI64: 200000000 | AJ64: 200000000 | AK64: 200000000 | AL64: 200000000 | AM64: 200000000 | AN64: 200000000 | AO64: 200000000 | AP64: 200000000 | AQ64: 200000000 | AR64: 200000000 | AS64: 200000000 | AT64: 200000000 | AU64: 200000000 | AV64: 200000000 | AW64: 200000000 | AX64: 200000000 | AY64: 200000000 | AZ64: 200000000 | BA64: 200000000 | BB64: 200000000 | BC64: 200000000 | BD64: 200000000 | BE64: 200000000 | BF64: 200000000 | BG64: 200000000 | BH64: 200000000 | BI64: 200000000 | BJ64: 200000000 | BK64: 200000000 | BL64: 200000000 | BM64: 200000000 | BN64: 200000000 | BO64: 200000000 | BP64: 200000000 | BQ64: 200000000 | BR64: 200000000 | BS64: 200000000 | BT64: 200000000 | BU64: 200000000 | BV64: =$F$64 -> 200000000 | BW64: 200000000 | BX64: 200000000 | BY64: 200000000 | BZ64: 200000000 | CA64: 200000000 | CB64: 200000000 | CC64: 200000000 | CD64: 200000000 | CE64: 200000000 | CF64: 200000000 | CG64: 200000000 | CH64: 200000000 | CI64: 200000000 | CJ64: 200000000 | CK64: 200000000 | CL64: 200000000 | CM64: 200000000 | CN64: 200000000 | CO64: 200000000 | CP64: 200000000 | CQ64: 200000000 | CR64: 200000000 | CS64: 200000000 | CT64: 200000000 | CU64: 200000000 | CV64: 200000000 | CW64: 200000000 | CX64: 200000000 | CY64: 200000000 | CZ64: 200000000 | DA64: 200000000 | DB64: 200000000 | DC64: 200000000 | DD64: 200000000 | DE64: 200000000 | DF64: 200000000 | DG64: 200000000 | DH64: 200000000 | DI64: 200000000 | DJ64: 200000000 | DK64: 200000000 | DL64: 200000000 | DM64: 200000000 | DN64: 200000000 | DO64: 200000000 | DP64: 200000000 | DQ64: 200000000 | DR64: 200000000 | DS64: 200000000 | DT64: 200000000 | DU64: 200000000 | DV64: 200000000 | DW64: 200000000 | DX64: 200000000 | DY64: 200000000 | DZ64: 200000000 | EA64: 200000000 | EB64: 200000000 | EC64: 200000000 | ED64: 200000000 | EE64: 200000000 | EF64: 200000000 | EG64: 200000000 | EH64: =$F$64 -> 200000000 | EI64: 200000000 | EJ64: 200000000 | EK64: 200000000 | EL64: 200000000 | EM64: 200000000 | EN64: 200000000 | EO64: 200000000 | EP64: 200000000 | EQ64: 200000000 | ER64: 200000000 | ES64: 200000000 | ET64: 200000000 | EU64: 200000000 | EV64: 200000000 | EW64: 200000000 | EX64: 200000000 | EY64: 200000000 | EZ64: 200000000 | FA64: 200000000 | FB64: 200000000 | FC64: 200000000 | FD64: 200000000 | FE64: 200000000 | FF64: 200000000 | FG64: 200000000 | FH64: 200000000 | FI64: 200000000 | FJ64: 200000000 | FK64: 200000000 | FL64: 200000000 | FM64: 200000000 | FN64: 200000000 | FO64: 200000000 | FP64: 200000000 | FQ64: 200000000 | FR64: 200000000 | FS64: 200000000 | FT64: 200000000 | FU64: 200000000 | FV64: 200000000 | FW64: 200000000 | FX64: 200000000 | FY64: 200000000 | FZ64: 200000000 | GA64: 200000000 | GB64: 200000000 | GC64: 200000000 | GD64: 200000000 | GE64: 200000000 | GF64: 200000000 | GG64: 200000000 | GH64: 200000000 | GI64: 200000000 | GJ64: 200000000 | GK64: 200000000 | GL64: 200000000 | GM64: 200000000 | GN64: 200000000 | GO64: 200000000 | GP64: 200000000 | GQ64: 200000000 | GR64: 200000000 | GS64: 200000000 | GT64: =$F$64 -> 200000000 | GU64: 200000000 | GV64: 200000000 | GW64: 200000000 | GX64: 200000000 | GY64: 200000000 | GZ64: 200000000 | HA64: 200000000 | HB64: 200000000 | HC64: 200000000 | HD64: 200000000 | HE64: 200000000 | HF64: 200000000 | HG64: 200000000 | HH64: 200000000 | HI64: 200000000 | HJ64: 200000000 | HK64: 200000000 | HL64: 200000000 | HM64: 200000000 | HN64: 200000000 | HO64: 200000000 | HP64: 200000000 | HQ64: 200000000 | HR64: 200000000 | HS64: 200000000 | HT64: 200000000 | HU64: 200000000 | HV64: 200000000 | HW64: 200000000 | HX64: 200000000 | HY64: 200000000 | HZ64: 200000000 | IA64: 200000000 | IB64: 200000000 | IC64: 200000000 | ID64: 200000000 | IE64: 200000000 | IF64: 200000000 | IG64: 200000000 | IH64: 200000000 | II64: 200000000 | IJ64: 200000000 | IK64: 200000000 | IL64: 200000000 | IM64: 200000000 | IN64: 200000000 | IO64: 200000000 | IP64: 200000000 | IQ64: 200000000 | IR64: 200000000 | IS64: 200000000 | IT64: 200000000 | IU64: 200000000 | IV64: 200000000 | IW64: 200000000 | IX64: 200000000 | IY64: 200000000 | IZ64: 200000000 | JA64: 200000000 | JB64: 200000000 | JC64: 200000000 | JD64: 200000000 | JE64: 200000000 | JF64: =$F$64 -> 200000000 | JG64: 200000000 | JH64: 200000000 | JI64: 200000000 | JJ64: 200000000 | JK64: 200000000 | JL64: 200000000 | JM64: 200000000 | JN64: 200000000 | JO64: 200000000 | JP64: 200000000 | JQ64: 200000000 | JR64: 200000000 | JS64: 200000000 | JT64: 200000000 | JU64: 200000000 | JV64: 200000000 | JW64: 200000000 | JX64: 200000000 | JY64: 200000000 | JZ64: 200000000 | KA64: 200000000 | KB64: 200000000 | KC64: 200000000 | KD64: 200000000 | KE64: 200000000 | KF64: 200000000 | KG64: 200000000 | KH64: 200000000 | KI64: 200000000 | KJ64: 200000000 | KK64: 200000000 | KL64: 200000000 | KM64: 200000000 | KN64: 200000000 | KO64: 200000000 | KP64: 200000000 | KQ64: 200000000 | KR64: 200000000 | KS64: 200000000 | KT64: 200000000 | KU64: 200000000 | KV64: 200000000
